Workbook

Sheet 説明・使い方
B1: ライフプラン・キャッシュフロー表（100歳まで）
B2: ～ サンプル：XX家データを初期値として設定 ～
B4: 【本ファイルの目的】
B5: ご家族の年齢・収入・支出・ローン・保険などの情報を入力すると、
B6: ライフイベント表と100歳までのキャッシュフロー表が自動算出されます。
B7: また、扶養者の年齢・配偶者有無・子人数を基準とした全国平均との比較も行います。
B9: 【シート構成】
B10: ① 基本情報 ご家族構成・年齢・基準年・退職年金前提
B11: ② 収入計画 給与・賞与・退職金・年金など将来の収入
B12: ③ 支出計画 基本生活費・住居費・教育費等の支出計画
B13: ④ 住宅ローン償還表 元利均等返済の自動計算（年次）
B14: ⑤ 金融資産・運用 現在残高と運用利回り設定
B15: ⑥ 保険 保険料の年次計画
B16: ⑦ ライフイベント表 主要イベントの年表（家族年齢付き）
B17: ⑧ キャッシュフロー表 100歳までの年次収支・貯蓄残高
B18: ⑨ 全国平均比較 扶養者年齢×世帯構成での比較
B19: ⑩ ダッシュボード グラフによる可視化
B21: 【入力ルール】
B22: ・薄いオレンジ色のセル ＝ 入力必須の箇所
B23: ・薄い黄色のセル ＝ 任意で入力する箇所（必須ではありません）
B24: ・薄いグレーのセル ＝ 自動計算される箇所（編集不可推奨）
B25: ・既定値はサンプル提案書（XX家）を初期値として設定。実数値で上書きしてご利用ください。
B27: 【単位】 金額：万円 ／ 利率：％ ／ 年齢：歳 ／ 年：西暦年
B29: 【ご注意】税制改正・運用商品の信託報酬等は考慮しておりません。あくまで概算試算です。
B32: 生成AIへの問い合わせプロンプト：以下のプロンプトを”コピペ”してください。次にこのEXCELシート（6_2_ライフプラン_詳細版v3 20260531シート）のまま貼付けしてください。尚、生成AIアプリは利用者にて選択してください。「ダッシュボード」に回答が追記されます。
B33: あなたは経験豊富なキャリコンとCFPです。#「ダッシュボード」シートのD5～N11のスペースに全ページを見たうえで以下の回答を記述してください。 #特に「基本情報」シートのB24～B43のうちチェックがあった行のD、E、F、G列の事項を参照し、#更にB46～G49の主訴（ご相談で最も解決したいことに対する現状とのギャップを解消する施策）を熟考してください。その解決策として3～5案800文字程度で記述してください。
B35: ※ 本シミュレーションは概算であり、実際の収支は経済情勢・個別事情により変動します。

Sheet 基本情報
B1: ① 基本情報（ご家族構成・基準）
B3: 基準年（プラン作成年） | C3: 2022 | D3: （西暦4桁）
B5: 続柄 | C5: 氏名 | D5: 生年月日 | E5: 基準年年齢 | F5: 100歳到達年 | G5: 備考
B6: ご本人(夫) | C6: 山田 太郎ヤマダタロウ | D6: 1986-04-01 | E6: =IF(D6="","",IF(OR(YEAR(D6)>$C$3,AND(YEAR(D6)=$C$3,OR(MONTH(D6)>1,DAY(D6)>1))),"",$C$3-YEAR(D6)-IF(OR(MONTH(D6)>1,DAY(D6)>1),1,0))) -> 35 | F6: =IF(E6="","",$C$3+(100-E6)) -> 2087
B7: 配偶者(妻) | C7: 山田 花子ヤマダハナコ | D7: 1987-05-01 | E7: 34 | F7: 2088
B8: お子様① | C8: 山田 一郎ヤマダイチロウ | D8: 2018-06-01 | E8: 3 | F8: 2119
B9: お子様② | C9: 山田 二郎ヤマダジロウ | D9: 2020-07-01 | E9: 1 | F9: 2121
B10: お子様③ | C10: 山田 三郎ヤマダサブロウ | D10: 2027-08-01 | G10: 出産予定
B11: お子様④
B12: お子様⑤
B13: ■ 退職・年金・再就職 前提
B14: 項目 | C14: ご本人 | D14: 配偶者 | E14: 備考
B15: 定年年齢 | C15: 65 | D15: 65 | E15: 歳
B16: 退職金 (万円) | C16: 2000 | D16: 0 | E16: 税込・概算
B17: 年金開始年齢 | C17: 65 | D17: 65 | E17: 歳
B18: 年金月額 (万円) | C18: 15.5 | D18: 8.5 | E18: 概算
B19: 再就職年収 (万円) | C19: 300 | D19: 100 | E19: 60〜69歳
B20: 再就職終了年齢 | C20: 70 | D20: 69 | E20: 歳
B22: ■ ご相談内容（該当する項目すべてにチェック／チェック数は問いません）
B23: チェック | C23: 順位 | D23: 相談項目 | F23: 相談内容の要約
C24: 1 | D24: 家計収支の見直し | F24: 収入に対して支出が多い、貯蓄できない、赤字が続くという相談。固定費、変動費、使途不明金を整理し、無理なく続く家計管理方法を作る。
C25: 2 | D25: 保険の見直し | F25: 生命保険、医療保険、がん保険、学資保険などが現在の家族構成や収入に合っているか確認する相談。保障の過不足、保険料負担、重複保障を点検する。
B26: ✓ | C26: 3 | D26: 老後資金の準備 | F26: 年金だけで生活できるか、老後にいくら必要か、退職後の生活費をどう準備するかという相談。退職金、年金、貯蓄、働き方を含めて考える。
B27: ✓ | C27: 4 | D27: 教育資金の準備 | F27: 子どもの進学費用をどう準備するかという相談。幼稚園から大学までの費用、学資保険、児童手当、積立投資、奨学金の活用を検討する。
C28: 5 | D28: 住宅購入の資金計画 | F28: いくらの住宅なら無理なく買えるか、頭金はいくら必要か、住宅ローン返済と教育費・老後資金が両立できるかを確認する相談。
C29: 6 | D29: 住宅ローンの見直し | F29: 変動金利・固定金利の選択、借換え、繰上返済、返済期間の見直しに関する相談。金利上昇時の家計への影響も確認する。
B30: ✓ | C30: 7 | D30: 資産運用・NISA・投資信託 | F30: 預貯金だけでよいか、NISAや投資信託をどう始めるかという相談。リスク許容度、運用目的、期間、商品選びを整理する。
B31: ✓ | C31: 8 | D31: ライフプラン表・キャッシュフロー表作成 | F31: 結婚、出産、住宅購入、教育、退職など将来イベントを見える化し、家計がいつ厳しくなるか、貯蓄がどのように推移するかを確認する相談。
C32: 9 | D32: 年金の受給見込み | F32: 公的年金がいつから、いくら受け取れるかという相談。ねんきん定期便や年金見込額を確認し、繰上げ・繰下げ受給も検討する。
C33: 10 | D33: 退職金の使い方 | F33: 退職金を住宅ローン返済に使うか、運用するか、老後生活費として取り崩すかという相談。大きな一括資金の使い方を慎重に設計する。
C34: 11 | D34: 相続対策 | F34: 親の相続、遺産分割、相続税、遺言、預貯金・不動産の承継に関する相談。家族間トラブルを避けるため、早めの準備を考える。
C35: 12 | D35: 贈与・生前対策 | F35: 子や孫への資金援助、住宅取得資金、教育資金、暦年贈与などの相談。税負担だけでなく、家族間の公平性も確認する。
C36: 13 | D36: 介護費用の備え | F36: 親や自分の介護にいくら必要か、介護保険でどこまで賄えるかという相談。施設費用、在宅介護、家族負担も含めて考える。
C37: 14 | D37: 医療費・高額療養費制度 | F37: 病気や入院時の自己負担、医療保険の必要性、高額療養費制度の活用についての相談。公的保障を確認したうえで民間保険を考える。
B38: ✓ | C38: 15 | D38: 共働き世帯の家計管理 | F38: 夫婦別財布、共同口座、生活費分担、貯蓄割合などの相談。収入差や育休・時短勤務も踏まえて、家計の共有方法を決める。
C39: 16 | D39: 出産・育児休業中の収入減対策 | F39: 産休・育休中の手当、社会保険料免除、復職後の時短勤務による収入減への備え。教育費や住宅ローンとの両立も確認する。
C40: 17 | D40: 税金・所得控除の相談 | F40: 医療費控除、扶養控除、配偶者控除、住宅ローン控除、ふるさと納税などの相談。家計に影響する税制を確認する。
C41: 18 | D41: 自営業・個人事業主の資金計画 | F41: 売上変動、税金、社会保険、退職金準備、小規模企業共済、iDeCoなどの相談。会社員より不安定な収入に備える設計が必要。
C42: 19 | D42: 離婚・ひとり親家庭の生活設計 | F42: 養育費、教育費、住居費、児童扶養手当、保険、老後資金などの相談。生活再建と子どもの将来資金を同時に整理する。
C43: 20 | D43: 借金・ローン返済の整理 | F43: カードローン、リボ払い、奨学金、自動車ローンなどの返済相談。FPは家計改善を支援し、法的整理が必要な場合は弁護士等につなぐ。
B45: ■ 主訴（ご相談で最も解決したいこと・200字以内）
B46: 私は現在35歳です。私どもの子供は2人。可能であれば子供をあと3人望んでいます。ただし新居も購入します。今の収入で今後の生活を考えると子供5人は相当に無理に感じています。今後収入が大きく上がることはありません。支出も贅沢はしていません。私が90歳まで生きて家族を養うために今後のは子供の人数は大きな課題です。今後の家族のあるべき支出はどうしたら良いのでしょうか？
B50: ※ 200字以内（自動で文字数チェックされます）

Sheet 収入計画
B1: ② 収入計画（年収・退職金・年金）
B3: ■ 現在の年収（基準年＝サンプル：2022年）
B4: 対象 | C4: 年収(万円) | D4: 可処分所得(万円) | E4: 上昇率① | F4: 上昇率② | G4: 上昇率切替年齢
B5: ご本人 | C5: 600 | D5: =本人年収*0.8 -> 480 | E5: 0.01 | F5: 0.0005 | G5: 上昇率①は切替年齢まで／上昇率②は定年から
B6: 配偶者 | C6: 300 | D6: =配偶者年収*0.8 -> 240 | E6: 0.01 | F6: 0.0005 | G6: 産休中は50%として算出（収入計画モデルで考慮）
D7: =SUM(D5:D6) -> 720
B8: ■ 出産・育児休業の収入考慮（配偶者）
B9: 出産年（西暦） | C9: =IFERROR(IF((YEAR(基本情報!D8))=0,"",(YEAR(基本情報!D8))),"") -> 2018 | D9: 出産する年。子1の生年と一致（基本情報シートから自動取得）
B10: 育休後復帰年齢（配偶者） | C10: =IF(C9="","",C9-YEAR(基本情報!$D$7)-IF(OR(MONTH(基本情報!$D$7)>1,DAY(基本情報!$D$7)>1),1,0)+2) -> 32 | D10: 歳。出産後の復帰までは収入50%（配偶者基準年齢+2年）
B11: 時短勤務終了年齢（配偶者） | C11: =IF(C10="","",C10+3) -> 35 | D11: 歳。時短期間中は収入50%（復帰後3年間）
B12: 出産年（西暦）子2 | C12: =IFERROR(IF((YEAR(基本情報!D9))=0,"",(YEAR(基本情報!D9))),"") -> 2020 | D12: 出産する年。子2の生年と一致（基本情報シートから自動取得）
B13: 育休後復帰年齢（配偶者）子2 | C13: =IF(C12="","",C12-YEAR(基本情報!$D$7)-IF(OR(MONTH(基本情報!$D$7)>1,DAY(基本情報!$D$7)>1),1,0)+2) -> 34 | D13: 歳。出産後の復帰までは収入50%（配偶者基準年齢+2年）
B14: 時短勤務終了年齢（配偶者）子2 | C14: =IF(C13="","",C13+3) -> 37 | D14: 歳。時短期間中は収入50%（子2復帰後3年間）
B15: 出産年（西暦）子3 | C15: =IFERROR(IF((YEAR(基本情報!D10))=0,"",(YEAR(基本情報!D10))),"") -> 2027 | D15: 出産する年。子3の生年と一致（基本情報シートから自動取得）
B16: 育休後復帰年齢（配偶者）子3 | C16: =IF(C15="","",C15-YEAR(基本情報!$D$7)-IF(OR(MONTH(基本情報!$D$7)>1,DAY(基本情報!$D$7)>1),1,0)+2) -> 41 | D16: 歳。子3出産後の復帰までは収入50%（配偶者基準年齢+2年）
B17: 時短勤務終了年齢（配偶者）子3 | C17: =IF(C16="","",C16+3) -> 44 | D17: 歳。時短期間中は収入50%（子3復帰後3年間）
B18: 出産年（西暦）子4 | C18: =IF(基本情報!D11="","",YEAR(基本情報!D11)) ->  | D18: 出産する年。子4の生年と一致（基本情報シートから自動取得）
B19: 育休後復帰年齢（配偶者）子4 | C19: =IF(C18="","",C18-YEAR(基本情報!$D$7)-IF(OR(MONTH(基本情報!$D$7)>1,DAY(基本情報!$D$7)>1),1,0)+2) ->  | D19: 歳。子4出産後の復帰までは収入50%（配偶者基準年齢+2年）
B20: 時短勤務終了年齢（配偶者）子4 | C20: =IF(C19="","",C19+3) ->  | D20: 歳。時短期間中は収入50%（子4復帰後3年間）
B21: 出産年（西暦）子5 | C21: =IF(基本情報!D12="","",YEAR(基本情報!D12)) ->  | D21: 出産する年。子5の生年と一致（基本情報シートから自動取得）
B22: 育休後復帰年齢（配偶者）子5 | C22: =IF(C21="","",C21-YEAR(基本情報!$D$7)-IF(OR(MONTH(基本情報!$D$7)>1,DAY(基本情報!$D$7)>1),1,0)+2) ->  | D22: 歳。子5出産後の復帰までは収入50%（配偶者基準年齢+2年）
B23: 時短勤務終了年齢（配偶者）子5 | C23: =IF(C22="","",C22+3) ->  | D23: 歳。時短期間中は収入50%（子5復帰後3年間）
B25: ■ 一時的収入・公的給付
B26: 項目 | C26: 金額(万円) | D26: 受取年(西暦) | E26: 終了年(西暦) | F26: 頻度 | G26: 備考
B27: 児童手当（子1） | C27: 18 | D27: =IFERROR(IF((YEAR(基本情報!D8))=0,"",(YEAR(基本情報!D8))),"") -> 2018 | E27: =IFERROR(IF((YEAR(基本情報!D8)+15)=0,"",(YEAR(基本情報!D8)+15)),"") -> 2033 | F27: 毎年 | G27: 子1が0〜15歳の期間（基本情報シートから自動算出）
B28: 児童手当（子2） | C28: 18 | D28: =IFERROR(IF((YEAR(基本情報!D9))=0,"",(YEAR(基本情報!D9))),"") -> 2020 | E28: =IFERROR(IF((YEAR(基本情報!D9)+15)=0,"",(YEAR(基本情報!D9)+15)),"") -> 2035 | F28: 毎年 | G28: 子2が0〜15歳の期間（基本情報シートから自動算出）
B29: 児童手当（子3） | C29: 36 | D29: =IFERROR(IF((YEAR(基本情報!D10))=0,"",(YEAR(基本情報!D10))),"") -> 2027 | E29: =IFERROR(IF((YEAR(基本情報!D10)+15)=0,"",(YEAR(基本情報!D10)+15)),"") -> 2042 | F29: 毎年 | G29: 子3が0〜15歳の期間（基本情報シートから自動算出）
B30: 児童手当（子4） | D30: =IF(基本情報!D11="","",YEAR(基本情報!D11)) ->  | E30: =IFERROR(IF((YEAR(基本情報!D11)+15)=0,"",(YEAR(基本情報!D11)+15)),"") -> 1915 | F30: 毎年 | G30: 子4が0〜15歳の期間（基本情報シートから自動算出）
B31: 児童手当（子5） | D31: =IF(基本情報!D12="","",YEAR(基本情報!D12)) ->  | E31: =IFERROR(IF((YEAR(基本情報!D12)+15)=0,"",(YEAR(基本情報!D12)+15)),"") -> 1915 | F31: 毎年 | G31: 子5が0〜15歳の期間（基本情報シートから自動算出）
B32: 学資保険満期金（子1） | C32: 110 | D32: =IFERROR(IF((YEAR(基本情報!D8)+17)=0,"",(YEAR(基本情報!D8)+17)),"") -> 2035 | E32: =IFERROR(IF((YEAR(基本情報!D8)+17)=0,"",(YEAR(基本情報!D8)+17)),"") -> 2035 | F32: 1回 | G32: 子1が17歳の年（基本情報シートから自動算出）
B33: 学資保険満期金（子2） | C33: 110 | D33: =IFERROR(IF((YEAR(基本情報!D9)+17)=0,"",(YEAR(基本情報!D9)+17)),"") -> 2037 | E33: =IFERROR(IF((YEAR(基本情報!D9)+17)=0,"",(YEAR(基本情報!D9)+17)),"") -> 2037 | F33: 1回 | G33: 子2が17歳の年（基本情報シートから自動算出）
B34: 学資保険満期金（子3） | C34: 110 | D34: =IFERROR(IF((YEAR(基本情報!D10)+17)=0,"",(YEAR(基本情報!D10)+17)),"") -> 2044 | E34: =IFERROR(IF((YEAR(基本情報!D10)+17)=0,"",(YEAR(基本情報!D10)+17)),"") -> 2044 | F34: 1回 | G34: 子3が17歳の年（基本情報シートから自動算出）
B35: 学資保険満期金（子4） | D35: =IFERROR(IF((YEAR(基本情報!D11)+17)=0,"",(YEAR(基本情報!D11)+17)),"") -> 1917 | E35: =IFERROR(IF((YEAR(基本情報!D11)+17)=0,"",(YEAR(基本情報!D11)+17)),"") -> 1917 | F35: 1回 | G35: 子4が17歳の年（基本情報シートから自動算出）
B36: 学資保険満期金（子5） | D36: =IFERROR(IF((YEAR(基本情報!D12)+17)=0,"",(YEAR(基本情報!D12)+17)),"") -> 1917 | E36: =IFERROR(IF((YEAR(基本情報!D12)+17)=0,"",(YEAR(基本情報!D12)+17)),"") -> 1917 | F36: 1回 | G36: 子5が17歳の年（基本情報シートから自動算出）
B37: 出産育児一時金（子1） | C37: 50 | D37: =IFERROR(IF((YEAR(基本情報!D8))=0,"",(YEAR(基本情報!D8))),"") -> 2018 | E37: =IFERROR(IF((YEAR(基本情報!D8))=0,"",(YEAR(基本情報!D8))),"") -> 2018 | F37: 1回 | G37: 子1の出生年（基本情報シートから自動算出）
B38: 出産育児一時金（子2） | C38: 50 | D38: =IFERROR(IF((YEAR(基本情報!D9))=0,"",(YEAR(基本情報!D9))),"") -> 2020 | E38: =IFERROR(IF((YEAR(基本情報!D9))=0,"",(YEAR(基本情報!D9))),"") -> 2020 | F38: 1回 | G38: 子2の出生年（基本情報シートから自動算出）
B39: 出産育児一時金（子3） | C39: 50 | D39: =IFERROR(IF((YEAR(基本情報!D10))=0,"",(YEAR(基本情報!D10))),"") -> 2027 | E39: =IFERROR(IF((YEAR(基本情報!D10))=0,"",(YEAR(基本情報!D10))),"") -> 2027 | F39: 1回 | G39: 子3の出生年（基本情報シートから自動算出）
B40: 出産育児一時金（子4） | D40: =IFERROR(IF((YEAR(基本情報!D11))=0,"",(YEAR(基本情報!D11))),"") -> 1900 | E40: =IFERROR(IF((YEAR(基本情報!D11))=0,"",(YEAR(基本情報!D11))),"") -> 1900 | F40: 1回 | G40: 子4の出生年（基本情報シートから自動算出）
B41: 出産育児一時金（子5） | D41: =IFERROR(IF((YEAR(基本情報!D12))=0,"",(YEAR(基本情報!D12))),"") -> 1900 | E41: =IFERROR(IF((YEAR(基本情報!D12))=0,"",(YEAR(基本情報!D12))),"") -> 1900 | F41: 1回 | G41: 子5の出生年（基本情報シートから自動算出）
B42: 贈与・援助金 | C42: 1000 | D42: =IFERROR(IF((基本情報!$C$3)=0,"",(基本情報!$C$3)),"") -> 2022 | E42: =IFERROR(IF((基本情報!$C$3)=0,"",(基本情報!$C$3)),"") -> 2022 | F42: 1回 | G42: 親からの住宅取得援助
G44: 児童手当
G45: 3歳未満：15,000円（第3子以降は30,000円）
G46: 3歳〜高校生年代：10,000円（第3子以降は30,000円）
G47: 0歳〜18歳に達する日以後の最初の3月31日までの子を養育していること
B48: ■ 全国地域別 平均年収一覧（直近）
B49: 地域 | C49: 主要都道府県 | D49: 平均年収(万円) | E49: 対全国比 | F49: 備考 | G49: 出産育児一時金
B50: 関東 | C50: 東京・神奈川・千葉・埼玉 | D50: 455 | E50: =D32/$D$39 -> 1.003946719 | F50: 高水準 | G50: 原則：50万円（1児につき）
B51: 東海 | C51: 愛知・静岡・三重・岐阜 | D51: 416 | E51: 1.004933399 | F51: 平均的
B52: 関西 | C52: 大阪・兵庫・京都・奈良 | D52: 411 | E52: 1.008386778 | F52: 平均的 | G52: 学資保険 相場
B53: 中国・四国 | C53: 広島・岡山・香川 | D53: 388 | E53: 0.9457326098 | F53: 標準 | G53: 満期金の相場は200万〜350万円が中心
B54: 北信越 | C54: 新潟・石川・長野 | D54: 388 | E54: 0.9457326098 | F54: 標準 | G54: 200万円で最低限（初年度費用）をカバー
B55: 北海道・東北 | C55: 北海道・宮城・福島 | D55: 383 | E55: 0.9955599408 | F55: 標準
B56: 九州・沖縄 | C56: 福岡・熊本・沖縄 | D56: 382 | E56: 0.9965466206 | F56: 標準 | G56: 大学入学時に必要な初年度納付金は以下の通り：
B57: 全国平均 | C57: 47都道府県 | D57: 426 | E57: 1 | F57: 基準 | G57: 初年度納付金の目安
G58: 国立大学 約81.8万円
B59: 出典：dodaビジネスパーソンの平均年収レポート（2024年9月〜2025年8月、約60万人ベース） | G59: 私立文系 約118.9万円
B60: ※年代・職種により大きく変動。あくまで地域別の参考値 | G60: 私立理系 約156.6万円

Sheet 支出計画
B1: ③ 支出計画
B3: ■ 基本生活費・住居費・その他
B4: 項目 | C4: 年間金額(万円) | D4: 変動率/年 | E4: 開始年(西暦) | F4: 終了年(西暦) | G4: 備考
B5: 基本生活費（現役期） | C5: 310 | D5: 0.01 | E5: =基準年 -> 2022 | F5: =基本情報!$C$3+(基本情報!$C$17-基本情報!$E$6)-1 -> 2051 | G5: 夫定年〜年金開始まで（基本情報の年金開始年齢から自動算出）
B6: 基本生活費（年金期） | C6: 260 | D6: -0.005 | E6: =基本情報!$C$3+(基本情報!$C$17-基本情報!$E$6) -> 2052 | F6: =基本情報!$C$3+(基本情報!$C$17-基本情報!$E$6)+35 -> 2087 | G6: 年金生活で年-0.5%ずつマイルドに逓減
B7: 住居費(現在家賃) | C7: 156 | D7: 0 | E7: =基準年 -> 2022 | F7: 2022 | G7: 家購入で消滅。CFで自動切替
B8: 住宅維持費(管理費等) | C8: 20 | D8: 0 | E8: =基準年 -> 2022 | F8: =基本情報!$C$3+(基本情報!$C$17-基本情報!$E$6)-1 -> 2051 | G8: 管理費・修繕積立金・固定資産税
B9: 車両関連費 | C9: 36 | D9: 0 | E9: =基準年 -> 2022 | F9: =基本情報!$C$3+(基本情報!$C$17-基本情報!$E$6)+10 -> 2062 | G9: 自動車税・燃料・車検（年平均）
B10: 生命保険料 | C10: =保険!F5+保険!F6+保険!F7+保険!F8+保険!F9 -> 33.6 | D10: 「保険」シートにて集計 | G10: 65歳まで継続
B11: 学資保険（子1） | C11: 6.24 | D11: 0 | E11: =IFERROR(YEAR(基本情報!D8),"") -> 2018 | F11: =IFERROR(YEAR(基本情報!D8)+17,"") -> 2035 | G11: 5,200円/月（子1の出生〜17歳）
B12: 学資保険（子2） | C12: 6.24 | D12: 0 | E12: =IFERROR(YEAR(基本情報!D9),"") -> 2020 | F12: =IFERROR(YEAR(基本情報!D9)+17,"") -> 2037 | G12: 5,200円/月（子2の出生〜17歳）
B13: 学資保険（子3） | D13: 0 | E13: =IFERROR(YEAR(基本情報!D10),"") -> 2027 | F13: =IFERROR(YEAR(基本情報!D10)+17,"") -> 2044 | G13: 5,200円/月（子3の出生〜17歳）
B14: 学資保険（子4） | D14: 0 | E14: =IFERROR(YEAR(基本情報!D11),"") -> 1900 | F14: =IFERROR(YEAR(基本情報!D11)+17,"") -> 1917 | G14: 5,200円/月（子4の出生〜17歳）
B15: 学資保険（子5） | D15: 0 | E15: =IFERROR(YEAR(基本情報!D12),"") -> 1900 | F15: =IFERROR(YEAR(基本情報!D12)+17,"") -> 1917 | G15: 5,200円/月（子5の出生〜17歳）
B16: 損害保険料 | C16: 7 | D16: 0 | E16: =基準年 -> 2022 | F16: =基本情報!$C$3+(基本情報!$C$17-基本情報!$E$6)+10 -> 2062 | G16: 自動車＋火災
B17: 交際・冠婚葬祭 | C17: 12 | D17: 0 | E17: 2022 | F17: 2080 | G17: ※キャッシュフロー表の「スポット」に集計
B18: レジャー・趣味 | C18: 20 | D18: 0 | E18: 2022 | F18: 2080 | G18: ※キャッシュフロー表の「スポット」に集計
B19: その他（保険 予備） | D19: 0 | E19: 2027 | F19: 2051 | G19: ※キャッシュフロー表の「保険料」に集計
C20: =SUM(C5+C7+C8+C9+C10+C11+C12+C13+C14+C15+C16+C17+C18+C19) -> 607.08
B22: ■ 教育費（子1）（変動率2.0%／参考データ）
B23: 教育区分 | C23: 対象年齢 | D23: 年間費用(万円) | E23: 備考
B24: 保育園 | C24: 0〜5歳 | D24: 34 | E24: 公立保育料概算
B25: 小学校(公立) | C25: 6〜11歳 | D25: 32
B26: 中学校(公立) | C26: 12〜14歳 | D26: 49
B27: 高校(私立) | C27: 15〜17歳 | D27: 97
B28: 大学(私文)初年 | C28: 18歳 | D28: 134
B29: 大学(私文)2-4年 | C29: 19〜21歳 | D29: 109
B31: 教育費変動率
B33: ■ スポット支出（マイカー・旅行・結婚資金援助等）
B34: 項目 | C34: 金額(万円) | D34: 発生年(西暦) | E34: 間隔(年) | F34: 終了年 | G34: 備考
B35: 自動車買替 | C35: 210 | D35: 2024 | E35: 7 | F35: 2059 | G35: 7年ごと
B36: 夫婦海外旅行 | C36: 70 | D36: 2052 | E36: 5 | F36: 2062 | G36: 5年ごと（夫65〜75歳）
B37: 結婚資金援助(子1) | C37: 200 | D37: =IF(基本情報!D8="","",YEAR(基本情報!D8)+28) -> 2046 | E37: 0 | F37: =IF(基本情報!D8="","",YEAR(基本情報!D8)+28) -> 2046 | G37: 子1が28歳時
B38: 結婚資金援助(子2) | C38: 200 | D38: =IF(基本情報!D9="","",YEAR(基本情報!D9)+28) -> 2048 | E38: 0 | F38: =IF(基本情報!D9="","",YEAR(基本情報!D9)+28) -> 2048 | G38: 子2が28歳時
B39: 結婚資金援助(子3) | C39: 200 | D39: =IF(基本情報!D10="","",YEAR(基本情報!D10)+28) -> 2055 | E39: 0 | F39: =IF(基本情報!D10="","",YEAR(基本情報!D10)+28) -> 2055 | G39: 子3が28歳時
B40: 結婚資金援助(子4) | D40: =IF(基本情報!D11="","",YEAR(基本情報!D11)+28) ->  | E40: 0 | F40: =IF(基本情報!D11="","",YEAR(基本情報!D11)+28) ->  | G40: 子4が28歳時
B41: 結婚資金援助(子5) | D41: =IF(基本情報!D12="","",YEAR(基本情報!D12)+28) ->  | E41: 0 | F41: =IF(基本情報!D12="","",YEAR(基本情報!D12)+28) ->  | G41: 子5が28歳時
G42: ※上記すべてキャッシュフロー表の「スポット」に集計
B44: ■ 65歳以降の生活費調整
B45: 項目 | C45: 金額(万円/年) | D45: 備考
B46: 退職後 基本生活費 | C46: 264 | D46: 夫65歳〜（年36万減）
B47: 退職後 住宅維持費 | C47: 20 | D47: 夫65歳〜
B48: 退職後 損害保険料 | C48: 5 | D48: 夫65歳〜
B49: 子の就職後 生活費削減額 | C49: 36 | D49: 子の大学卒業後

Sheet 住宅ローン償還表
B1: ④ 住宅ローン償還表（元利均等返済）
B3: ■ ローン入力（2本まで設定可・財形＋フラット35併用想定）
B4: 項目 | C4: ローン① | D4: ローン② | E4: 合計 | F4: 備考
B5: ローン名称 | C5: 財形住宅融資 | D5: フラット35 | F5: 種類
B6: 借入額(万円) | C6: 1000 | D6: 2900 | E6: =C6+D6 -> 3900 | F6: 親援助500万円控除後
B7: 年利率(%) | C7: 0.0113 | D7: 0.0129 | F7: 5年固定／全期間固定
B8: 返済期間(年) | C8: 25 | D8: 25 | F8: 60歳完済目標
B9: 開始年(西暦) | C9: 2022 | D9: 2022
B10: 月額返済(円) | C10: =IF(C6=0,0,ROUND(C6*10000*((C7/12)*(1+C7/12)^(C8*12))/((1+C7/12)^(C8*12)-1),0)) -> 38279 | D10: 113142 | E10: =C10+D10 -> 151421 | F10: 計算結果
B11: 総返済額(万円) | C11: =C10*C8*12/10000 -> 1148.37 | D11: 3394.26 | E11: 4542.63 | F11: 計算結果
B12: 年間返済(万円) | C12: =C10*12/10000 -> 45.9348 | D12: 135.7704 | E12: 181.7052 | F12: 計算結果
B15: ■ 償還スケジュール（年次）
B16: 年次 | C16: 西暦 | D16: ローン①残高 | E16: ローン②残高 | F16: 年間元金 | G16: 年間利息 | H16: 年間返済合計
B17: 1 | C17: =$C$9+B17-1 -> 2022 | D17: =IF(B17>$C$8,0,MAX(0,$C$6*10000*(1+$C$7/12)^(B17*12)-C$10*((1+$C$7/12)^(B17*12)-1)/($C$7/12))/10000) -> 965.1852564 | E17: =IF(B17>$D$8,0,MAX(0,$D$6*10000*(1+$D$7/12)^(B17*12)-D$10*((1+$D$7/12)^(B17*12)-1)/($D$7/12))/10000) -> 2801.055955 | F17: =IF(B17>MAX($C$8,$D$8),0,($C$6-D17)+($D$6-E17)) -> 133.7587885 | G17: =H17-F17 -> 47.94641153 | H17: =IF(B17<=$C$8,C$10*12/10000,0)+IF(B17<=$D$8,D$10*12/10000,0) -> 181.7052
B18: 2 | C18: 2023 | D18: 929.9750622 | E18: 2700.827958 | F18: 269.1969793 | G18: -87.49177934 | H18: 181.7052
B19: 3 | C19: 2024 | D19: 894.3649257 | E19: 2599.299349 | F19: 406.3357257 | G19: -224.6305257 | H19: 181.7052
B20: 4 | C20: 2025 | D20: 858.350304 | E20: 2496.453248 | F20: 545.1964478 | G20: -363.4912478 | H20: 181.7052
B21: 5 | C21: 2026 | D21: 821.9266027 | E21: 2392.272561 | F21: 685.8008366 | G21: -504.0956366 | H21: 181.7052
B22: 6 | C22: 2027 | D22: 785.0891752 | E22: 2286.739968 | F22: 828.170857 | G22: -646.465657 | H22: 181.7052
B23: 7 | C23: 2028 | D23: 747.8333221 | E23: 2179.837926 | F23: 972.3287514 | G23: -790.6235514 | H23: 181.7052
B24: 8 | C24: 2029 | D24: 710.1542906 | E24: 2071.548666 | F24: 1118.297043 | G24: -936.5918434 | H24: 181.7052
B25: 9 | C25: 2030 | D25: 672.047274 | E25: 1961.854185 | F25: 1266.098541 | G25: -1084.393341 | H25: 181.7052
B26: 10 | C26: 2031 | D26: 633.5074109 | E26: 1850.736249 | F26: 1415.756341 | G26: -1234.051141 | H26: 181.7052
B27: 11 | C27: 2032 | D27: 594.5297847 | E27: 1738.176385 | F27: 1567.29383 | G27: -1385.58863 | H27: 181.7052
B28: 12 | C28: 2033 | D28: 555.109423 | E28: 1624.155884 | F28: 1720.734693 | G28: -1539.029493 | H28: 181.7052
B29: 13 | C29: 2034 | D29: 515.2412969 | E29: 1508.65579 | F29: 1876.102913 | G29: -1694.397713 | H29: 181.7052
B30: 14 | C30: 2035 | D30: 474.9203203 | E30: 1391.656904 | F30: 2033.422776 | G30: -1851.717576 | H30: 181.7052
B31: 15 | C31: 2036 | D31: 434.1413496 | E31: 1273.139777 | F31: 2192.718874 | G31: -2011.013674 | H31: 181.7052
B32: 16 | C32: 2037 | D32: 392.8991824 | E32: 1153.084707 | F32: 2354.016111 | G32: -2172.310911 | H32: 181.7052
B33: 17 | C33: 2038 | D33: 351.1885574 | E33: 1031.471737 | F33: 2517.339706 | G33: -2335.634506 | H33: 181.7052
B34: 18 | C34: 2039 | D34: 309.0041536 | E34: 908.2806504 | F34: 2682.715196 | G34: -2501.009996 | H34: 181.7052
B35: 19 | C35: 2040 | D35: 266.3405894 | E35: 783.4909694 | F35: 2850.168441 | G35: -2668.463241 | H35: 181.7052
B36: 20 | C36: 2041 | D36: 223.1924223 | E36: 657.0819494 | F36: 3019.725628 | G36: -2838.020428 | H36: 181.7052
B37: 21 | C37: 2042 | D37: 179.5541476 | E37: 529.0325771 | F37: 3191.413275 | G37: -3009.708075 | H37: 181.7052
B38: 22 | C38: 2043 | D38: 135.4201986 | E38: 399.3215663 | F38: 3365.258235 | G38: -3183.553035 | H38: 181.7052
B39: 23 | C39: 2044 | D39: 90.78494483 | E39: 267.9273547 | F39: 3541.2877 | G39: -3359.5825 | H39: 181.7052
B40: 24 | C40: 2045 | D40: 45.64269225 | E40: 134.8281002 | F40: 3719.529208 | G40: -3537.824008 | H40: 181.7052
B41: 25 | C41: 2046 | D41: 0 | E41: 0.001677171746 | F41: 3899.998323 | G41: -3718.293123 | H41: 181.7052
B42: 26 | C42: 2047 | D42: 0 | E42: 0 | F42: 0 | G42: 0 | H42: 0
B43: 27 | C43: 2048 | D43: 0 | E43: 0 | F43: 0 | G43: 0 | H43: 0
B44: 28 | C44: 2049 | D44: 0 | E44: 0 | F44: 0 | G44: 0 | H44: 0
B45: 29 | C45: 2050 | D45: 0 | E45: 0 | F45: 0 | G45: 0 | H45: 0
B46: 30 | C46: 2051 | D46: 0 | E46: 0 | F46: 0 | G46: 0 | H46: 0
B47: 31 | C47: 2052 | D47: 0 | E47: 0 | F47: 0 | G47: 0 | H47: 0
B48: 32 | C48: 2053 | D48: 0 | E48: 0 | F48: 0 | G48: 0 | H48: 0
B49: 33 | C49: 2054 | D49: 0 | E49: 0 | F49: 0 | G49: 0 | H49: 0
B50: 34 | C50: 2055 | D50: 0 | E50: 0 | F50: 0 | G50: 0 | H50: 0
B51: 35 | C51: 2056 | D51: 0 | E51: 0 | F51: 0 | G51: 0 | H51: 0

Sheet 金融資産
B1: ⑤ 金融資産・運用
B3: ■ 基準年時点の金融資産残高
B4: 資産種別 | C4: 残高(万円) | D4: 想定利回り(年) | E4: 備考
B5: 普通預金 | C5: 100 | D5: 0.0001 | E5: 0.01%
B6: 普通預金 | C6: 50 | D6: 0.0001 | E6: 0.01%
B7: 定期預金 | C7: 100 | D7: 0.001 | E7: 0.10%
B8: 定期預金 | C8: 50 | D8: 0.001 | E8: 0.10%
B9: 財形住宅貯蓄 | C9: 120 | D9: 0.0001 | E9: （住宅取得後は普通預金扱い）
B10: 財形住宅貯蓄 | C10: 120 | D10: 0.0001 | E10: （住宅取得後は普通預金扱い）
B11: 株式・投信(NISA) | C11: 50 | D11: 0.04 | E11: 想定利回り4%
B12: 株式・投信(NISA) | C12: 50 | D12: 0.04 | E12: 想定利回り4%
B13: iDeCo | C13: 0 | D13: 0.04 | E13: 想定利回り4%
B14: iDeCo | C14: 0 | D14: 0.04 | E14: 想定利回り4%
B15: その他 | C15: 0 | D15: 0
B16: その他 | C16: 0 | D16: 0
B18: 合計 | C18: =SUM(C5:C16) -> 640
B20: ■ CF算出用：貯蓄資産全体の運用利回り（年）
B21: 全体平均運用利回り(年) | C21: 0.005 | D21: 平均0.5%（保守試算）。引き上げ時はリスクを考慮

Sheet 保険
B1: ⑥ 保険
B3: ■ 加入保険一覧
B4: 商品名 | C4: 種類 | D4: 契約者 | E4: 保険金額(万円) | F4: 年間保険料(万円) | G4: 開始年 | H4: 終了年
B5: ロングサポート生命 | C5: 定期保険 | D5: 夫 | E5: 3000 | F5: 24 | G5: 2013 | H5: 2043 | I5: 一定期間だけ死亡や高度障害に備えられる掛け捨て型
B6: プランニング共済 | C6: 総合保障 | D6: 妻 | E6: 400 | F6: 2.4 | G6: 2010 | H6: 2048 | I6: 掛金を出し合い、事故や病気などのリスクが発生した際金が支払
B7: 収入保障保険 | C7: 総合保障 | D7: 妻 | E7: 400 | F7: 2.4 | G7: 2010 | H7: 2048 | I7: 親が死亡した後の生活費・教育費を毎月補う
B8: 就業不能保険／所得補償保険 | C8: 総合保障 | D8: 妻 | E8: 400 | F8: 2.4 | G8: 2010 | H8: 2048 | I8: 病気・けがで長期間働けない場合の収入減に備える
B9: 火災保険・地震保険 | C9: 総合保障 | D9: 妻 | E9: 400 | F9: 2.4 | G9: 2010 | H9: 2048 | I9: 持ち家・賃貸いずれも生活再建資金に関係
B10: 学資保険（子1） | C10: 学資保険 | D10: 夫 | E10: =収入計画!C32 -> 110 | F10: =支出計画!C11 -> 6.24 | G10: =IFERROR(YEAR(基本情報!D8),"") -> 2018 | H10: =IFERROR(YEAR(基本情報!D8)+17,"") -> 2035
B11: 学資保険（子2） | C11: 学資保険 | D11: 夫 | E11: 110 | F11: =支出計画!C12 -> 6.24 | G11: =IFERROR(YEAR(基本情報!D9),"") -> 2020 | H11: =IFERROR(YEAR(基本情報!D9)+17,"") -> 2037
B12: 学資保険（子3） | C12: 学資保険 | D12: 夫 | E12: 110 | F12: =支出計画!C13 -> 0 | G12: =IFERROR(YEAR(基本情報!D10),"") -> 2027 | H12: =IFERROR(YEAR(基本情報!D10)+17,"") -> 2044
B13: 学資保険（子4）
B14: 学資保険（子5）
B15: 損害保険交際/冠婚葬祭/レジャー・趣味 | C15: 自動車+火災＋他 | D15: 夫 | F15: =支出計画!C16+支出計画!C19 -> 7 | G15: =支出計画!E16 -> 2022 | H15: =支出計画!F16 -> 2062

Sheet ライフイベント表
B1: ⑦ ライフイベント表（ご本人の人生100年カレンダー）
B3: 年次 | C3: 西暦 | D3: 本人 年齢 | E3: 配偶者 年齢 | F3: 子1 年齢 | G3: 子2 年齢 | H3: 子3 年齢 | I3: 子4 年齢 | J3: 子5 年齢 | K3: ライフ ステージ | L3: 本人 イベント | M3: 家計 イベント | N3: 備考
B4: 1 | C4: =基本情報!$C$3+B4-1 -> 2022 | D4: =IF(基本情報!$D$6="","",C4-YEAR(基本情報!$D$6)-IF(OR(MONTH(基本情報!$D$6)>1,DAY(基本情報!$D$6)>1),1,0)) -> 35 | E4: =IF(基本情報!$D$7="","",C4-YEAR(基本情報!$D$7)-IF(OR(MONTH(基本情報!$D$7)>1,DAY(基本情報!$D$7)>1),1,0)) -> 34 | F4: =IF(OR(基本情報!$D$8="",C4<=YEAR(基本情報!$D$8)),"",MAX(0,C4-YEAR(基本情報!$D$8)-IF(OR(MONTH(基本情報!$D$8)>1,DAY(基本情報!$D$8)>1),1,0))) -> 3 | G4: =IF(OR(基本情報!$D$9="",C4<=YEAR(基本情報!$D$9)),"",MAX(0,C4-YEAR(基本情報!$D$9)-IF(OR(MONTH(基本情報!$D$9)>1,DAY(基本情報!$D$9)>1),1,0))) -> 1 | H4: =IF(OR(基本情報!$D$10="",C4<=YEAR(基本情報!$D$10)),"",MAX(0,C4-YEAR(基本情報!$D$10)-IF(OR(MONTH(基本情報!$D$10)>1,DAY(基本情報!$D$10)>1),1,0))) ->  | I4: =IF(OR(基本情報!$D$11="",C4<=YEAR(基本情報!$D$11)),"",MAX(0,C4-YEAR(基本情報!$D$11)-IF(OR(MONTH(基本情報!$D$11)>1,DAY(基本情報!$D$11)>1),1,0))) ->  | J4: =IF(OR(基本情報!$D$12="",C4<=YEAR(基本情報!$D$12)),"",MAX(0,C4-YEAR(基本情報!$D$12)-IF(OR(MONTH(基本情報!$D$12)>1,DAY(基本情報!$D$12)>1),1,0))) ->  | K4: 形成期 | M4: 子1 保育園入園
B5: =B4+1 -> 2 | C5: =基本情報!$C$3+B5-1 -> 2023 | D5: =IF(基本情報!$D$6="","",C5-YEAR(基本情報!$D$6)-IF(OR(MONTH(基本情報!$D$6)>1,DAY(基本情報!$D$6)>1),1,0)) -> 36 | E5: =IF(基本情報!$D$7="","",C5-YEAR(基本情報!$D$7)-IF(OR(MONTH(基本情報!$D$7)>1,DAY(基本情報!$D$7)>1),1,0)) -> 35 | F5: =IF(OR(基本情報!$D$8="",C5<=YEAR(基本情報!$D$8)),"",MAX(0,C5-YEAR(基本情報!$D$8)-IF(OR(MONTH(基本情報!$D$8)>1,DAY(基本情報!$D$8)>1),1,0))) -> 4 | G5: =IF(OR(基本情報!$D$9="",C5<=YEAR(基本情報!$D$9)),"",MAX(0,C5-YEAR(基本情報!$D$9)-IF(OR(MONTH(基本情報!$D$9)>1,DAY(基本情報!$D$9)>1),1,0))) -> 2 | H5: =IF(OR(基本情報!$D$10="",C5<=YEAR(基本情報!$D$10)),"",MAX(0,C5-YEAR(基本情報!$D$10)-IF(OR(MONTH(基本情報!$D$10)>1,DAY(基本情報!$D$10)>1),1,0))) ->  | I5: =IF(OR(基本情報!$D$11="",C5<=YEAR(基本情報!$D$11)),"",MAX(0,C5-YEAR(基本情報!$D$11)-IF(OR(MONTH(基本情報!$D$11)>1,DAY(基本情報!$D$11)>1),1,0))) ->  | J5: =IF(OR(基本情報!$D$12="",C5<=YEAR(基本情報!$D$12)),"",MAX(0,C5-YEAR(基本情報!$D$12)-IF(OR(MONTH(基本情報!$D$12)>1,DAY(基本情報!$D$12)>1),1,0))) ->  | K5: 形成期
B6: 3 | C6: =基本情報!$C$3+B6-1 -> 2024 | D6: =IF(基本情報!$D$6="","",C6-YEAR(基本情報!$D$6)-IF(OR(MONTH(基本情報!$D$6)>1,DAY(基本情報!$D$6)>1),1,0)) -> 37 | E6: =IF(基本情報!$D$7="","",C6-YEAR(基本情報!$D$7)-IF(OR(MONTH(基本情報!$D$7)>1,DAY(基本情報!$D$7)>1),1,0)) -> 36 | F6: =IF(OR(基本情報!$D$8="",C6<=YEAR(基本情報!$D$8)),"",MAX(0,C6-YEAR(基本情報!$D$8)-IF(OR(MONTH(基本情報!$D$8)>1,DAY(基本情報!$D$8)>1),1,0))) -> 5 | G6: =IF(OR(基本情報!$D$9="",C6<=YEAR(基本情報!$D$9)),"",MAX(0,C6-YEAR(基本情報!$D$9)-IF(OR(MONTH(基本情報!$D$9)>1,DAY(基本情報!$D$9)>1),1,0))) -> 3 | H6: =IF(OR(基本情報!$D$10="",C6<=YEAR(基本情報!$D$10)),"",MAX(0,C6-YEAR(基本情報!$D$10)-IF(OR(MONTH(基本情報!$D$10)>1,DAY(基本情報!$D$10)>1),1,0))) ->  | I6: =IF(OR(基本情報!$D$11="",C6<=YEAR(基本情報!$D$11)),"",MAX(0,C6-YEAR(基本情報!$D$11)-IF(OR(MONTH(基本情報!$D$11)>1,DAY(基本情報!$D$11)>1),1,0))) ->  | J6: =IF(OR(基本情報!$D$12="",C6<=YEAR(基本情報!$D$12)),"",MAX(0,C6-YEAR(基本情報!$D$12)-IF(OR(MONTH(基本情報!$D$12)>1,DAY(基本情報!$D$12)>1),1,0))) ->  | K6: 形成期 | M6: 子2 保育園入園
B7: 4 | C7: =基本情報!$C$3+B7-1 -> 2025 | D7: =IF(基本情報!$D$6="","",C7-YEAR(基本情報!$D$6)-IF(OR(MONTH(基本情報!$D$6)>1,DAY(基本情報!$D$6)>1),1,0)) -> 38 | E7: =IF(基本情報!$D$7="","",C7-YEAR(基本情報!$D$7)-IF(OR(MONTH(基本情報!$D$7)>1,DAY(基本情報!$D$7)>1),1,0)) -> 37 | F7: =IF(OR(基本情報!$D$8="",C7<=YEAR(基本情報!$D$8)),"",MAX(0,C7-YEAR(基本情報!$D$8)-IF(OR(MONTH(基本情報!$D$8)>1,DAY(基本情報!$D$8)>1),1,0))) -> 6 | G7: =IF(OR(基本情報!$D$9="",C7<=YEAR(基本情報!$D$9)),"",MAX(0,C7-YEAR(基本情報!$D$9)-IF(OR(MONTH(基本情報!$D$9)>1,DAY(基本情報!$D$9)>1),1,0))) -> 4 | H7: =IF(OR(基本情報!$D$10="",C7<=YEAR(基本情報!$D$10)),"",MAX(0,C7-YEAR(基本情報!$D$10)-IF(OR(MONTH(基本情報!$D$10)>1,DAY(基本情報!$D$10)>1),1,0))) ->  | I7: =IF(OR(基本情報!$D$11="",C7<=YEAR(基本情報!$D$11)),"",MAX(0,C7-YEAR(基本情報!$D$11)-IF(OR(MONTH(基本情報!$D$11)>1,DAY(基本情報!$D$11)>1),1,0))) ->  | J7: =IF(OR(基本情報!$D$12="",C7<=YEAR(基本情報!$D$12)),"",MAX(0,C7-YEAR(基本情報!$D$12)-IF(OR(MONTH(基本情報!$D$12)>1,DAY(基本情報!$D$12)>1),1,0))) ->  | K7: 形成期 | M7: 子1 小学校入学
B8: 5 | C8: =基本情報!$C$3+B8-1 -> 2026 | D8: =IF(基本情報!$D$6="","",C8-YEAR(基本情報!$D$6)-IF(OR(MONTH(基本情報!$D$6)>1,DAY(基本情報!$D$6)>1),1,0)) -> 39 | E8: =IF(基本情報!$D$7="","",C8-YEAR(基本情報!$D$7)-IF(OR(MONTH(基本情報!$D$7)>1,DAY(基本情報!$D$7)>1),1,0)) -> 38 | F8: =IF(OR(基本情報!$D$8="",C8<=YEAR(基本情報!$D$8)),"",MAX(0,C8-YEAR(基本情報!$D$8)-IF(OR(MONTH(基本情報!$D$8)>1,DAY(基本情報!$D$8)>1),1,0))) -> 7 | G8: =IF(OR(基本情報!$D$9="",C8<=YEAR(基本情報!$D$9)),"",MAX(0,C8-YEAR(基本情報!$D$9)-IF(OR(MONTH(基本情報!$D$9)>1,DAY(基本情報!$D$9)>1),1,0))) -> 5 | H8: =IF(OR(基本情報!$D$10="",C8<=YEAR(基本情報!$D$10)),"",MAX(0,C8-YEAR(基本情報!$D$10)-IF(OR(MONTH(基本情報!$D$10)>1,DAY(基本情報!$D$10)>1),1,0))) ->  | I8: =IF(OR(基本情報!$D$11="",C8<=YEAR(基本情報!$D$11)),"",MAX(0,C8-YEAR(基本情報!$D$11)-IF(OR(MONTH(基本情報!$D$11)>1,DAY(基本情報!$D$11)>1),1,0))) ->  | J8: =IF(OR(基本情報!$D$12="",C8<=YEAR(基本情報!$D$12)),"",MAX(0,C8-YEAR(基本情報!$D$12)-IF(OR(MONTH(基本情報!$D$12)>1,DAY(基本情報!$D$12)>1),1,0))) ->  | K8: 形成期
B9: 6 | C9: =基本情報!$C$3+B9-1 -> 2027 | D9: =IF(基本情報!$D$6="","",C9-YEAR(基本情報!$D$6)-IF(OR(MONTH(基本情報!$D$6)>1,DAY(基本情報!$D$6)>1),1,0)) -> 40 | E9: =IF(基本情報!$D$7="","",C9-YEAR(基本情報!$D$7)-IF(OR(MONTH(基本情報!$D$7)>1,DAY(基本情報!$D$7)>1),1,0)) -> 39 | F9: =IF(OR(基本情報!$D$8="",C9<=YEAR(基本情報!$D$8)),"",MAX(0,C9-YEAR(基本情報!$D$8)-IF(OR(MONTH(基本情報!$D$8)>1,DAY(基本情報!$D$8)>1),1,0))) -> 8 | G9: =IF(OR(基本情報!$D$9="",C9<=YEAR(基本情報!$D$9)),"",MAX(0,C9-YEAR(基本情報!$D$9)-IF(OR(MONTH(基本情報!$D$9)>1,DAY(基本情報!$D$9)>1),1,0))) -> 6 | H9: =IF(OR(基本情報!$D$10="",C9<=YEAR(基本情報!$D$10)),"",MAX(0,C9-YEAR(基本情報!$D$10)-IF(OR(MONTH(基本情報!$D$10)>1,DAY(基本情報!$D$10)>1),1,0))) ->  | I9: =IF(OR(基本情報!$D$11="",C9<=YEAR(基本情報!$D$11)),"",MAX(0,C9-YEAR(基本情報!$D$11)-IF(OR(MONTH(基本情報!$D$11)>1,DAY(基本情報!$D$11)>1),1,0))) ->  | J9: =IF(OR(基本情報!$D$12="",C9<=YEAR(基本情報!$D$12)),"",MAX(0,C9-YEAR(基本情報!$D$12)-IF(OR(MONTH(基本情報!$D$12)>1,DAY(基本情報!$D$12)>1),1,0))) ->  | K9: 形成期 | M9: 子2 小学校入学
B10: 7 | C10: =基本情報!$C$3+B10-1 -> 2028 | D10: =IF(基本情報!$D$6="","",C10-YEAR(基本情報!$D$6)-IF(OR(MONTH(基本情報!$D$6)>1,DAY(基本情報!$D$6)>1),1,0)) -> 41 | E10: =IF(基本情報!$D$7="","",C10-YEAR(基本情報!$D$7)-IF(OR(MONTH(基本情報!$D$7)>1,DAY(基本情報!$D$7)>1),1,0)) -> 40 | F10: =IF(OR(基本情報!$D$8="",C10<=YEAR(基本情報!$D$8)),"",MAX(0,C10-YEAR(基本情報!$D$8)-IF(OR(MONTH(基本情報!$D$8)>1,DAY(基本情報!$D$8)>1),1,0))) -> 9 | G10: =IF(OR(基本情報!$D$9="",C10<=YEAR(基本情報!$D$9)),"",MAX(0,C10-YEAR(基本情報!$D$9)-IF(OR(MONTH(基本情報!$D$9)>1,DAY(基本情報!$D$9)>1),1,0))) -> 7 | H10: =IF(OR(基本情報!$D$10="",C10<=YEAR(基本情報!$D$10)),"",MAX(0,C10-YEAR(基本情報!$D$10)-IF(OR(MONTH(基本情報!$D$10)>1,DAY(基本情報!$D$10)>1),1,0))) -> 0 | I10: =IF(OR(基本情報!$D$11="",C10<=YEAR(基本情報!$D$11)),"",MAX(0,C10-YEAR(基本情報!$D$11)-IF(OR(MONTH(基本情報!$D$11)>1,DAY(基本情報!$D$11)>1),1,0))) ->  | J10: =IF(OR(基本情報!$D$12="",C10<=YEAR(基本情報!$D$12)),"",MAX(0,C10-YEAR(基本情報!$D$12)-IF(OR(MONTH(基本情報!$D$12)>1,DAY(基本情報!$D$12)>1),1,0))) ->  | K10: 形成期
B11: 8 | C11: =基本情報!$C$3+B11-1 -> 2029 | D11: =IF(基本情報!$D$6="","",C11-YEAR(基本情報!$D$6)-IF(OR(MONTH(基本情報!$D$6)>1,DAY(基本情報!$D$6)>1),1,0)) -> 42 | E11: =IF(基本情報!$D$7="","",C11-YEAR(基本情報!$D$7)-IF(OR(MONTH(基本情報!$D$7)>1,DAY(基本情報!$D$7)>1),1,0)) -> 41 | F11: =IF(OR(基本情報!$D$8="",C11<=YEAR(基本情報!$D$8)),"",MAX(0,C11-YEAR(基本情報!$D$8)-IF(OR(MONTH(基本情報!$D$8)>1,DAY(基本情報!$D$8)>1),1,0))) -> 10 | G11: =IF(OR(基本情報!$D$9="",C11<=YEAR(基本情報!$D$9)),"",MAX(0,C11-YEAR(基本情報!$D$9)-IF(OR(MONTH(基本情報!$D$9)>1,DAY(基本情報!$D$9)>1),1,0))) -> 8 | H11: =IF(OR(基本情報!$D$10="",C11<=YEAR(基本情報!$D$10)),"",MAX(0,C11-YEAR(基本情報!$D$10)-IF(OR(MONTH(基本情報!$D$10)>1,DAY(基本情報!$D$10)>1),1,0))) -> 1 | I11: =IF(OR(基本情報!$D$11="",C11<=YEAR(基本情報!$D$11)),"",MAX(0,C11-YEAR(基本情報!$D$11)-IF(OR(MONTH(基本情報!$D$11)>1,DAY(基本情報!$D$11)>1),1,0))) ->  | J11: =IF(OR(基本情報!$D$12="",C11<=YEAR(基本情報!$D$12)),"",MAX(0,C11-YEAR(基本情報!$D$12)-IF(OR(MONTH(基本情報!$D$12)>1,DAY(基本情報!$D$12)>1),1,0))) ->  | K11: 形成期
B12: 9 | C12: =基本情報!$C$3+B12-1 -> 2030 | D12: =IF(基本情報!$D$6="","",C12-YEAR(基本情報!$D$6)-IF(OR(MONTH(基本情報!$D$6)>1,DAY(基本情報!$D$6)>1),1,0)) -> 43 | E12: =IF(基本情報!$D$7="","",C12-YEAR(基本情報!$D$7)-IF(OR(MONTH(基本情報!$D$7)>1,DAY(基本情報!$D$7)>1),1,0)) -> 42 | F12: =IF(OR(基本情報!$D$8="",C12<=YEAR(基本情報!$D$8)),"",MAX(0,C12-YEAR(基本情報!$D$8)-IF(OR(MONTH(基本情報!$D$8)>1,DAY(基本情報!$D$8)>1),1,0))) -> 11 | G12: =IF(OR(基本情報!$D$9="",C12<=YEAR(基本情報!$D$9)),"",MAX(0,C12-YEAR(基本情報!$D$9)-IF(OR(MONTH(基本情報!$D$9)>1,DAY(基本情報!$D$9)>1),1,0))) -> 9 | H12: =IF(OR(基本情報!$D$10="",C12<=YEAR(基本情報!$D$10)),"",MAX(0,C12-YEAR(基本情報!$D$10)-IF(OR(MONTH(基本情報!$D$10)>1,DAY(基本情報!$D$10)>1),1,0))) -> 2 | I12: =IF(OR(基本情報!$D$11="",C12<=YEAR(基本情報!$D$11)),"",MAX(0,C12-YEAR(基本情報!$D$11)-IF(OR(MONTH(基本情報!$D$11)>1,DAY(基本情報!$D$11)>1),1,0))) ->  | J12: =IF(OR(基本情報!$D$12="",C12<=YEAR(基本情報!$D$12)),"",MAX(0,C12-YEAR(基本情報!$D$12)-IF(OR(MONTH(基本情報!$D$12)>1,DAY(基本情報!$D$12)>1),1,0))) ->  | K12: 形成期
B13: 10 | C13: =基本情報!$C$3+B13-1 -> 2031 | D13: =IF(基本情報!$D$6="","",C13-YEAR(基本情報!$D$6)-IF(OR(MONTH(基本情報!$D$6)>1,DAY(基本情報!$D$6)>1),1,0)) -> 44 | E13: =IF(基本情報!$D$7="","",C13-YEAR(基本情報!$D$7)-IF(OR(MONTH(基本情報!$D$7)>1,DAY(基本情報!$D$7)>1),1,0)) -> 43 | F13: =IF(OR(基本情報!$D$8="",C13<=YEAR(基本情報!$D$8)),"",MAX(0,C13-YEAR(基本情報!$D$8)-IF(OR(MONTH(基本情報!$D$8)>1,DAY(基本情報!$D$8)>1),1,0))) -> 12 | G13: =IF(OR(基本情報!$D$9="",C13<=YEAR(基本情報!$D$9)),"",MAX(0,C13-YEAR(基本情報!$D$9)-IF(OR(MONTH(基本情報!$D$9)>1,DAY(基本情報!$D$9)>1),1,0))) -> 10 | H13: =IF(OR(基本情報!$D$10="",C13<=YEAR(基本情報!$D$10)),"",MAX(0,C13-YEAR(基本情報!$D$10)-IF(OR(MONTH(基本情報!$D$10)>1,DAY(基本情報!$D$10)>1),1,0))) -> 3 | I13: =IF(OR(基本情報!$D$11="",C13<=YEAR(基本情報!$D$11)),"",MAX(0,C13-YEAR(基本情報!$D$11)-IF(OR(MONTH(基本情報!$D$11)>1,DAY(基本情報!$D$11)>1),1,0))) ->  | J13: =IF(OR(基本情報!$D$12="",C13<=YEAR(基本情報!$D$12)),"",MAX(0,C13-YEAR(基本情報!$D$12)-IF(OR(MONTH(基本情報!$D$12)>1,DAY(基本情報!$D$12)>1),1,0))) ->  | K13: 形成期 | M13: 子1 中学校入学 子3 保育園入園
B14: 11 | C14: =基本情報!$C$3+B14-1 -> 2032 | D14: =IF(基本情報!$D$6="","",C14-YEAR(基本情報!$D$6)-IF(OR(MONTH(基本情報!$D$6)>1,DAY(基本情報!$D$6)>1),1,0)) -> 45 | E14: =IF(基本情報!$D$7="","",C14-YEAR(基本情報!$D$7)-IF(OR(MONTH(基本情報!$D$7)>1,DAY(基本情報!$D$7)>1),1,0)) -> 44 | F14: =IF(OR(基本情報!$D$8="",C14<=YEAR(基本情報!$D$8)),"",MAX(0,C14-YEAR(基本情報!$D$8)-IF(OR(MONTH(基本情報!$D$8)>1,DAY(基本情報!$D$8)>1),1,0))) -> 13 | G14: =IF(OR(基本情報!$D$9="",C14<=YEAR(基本情報!$D$9)),"",MAX(0,C14-YEAR(基本情報!$D$9)-IF(OR(MONTH(基本情報!$D$9)>1,DAY(基本情報!$D$9)>1),1,0))) -> 11 | H14: =IF(OR(基本情報!$D$10="",C14<=YEAR(基本情報!$D$10)),"",MAX(0,C14-YEAR(基本情報!$D$10)-IF(OR(MONTH(基本情報!$D$10)>1,DAY(基本情報!$D$10)>1),1,0))) -> 4 | I14: =IF(OR(基本情報!$D$11="",C14<=YEAR(基本情報!$D$11)),"",MAX(0,C14-YEAR(基本情報!$D$11)-IF(OR(MONTH(基本情報!$D$11)>1,DAY(基本情報!$D$11)>1),1,0))) ->  | J14: =IF(OR(基本情報!$D$12="",C14<=YEAR(基本情報!$D$12)),"",MAX(0,C14-YEAR(基本情報!$D$12)-IF(OR(MONTH(基本情報!$D$12)>1,DAY(基本情報!$D$12)>1),1,0))) ->  | K14: 成熟期
B15: 12 | C15: =基本情報!$C$3+B15-1 -> 2033 | D15: =IF(基本情報!$D$6="","",C15-YEAR(基本情報!$D$6)-IF(OR(MONTH(基本情報!$D$6)>1,DAY(基本情報!$D$6)>1),1,0)) -> 46 | E15: =IF(基本情報!$D$7="","",C15-YEAR(基本情報!$D$7)-IF(OR(MONTH(基本情報!$D$7)>1,DAY(基本情報!$D$7)>1),1,0)) -> 45 | F15: =IF(OR(基本情報!$D$8="",C15<=YEAR(基本情報!$D$8)),"",MAX(0,C15-YEAR(基本情報!$D$8)-IF(OR(MONTH(基本情報!$D$8)>1,DAY(基本情報!$D$8)>1),1,0))) -> 14 | G15: =IF(OR(基本情報!$D$9="",C15<=YEAR(基本情報!$D$9)),"",MAX(0,C15-YEAR(基本情報!$D$9)-IF(OR(MONTH(基本情報!$D$9)>1,DAY(基本情報!$D$9)>1),1,0))) -> 12 | H15: =IF(OR(基本情報!$D$10="",C15<=YEAR(基本情報!$D$10)),"",MAX(0,C15-YEAR(基本情報!$D$10)-IF(OR(MONTH(基本情報!$D$10)>1,DAY(基本情報!$D$10)>1),1,0))) -> 5 | I15: =IF(OR(基本情報!$D$11="",C15<=YEAR(基本情報!$D$11)),"",MAX(0,C15-YEAR(基本情報!$D$11)-IF(OR(MONTH(基本情報!$D$11)>1,DAY(基本情報!$D$11)>1),1,0))) ->  | J15: =IF(OR(基本情報!$D$12="",C15<=YEAR(基本情報!$D$12)),"",MAX(0,C15-YEAR(基本情報!$D$12)-IF(OR(MONTH(基本情報!$D$12)>1,DAY(基本情報!$D$12)>1),1,0))) ->  | K15: 成熟期 | M15: 子2 中学校入学 子4 保育園入園
B16: 13 | C16: =基本情報!$C$3+B16-1 -> 2034 | D16: =IF(基本情報!$D$6="","",C16-YEAR(基本情報!$D$6)-IF(OR(MONTH(基本情報!$D$6)>1,DAY(基本情報!$D$6)>1),1,0)) -> 47 | E16: =IF(基本情報!$D$7="","",C16-YEAR(基本情報!$D$7)-IF(OR(MONTH(基本情報!$D$7)>1,DAY(基本情報!$D$7)>1),1,0)) -> 46 | F16: =IF(OR(基本情報!$D$8="",C16<=YEAR(基本情報!$D$8)),"",MAX(0,C16-YEAR(基本情報!$D$8)-IF(OR(MONTH(基本情報!$D$8)>1,DAY(基本情報!$D$8)>1),1,0))) -> 15 | G16: =IF(OR(基本情報!$D$9="",C16<=YEAR(基本情報!$D$9)),"",MAX(0,C16-YEAR(基本情報!$D$9)-IF(OR(MONTH(基本情報!$D$9)>1,DAY(基本情報!$D$9)>1),1,0))) -> 13 | H16: =IF(OR(基本情報!$D$10="",C16<=YEAR(基本情報!$D$10)),"",MAX(0,C16-YEAR(基本情報!$D$10)-IF(OR(MONTH(基本情報!$D$10)>1,DAY(基本情報!$D$10)>1),1,0))) -> 6 | I16: =IF(OR(基本情報!$D$11="",C16<=YEAR(基本情報!$D$11)),"",MAX(0,C16-YEAR(基本情報!$D$11)-IF(OR(MONTH(基本情報!$D$11)>1,DAY(基本情報!$D$11)>1),1,0))) ->  | J16: =IF(OR(基本情報!$D$12="",C16<=YEAR(基本情報!$D$12)),"",MAX(0,C16-YEAR(基本情報!$D$12)-IF(OR(MONTH(基本情報!$D$12)>1,DAY(基本情報!$D$12)>1),1,0))) ->  | K16: 成熟期 | M16: 子1 高校入学 子3 小学校入学
B17: 14 | C17: =基本情報!$C$3+B17-1 -> 2035 | D17: =IF(基本情報!$D$6="","",C17-YEAR(基本情報!$D$6)-IF(OR(MONTH(基本情報!$D$6)>1,DAY(基本情報!$D$6)>1),1,0)) -> 48 | E17: =IF(基本情報!$D$7="","",C17-YEAR(基本情報!$D$7)-IF(OR(MONTH(基本情報!$D$7)>1,DAY(基本情報!$D$7)>1),1,0)) -> 47 | F17: =IF(OR(基本情報!$D$8="",C17<=YEAR(基本情報!$D$8)),"",MAX(0,C17-YEAR(基本情報!$D$8)-IF(OR(MONTH(基本情報!$D$8)>1,DAY(基本情報!$D$8)>1),1,0))) -> 16 | G17: =IF(OR(基本情報!$D$9="",C17<=YEAR(基本情報!$D$9)),"",MAX(0,C17-YEAR(基本情報!$D$9)-IF(OR(MONTH(基本情報!$D$9)>1,DAY(基本情報!$D$9)>1),1,0))) -> 14 | H17: =IF(OR(基本情報!$D$10="",C17<=YEAR(基本情報!$D$10)),"",MAX(0,C17-YEAR(基本情報!$D$10)-IF(OR(MONTH(基本情報!$D$10)>1,DAY(基本情報!$D$10)>1),1,0))) -> 7 | I17: =IF(OR(基本情報!$D$11="",C17<=YEAR(基本情報!$D$11)),"",MAX(0,C17-YEAR(基本情報!$D$11)-IF(OR(MONTH(基本情報!$D$11)>1,DAY(基本情報!$D$11)>1),1,0))) ->  | J17: =IF(OR(基本情報!$D$12="",C17<=YEAR(基本情報!$D$12)),"",MAX(0,C17-YEAR(基本情報!$D$12)-IF(OR(MONTH(基本情報!$D$12)>1,DAY(基本情報!$D$12)>1),1,0))) ->  | K17: 成熟期 | M17: 子5 保育園入園
B18: 15 | C18: =基本情報!$C$3+B18-1 -> 2036 | D18: =IF(基本情報!$D$6="","",C18-YEAR(基本情報!$D$6)-IF(OR(MONTH(基本情報!$D$6)>1,DAY(基本情報!$D$6)>1),1,0)) -> 49 | E18: =IF(基本情報!$D$7="","",C18-YEAR(基本情報!$D$7)-IF(OR(MONTH(基本情報!$D$7)>1,DAY(基本情報!$D$7)>1),1,0)) -> 48 | F18: =IF(OR(基本情報!$D$8="",C18<=YEAR(基本情報!$D$8)),"",MAX(0,C18-YEAR(基本情報!$D$8)-IF(OR(MONTH(基本情報!$D$8)>1,DAY(基本情報!$D$8)>1),1,0))) -> 17 | G18: =IF(OR(基本情報!$D$9="",C18<=YEAR(基本情報!$D$9)),"",MAX(0,C18-YEAR(基本情報!$D$9)-IF(OR(MONTH(基本情報!$D$9)>1,DAY(基本情報!$D$9)>1),1,0))) -> 15 | H18: =IF(OR(基本情報!$D$10="",C18<=YEAR(基本情報!$D$10)),"",MAX(0,C18-YEAR(基本情報!$D$10)-IF(OR(MONTH(基本情報!$D$10)>1,DAY(基本情報!$D$10)>1),1,0))) -> 8 | I18: =IF(OR(基本情報!$D$11="",C18<=YEAR(基本情報!$D$11)),"",MAX(0,C18-YEAR(基本情報!$D$11)-IF(OR(MONTH(基本情報!$D$11)>1,DAY(基本情報!$D$11)>1),1,0))) ->  | J18: =IF(OR(基本情報!$D$12="",C18<=YEAR(基本情報!$D$12)),"",MAX(0,C18-YEAR(基本情報!$D$12)-IF(OR(MONTH(基本情報!$D$12)>1,DAY(基本情報!$D$12)>1),1,0))) ->  | K18: 成熟期 | M18: 子2 高校入学 子4 小学校入学
B19: 16 | C19: =基本情報!$C$3+B19-1 -> 2037 | D19: =IF(基本情報!$D$6="","",C19-YEAR(基本情報!$D$6)-IF(OR(MONTH(基本情報!$D$6)>1,DAY(基本情報!$D$6)>1),1,0)) -> 50 | E19: =IF(基本情報!$D$7="","",C19-YEAR(基本情報!$D$7)-IF(OR(MONTH(基本情報!$D$7)>1,DAY(基本情報!$D$7)>1),1,0)) -> 49 | F19: =IF(OR(基本情報!$D$8="",C19<=YEAR(基本情報!$D$8)),"",MAX(0,C19-YEAR(基本情報!$D$8)-IF(OR(MONTH(基本情報!$D$8)>1,DAY(基本情報!$D$8)>1),1,0))) -> 18 | G19: =IF(OR(基本情報!$D$9="",C19<=YEAR(基本情報!$D$9)),"",MAX(0,C19-YEAR(基本情報!$D$9)-IF(OR(MONTH(基本情報!$D$9)>1,DAY(基本情報!$D$9)>1),1,0))) -> 16 | H19: =IF(OR(基本情報!$D$10="",C19<=YEAR(基本情報!$D$10)),"",MAX(0,C19-YEAR(基本情報!$D$10)-IF(OR(MONTH(基本情報!$D$10)>1,DAY(基本情報!$D$10)>1),1,0))) -> 9 | I19: =IF(OR(基本情報!$D$11="",C19<=YEAR(基本情報!$D$11)),"",MAX(0,C19-YEAR(基本情報!$D$11)-IF(OR(MONTH(基本情報!$D$11)>1,DAY(基本情報!$D$11)>1),1,0))) ->  | J19: =IF(OR(基本情報!$D$12="",C19<=YEAR(基本情報!$D$12)),"",MAX(0,C19-YEAR(基本情報!$D$12)-IF(OR(MONTH(基本情報!$D$12)>1,DAY(基本情報!$D$12)>1),1,0))) ->  | K19: 成熟期 | M19: 子1 大学入学
B20: 17 | C20: =基本情報!$C$3+B20-1 -> 2038 | D20: =IF(基本情報!$D$6="","",C20-YEAR(基本情報!$D$6)-IF(OR(MONTH(基本情報!$D$6)>1,DAY(基本情報!$D$6)>1),1,0)) -> 51 | E20: =IF(基本情報!$D$7="","",C20-YEAR(基本情報!$D$7)-IF(OR(MONTH(基本情報!$D$7)>1,DAY(基本情報!$D$7)>1),1,0)) -> 50 | F20: =IF(OR(基本情報!$D$8="",C20<=YEAR(基本情報!$D$8)),"",MAX(0,C20-YEAR(基本情報!$D$8)-IF(OR(MONTH(基本情報!$D$8)>1,DAY(基本情報!$D$8)>1),1,0))) -> 19 | G20: =IF(OR(基本情報!$D$9="",C20<=YEAR(基本情報!$D$9)),"",MAX(0,C20-YEAR(基本情報!$D$9)-IF(OR(MONTH(基本情報!$D$9)>1,DAY(基本情報!$D$9)>1),1,0))) -> 17 | H20: =IF(OR(基本情報!$D$10="",C20<=YEAR(基本情報!$D$10)),"",MAX(0,C20-YEAR(基本情報!$D$10)-IF(OR(MONTH(基本情報!$D$10)>1,DAY(基本情報!$D$10)>1),1,0))) -> 10 | I20: =IF(OR(基本情報!$D$11="",C20<=YEAR(基本情報!$D$11)),"",MAX(0,C20-YEAR(基本情報!$D$11)-IF(OR(MONTH(基本情報!$D$11)>1,DAY(基本情報!$D$11)>1),1,0))) ->  | J20: =IF(OR(基本情報!$D$12="",C20<=YEAR(基本情報!$D$12)),"",MAX(0,C20-YEAR(基本情報!$D$12)-IF(OR(MONTH(基本情報!$D$12)>1,DAY(基本情報!$D$12)>1),1,0))) ->  | K20: 成熟期 | M20: 子5 小学校入学
B21: 18 | C21: =基本情報!$C$3+B21-1 -> 2039 | D21: =IF(基本情報!$D$6="","",C21-YEAR(基本情報!$D$6)-IF(OR(MONTH(基本情報!$D$6)>1,DAY(基本情報!$D$6)>1),1,0)) -> 52 | E21: =IF(基本情報!$D$7="","",C21-YEAR(基本情報!$D$7)-IF(OR(MONTH(基本情報!$D$7)>1,DAY(基本情報!$D$7)>1),1,0)) -> 51 | F21: =IF(OR(基本情報!$D$8="",C21<=YEAR(基本情報!$D$8)),"",MAX(0,C21-YEAR(基本情報!$D$8)-IF(OR(MONTH(基本情報!$D$8)>1,DAY(基本情報!$D$8)>1),1,0))) -> 20 | G21: =IF(OR(基本情報!$D$9="",C21<=YEAR(基本情報!$D$9)),"",MAX(0,C21-YEAR(基本情報!$D$9)-IF(OR(MONTH(基本情報!$D$9)>1,DAY(基本情報!$D$9)>1),1,0))) -> 18 | H21: =IF(OR(基本情報!$D$10="",C21<=YEAR(基本情報!$D$10)),"",MAX(0,C21-YEAR(基本情報!$D$10)-IF(OR(MONTH(基本情報!$D$10)>1,DAY(基本情報!$D$10)>1),1,0))) -> 11 | I21: =IF(OR(基本情報!$D$11="",C21<=YEAR(基本情報!$D$11)),"",MAX(0,C21-YEAR(基本情報!$D$11)-IF(OR(MONTH(基本情報!$D$11)>1,DAY(基本情報!$D$11)>1),1,0))) ->  | J21: =IF(OR(基本情報!$D$12="",C21<=YEAR(基本情報!$D$12)),"",MAX(0,C21-YEAR(基本情報!$D$12)-IF(OR(MONTH(基本情報!$D$12)>1,DAY(基本情報!$D$12)>1),1,0))) ->  | K21: 成熟期 | M21: 子2 大学入学
B22: 19 | C22: =基本情報!$C$3+B22-1 -> 2040 | D22: =IF(基本情報!$D$6="","",C22-YEAR(基本情報!$D$6)-IF(OR(MONTH(基本情報!$D$6)>1,DAY(基本情報!$D$6)>1),1,0)) -> 53 | E22: =IF(基本情報!$D$7="","",C22-YEAR(基本情報!$D$7)-IF(OR(MONTH(基本情報!$D$7)>1,DAY(基本情報!$D$7)>1),1,0)) -> 52 | F22: =IF(OR(基本情報!$D$8="",C22<=YEAR(基本情報!$D$8)),"",MAX(0,C22-YEAR(基本情報!$D$8)-IF(OR(MONTH(基本情報!$D$8)>1,DAY(基本情報!$D$8)>1),1,0))) -> 21 | G22: =IF(OR(基本情報!$D$9="",C22<=YEAR(基本情報!$D$9)),"",MAX(0,C22-YEAR(基本情報!$D$9)-IF(OR(MONTH(基本情報!$D$9)>1,DAY(基本情報!$D$9)>1),1,0))) -> 19 | H22: =IF(OR(基本情報!$D$10="",C22<=YEAR(基本情報!$D$10)),"",MAX(0,C22-YEAR(基本情報!$D$10)-IF(OR(MONTH(基本情報!$D$10)>1,DAY(基本情報!$D$10)>1),1,0))) -> 12 | I22: =IF(OR(基本情報!$D$11="",C22<=YEAR(基本情報!$D$11)),"",MAX(0,C22-YEAR(基本情報!$D$11)-IF(OR(MONTH(基本情報!$D$11)>1,DAY(基本情報!$D$11)>1),1,0))) ->  | J22: =IF(OR(基本情報!$D$12="",C22<=YEAR(基本情報!$D$12)),"",MAX(0,C22-YEAR(基本情報!$D$12)-IF(OR(MONTH(基本情報!$D$12)>1,DAY(基本情報!$D$12)>1),1,0))) ->  | K22: 成熟期 | M22: 子3 中学校入学
B23: 20 | C23: =基本情報!$C$3+B23-1 -> 2041 | D23: =IF(基本情報!$D$6="","",C23-YEAR(基本情報!$D$6)-IF(OR(MONTH(基本情報!$D$6)>1,DAY(基本情報!$D$6)>1),1,0)) -> 54 | E23: =IF(基本情報!$D$7="","",C23-YEAR(基本情報!$D$7)-IF(OR(MONTH(基本情報!$D$7)>1,DAY(基本情報!$D$7)>1),1,0)) -> 53 | F23: =IF(OR(基本情報!$D$8="",C23<=YEAR(基本情報!$D$8)),"",MAX(0,C23-YEAR(基本情報!$D$8)-IF(OR(MONTH(基本情報!$D$8)>1,DAY(基本情報!$D$8)>1),1,0))) -> 22 | G23: =IF(OR(基本情報!$D$9="",C23<=YEAR(基本情報!$D$9)),"",MAX(0,C23-YEAR(基本情報!$D$9)-IF(OR(MONTH(基本情報!$D$9)>1,DAY(基本情報!$D$9)>1),1,0))) -> 20 | H23: =IF(OR(基本情報!$D$10="",C23<=YEAR(基本情報!$D$10)),"",MAX(0,C23-YEAR(基本情報!$D$10)-IF(OR(MONTH(基本情報!$D$10)>1,DAY(基本情報!$D$10)>1),1,0))) -> 13 | I23: =IF(OR(基本情報!$D$11="",C23<=YEAR(基本情報!$D$11)),"",MAX(0,C23-YEAR(基本情報!$D$11)-IF(OR(MONTH(基本情報!$D$11)>1,DAY(基本情報!$D$11)>1),1,0))) ->  | J23: =IF(OR(基本情報!$D$12="",C23<=YEAR(基本情報!$D$12)),"",MAX(0,C23-YEAR(基本情報!$D$12)-IF(OR(MONTH(基本情報!$D$12)>1,DAY(基本情報!$D$12)>1),1,0))) ->  | K23: 成熟期 | M23: 子1 就職
B24: 21 | C24: =基本情報!$C$3+B24-1 -> 2042 | D24: =IF(基本情報!$D$6="","",C24-YEAR(基本情報!$D$6)-IF(OR(MONTH(基本情報!$D$6)>1,DAY(基本情報!$D$6)>1),1,0)) -> 55 | E24: =IF(基本情報!$D$7="","",C24-YEAR(基本情報!$D$7)-IF(OR(MONTH(基本情報!$D$7)>1,DAY(基本情報!$D$7)>1),1,0)) -> 54 | F24: =IF(OR(基本情報!$D$8="",C24<=YEAR(基本情報!$D$8)),"",MAX(0,C24-YEAR(基本情報!$D$8)-IF(OR(MONTH(基本情報!$D$8)>1,DAY(基本情報!$D$8)>1),1,0))) -> 23 | G24: =IF(OR(基本情報!$D$9="",C24<=YEAR(基本情報!$D$9)),"",MAX(0,C24-YEAR(基本情報!$D$9)-IF(OR(MONTH(基本情報!$D$9)>1,DAY(基本情報!$D$9)>1),1,0))) -> 21 | H24: =IF(OR(基本情報!$D$10="",C24<=YEAR(基本情報!$D$10)),"",MAX(0,C24-YEAR(基本情報!$D$10)-IF(OR(MONTH(基本情報!$D$10)>1,DAY(基本情報!$D$10)>1),1,0))) -> 14 | I24: =IF(OR(基本情報!$D$11="",C24<=YEAR(基本情報!$D$11)),"",MAX(0,C24-YEAR(基本情報!$D$11)-IF(OR(MONTH(基本情報!$D$11)>1,DAY(基本情報!$D$11)>1),1,0))) ->  | J24: =IF(OR(基本情報!$D$12="",C24<=YEAR(基本情報!$D$12)),"",MAX(0,C24-YEAR(基本情報!$D$12)-IF(OR(MONTH(基本情報!$D$12)>1,DAY(基本情報!$D$12)>1),1,0))) ->  | K24: 成熟期 | M24: 子4 中学校入学
B25: 22 | C25: =基本情報!$C$3+B25-1 -> 2043 | D25: =IF(基本情報!$D$6="","",C25-YEAR(基本情報!$D$6)-IF(OR(MONTH(基本情報!$D$6)>1,DAY(基本情報!$D$6)>1),1,0)) -> 56 | E25: =IF(基本情報!$D$7="","",C25-YEAR(基本情報!$D$7)-IF(OR(MONTH(基本情報!$D$7)>1,DAY(基本情報!$D$7)>1),1,0)) -> 55 | F25: =IF(OR(基本情報!$D$8="",C25<=YEAR(基本情報!$D$8)),"",MAX(0,C25-YEAR(基本情報!$D$8)-IF(OR(MONTH(基本情報!$D$8)>1,DAY(基本情報!$D$8)>1),1,0))) -> 24 | G25: =IF(OR(基本情報!$D$9="",C25<=YEAR(基本情報!$D$9)),"",MAX(0,C25-YEAR(基本情報!$D$9)-IF(OR(MONTH(基本情報!$D$9)>1,DAY(基本情報!$D$9)>1),1,0))) -> 22 | H25: =IF(OR(基本情報!$D$10="",C25<=YEAR(基本情報!$D$10)),"",MAX(0,C25-YEAR(基本情報!$D$10)-IF(OR(MONTH(基本情報!$D$10)>1,DAY(基本情報!$D$10)>1),1,0))) -> 15 | I25: =IF(OR(基本情報!$D$11="",C25<=YEAR(基本情報!$D$11)),"",MAX(0,C25-YEAR(基本情報!$D$11)-IF(OR(MONTH(基本情報!$D$11)>1,DAY(基本情報!$D$11)>1),1,0))) ->  | J25: =IF(OR(基本情報!$D$12="",C25<=YEAR(基本情報!$D$12)),"",MAX(0,C25-YEAR(基本情報!$D$12)-IF(OR(MONTH(基本情報!$D$12)>1,DAY(基本情報!$D$12)>1),1,0))) ->  | K25: 準備期 | M25: 子2 就職 子3 高校入学
B26: 23 | C26: =基本情報!$C$3+B26-1 -> 2044 | D26: =IF(基本情報!$D$6="","",C26-YEAR(基本情報!$D$6)-IF(OR(MONTH(基本情報!$D$6)>1,DAY(基本情報!$D$6)>1),1,0)) -> 57 | E26: =IF(基本情報!$D$7="","",C26-YEAR(基本情報!$D$7)-IF(OR(MONTH(基本情報!$D$7)>1,DAY(基本情報!$D$7)>1),1,0)) -> 56 | F26: =IF(OR(基本情報!$D$8="",C26<=YEAR(基本情報!$D$8)),"",MAX(0,C26-YEAR(基本情報!$D$8)-IF(OR(MONTH(基本情報!$D$8)>1,DAY(基本情報!$D$8)>1),1,0))) -> 25 | G26: =IF(OR(基本情報!$D$9="",C26<=YEAR(基本情報!$D$9)),"",MAX(0,C26-YEAR(基本情報!$D$9)-IF(OR(MONTH(基本情報!$D$9)>1,DAY(基本情報!$D$9)>1),1,0))) -> 23 | H26: =IF(OR(基本情報!$D$10="",C26<=YEAR(基本情報!$D$10)),"",MAX(0,C26-YEAR(基本情報!$D$10)-IF(OR(MONTH(基本情報!$D$10)>1,DAY(基本情報!$D$10)>1),1,0))) -> 16 | I26: =IF(OR(基本情報!$D$11="",C26<=YEAR(基本情報!$D$11)),"",MAX(0,C26-YEAR(基本情報!$D$11)-IF(OR(MONTH(基本情報!$D$11)>1,DAY(基本情報!$D$11)>1),1,0))) ->  | J26: =IF(OR(基本情報!$D$12="",C26<=YEAR(基本情報!$D$12)),"",MAX(0,C26-YEAR(基本情報!$D$12)-IF(OR(MONTH(基本情報!$D$12)>1,DAY(基本情報!$D$12)>1),1,0))) ->  | K26: 準備期 | M26: 子5 中学校入学
B27: 24 | C27: =基本情報!$C$3+B27-1 -> 2045 | D27: =IF(基本情報!$D$6="","",C27-YEAR(基本情報!$D$6)-IF(OR(MONTH(基本情報!$D$6)>1,DAY(基本情報!$D$6)>1),1,0)) -> 58 | E27: =IF(基本情報!$D$7="","",C27-YEAR(基本情報!$D$7)-IF(OR(MONTH(基本情報!$D$7)>1,DAY(基本情報!$D$7)>1),1,0)) -> 57 | F27: =IF(OR(基本情報!$D$8="",C27<=YEAR(基本情報!$D$8)),"",MAX(0,C27-YEAR(基本情報!$D$8)-IF(OR(MONTH(基本情報!$D$8)>1,DAY(基本情報!$D$8)>1),1,0))) -> 26 | G27: =IF(OR(基本情報!$D$9="",C27<=YEAR(基本情報!$D$9)),"",MAX(0,C27-YEAR(基本情報!$D$9)-IF(OR(MONTH(基本情報!$D$9)>1,DAY(基本情報!$D$9)>1),1,0))) -> 24 | H27: =IF(OR(基本情報!$D$10="",C27<=YEAR(基本情報!$D$10)),"",MAX(0,C27-YEAR(基本情報!$D$10)-IF(OR(MONTH(基本情報!$D$10)>1,DAY(基本情報!$D$10)>1),1,0))) -> 17 | I27: =IF(OR(基本情報!$D$11="",C27<=YEAR(基本情報!$D$11)),"",MAX(0,C27-YEAR(基本情報!$D$11)-IF(OR(MONTH(基本情報!$D$11)>1,DAY(基本情報!$D$11)>1),1,0))) ->  | J27: =IF(OR(基本情報!$D$12="",C27<=YEAR(基本情報!$D$12)),"",MAX(0,C27-YEAR(基本情報!$D$12)-IF(OR(MONTH(基本情報!$D$12)>1,DAY(基本情報!$D$12)>1),1,0))) ->  | K27: 準備期 | M27: 子3 高校入学
B28: 25 | C28: =基本情報!$C$3+B28-1 -> 2046 | D28: =IF(基本情報!$D$6="","",C28-YEAR(基本情報!$D$6)-IF(OR(MONTH(基本情報!$D$6)>1,DAY(基本情報!$D$6)>1),1,0)) -> 59 | E28: =IF(基本情報!$D$7="","",C28-YEAR(基本情報!$D$7)-IF(OR(MONTH(基本情報!$D$7)>1,DAY(基本情報!$D$7)>1),1,0)) -> 58 | F28: =IF(OR(基本情報!$D$8="",C28<=YEAR(基本情報!$D$8)),"",MAX(0,C28-YEAR(基本情報!$D$8)-IF(OR(MONTH(基本情報!$D$8)>1,DAY(基本情報!$D$8)>1),1,0))) -> 27 | G28: =IF(OR(基本情報!$D$9="",C28<=YEAR(基本情報!$D$9)),"",MAX(0,C28-YEAR(基本情報!$D$9)-IF(OR(MONTH(基本情報!$D$9)>1,DAY(基本情報!$D$9)>1),1,0))) -> 25 | H28: =IF(OR(基本情報!$D$10="",C28<=YEAR(基本情報!$D$10)),"",MAX(0,C28-YEAR(基本情報!$D$10)-IF(OR(MONTH(基本情報!$D$10)>1,DAY(基本情報!$D$10)>1),1,0))) -> 18 | I28: =IF(OR(基本情報!$D$11="",C28<=YEAR(基本情報!$D$11)),"",MAX(0,C28-YEAR(基本情報!$D$11)-IF(OR(MONTH(基本情報!$D$11)>1,DAY(基本情報!$D$11)>1),1,0))) ->  | J28: =IF(OR(基本情報!$D$12="",C28<=YEAR(基本情報!$D$12)),"",MAX(0,C28-YEAR(基本情報!$D$12)-IF(OR(MONTH(基本情報!$D$12)>1,DAY(基本情報!$D$12)>1),1,0))) ->  | K28: 準備期 | M28: 子3 大学入学 住宅ローン①完済 住宅ローン②完済
B29: 26 | C29: =基本情報!$C$3+B29-1 -> 2047 | D29: =IF(基本情報!$D$6="","",C29-YEAR(基本情報!$D$6)-IF(OR(MONTH(基本情報!$D$6)>1,DAY(基本情報!$D$6)>1),1,0)) -> 60 | E29: =IF(基本情報!$D$7="","",C29-YEAR(基本情報!$D$7)-IF(OR(MONTH(基本情報!$D$7)>1,DAY(基本情報!$D$7)>1),1,0)) -> 59 | F29: =IF(OR(基本情報!$D$8="",C29<=YEAR(基本情報!$D$8)),"",MAX(0,C29-YEAR(基本情報!$D$8)-IF(OR(MONTH(基本情報!$D$8)>1,DAY(基本情報!$D$8)>1),1,0))) -> 28 | G29: =IF(OR(基本情報!$D$9="",C29<=YEAR(基本情報!$D$9)),"",MAX(0,C29-YEAR(基本情報!$D$9)-IF(OR(MONTH(基本情報!$D$9)>1,DAY(基本情報!$D$9)>1),1,0))) -> 26 | H29: =IF(OR(基本情報!$D$10="",C29<=YEAR(基本情報!$D$10)),"",MAX(0,C29-YEAR(基本情報!$D$10)-IF(OR(MONTH(基本情報!$D$10)>1,DAY(基本情報!$D$10)>1),1,0))) -> 19 | I29: =IF(OR(基本情報!$D$11="",C29<=YEAR(基本情報!$D$11)),"",MAX(0,C29-YEAR(基本情報!$D$11)-IF(OR(MONTH(基本情報!$D$11)>1,DAY(基本情報!$D$11)>1),1,0))) ->  | J29: =IF(OR(基本情報!$D$12="",C29<=YEAR(基本情報!$D$12)),"",MAX(0,C29-YEAR(基本情報!$D$12)-IF(OR(MONTH(基本情報!$D$12)>1,DAY(基本情報!$D$12)>1),1,0))) ->  | K29: 準備期 | M29: 子1 結婚予定
B30: 27 | C30: =基本情報!$C$3+B30-1 -> 2048 | D30: =IF(基本情報!$D$6="","",C30-YEAR(基本情報!$D$6)-IF(OR(MONTH(基本情報!$D$6)>1,DAY(基本情報!$D$6)>1),1,0)) -> 61 | E30: =IF(基本情報!$D$7="","",C30-YEAR(基本情報!$D$7)-IF(OR(MONTH(基本情報!$D$7)>1,DAY(基本情報!$D$7)>1),1,0)) -> 60 | F30: =IF(OR(基本情報!$D$8="",C30<=YEAR(基本情報!$D$8)),"",MAX(0,C30-YEAR(基本情報!$D$8)-IF(OR(MONTH(基本情報!$D$8)>1,DAY(基本情報!$D$8)>1),1,0))) -> 29 | G30: =IF(OR(基本情報!$D$9="",C30<=YEAR(基本情報!$D$9)),"",MAX(0,C30-YEAR(基本情報!$D$9)-IF(OR(MONTH(基本情報!$D$9)>1,DAY(基本情報!$D$9)>1),1,0))) -> 27 | H30: =IF(OR(基本情報!$D$10="",C30<=YEAR(基本情報!$D$10)),"",MAX(0,C30-YEAR(基本情報!$D$10)-IF(OR(MONTH(基本情報!$D$10)>1,DAY(基本情報!$D$10)>1),1,0))) -> 20 | I30: =IF(OR(基本情報!$D$11="",C30<=YEAR(基本情報!$D$11)),"",MAX(0,C30-YEAR(基本情報!$D$11)-IF(OR(MONTH(基本情報!$D$11)>1,DAY(基本情報!$D$11)>1),1,0))) ->  | J30: =IF(OR(基本情報!$D$12="",C30<=YEAR(基本情報!$D$12)),"",MAX(0,C30-YEAR(基本情報!$D$12)-IF(OR(MONTH(基本情報!$D$12)>1,DAY(基本情報!$D$12)>1),1,0))) ->  | K30: 準備期 | M30: 子4 大学入学
B31: 28 | C31: =基本情報!$C$3+B31-1 -> 2049 | D31: =IF(基本情報!$D$6="","",C31-YEAR(基本情報!$D$6)-IF(OR(MONTH(基本情報!$D$6)>1,DAY(基本情報!$D$6)>1),1,0)) -> 62 | E31: =IF(基本情報!$D$7="","",C31-YEAR(基本情報!$D$7)-IF(OR(MONTH(基本情報!$D$7)>1,DAY(基本情報!$D$7)>1),1,0)) -> 61 | F31: =IF(OR(基本情報!$D$8="",C31<=YEAR(基本情報!$D$8)),"",MAX(0,C31-YEAR(基本情報!$D$8)-IF(OR(MONTH(基本情報!$D$8)>1,DAY(基本情報!$D$8)>1),1,0))) -> 30 | G31: =IF(OR(基本情報!$D$9="",C31<=YEAR(基本情報!$D$9)),"",MAX(0,C31-YEAR(基本情報!$D$9)-IF(OR(MONTH(基本情報!$D$9)>1,DAY(基本情報!$D$9)>1),1,0))) -> 28 | H31: =IF(OR(基本情報!$D$10="",C31<=YEAR(基本情報!$D$10)),"",MAX(0,C31-YEAR(基本情報!$D$10)-IF(OR(MONTH(基本情報!$D$10)>1,DAY(基本情報!$D$10)>1),1,0))) -> 21 | I31: =IF(OR(基本情報!$D$11="",C31<=YEAR(基本情報!$D$11)),"",MAX(0,C31-YEAR(基本情報!$D$11)-IF(OR(MONTH(基本情報!$D$11)>1,DAY(基本情報!$D$11)>1),1,0))) ->  | J31: =IF(OR(基本情報!$D$12="",C31<=YEAR(基本情報!$D$12)),"",MAX(0,C31-YEAR(基本情報!$D$12)-IF(OR(MONTH(基本情報!$D$12)>1,DAY(基本情報!$D$12)>1),1,0))) ->  | K31: 準備期 | M31: 子2 結婚予定
B32: 29 | C32: =基本情報!$C$3+B32-1 -> 2050 | D32: =IF(基本情報!$D$6="","",C32-YEAR(基本情報!$D$6)-IF(OR(MONTH(基本情報!$D$6)>1,DAY(基本情報!$D$6)>1),1,0)) -> 63 | E32: =IF(基本情報!$D$7="","",C32-YEAR(基本情報!$D$7)-IF(OR(MONTH(基本情報!$D$7)>1,DAY(基本情報!$D$7)>1),1,0)) -> 62 | F32: =IF(OR(基本情報!$D$8="",C32<=YEAR(基本情報!$D$8)),"",MAX(0,C32-YEAR(基本情報!$D$8)-IF(OR(MONTH(基本情報!$D$8)>1,DAY(基本情報!$D$8)>1),1,0))) -> 31 | G32: =IF(OR(基本情報!$D$9="",C32<=YEAR(基本情報!$D$9)),"",MAX(0,C32-YEAR(基本情報!$D$9)-IF(OR(MONTH(基本情報!$D$9)>1,DAY(基本情報!$D$9)>1),1,0))) -> 29 | H32: =IF(OR(基本情報!$D$10="",C32<=YEAR(基本情報!$D$10)),"",MAX(0,C32-YEAR(基本情報!$D$10)-IF(OR(MONTH(基本情報!$D$10)>1,DAY(基本情報!$D$10)>1),1,0))) -> 22 | I32: =IF(OR(基本情報!$D$11="",C32<=YEAR(基本情報!$D$11)),"",MAX(0,C32-YEAR(基本情報!$D$11)-IF(OR(MONTH(基本情報!$D$11)>1,DAY(基本情報!$D$11)>1),1,0))) ->  | J32: =IF(OR(基本情報!$D$12="",C32<=YEAR(基本情報!$D$12)),"",MAX(0,C32-YEAR(基本情報!$D$12)-IF(OR(MONTH(基本情報!$D$12)>1,DAY(基本情報!$D$12)>1),1,0))) ->  | K32: 準備期 | M32: 子3 就職 子5 大学入学
B33: 30 | C33: =基本情報!$C$3+B33-1 -> 2051 | D33: =IF(基本情報!$D$6="","",C33-YEAR(基本情報!$D$6)-IF(OR(MONTH(基本情報!$D$6)>1,DAY(基本情報!$D$6)>1),1,0)) -> 64 | E33: =IF(基本情報!$D$7="","",C33-YEAR(基本情報!$D$7)-IF(OR(MONTH(基本情報!$D$7)>1,DAY(基本情報!$D$7)>1),1,0)) -> 63 | F33: =IF(OR(基本情報!$D$8="",C33<=YEAR(基本情報!$D$8)),"",MAX(0,C33-YEAR(基本情報!$D$8)-IF(OR(MONTH(基本情報!$D$8)>1,DAY(基本情報!$D$8)>1),1,0))) -> 32 | G33: =IF(OR(基本情報!$D$9="",C33<=YEAR(基本情報!$D$9)),"",MAX(0,C33-YEAR(基本情報!$D$9)-IF(OR(MONTH(基本情報!$D$9)>1,DAY(基本情報!$D$9)>1),1,0))) -> 30 | H33: =IF(OR(基本情報!$D$10="",C33<=YEAR(基本情報!$D$10)),"",MAX(0,C33-YEAR(基本情報!$D$10)-IF(OR(MONTH(基本情報!$D$10)>1,DAY(基本情報!$D$10)>1),1,0))) -> 23 | I33: =IF(OR(基本情報!$D$11="",C33<=YEAR(基本情報!$D$11)),"",MAX(0,C33-YEAR(基本情報!$D$11)-IF(OR(MONTH(基本情報!$D$11)>1,DAY(基本情報!$D$11)>1),1,0))) ->  | J33: =IF(OR(基本情報!$D$12="",C33<=YEAR(基本情報!$D$12)),"",MAX(0,C33-YEAR(基本情報!$D$12)-IF(OR(MONTH(基本情報!$D$12)>1,DAY(基本情報!$D$12)>1),1,0))) ->  | K33: 準備期 | L33: 夫定年退職
B34: 31 | C34: =基本情報!$C$3+B34-1 -> 2052 | D34: =IF(基本情報!$D$6="","",C34-YEAR(基本情報!$D$6)-IF(OR(MONTH(基本情報!$D$6)>1,DAY(基本情報!$D$6)>1),1,0)) -> 65 | E34: =IF(基本情報!$D$7="","",C34-YEAR(基本情報!$D$7)-IF(OR(MONTH(基本情報!$D$7)>1,DAY(基本情報!$D$7)>1),1,0)) -> 64 | F34: =IF(OR(基本情報!$D$8="",C34<=YEAR(基本情報!$D$8)),"",MAX(0,C34-YEAR(基本情報!$D$8)-IF(OR(MONTH(基本情報!$D$8)>1,DAY(基本情報!$D$8)>1),1,0))) -> 33 | G34: =IF(OR(基本情報!$D$9="",C34<=YEAR(基本情報!$D$9)),"",MAX(0,C34-YEAR(基本情報!$D$9)-IF(OR(MONTH(基本情報!$D$9)>1,DAY(基本情報!$D$9)>1),1,0))) -> 31 | H34: =IF(OR(基本情報!$D$10="",C34<=YEAR(基本情報!$D$10)),"",MAX(0,C34-YEAR(基本情報!$D$10)-IF(OR(MONTH(基本情報!$D$10)>1,DAY(基本情報!$D$10)>1),1,0))) -> 24 | I34: =IF(OR(基本情報!$D$11="",C34<=YEAR(基本情報!$D$11)),"",MAX(0,C34-YEAR(基本情報!$D$11)-IF(OR(MONTH(基本情報!$D$11)>1,DAY(基本情報!$D$11)>1),1,0))) ->  | J34: =IF(OR(基本情報!$D$12="",C34<=YEAR(基本情報!$D$12)),"",MAX(0,C34-YEAR(基本情報!$D$12)-IF(OR(MONTH(基本情報!$D$12)>1,DAY(基本情報!$D$12)>1),1,0))) ->  | K34: 退職移行期 | L34: 夫年金開始 妻定年退職 | M34: 子4 就職
B35: 32 | C35: =基本情報!$C$3+B35-1 -> 2053 | D35: =IF(基本情報!$D$6="","",C35-YEAR(基本情報!$D$6)-IF(OR(MONTH(基本情報!$D$6)>1,DAY(基本情報!$D$6)>1),1,0)) -> 66 | E35: =IF(基本情報!$D$7="","",C35-YEAR(基本情報!$D$7)-IF(OR(MONTH(基本情報!$D$7)>1,DAY(基本情報!$D$7)>1),1,0)) -> 65 | F35: =IF(OR(基本情報!$D$8="",C35<=YEAR(基本情報!$D$8)),"",MAX(0,C35-YEAR(基本情報!$D$8)-IF(OR(MONTH(基本情報!$D$8)>1,DAY(基本情報!$D$8)>1),1,0))) -> 34 | G35: =IF(OR(基本情報!$D$9="",C35<=YEAR(基本情報!$D$9)),"",MAX(0,C35-YEAR(基本情報!$D$9)-IF(OR(MONTH(基本情報!$D$9)>1,DAY(基本情報!$D$9)>1),1,0))) -> 32 | H35: =IF(OR(基本情報!$D$10="",C35<=YEAR(基本情報!$D$10)),"",MAX(0,C35-YEAR(基本情報!$D$10)-IF(OR(MONTH(基本情報!$D$10)>1,DAY(基本情報!$D$10)>1),1,0))) -> 25 | I35: =IF(OR(基本情報!$D$11="",C35<=YEAR(基本情報!$D$11)),"",MAX(0,C35-YEAR(基本情報!$D$11)-IF(OR(MONTH(基本情報!$D$11)>1,DAY(基本情報!$D$11)>1),1,0))) ->  | J35: =IF(OR(基本情報!$D$12="",C35<=YEAR(基本情報!$D$12)),"",MAX(0,C35-YEAR(基本情報!$D$12)-IF(OR(MONTH(基本情報!$D$12)>1,DAY(基本情報!$D$12)>1),1,0))) ->  | K35: 退職移行期 | L35: 妻年金開始
B36: 33 | C36: =基本情報!$C$3+B36-1 -> 2054 | D36: =IF(基本情報!$D$6="","",C36-YEAR(基本情報!$D$6)-IF(OR(MONTH(基本情報!$D$6)>1,DAY(基本情報!$D$6)>1),1,0)) -> 67 | E36: =IF(基本情報!$D$7="","",C36-YEAR(基本情報!$D$7)-IF(OR(MONTH(基本情報!$D$7)>1,DAY(基本情報!$D$7)>1),1,0)) -> 66 | F36: =IF(OR(基本情報!$D$8="",C36<=YEAR(基本情報!$D$8)),"",MAX(0,C36-YEAR(基本情報!$D$8)-IF(OR(MONTH(基本情報!$D$8)>1,DAY(基本情報!$D$8)>1),1,0))) -> 35 | G36: =IF(OR(基本情報!$D$9="",C36<=YEAR(基本情報!$D$9)),"",MAX(0,C36-YEAR(基本情報!$D$9)-IF(OR(MONTH(基本情報!$D$9)>1,DAY(基本情報!$D$9)>1),1,0))) -> 33 | H36: =IF(OR(基本情報!$D$10="",C36<=YEAR(基本情報!$D$10)),"",MAX(0,C36-YEAR(基本情報!$D$10)-IF(OR(MONTH(基本情報!$D$10)>1,DAY(基本情報!$D$10)>1),1,0))) -> 26 | I36: =IF(OR(基本情報!$D$11="",C36<=YEAR(基本情報!$D$11)),"",MAX(0,C36-YEAR(基本情報!$D$11)-IF(OR(MONTH(基本情報!$D$11)>1,DAY(基本情報!$D$11)>1),1,0))) ->  | J36: =IF(OR(基本情報!$D$12="",C36<=YEAR(基本情報!$D$12)),"",MAX(0,C36-YEAR(基本情報!$D$12)-IF(OR(MONTH(基本情報!$D$12)>1,DAY(基本情報!$D$12)>1),1,0))) ->  | K36: 退職移行期 | M36: 子5 就職
B37: 34 | C37: =基本情報!$C$3+B37-1 -> 2055 | D37: =IF(基本情報!$D$6="","",C37-YEAR(基本情報!$D$6)-IF(OR(MONTH(基本情報!$D$6)>1,DAY(基本情報!$D$6)>1),1,0)) -> 68 | E37: =IF(基本情報!$D$7="","",C37-YEAR(基本情報!$D$7)-IF(OR(MONTH(基本情報!$D$7)>1,DAY(基本情報!$D$7)>1),1,0)) -> 67 | F37: =IF(OR(基本情報!$D$8="",C37<=YEAR(基本情報!$D$8)),"",MAX(0,C37-YEAR(基本情報!$D$8)-IF(OR(MONTH(基本情報!$D$8)>1,DAY(基本情報!$D$8)>1),1,0))) -> 36 | G37: =IF(OR(基本情報!$D$9="",C37<=YEAR(基本情報!$D$9)),"",MAX(0,C37-YEAR(基本情報!$D$9)-IF(OR(MONTH(基本情報!$D$9)>1,DAY(基本情報!$D$9)>1),1,0))) -> 34 | H37: =IF(OR(基本情報!$D$10="",C37<=YEAR(基本情報!$D$10)),"",MAX(0,C37-YEAR(基本情報!$D$10)-IF(OR(MONTH(基本情報!$D$10)>1,DAY(基本情報!$D$10)>1),1,0))) -> 27 | I37: =IF(OR(基本情報!$D$11="",C37<=YEAR(基本情報!$D$11)),"",MAX(0,C37-YEAR(基本情報!$D$11)-IF(OR(MONTH(基本情報!$D$11)>1,DAY(基本情報!$D$11)>1),1,0))) ->  | J37: =IF(OR(基本情報!$D$12="",C37<=YEAR(基本情報!$D$12)),"",MAX(0,C37-YEAR(基本情報!$D$12)-IF(OR(MONTH(基本情報!$D$12)>1,DAY(基本情報!$D$12)>1),1,0))) ->  | K37: 退職移行期
B38: 35 | C38: =基本情報!$C$3+B38-1 -> 2056 | D38: =IF(基本情報!$D$6="","",C38-YEAR(基本情報!$D$6)-IF(OR(MONTH(基本情報!$D$6)>1,DAY(基本情報!$D$6)>1),1,0)) -> 69 | E38: =IF(基本情報!$D$7="","",C38-YEAR(基本情報!$D$7)-IF(OR(MONTH(基本情報!$D$7)>1,DAY(基本情報!$D$7)>1),1,0)) -> 68 | F38: =IF(OR(基本情報!$D$8="",C38<=YEAR(基本情報!$D$8)),"",MAX(0,C38-YEAR(基本情報!$D$8)-IF(OR(MONTH(基本情報!$D$8)>1,DAY(基本情報!$D$8)>1),1,0))) -> 37 | G38: =IF(OR(基本情報!$D$9="",C38<=YEAR(基本情報!$D$9)),"",MAX(0,C38-YEAR(基本情報!$D$9)-IF(OR(MONTH(基本情報!$D$9)>1,DAY(基本情報!$D$9)>1),1,0))) -> 35 | H38: =IF(OR(基本情報!$D$10="",C38<=YEAR(基本情報!$D$10)),"",MAX(0,C38-YEAR(基本情報!$D$10)-IF(OR(MONTH(基本情報!$D$10)>1,DAY(基本情報!$D$10)>1),1,0))) -> 28 | I38: =IF(OR(基本情報!$D$11="",C38<=YEAR(基本情報!$D$11)),"",MAX(0,C38-YEAR(基本情報!$D$11)-IF(OR(MONTH(基本情報!$D$11)>1,DAY(基本情報!$D$11)>1),1,0))) ->  | J38: =IF(OR(基本情報!$D$12="",C38<=YEAR(基本情報!$D$12)),"",MAX(0,C38-YEAR(基本情報!$D$12)-IF(OR(MONTH(基本情報!$D$12)>1,DAY(基本情報!$D$12)>1),1,0))) ->  | K38: 退職移行期 | M38: 子3 結婚予定
B39: 36 | C39: =基本情報!$C$3+B39-1 -> 2057 | D39: =IF(基本情報!$D$6="","",C39-YEAR(基本情報!$D$6)-IF(OR(MONTH(基本情報!$D$6)>1,DAY(基本情報!$D$6)>1),1,0)) -> 70 | E39: =IF(基本情報!$D$7="","",C39-YEAR(基本情報!$D$7)-IF(OR(MONTH(基本情報!$D$7)>1,DAY(基本情報!$D$7)>1),1,0)) -> 69 | F39: =IF(OR(基本情報!$D$8="",C39<=YEAR(基本情報!$D$8)),"",MAX(0,C39-YEAR(基本情報!$D$8)-IF(OR(MONTH(基本情報!$D$8)>1,DAY(基本情報!$D$8)>1),1,0))) -> 38 | G39: =IF(OR(基本情報!$D$9="",C39<=YEAR(基本情報!$D$9)),"",MAX(0,C39-YEAR(基本情報!$D$9)-IF(OR(MONTH(基本情報!$D$9)>1,DAY(基本情報!$D$9)>1),1,0))) -> 36 | H39: =IF(OR(基本情報!$D$10="",C39<=YEAR(基本情報!$D$10)),"",MAX(0,C39-YEAR(基本情報!$D$10)-IF(OR(MONTH(基本情報!$D$10)>1,DAY(基本情報!$D$10)>1),1,0))) -> 29 | I39: =IF(OR(基本情報!$D$11="",C39<=YEAR(基本情報!$D$11)),"",MAX(0,C39-YEAR(基本情報!$D$11)-IF(OR(MONTH(基本情報!$D$11)>1,DAY(基本情報!$D$11)>1),1,0))) ->  | J39: =IF(OR(基本情報!$D$12="",C39<=YEAR(基本情報!$D$12)),"",MAX(0,C39-YEAR(基本情報!$D$12)-IF(OR(MONTH(基本情報!$D$12)>1,DAY(基本情報!$D$12)>1),1,0))) ->  | K39: 老後安定期 | L39: 再就職終了
B40: 37 | C40: =基本情報!$C$3+B40-1 -> 2058 | D40: =IF(基本情報!$D$6="","",C40-YEAR(基本情報!$D$6)-IF(OR(MONTH(基本情報!$D$6)>1,DAY(基本情報!$D$6)>1),1,0)) -> 71 | E40: =IF(基本情報!$D$7="","",C40-YEAR(基本情報!$D$7)-IF(OR(MONTH(基本情報!$D$7)>1,DAY(基本情報!$D$7)>1),1,0)) -> 70 | F40: =IF(OR(基本情報!$D$8="",C40<=YEAR(基本情報!$D$8)),"",MAX(0,C40-YEAR(基本情報!$D$8)-IF(OR(MONTH(基本情報!$D$8)>1,DAY(基本情報!$D$8)>1),1,0))) -> 39 | G40: =IF(OR(基本情報!$D$9="",C40<=YEAR(基本情報!$D$9)),"",MAX(0,C40-YEAR(基本情報!$D$9)-IF(OR(MONTH(基本情報!$D$9)>1,DAY(基本情報!$D$9)>1),1,0))) -> 37 | H40: =IF(OR(基本情報!$D$10="",C40<=YEAR(基本情報!$D$10)),"",MAX(0,C40-YEAR(基本情報!$D$10)-IF(OR(MONTH(基本情報!$D$10)>1,DAY(基本情報!$D$10)>1),1,0))) -> 30 | I40: =IF(OR(基本情報!$D$11="",C40<=YEAR(基本情報!$D$11)),"",MAX(0,C40-YEAR(基本情報!$D$11)-IF(OR(MONTH(基本情報!$D$11)>1,DAY(基本情報!$D$11)>1),1,0))) ->  | J40: =IF(OR(基本情報!$D$12="",C40<=YEAR(基本情報!$D$12)),"",MAX(0,C40-YEAR(基本情報!$D$12)-IF(OR(MONTH(基本情報!$D$12)>1,DAY(基本情報!$D$12)>1),1,0))) ->  | K40: 老後安定期 | M40: 子4 結婚予定
B41: 38 | C41: =基本情報!$C$3+B41-1 -> 2059 | D41: =IF(基本情報!$D$6="","",C41-YEAR(基本情報!$D$6)-IF(OR(MONTH(基本情報!$D$6)>1,DAY(基本情報!$D$6)>1),1,0)) -> 72 | E41: =IF(基本情報!$D$7="","",C41-YEAR(基本情報!$D$7)-IF(OR(MONTH(基本情報!$D$7)>1,DAY(基本情報!$D$7)>1),1,0)) -> 71 | F41: =IF(OR(基本情報!$D$8="",C41<=YEAR(基本情報!$D$8)),"",MAX(0,C41-YEAR(基本情報!$D$8)-IF(OR(MONTH(基本情報!$D$8)>1,DAY(基本情報!$D$8)>1),1,0))) -> 40 | G41: =IF(OR(基本情報!$D$9="",C41<=YEAR(基本情報!$D$9)),"",MAX(0,C41-YEAR(基本情報!$D$9)-IF(OR(MONTH(基本情報!$D$9)>1,DAY(基本情報!$D$9)>1),1,0))) -> 38 | H41: =IF(OR(基本情報!$D$10="",C41<=YEAR(基本情報!$D$10)),"",MAX(0,C41-YEAR(基本情報!$D$10)-IF(OR(MONTH(基本情報!$D$10)>1,DAY(基本情報!$D$10)>1),1,0))) -> 31 | I41: =IF(OR(基本情報!$D$11="",C41<=YEAR(基本情報!$D$11)),"",MAX(0,C41-YEAR(基本情報!$D$11)-IF(OR(MONTH(基本情報!$D$11)>1,DAY(基本情報!$D$11)>1),1,0))) ->  | J41: =IF(OR(基本情報!$D$12="",C41<=YEAR(基本情報!$D$12)),"",MAX(0,C41-YEAR(基本情報!$D$12)-IF(OR(MONTH(基本情報!$D$12)>1,DAY(基本情報!$D$12)>1),1,0))) ->  | K41: 老後安定期
B42: 39 | C42: =基本情報!$C$3+B42-1 -> 2060 | D42: =IF(基本情報!$D$6="","",C42-YEAR(基本情報!$D$6)-IF(OR(MONTH(基本情報!$D$6)>1,DAY(基本情報!$D$6)>1),1,0)) -> 73 | E42: =IF(基本情報!$D$7="","",C42-YEAR(基本情報!$D$7)-IF(OR(MONTH(基本情報!$D$7)>1,DAY(基本情報!$D$7)>1),1,0)) -> 72 | F42: =IF(OR(基本情報!$D$8="",C42<=YEAR(基本情報!$D$8)),"",MAX(0,C42-YEAR(基本情報!$D$8)-IF(OR(MONTH(基本情報!$D$8)>1,DAY(基本情報!$D$8)>1),1,0))) -> 41 | G42: =IF(OR(基本情報!$D$9="",C42<=YEAR(基本情報!$D$9)),"",MAX(0,C42-YEAR(基本情報!$D$9)-IF(OR(MONTH(基本情報!$D$9)>1,DAY(基本情報!$D$9)>1),1,0))) -> 39 | H42: =IF(OR(基本情報!$D$10="",C42<=YEAR(基本情報!$D$10)),"",MAX(0,C42-YEAR(基本情報!$D$10)-IF(OR(MONTH(基本情報!$D$10)>1,DAY(基本情報!$D$10)>1),1,0))) -> 32 | I42: =IF(OR(基本情報!$D$11="",C42<=YEAR(基本情報!$D$11)),"",MAX(0,C42-YEAR(基本情報!$D$11)-IF(OR(MONTH(基本情報!$D$11)>1,DAY(基本情報!$D$11)>1),1,0))) ->  | J42: =IF(OR(基本情報!$D$12="",C42<=YEAR(基本情報!$D$12)),"",MAX(0,C42-YEAR(基本情報!$D$12)-IF(OR(MONTH(基本情報!$D$12)>1,DAY(基本情報!$D$12)>1),1,0))) ->  | K42: 老後安定期 | M42: 子5 結婚予定
B43: 40 | C43: =基本情報!$C$3+B43-1 -> 2061 | D43: =IF(基本情報!$D$6="","",C43-YEAR(基本情報!$D$6)-IF(OR(MONTH(基本情報!$D$6)>1,DAY(基本情報!$D$6)>1),1,0)) -> 74 | E43: =IF(基本情報!$D$7="","",C43-YEAR(基本情報!$D$7)-IF(OR(MONTH(基本情報!$D$7)>1,DAY(基本情報!$D$7)>1),1,0)) -> 73 | F43: =IF(OR(基本情報!$D$8="",C43<=YEAR(基本情報!$D$8)),"",MAX(0,C43-YEAR(基本情報!$D$8)-IF(OR(MONTH(基本情報!$D$8)>1,DAY(基本情報!$D$8)>1),1,0))) -> 42 | G43: =IF(OR(基本情報!$D$9="",C43<=YEAR(基本情報!$D$9)),"",MAX(0,C43-YEAR(基本情報!$D$9)-IF(OR(MONTH(基本情報!$D$9)>1,DAY(基本情報!$D$9)>1),1,0))) -> 40 | H43: =IF(OR(基本情報!$D$10="",C43<=YEAR(基本情報!$D$10)),"",MAX(0,C43-YEAR(基本情報!$D$10)-IF(OR(MONTH(基本情報!$D$10)>1,DAY(基本情報!$D$10)>1),1,0))) -> 33 | I43: =IF(OR(基本情報!$D$11="",C43<=YEAR(基本情報!$D$11)),"",MAX(0,C43-YEAR(基本情報!$D$11)-IF(OR(MONTH(基本情報!$D$11)>1,DAY(基本情報!$D$11)>1),1,0))) ->  | J43: =IF(OR(基本情報!$D$12="",C43<=YEAR(基本情報!$D$12)),"",MAX(0,C43-YEAR(基本情報!$D$12)-IF(OR(MONTH(基本情報!$D$12)>1,DAY(基本情報!$D$12)>1),1,0))) ->  | K43: 老後安定期
B44: 41 | C44: =基本情報!$C$3+B44-1 -> 2062 | D44: =IF(基本情報!$D$6="","",C44-YEAR(基本情報!$D$6)-IF(OR(MONTH(基本情報!$D$6)>1,DAY(基本情報!$D$6)>1),1,0)) -> 75 | E44: =IF(基本情報!$D$7="","",C44-YEAR(基本情報!$D$7)-IF(OR(MONTH(基本情報!$D$7)>1,DAY(基本情報!$D$7)>1),1,0)) -> 74 | F44: =IF(OR(基本情報!$D$8="",C44<=YEAR(基本情報!$D$8)),"",MAX(0,C44-YEAR(基本情報!$D$8)-IF(OR(MONTH(基本情報!$D$8)>1,DAY(基本情報!$D$8)>1),1,0))) -> 43 | G44: =IF(OR(基本情報!$D$9="",C44<=YEAR(基本情報!$D$9)),"",MAX(0,C44-YEAR(基本情報!$D$9)-IF(OR(MONTH(基本情報!$D$9)>1,DAY(基本情報!$D$9)>1),1,0))) -> 41 | H44: =IF(OR(基本情報!$D$10="",C44<=YEAR(基本情報!$D$10)),"",MAX(0,C44-YEAR(基本情報!$D$10)-IF(OR(MONTH(基本情報!$D$10)>1,DAY(基本情報!$D$10)>1),1,0))) -> 34 | I44: =IF(OR(基本情報!$D$11="",C44<=YEAR(基本情報!$D$11)),"",MAX(0,C44-YEAR(基本情報!$D$11)-IF(OR(MONTH(基本情報!$D$11)>1,DAY(基本情報!$D$11)>1),1,0))) ->  | J44: =IF(OR(基本情報!$D$12="",C44<=YEAR(基本情報!$D$12)),"",MAX(0,C44-YEAR(基本情報!$D$12)-IF(OR(MONTH(基本情報!$D$12)>1,DAY(基本情報!$D$12)>1),1,0))) ->  | K44: 老後安定期
B45: 42 | C45: =基本情報!$C$3+B45-1 -> 2063 | D45: =IF(基本情報!$D$6="","",C45-YEAR(基本情報!$D$6)-IF(OR(MONTH(基本情報!$D$6)>1,DAY(基本情報!$D$6)>1),1,0)) -> 76 | E45: =IF(基本情報!$D$7="","",C45-YEAR(基本情報!$D$7)-IF(OR(MONTH(基本情報!$D$7)>1,DAY(基本情報!$D$7)>1),1,0)) -> 75 | F45: =IF(OR(基本情報!$D$8="",C45<=YEAR(基本情報!$D$8)),"",MAX(0,C45-YEAR(基本情報!$D$8)-IF(OR(MONTH(基本情報!$D$8)>1,DAY(基本情報!$D$8)>1),1,0))) -> 44 | G45: =IF(OR(基本情報!$D$9="",C45<=YEAR(基本情報!$D$9)),"",MAX(0,C45-YEAR(基本情報!$D$9)-IF(OR(MONTH(基本情報!$D$9)>1,DAY(基本情報!$D$9)>1),1,0))) -> 42 | H45: =IF(OR(基本情報!$D$10="",C45<=YEAR(基本情報!$D$10)),"",MAX(0,C45-YEAR(基本情報!$D$10)-IF(OR(MONTH(基本情報!$D$10)>1,DAY(基本情報!$D$10)>1),1,0))) -> 35 | I45: =IF(OR(基本情報!$D$11="",C45<=YEAR(基本情報!$D$11)),"",MAX(0,C45-YEAR(基本情報!$D$11)-IF(OR(MONTH(基本情報!$D$11)>1,DAY(基本情報!$D$11)>1),1,0))) ->  | J45: =IF(OR(基本情報!$D$12="",C45<=YEAR(基本情報!$D$12)),"",MAX(0,C45-YEAR(基本情報!$D$12)-IF(OR(MONTH(基本情報!$D$12)>1,DAY(基本情報!$D$12)>1),1,0))) ->  | K45: 老後安定期
B46: 43 | C46: =基本情報!$C$3+B46-1 -> 2064 | D46: =IF(基本情報!$D$6="","",C46-YEAR(基本情報!$D$6)-IF(OR(MONTH(基本情報!$D$6)>1,DAY(基本情報!$D$6)>1),1,0)) -> 77 | E46: =IF(基本情報!$D$7="","",C46-YEAR(基本情報!$D$7)-IF(OR(MONTH(基本情報!$D$7)>1,DAY(基本情報!$D$7)>1),1,0)) -> 76 | F46: =IF(OR(基本情報!$D$8="",C46<=YEAR(基本情報!$D$8)),"",MAX(0,C46-YEAR(基本情報!$D$8)-IF(OR(MONTH(基本情報!$D$8)>1,DAY(基本情報!$D$8)>1),1,0))) -> 45 | G46: =IF(OR(基本情報!$D$9="",C46<=YEAR(基本情報!$D$9)),"",MAX(0,C46-YEAR(基本情報!$D$9)-IF(OR(MONTH(基本情報!$D$9)>1,DAY(基本情報!$D$9)>1),1,0))) -> 43 | H46: =IF(OR(基本情報!$D$10="",C46<=YEAR(基本情報!$D$10)),"",MAX(0,C46-YEAR(基本情報!$D$10)-IF(OR(MONTH(基本情報!$D$10)>1,DAY(基本情報!$D$10)>1),1,0))) -> 36 | I46: =IF(OR(基本情報!$D$11="",C46<=YEAR(基本情報!$D$11)),"",MAX(0,C46-YEAR(基本情報!$D$11)-IF(OR(MONTH(基本情報!$D$11)>1,DAY(基本情報!$D$11)>1),1,0))) ->  | J46: =IF(OR(基本情報!$D$12="",C46<=YEAR(基本情報!$D$12)),"",MAX(0,C46-YEAR(基本情報!$D$12)-IF(OR(MONTH(基本情報!$D$12)>1,DAY(基本情報!$D$12)>1),1,0))) ->  | K46: 老後安定期
B47: 44 | C47: =基本情報!$C$3+B47-1 -> 2065 | D47: =IF(基本情報!$D$6="","",C47-YEAR(基本情報!$D$6)-IF(OR(MONTH(基本情報!$D$6)>1,DAY(基本情報!$D$6)>1),1,0)) -> 78 | E47: =IF(基本情報!$D$7="","",C47-YEAR(基本情報!$D$7)-IF(OR(MONTH(基本情報!$D$7)>1,DAY(基本情報!$D$7)>1),1,0)) -> 77 | F47: =IF(OR(基本情報!$D$8="",C47<=YEAR(基本情報!$D$8)),"",MAX(0,C47-YEAR(基本情報!$D$8)-IF(OR(MONTH(基本情報!$D$8)>1,DAY(基本情報!$D$8)>1),1,0))) -> 46 | G47: =IF(OR(基本情報!$D$9="",C47<=YEAR(基本情報!$D$9)),"",MAX(0,C47-YEAR(基本情報!$D$9)-IF(OR(MONTH(基本情報!$D$9)>1,DAY(基本情報!$D$9)>1),1,0))) -> 44 | H47: =IF(OR(基本情報!$D$10="",C47<=YEAR(基本情報!$D$10)),"",MAX(0,C47-YEAR(基本情報!$D$10)-IF(OR(MONTH(基本情報!$D$10)>1,DAY(基本情報!$D$10)>1),1,0))) -> 37 | I47: =IF(OR(基本情報!$D$11="",C47<=YEAR(基本情報!$D$11)),"",MAX(0,C47-YEAR(基本情報!$D$11)-IF(OR(MONTH(基本情報!$D$11)>1,DAY(基本情報!$D$11)>1),1,0))) ->  | J47: =IF(OR(基本情報!$D$12="",C47<=YEAR(基本情報!$D$12)),"",MAX(0,C47-YEAR(基本情報!$D$12)-IF(OR(MONTH(基本情報!$D$12)>1,DAY(基本情報!$D$12)>1),1,0))) ->  | K47: 老後安定期
B48: 45 | C48: =基本情報!$C$3+B48-1 -> 2066 | D48: =IF(基本情報!$D$6="","",C48-YEAR(基本情報!$D$6)-IF(OR(MONTH(基本情報!$D$6)>1,DAY(基本情報!$D$6)>1),1,0)) -> 79 | E48: =IF(基本情報!$D$7="","",C48-YEAR(基本情報!$D$7)-IF(OR(MONTH(基本情報!$D$7)>1,DAY(基本情報!$D$7)>1),1,0)) -> 78 | F48: =IF(OR(基本情報!$D$8="",C48<=YEAR(基本情報!$D$8)),"",MAX(0,C48-YEAR(基本情報!$D$8)-IF(OR(MONTH(基本情報!$D$8)>1,DAY(基本情報!$D$8)>1),1,0))) -> 47 | G48: =IF(OR(基本情報!$D$9="",C48<=YEAR(基本情報!$D$9)),"",MAX(0,C48-YEAR(基本情報!$D$9)-IF(OR(MONTH(基本情報!$D$9)>1,DAY(基本情報!$D$9)>1),1,0))) -> 45 | H48: =IF(OR(基本情報!$D$10="",C48<=YEAR(基本情報!$D$10)),"",MAX(0,C48-YEAR(基本情報!$D$10)-IF(OR(MONTH(基本情報!$D$10)>1,DAY(基本情報!$D$10)>1),1,0))) -> 38 | I48: =IF(OR(基本情報!$D$11="",C48<=YEAR(基本情報!$D$11)),"",MAX(0,C48-YEAR(基本情報!$D$11)-IF(OR(MONTH(基本情報!$D$11)>1,DAY(基本情報!$D$11)>1),1,0))) ->  | J48: =IF(OR(基本情報!$D$12="",C48<=YEAR(基本情報!$D$12)),"",MAX(0,C48-YEAR(基本情報!$D$12)-IF(OR(MONTH(基本情報!$D$12)>1,DAY(基本情報!$D$12)>1),1,0))) ->  | K48: 老後安定期
B49: 46 | C49: =基本情報!$C$3+B49-1 -> 2067 | D49: =IF(基本情報!$D$6="","",C49-YEAR(基本情報!$D$6)-IF(OR(MONTH(基本情報!$D$6)>1,DAY(基本情報!$D$6)>1),1,0)) -> 80 | E49: =IF(基本情報!$D$7="","",C49-YEAR(基本情報!$D$7)-IF(OR(MONTH(基本情報!$D$7)>1,DAY(基本情報!$D$7)>1),1,0)) -> 79 | F49: =IF(OR(基本情報!$D$8="",C49<=YEAR(基本情報!$D$8)),"",MAX(0,C49-YEAR(基本情報!$D$8)-IF(OR(MONTH(基本情報!$D$8)>1,DAY(基本情報!$D$8)>1),1,0))) -> 48 | G49: =IF(OR(基本情報!$D$9="",C49<=YEAR(基本情報!$D$9)),"",MAX(0,C49-YEAR(基本情報!$D$9)-IF(OR(MONTH(基本情報!$D$9)>1,DAY(基本情報!$D$9)>1),1,0))) -> 46 | H49: =IF(OR(基本情報!$D$10="",C49<=YEAR(基本情報!$D$10)),"",MAX(0,C49-YEAR(基本情報!$D$10)-IF(OR(MONTH(基本情報!$D$10)>1,DAY(基本情報!$D$10)>1),1,0))) -> 39 | I49: =IF(OR(基本情報!$D$11="",C49<=YEAR(基本情報!$D$11)),"",MAX(0,C49-YEAR(基本情報!$D$11)-IF(OR(MONTH(基本情報!$D$11)>1,DAY(基本情報!$D$11)>1),1,0))) ->  | J49: =IF(OR(基本情報!$D$12="",C49<=YEAR(基本情報!$D$12)),"",MAX(0,C49-YEAR(基本情報!$D$12)-IF(OR(MONTH(基本情報!$D$12)>1,DAY(基本情報!$D$12)>1),1,0))) ->  | K49: 老後安定期 | L49: 後期高齢期
B50: 47 | C50: =基本情報!$C$3+B50-1 -> 2068 | D50: =IF(基本情報!$D$6="","",C50-YEAR(基本情報!$D$6)-IF(OR(MONTH(基本情報!$D$6)>1,DAY(基本情報!$D$6)>1),1,0)) -> 81 | E50: =IF(基本情報!$D$7="","",C50-YEAR(基本情報!$D$7)-IF(OR(MONTH(基本情報!$D$7)>1,DAY(基本情報!$D$7)>1),1,0)) -> 80 | F50: =IF(OR(基本情報!$D$8="",C50<=YEAR(基本情報!$D$8)),"",MAX(0,C50-YEAR(基本情報!$D$8)-IF(OR(MONTH(基本情報!$D$8)>1,DAY(基本情報!$D$8)>1),1,0))) -> 49 | G50: =IF(OR(基本情報!$D$9="",C50<=YEAR(基本情報!$D$9)),"",MAX(0,C50-YEAR(基本情報!$D$9)-IF(OR(MONTH(基本情報!$D$9)>1,DAY(基本情報!$D$9)>1),1,0))) -> 47 | H50: =IF(OR(基本情報!$D$10="",C50<=YEAR(基本情報!$D$10)),"",MAX(0,C50-YEAR(基本情報!$D$10)-IF(OR(MONTH(基本情報!$D$10)>1,DAY(基本情報!$D$10)>1),1,0))) -> 40 | I50: =IF(OR(基本情報!$D$11="",C50<=YEAR(基本情報!$D$11)),"",MAX(0,C50-YEAR(基本情報!$D$11)-IF(OR(MONTH(基本情報!$D$11)>1,DAY(基本情報!$D$11)>1),1,0))) ->  | J50: =IF(OR(基本情報!$D$12="",C50<=YEAR(基本情報!$D$12)),"",MAX(0,C50-YEAR(基本情報!$D$12)-IF(OR(MONTH(基本情報!$D$12)>1,DAY(基本情報!$D$12)>1),1,0))) ->  | K50: 老後安定期
B51: 48 | C51: =基本情報!$C$3+B51-1 -> 2069 | D51: =IF(基本情報!$D$6="","",C51-YEAR(基本情報!$D$6)-IF(OR(MONTH(基本情報!$D$6)>1,DAY(基本情報!$D$6)>1),1,0)) -> 82 | E51: =IF(基本情報!$D$7="","",C51-YEAR(基本情報!$D$7)-IF(OR(MONTH(基本情報!$D$7)>1,DAY(基本情報!$D$7)>1),1,0)) -> 81 | F51: =IF(OR(基本情報!$D$8="",C51<=YEAR(基本情報!$D$8)),"",MAX(0,C51-YEAR(基本情報!$D$8)-IF(OR(MONTH(基本情報!$D$8)>1,DAY(基本情報!$D$8)>1),1,0))) -> 50 | G51: =IF(OR(基本情報!$D$9="",C51<=YEAR(基本情報!$D$9)),"",MAX(0,C51-YEAR(基本情報!$D$9)-IF(OR(MONTH(基本情報!$D$9)>1,DAY(基本情報!$D$9)>1),1,0))) -> 48 | H51: =IF(OR(基本情報!$D$10="",C51<=YEAR(基本情報!$D$10)),"",MAX(0,C51-YEAR(基本情報!$D$10)-IF(OR(MONTH(基本情報!$D$10)>1,DAY(基本情報!$D$10)>1),1,0))) -> 41 | I51: =IF(OR(基本情報!$D$11="",C51<=YEAR(基本情報!$D$11)),"",MAX(0,C51-YEAR(基本情報!$D$11)-IF(OR(MONTH(基本情報!$D$11)>1,DAY(基本情報!$D$11)>1),1,0))) ->  | J51: =IF(OR(基本情報!$D$12="",C51<=YEAR(基本情報!$D$12)),"",MAX(0,C51-YEAR(基本情報!$D$12)-IF(OR(MONTH(基本情報!$D$12)>1,DAY(基本情報!$D$12)>1),1,0))) ->  | K51: 老後安定期
B52: 49 | C52: =基本情報!$C$3+B52-1 -> 2070 | D52: =IF(基本情報!$D$6="","",C52-YEAR(基本情報!$D$6)-IF(OR(MONTH(基本情報!$D$6)>1,DAY(基本情報!$D$6)>1),1,0)) -> 83 | E52: =IF(基本情報!$D$7="","",C52-YEAR(基本情報!$D$7)-IF(OR(MONTH(基本情報!$D$7)>1,DAY(基本情報!$D$7)>1),1,0)) -> 82 | F52: =IF(OR(基本情報!$D$8="",C52<=YEAR(基本情報!$D$8)),"",MAX(0,C52-YEAR(基本情報!$D$8)-IF(OR(MONTH(基本情報!$D$8)>1,DAY(基本情報!$D$8)>1),1,0))) -> 51 | G52: =IF(OR(基本情報!$D$9="",C52<=YEAR(基本情報!$D$9)),"",MAX(0,C52-YEAR(基本情報!$D$9)-IF(OR(MONTH(基本情報!$D$9)>1,DAY(基本情報!$D$9)>1),1,0))) -> 49 | H52: =IF(OR(基本情報!$D$10="",C52<=YEAR(基本情報!$D$10)),"",MAX(0,C52-YEAR(基本情報!$D$10)-IF(OR(MONTH(基本情報!$D$10)>1,DAY(基本情報!$D$10)>1),1,0))) -> 42 | I52: =IF(OR(基本情報!$D$11="",C52<=YEAR(基本情報!$D$11)),"",MAX(0,C52-YEAR(基本情報!$D$11)-IF(OR(MONTH(基本情報!$D$11)>1,DAY(基本情報!$D$11)>1),1,0))) ->  | J52: =IF(OR(基本情報!$D$12="",C52<=YEAR(基本情報!$D$12)),"",MAX(0,C52-YEAR(基本情報!$D$12)-IF(OR(MONTH(基本情報!$D$12)>1,DAY(基本情報!$D$12)>1),1,0))) ->  | K52: 老後安定期
B53: 50 | C53: =基本情報!$C$3+B53-1 -> 2071 | D53: =IF(基本情報!$D$6="","",C53-YEAR(基本情報!$D$6)-IF(OR(MONTH(基本情報!$D$6)>1,DAY(基本情報!$D$6)>1),1,0)) -> 84 | E53: =IF(基本情報!$D$7="","",C53-YEAR(基本情報!$D$7)-IF(OR(MONTH(基本情報!$D$7)>1,DAY(基本情報!$D$7)>1),1,0)) -> 83 | F53: =IF(OR(基本情報!$D$8="",C53<=YEAR(基本情報!$D$8)),"",MAX(0,C53-YEAR(基本情報!$D$8)-IF(OR(MONTH(基本情報!$D$8)>1,DAY(基本情報!$D$8)>1),1,0))) -> 52 | G53: =IF(OR(基本情報!$D$9="",C53<=YEAR(基本情報!$D$9)),"",MAX(0,C53-YEAR(基本情報!$D$9)-IF(OR(MONTH(基本情報!$D$9)>1,DAY(基本情報!$D$9)>1),1,0))) -> 50 | H53: =IF(OR(基本情報!$D$10="",C53<=YEAR(基本情報!$D$10)),"",MAX(0,C53-YEAR(基本情報!$D$10)-IF(OR(MONTH(基本情報!$D$10)>1,DAY(基本情報!$D$10)>1),1,0))) -> 43 | I53: =IF(OR(基本情報!$D$11="",C53<=YEAR(基本情報!$D$11)),"",MAX(0,C53-YEAR(基本情報!$D$11)-IF(OR(MONTH(基本情報!$D$11)>1,DAY(基本情報!$D$11)>1),1,0))) ->  | J53: =IF(OR(基本情報!$D$12="",C53<=YEAR(基本情報!$D$12)),"",MAX(0,C53-YEAR(基本情報!$D$12)-IF(OR(MONTH(基本情報!$D$12)>1,DAY(基本情報!$D$12)>1),1,0))) ->  | K53: 老後安定期
B54: 51 | C54: =基本情報!$C$3+B54-1 -> 2072 | D54: =IF(基本情報!$D$6="","",C54-YEAR(基本情報!$D$6)-IF(OR(MONTH(基本情報!$D$6)>1,DAY(基本情報!$D$6)>1),1,0)) -> 85 | E54: =IF(基本情報!$D$7="","",C54-YEAR(基本情報!$D$7)-IF(OR(MONTH(基本情報!$D$7)>1,DAY(基本情報!$D$7)>1),1,0)) -> 84 | F54: =IF(OR(基本情報!$D$8="",C54<=YEAR(基本情報!$D$8)),"",MAX(0,C54-YEAR(基本情報!$D$8)-IF(OR(MONTH(基本情報!$D$8)>1,DAY(基本情報!$D$8)>1),1,0))) -> 53 | G54: =IF(OR(基本情報!$D$9="",C54<=YEAR(基本情報!$D$9)),"",MAX(0,C54-YEAR(基本情報!$D$9)-IF(OR(MONTH(基本情報!$D$9)>1,DAY(基本情報!$D$9)>1),1,0))) -> 51 | H54: =IF(OR(基本情報!$D$10="",C54<=YEAR(基本情報!$D$10)),"",MAX(0,C54-YEAR(基本情報!$D$10)-IF(OR(MONTH(基本情報!$D$10)>1,DAY(基本情報!$D$10)>1),1,0))) -> 44 | I54: =IF(OR(基本情報!$D$11="",C54<=YEAR(基本情報!$D$11)),"",MAX(0,C54-YEAR(基本情報!$D$11)-IF(OR(MONTH(基本情報!$D$11)>1,DAY(基本情報!$D$11)>1),1,0))) ->  | J54: =IF(OR(基本情報!$D$12="",C54<=YEAR(基本情報!$D$12)),"",MAX(0,C54-YEAR(基本情報!$D$12)-IF(OR(MONTH(基本情報!$D$12)>1,DAY(基本情報!$D$12)>1),1,0))) ->  | K54: 長寿期
B55: 52 | C55: =基本情報!$C$3+B55-1 -> 2073 | D55: =IF(基本情報!$D$6="","",C55-YEAR(基本情報!$D$6)-IF(OR(MONTH(基本情報!$D$6)>1,DAY(基本情報!$D$6)>1),1,0)) -> 86 | E55: =IF(基本情報!$D$7="","",C55-YEAR(基本情報!$D$7)-IF(OR(MONTH(基本情報!$D$7)>1,DAY(基本情報!$D$7)>1),1,0)) -> 85 | F55: =IF(OR(基本情報!$D$8="",C55<=YEAR(基本情報!$D$8)),"",MAX(0,C55-YEAR(基本情報!$D$8)-IF(OR(MONTH(基本情報!$D$8)>1,DAY(基本情報!$D$8)>1),1,0))) -> 54 | G55: =IF(OR(基本情報!$D$9="",C55<=YEAR(基本情報!$D$9)),"",MAX(0,C55-YEAR(基本情報!$D$9)-IF(OR(MONTH(基本情報!$D$9)>1,DAY(基本情報!$D$9)>1),1,0))) -> 52 | H55: =IF(OR(基本情報!$D$10="",C55<=YEAR(基本情報!$D$10)),"",MAX(0,C55-YEAR(基本情報!$D$10)-IF(OR(MONTH(基本情報!$D$10)>1,DAY(基本情報!$D$10)>1),1,0))) -> 45 | I55: =IF(OR(基本情報!$D$11="",C55<=YEAR(基本情報!$D$11)),"",MAX(0,C55-YEAR(基本情報!$D$11)-IF(OR(MONTH(基本情報!$D$11)>1,DAY(基本情報!$D$11)>1),1,0))) ->  | J55: =IF(OR(基本情報!$D$12="",C55<=YEAR(基本情報!$D$12)),"",MAX(0,C55-YEAR(基本情報!$D$12)-IF(OR(MONTH(基本情報!$D$12)>1,DAY(基本情報!$D$12)>1),1,0))) ->  | K55: 長寿期
B56: 53 | C56: =基本情報!$C$3+B56-1 -> 2074 | D56: =IF(基本情報!$D$6="","",C56-YEAR(基本情報!$D$6)-IF(OR(MONTH(基本情報!$D$6)>1,DAY(基本情報!$D$6)>1),1,0)) -> 87 | E56: =IF(基本情報!$D$7="","",C56-YEAR(基本情報!$D$7)-IF(OR(MONTH(基本情報!$D$7)>1,DAY(基本情報!$D$7)>1),1,0)) -> 86 | F56: =IF(OR(基本情報!$D$8="",C56<=YEAR(基本情報!$D$8)),"",MAX(0,C56-YEAR(基本情報!$D$8)-IF(OR(MONTH(基本情報!$D$8)>1,DAY(基本情報!$D$8)>1),1,0))) -> 55 | G56: =IF(OR(基本情報!$D$9="",C56<=YEAR(基本情報!$D$9)),"",MAX(0,C56-YEAR(基本情報!$D$9)-IF(OR(MONTH(基本情報!$D$9)>1,DAY(基本情報!$D$9)>1),1,0))) -> 53 | H56: =IF(OR(基本情報!$D$10="",C56<=YEAR(基本情報!$D$10)),"",MAX(0,C56-YEAR(基本情報!$D$10)-IF(OR(MONTH(基本情報!$D$10)>1,DAY(基本情報!$D$10)>1),1,0))) -> 46 | I56: =IF(OR(基本情報!$D$11="",C56<=YEAR(基本情報!$D$11)),"",MAX(0,C56-YEAR(基本情報!$D$11)-IF(OR(MONTH(基本情報!$D$11)>1,DAY(基本情報!$D$11)>1),1,0))) ->  | J56: =IF(OR(基本情報!$D$12="",C56<=YEAR(基本情報!$D$12)),"",MAX(0,C56-YEAR(基本情報!$D$12)-IF(OR(MONTH(基本情報!$D$12)>1,DAY(基本情報!$D$12)>1),1,0))) ->  | K56: 長寿期
B57: 54 | C57: =基本情報!$C$3+B57-1 -> 2075 | D57: =IF(基本情報!$D$6="","",C57-YEAR(基本情報!$D$6)-IF(OR(MONTH(基本情報!$D$6)>1,DAY(基本情報!$D$6)>1),1,0)) -> 88 | E57: =IF(基本情報!$D$7="","",C57-YEAR(基本情報!$D$7)-IF(OR(MONTH(基本情報!$D$7)>1,DAY(基本情報!$D$7)>1),1,0)) -> 87 | F57: =IF(OR(基本情報!$D$8="",C57<=YEAR(基本情報!$D$8)),"",MAX(0,C57-YEAR(基本情報!$D$8)-IF(OR(MONTH(基本情報!$D$8)>1,DAY(基本情報!$D$8)>1),1,0))) -> 56 | G57: =IF(OR(基本情報!$D$9="",C57<=YEAR(基本情報!$D$9)),"",MAX(0,C57-YEAR(基本情報!$D$9)-IF(OR(MONTH(基本情報!$D$9)>1,DAY(基本情報!$D$9)>1),1,0))) -> 54 | H57: =IF(OR(基本情報!$D$10="",C57<=YEAR(基本情報!$D$10)),"",MAX(0,C57-YEAR(基本情報!$D$10)-IF(OR(MONTH(基本情報!$D$10)>1,DAY(基本情報!$D$10)>1),1,0))) -> 47 | I57: =IF(OR(基本情報!$D$11="",C57<=YEAR(基本情報!$D$11)),"",MAX(0,C57-YEAR(基本情報!$D$11)-IF(OR(MONTH(基本情報!$D$11)>1,DAY(基本情報!$D$11)>1),1,0))) ->  | J57: =IF(OR(基本情報!$D$12="",C57<=YEAR(基本情報!$D$12)),"",MAX(0,C57-YEAR(基本情報!$D$12)-IF(OR(MONTH(基本情報!$D$12)>1,DAY(基本情報!$D$12)>1),1,0))) ->  | K57: 長寿期
B58: 55 | C58: =基本情報!$C$3+B58-1 -> 2076 | D58: =IF(基本情報!$D$6="","",C58-YEAR(基本情報!$D$6)-IF(OR(MONTH(基本情報!$D$6)>1,DAY(基本情報!$D$6)>1),1,0)) -> 89 | E58: =IF(基本情報!$D$7="","",C58-YEAR(基本情報!$D$7)-IF(OR(MONTH(基本情報!$D$7)>1,DAY(基本情報!$D$7)>1),1,0)) -> 88 | F58: =IF(OR(基本情報!$D$8="",C58<=YEAR(基本情報!$D$8)),"",MAX(0,C58-YEAR(基本情報!$D$8)-IF(OR(MONTH(基本情報!$D$8)>1,DAY(基本情報!$D$8)>1),1,0))) -> 57 | G58: =IF(OR(基本情報!$D$9="",C58<=YEAR(基本情報!$D$9)),"",MAX(0,C58-YEAR(基本情報!$D$9)-IF(OR(MONTH(基本情報!$D$9)>1,DAY(基本情報!$D$9)>1),1,0))) -> 55 | H58: =IF(OR(基本情報!$D$10="",C58<=YEAR(基本情報!$D$10)),"",MAX(0,C58-YEAR(基本情報!$D$10)-IF(OR(MONTH(基本情報!$D$10)>1,DAY(基本情報!$D$10)>1),1,0))) -> 48 | I58: =IF(OR(基本情報!$D$11="",C58<=YEAR(基本情報!$D$11)),"",MAX(0,C58-YEAR(基本情報!$D$11)-IF(OR(MONTH(基本情報!$D$11)>1,DAY(基本情報!$D$11)>1),1,0))) ->  | J58: =IF(OR(基本情報!$D$12="",C58<=YEAR(基本情報!$D$12)),"",MAX(0,C58-YEAR(基本情報!$D$12)-IF(OR(MONTH(基本情報!$D$12)>1,DAY(基本情報!$D$12)>1),1,0))) ->  | K58: 長寿期
B59: 56 | C59: =基本情報!$C$3+B59-1 -> 2077 | D59: =IF(基本情報!$D$6="","",C59-YEAR(基本情報!$D$6)-IF(OR(MONTH(基本情報!$D$6)>1,DAY(基本情報!$D$6)>1),1,0)) -> 90 | E59: =IF(基本情報!$D$7="","",C59-YEAR(基本情報!$D$7)-IF(OR(MONTH(基本情報!$D$7)>1,DAY(基本情報!$D$7)>1),1,0)) -> 89 | F59: =IF(OR(基本情報!$D$8="",C59<=YEAR(基本情報!$D$8)),"",MAX(0,C59-YEAR(基本情報!$D$8)-IF(OR(MONTH(基本情報!$D$8)>1,DAY(基本情報!$D$8)>1),1,0))) -> 58 | G59: =IF(OR(基本情報!$D$9="",C59<=YEAR(基本情報!$D$9)),"",MAX(0,C59-YEAR(基本情報!$D$9)-IF(OR(MONTH(基本情報!$D$9)>1,DAY(基本情報!$D$9)>1),1,0))) -> 56 | H59: =IF(OR(基本情報!$D$10="",C59<=YEAR(基本情報!$D$10)),"",MAX(0,C59-YEAR(基本情報!$D$10)-IF(OR(MONTH(基本情報!$D$10)>1,DAY(基本情報!$D$10)>1),1,0))) -> 49 | I59: =IF(OR(基本情報!$D$11="",C59<=YEAR(基本情報!$D$11)),"",MAX(0,C59-YEAR(基本情報!$D$11)-IF(OR(MONTH(基本情報!$D$11)>1,DAY(基本情報!$D$11)>1),1,0))) ->  | J59: =IF(OR(基本情報!$D$12="",C59<=YEAR(基本情報!$D$12)),"",MAX(0,C59-YEAR(基本情報!$D$12)-IF(OR(MONTH(基本情報!$D$12)>1,DAY(基本情報!$D$12)>1),1,0))) ->  | K59: 長寿期
B60: 57 | C60: =基本情報!$C$3+B60-1 -> 2078 | D60: =IF(基本情報!$D$6="","",C60-YEAR(基本情報!$D$6)-IF(OR(MONTH(基本情報!$D$6)>1,DAY(基本情報!$D$6)>1),1,0)) -> 91 | E60: =IF(基本情報!$D$7="","",C60-YEAR(基本情報!$D$7)-IF(OR(MONTH(基本情報!$D$7)>1,DAY(基本情報!$D$7)>1),1,0)) -> 90 | F60: =IF(OR(基本情報!$D$8="",C60<=YEAR(基本情報!$D$8)),"",MAX(0,C60-YEAR(基本情報!$D$8)-IF(OR(MONTH(基本情報!$D$8)>1,DAY(基本情報!$D$8)>1),1,0))) -> 59 | G60: =IF(OR(基本情報!$D$9="",C60<=YEAR(基本情報!$D$9)),"",MAX(0,C60-YEAR(基本情報!$D$9)-IF(OR(MONTH(基本情報!$D$9)>1,DAY(基本情報!$D$9)>1),1,0))) -> 57 | H60: =IF(OR(基本情報!$D$10="",C60<=YEAR(基本情報!$D$10)),"",MAX(0,C60-YEAR(基本情報!$D$10)-IF(OR(MONTH(基本情報!$D$10)>1,DAY(基本情報!$D$10)>1),1,0))) -> 50 | I60: =IF(OR(基本情報!$D$11="",C60<=YEAR(基本情報!$D$11)),"",MAX(0,C60-YEAR(基本情報!$D$11)-IF(OR(MONTH(基本情報!$D$11)>1,DAY(基本情報!$D$11)>1),1,0))) ->  | J60: =IF(OR(基本情報!$D$12="",C60<=YEAR(基本情報!$D$12)),"",MAX(0,C60-YEAR(基本情報!$D$12)-IF(OR(MONTH(基本情報!$D$12)>1,DAY(基本情報!$D$12)>1),1,0))) ->  | K60: 長寿期
B61: 58 | C61: =基本情報!$C$3+B61-1 -> 2079 | D61: =IF(基本情報!$D$6="","",C61-YEAR(基本情報!$D$6)-IF(OR(MONTH(基本情報!$D$6)>1,DAY(基本情報!$D$6)>1),1,0)) -> 92 | E61: =IF(基本情報!$D$7="","",C61-YEAR(基本情報!$D$7)-IF(OR(MONTH(基本情報!$D$7)>1,DAY(基本情報!$D$7)>1),1,0)) -> 91 | F61: =IF(OR(基本情報!$D$8="",C61<=YEAR(基本情報!$D$8)),"",MAX(0,C61-YEAR(基本情報!$D$8)-IF(OR(MONTH(基本情報!$D$8)>1,DAY(基本情報!$D$8)>1),1,0))) -> 60 | G61: =IF(OR(基本情報!$D$9="",C61<=YEAR(基本情報!$D$9)),"",MAX(0,C61-YEAR(基本情報!$D$9)-IF(OR(MONTH(基本情報!$D$9)>1,DAY(基本情報!$D$9)>1),1,0))) -> 58 | H61: =IF(OR(基本情報!$D$10="",C61<=YEAR(基本情報!$D$10)),"",MAX(0,C61-YEAR(基本情報!$D$10)-IF(OR(MONTH(基本情報!$D$10)>1,DAY(基本情報!$D$10)>1),1,0))) -> 51 | I61: =IF(OR(基本情報!$D$11="",C61<=YEAR(基本情報!$D$11)),"",MAX(0,C61-YEAR(基本情報!$D$11)-IF(OR(MONTH(基本情報!$D$11)>1,DAY(基本情報!$D$11)>1),1,0))) ->  | J61: =IF(OR(基本情報!$D$12="",C61<=YEAR(基本情報!$D$12)),"",MAX(0,C61-YEAR(基本情報!$D$12)-IF(OR(MONTH(基本情報!$D$12)>1,DAY(基本情報!$D$12)>1),1,0))) ->  | K61: 長寿期
B62: 59 | C62: =基本情報!$C$3+B62-1 -> 2080 | D62: =IF(基本情報!$D$6="","",C62-YEAR(基本情報!$D$6)-IF(OR(MONTH(基本情報!$D$6)>1,DAY(基本情報!$D$6)>1),1,0)) -> 93 | E62: =IF(基本情報!$D$7="","",C62-YEAR(基本情報!$D$7)-IF(OR(MONTH(基本情報!$D$7)>1,DAY(基本情報!$D$7)>1),1,0)) -> 92 | F62: =IF(OR(基本情報!$D$8="",C62<=YEAR(基本情報!$D$8)),"",MAX(0,C62-YEAR(基本情報!$D$8)-IF(OR(MONTH(基本情報!$D$8)>1,DAY(基本情報!$D$8)>1),1,0))) -> 61 | G62: =IF(OR(基本情報!$D$9="",C62<=YEAR(基本情報!$D$9)),"",MAX(0,C62-YEAR(基本情報!$D$9)-IF(OR(MONTH(基本情報!$D$9)>1,DAY(基本情報!$D$9)>1),1,0))) -> 59 | H62: =IF(OR(基本情報!$D$10="",C62<=YEAR(基本情報!$D$10)),"",MAX(0,C62-YEAR(基本情報!$D$10)-IF(OR(MONTH(基本情報!$D$10)>1,DAY(基本情報!$D$10)>1),1,0))) -> 52 | I62: =IF(OR(基本情報!$D$11="",C62<=YEAR(基本情報!$D$11)),"",MAX(0,C62-YEAR(基本情報!$D$11)-IF(OR(MONTH(基本情報!$D$11)>1,DAY(基本情報!$D$11)>1),1,0))) ->  | J62: =IF(OR(基本情報!$D$12="",C62<=YEAR(基本情報!$D$12)),"",MAX(0,C62-YEAR(基本情報!$D$12)-IF(OR(MONTH(基本情報!$D$12)>1,DAY(基本情報!$D$12)>1),1,0))) ->  | K62: 長寿期
B63: 60 | C63: =基本情報!$C$3+B63-1 -> 2081 | D63: =IF(基本情報!$D$6="","",C63-YEAR(基本情報!$D$6)-IF(OR(MONTH(基本情報!$D$6)>1,DAY(基本情報!$D$6)>1),1,0)) -> 94 | E63: =IF(基本情報!$D$7="","",C63-YEAR(基本情報!$D$7)-IF(OR(MONTH(基本情報!$D$7)>1,DAY(基本情報!$D$7)>1),1,0)) -> 93 | F63: =IF(OR(基本情報!$D$8="",C63<=YEAR(基本情報!$D$8)),"",MAX(0,C63-YEAR(基本情報!$D$8)-IF(OR(MONTH(基本情報!$D$8)>1,DAY(基本情報!$D$8)>1),1,0))) -> 62 | G63: =IF(OR(基本情報!$D$9="",C63<=YEAR(基本情報!$D$9)),"",MAX(0,C63-YEAR(基本情報!$D$9)-IF(OR(MONTH(基本情報!$D$9)>1,DAY(基本情報!$D$9)>1),1,0))) -> 60 | H63: =IF(OR(基本情報!$D$10="",C63<=YEAR(基本情報!$D$10)),"",MAX(0,C63-YEAR(基本情報!$D$10)-IF(OR(MONTH(基本情報!$D$10)>1,DAY(基本情報!$D$10)>1),1,0))) -> 53 | I63: =IF(OR(基本情報!$D$11="",C63<=YEAR(基本情報!$D$11)),"",MAX(0,C63-YEAR(基本情報!$D$11)-IF(OR(MONTH(基本情報!$D$11)>1,DAY(基本情報!$D$11)>1),1,0))) ->  | J63: =IF(OR(基本情報!$D$12="",C63<=YEAR(基本情報!$D$12)),"",MAX(0,C63-YEAR(基本情報!$D$12)-IF(OR(MONTH(基本情報!$D$12)>1,DAY(基本情報!$D$12)>1),1,0))) ->  | K63: 長寿期
B64: 61 | C64: =基本情報!$C$3+B64-1 -> 2082 | D64: =IF(基本情報!$D$6="","",C64-YEAR(基本情報!$D$6)-IF(OR(MONTH(基本情報!$D$6)>1,DAY(基本情報!$D$6)>1),1,0)) -> 95 | E64: =IF(基本情報!$D$7="","",C64-YEAR(基本情報!$D$7)-IF(OR(MONTH(基本情報!$D$7)>1,DAY(基本情報!$D$7)>1),1,0)) -> 94 | F64: =IF(OR(基本情報!$D$8="",C64<=YEAR(基本情報!$D$8)),"",MAX(0,C64-YEAR(基本情報!$D$8)-IF(OR(MONTH(基本情報!$D$8)>1,DAY(基本情報!$D$8)>1),1,0))) -> 63 | G64: =IF(OR(基本情報!$D$9="",C64<=YEAR(基本情報!$D$9)),"",MAX(0,C64-YEAR(基本情報!$D$9)-IF(OR(MONTH(基本情報!$D$9)>1,DAY(基本情報!$D$9)>1),1,0))) -> 61 | H64: =IF(OR(基本情報!$D$10="",C64<=YEAR(基本情報!$D$10)),"",MAX(0,C64-YEAR(基本情報!$D$10)-IF(OR(MONTH(基本情報!$D$10)>1,DAY(基本情報!$D$10)>1),1,0))) -> 54 | I64: =IF(OR(基本情報!$D$11="",C64<=YEAR(基本情報!$D$11)),"",MAX(0,C64-YEAR(基本情報!$D$11)-IF(OR(MONTH(基本情報!$D$11)>1,DAY(基本情報!$D$11)>1),1,0))) ->  | J64: =IF(OR(基本情報!$D$12="",C64<=YEAR(基本情報!$D$12)),"",MAX(0,C64-YEAR(基本情報!$D$12)-IF(OR(MONTH(基本情報!$D$12)>1,DAY(基本情報!$D$12)>1),1,0))) ->  | K64: 長寿期
B65: 62 | C65: =基本情報!$C$3+B65-1 -> 2083 | D65: =IF(基本情報!$D$6="","",C65-YEAR(基本情報!$D$6)-IF(OR(MONTH(基本情報!$D$6)>1,DAY(基本情報!$D$6)>1),1,0)) -> 96 | E65: =IF(基本情報!$D$7="","",C65-YEAR(基本情報!$D$7)-IF(OR(MONTH(基本情報!$D$7)>1,DAY(基本情報!$D$7)>1),1,0)) -> 95 | F65: =IF(OR(基本情報!$D$8="",C65<=YEAR(基本情報!$D$8)),"",MAX(0,C65-YEAR(基本情報!$D$8)-IF(OR(MONTH(基本情報!$D$8)>1,DAY(基本情報!$D$8)>1),1,0))) -> 64 | G65: =IF(OR(基本情報!$D$9="",C65<=YEAR(基本情報!$D$9)),"",MAX(0,C65-YEAR(基本情報!$D$9)-IF(OR(MONTH(基本情報!$D$9)>1,DAY(基本情報!$D$9)>1),1,0))) -> 62 | H65: =IF(OR(基本情報!$D$10="",C65<=YEAR(基本情報!$D$10)),"",MAX(0,C65-YEAR(基本情報!$D$10)-IF(OR(MONTH(基本情報!$D$10)>1,DAY(基本情報!$D$10)>1),1,0))) -> 55 | I65: =IF(OR(基本情報!$D$11="",C65<=YEAR(基本情報!$D$11)),"",MAX(0,C65-YEAR(基本情報!$D$11)-IF(OR(MONTH(基本情報!$D$11)>1,DAY(基本情報!$D$11)>1),1,0))) ->  | J65: =IF(OR(基本情報!$D$12="",C65<=YEAR(基本情報!$D$12)),"",MAX(0,C65-YEAR(基本情報!$D$12)-IF(OR(MONTH(基本情報!$D$12)>1,DAY(基本情報!$D$12)>1),1,0))) ->  | K65: 長寿期
B66: 63 | C66: =基本情報!$C$3+B66-1 -> 2084 | D66: =IF(基本情報!$D$6="","",C66-YEAR(基本情報!$D$6)-IF(OR(MONTH(基本情報!$D$6)>1,DAY(基本情報!$D$6)>1),1,0)) -> 97 | E66: =IF(基本情報!$D$7="","",C66-YEAR(基本情報!$D$7)-IF(OR(MONTH(基本情報!$D$7)>1,DAY(基本情報!$D$7)>1),1,0)) -> 96 | F66: =IF(OR(基本情報!$D$8="",C66<=YEAR(基本情報!$D$8)),"",MAX(0,C66-YEAR(基本情報!$D$8)-IF(OR(MONTH(基本情報!$D$8)>1,DAY(基本情報!$D$8)>1),1,0))) -> 65 | G66: =IF(OR(基本情報!$D$9="",C66<=YEAR(基本情報!$D$9)),"",MAX(0,C66-YEAR(基本情報!$D$9)-IF(OR(MONTH(基本情報!$D$9)>1,DAY(基本情報!$D$9)>1),1,0))) -> 63 | H66: =IF(OR(基本情報!$D$10="",C66<=YEAR(基本情報!$D$10)),"",MAX(0,C66-YEAR(基本情報!$D$10)-IF(OR(MONTH(基本情報!$D$10)>1,DAY(基本情報!$D$10)>1),1,0))) -> 56 | I66: =IF(OR(基本情報!$D$11="",C66<=YEAR(基本情報!$D$11)),"",MAX(0,C66-YEAR(基本情報!$D$11)-IF(OR(MONTH(基本情報!$D$11)>1,DAY(基本情報!$D$11)>1),1,0))) ->  | J66: =IF(OR(基本情報!$D$12="",C66<=YEAR(基本情報!$D$12)),"",MAX(0,C66-YEAR(基本情報!$D$12)-IF(OR(MONTH(基本情報!$D$12)>1,DAY(基本情報!$D$12)>1),1,0))) ->  | K66: 長寿期
B67: 64 | C67: =基本情報!$C$3+B67-1 -> 2085 | D67: =IF(基本情報!$D$6="","",C67-YEAR(基本情報!$D$6)-IF(OR(MONTH(基本情報!$D$6)>1,DAY(基本情報!$D$6)>1),1,0)) -> 98 | E67: =IF(基本情報!$D$7="","",C67-YEAR(基本情報!$D$7)-IF(OR(MONTH(基本情報!$D$7)>1,DAY(基本情報!$D$7)>1),1,0)) -> 97 | F67: =IF(OR(基本情報!$D$8="",C67<=YEAR(基本情報!$D$8)),"",MAX(0,C67-YEAR(基本情報!$D$8)-IF(OR(MONTH(基本情報!$D$8)>1,DAY(基本情報!$D$8)>1),1,0))) -> 66 | G67: =IF(OR(基本情報!$D$9="",C67<=YEAR(基本情報!$D$9)),"",MAX(0,C67-YEAR(基本情報!$D$9)-IF(OR(MONTH(基本情報!$D$9)>1,DAY(基本情報!$D$9)>1),1,0))) -> 64 | H67: =IF(OR(基本情報!$D$10="",C67<=YEAR(基本情報!$D$10)),"",MAX(0,C67-YEAR(基本情報!$D$10)-IF(OR(MONTH(基本情報!$D$10)>1,DAY(基本情報!$D$10)>1),1,0))) -> 57 | I67: =IF(OR(基本情報!$D$11="",C67<=YEAR(基本情報!$D$11)),"",MAX(0,C67-YEAR(基本情報!$D$11)-IF(OR(MONTH(基本情報!$D$11)>1,DAY(基本情報!$D$11)>1),1,0))) ->  | J67: =IF(OR(基本情報!$D$12="",C67<=YEAR(基本情報!$D$12)),"",MAX(0,C67-YEAR(基本情報!$D$12)-IF(OR(MONTH(基本情報!$D$12)>1,DAY(基本情報!$D$12)>1),1,0))) ->  | K67: 長寿期
B68: 65 | C68: =基本情報!$C$3+B68-1 -> 2086 | D68: =IF(基本情報!$D$6="","",C68-YEAR(基本情報!$D$6)-IF(OR(MONTH(基本情報!$D$6)>1,DAY(基本情報!$D$6)>1),1,0)) -> 99 | E68: =IF(基本情報!$D$7="","",C68-YEAR(基本情報!$D$7)-IF(OR(MONTH(基本情報!$D$7)>1,DAY(基本情報!$D$7)>1),1,0)) -> 98 | F68: =IF(OR(基本情報!$D$8="",C68<=YEAR(基本情報!$D$8)),"",MAX(0,C68-YEAR(基本情報!$D$8)-IF(OR(MONTH(基本情報!$D$8)>1,DAY(基本情報!$D$8)>1),1,0))) -> 67 | G68: =IF(OR(基本情報!$D$9="",C68<=YEAR(基本情報!$D$9)),"",MAX(0,C68-YEAR(基本情報!$D$9)-IF(OR(MONTH(基本情報!$D$9)>1,DAY(基本情報!$D$9)>1),1,0))) -> 65 | H68: =IF(OR(基本情報!$D$10="",C68<=YEAR(基本情報!$D$10)),"",MAX(0,C68-YEAR(基本情報!$D$10)-IF(OR(MONTH(基本情報!$D$10)>1,DAY(基本情報!$D$10)>1),1,0))) -> 58 | I68: =IF(OR(基本情報!$D$11="",C68<=YEAR(基本情報!$D$11)),"",MAX(0,C68-YEAR(基本情報!$D$11)-IF(OR(MONTH(基本情報!$D$11)>1,DAY(基本情報!$D$11)>1),1,0))) ->  | J68: =IF(OR(基本情報!$D$12="",C68<=YEAR(基本情報!$D$12)),"",MAX(0,C68-YEAR(基本情報!$D$12)-IF(OR(MONTH(基本情報!$D$12)>1,DAY(基本情報!$D$12)>1),1,0))) ->  | K68: 長寿期
B69: 66 | C69: =基本情報!$C$3+B69-1 -> 2087 | D69: =IF(基本情報!$D$6="","",C69-YEAR(基本情報!$D$6)-IF(OR(MONTH(基本情報!$D$6)>1,DAY(基本情報!$D$6)>1),1,0)) -> 100 | E69: =IF(基本情報!$D$7="","",C69-YEAR(基本情報!$D$7)-IF(OR(MONTH(基本情報!$D$7)>1,DAY(基本情報!$D$7)>1),1,0)) -> 99 | F69: =IF(OR(基本情報!$D$8="",C69<=YEAR(基本情報!$D$8)),"",MAX(0,C69-YEAR(基本情報!$D$8)-IF(OR(MONTH(基本情報!$D$8)>1,DAY(基本情報!$D$8)>1),1,0))) -> 68 | G69: =IF(OR(基本情報!$D$9="",C69<=YEAR(基本情報!$D$9)),"",MAX(0,C69-YEAR(基本情報!$D$9)-IF(OR(MONTH(基本情報!$D$9)>1,DAY(基本情報!$D$9)>1),1,0))) -> 66 | H69: =IF(OR(基本情報!$D$10="",C69<=YEAR(基本情報!$D$10)),"",MAX(0,C69-YEAR(基本情報!$D$10)-IF(OR(MONTH(基本情報!$D$10)>1,DAY(基本情報!$D$10)>1),1,0))) -> 59 | I69: =IF(OR(基本情報!$D$11="",C69<=YEAR(基本情報!$D$11)),"",MAX(0,C69-YEAR(基本情報!$D$11)-IF(OR(MONTH(基本情報!$D$11)>1,DAY(基本情報!$D$11)>1),1,0))) ->  | J69: =IF(OR(基本情報!$D$12="",C69<=YEAR(基本情報!$D$12)),"",MAX(0,C69-YEAR(基本情報!$D$12)-IF(OR(MONTH(基本情報!$D$12)>1,DAY(基本情報!$D$12)>1),1,0))) ->  | K69: 長寿期 | L69: 100歳到達

Sheet キャッシュフロー表
B1: ⑧ キャッシュフロー表（100歳までの年次収支・貯蓄残高）
B2: ※ 入力シートを更新すると自動再計算されます。単位：万円 ※ 配偶者欄は配偶者がいる場合のみ参照。
B3: 年 | D3: 家族年齢 | Y3: 収支・残高
B4: 年次 | C4: 西暦 | D4: 本人 | E4: 配偶者 | F4: 子1 | G4: 子2 | H4: 子3 | I4: 子4 | J4: 子5 | K4: 本人 給与 | L4: 配偶者 給与 | M4: 退職金 | N4: 年金 | O4: 一時収入等 | P4: 収入合計 | Q4: 基本生活費 | R4: 住居費 | S4: 住宅ローン | T4: 教育費 | U4: 保険料 | V4: 車両関連 | W4: スポット | X4: 支出合計 | Y4: 年間収支 | Z4: 貯蓄残高
B5: 1 | C5: =基本情報!$C$3+B5-1 -> 2022 | D5: =IF(基本情報!$D$6="","",C5-YEAR(基本情報!$D$6)-IF(OR(MONTH(基本情報!$D$6)>1,DAY(基本情報!$D$6)>1),1,0)) -> 35 | E5: =IF(基本情報!$D$7="","",C5-YEAR(基本情報!$D$7)-IF(OR(MONTH(基本情報!$D$7)>1,DAY(基本情報!$D$7)>1),1,0)) -> 34 | F5: =IF(OR(基本情報!$D$8="",C5<=YEAR(基本情報!$D$8)),"",MAX(0,C5-YEAR(基本情報!$D$8)-IF(OR(MONTH(基本情報!$D$8)>1,DAY(基本情報!$D$8)>1),1,0))) -> 3 | G5: =IF(OR(基本情報!$D$9="",C5<=YEAR(基本情報!$D$9)),"",MAX(0,C5-YEAR(基本情報!$D$9)-IF(OR(MONTH(基本情報!$D$9)>1,DAY(基本情報!$D$9)>1),1,0))) -> 1 | H5: =IF(OR(基本情報!$D$10="",C5<=YEAR(基本情報!$D$10)),"",MAX(0,C5-YEAR(基本情報!$D$10)-IF(OR(MONTH(基本情報!$D$10)>1,DAY(基本情報!$D$10)>1),1,0))) ->  | I5: =IF(OR(基本情報!$D$11="",C5<=YEAR(基本情報!$D$11)),"",MAX(0,C5-YEAR(基本情報!$D$11)-IF(OR(MONTH(基本情報!$D$11)>1,DAY(基本情報!$D$11)>1),1,0))) ->  | J5: =IF(OR(基本情報!$D$12="",C5<=YEAR(基本情報!$D$12)),"",MAX(0,C5-YEAR(基本情報!$D$12)-IF(OR(MONTH(基本情報!$D$12)>1,DAY(基本情報!$D$12)>1),1,0))) ->  | K5: =IF(D5="","",IF(D5<基本情報!$C$15,MAX(0,収入計画!$D$5*(1+収入計画!$E$5)^(B5-1)),IF(AND(D5>=基本情報!$C$15,D5<基本情報!$C$20),MAX(0,基本情報!$C$19*(収入計画!$D$5/収入計画!$C$5)*(1+収入計画!$F$5)^(D5-基本情報!$C$15)),0))) -> 480 | L5: =IF(E5="","",IF(E5<基本情報!$D$15,MAX(0,収入計画!$D$6*(1+収入計画!$E$6)^(B5-1))*IF(IFERROR(IF(AND(E5>=収入計画!$C$10-2,E5<収入計画!$C$11),1,0),0)+IFERROR(IF(AND(E5>=収入計画!$C$13-2,E5<収入計画!$C$14),1,0),0)+IFERROR(IF(AND(E5>=収入計画!$C$16-2,E5<収入計画!$C$17),1,0),0)+IFERROR(IF(AND(E5>=収入計画!$C$19-2,E5<収入計画!$C$20),1,0),0)+IFERROR(IF(AND(E5>=収入計画!$C$22-2,E5<収入計画!$C$23),1,0),0)>0,0.5,1),IF(AND(E5>=基本情報!$D$15,E5<基本情報!$D$20),MAX(0,基本情報!$D$19*(収入計画!$D$6/収入計画!$C$6)*(1+収入計画!$F$6)^(E5-基本情報!$D$15)),0))) -> 120 | M5: =IF(OR(D5="",E5=""),"",IF(D5=基本情報!$C$15,基本情報!$C$16,0)+IF(E5=基本情報!$D$15,基本情報!$D$16,0)) -> 0 | N5: =IF(D5="","",IF(OR(D5>=基本情報!$C$17,E5>=基本情報!$D$17),MAX(0,IF(D5>=基本情報!$C$17,基本情報!$C$18*12,0)+IF(AND(E5<>"",E5>=基本情報!$D$17),基本情報!$D$18*12,0)),"")) ->  | O5: =SUMPRODUCT((収入計画!$D$27:$D$42<=C5)*(収入計画!$E$27:$E$42>=C5)*収入計画!$C$27:$C$42) -> 1036 | P5: =SUM(K5:O5) -> 1636 | Q5: =IF(D5<基本情報!$C$15,支出計画!$C$5*(1+支出計画!$D$5)^(B5-1),支出計画!$C$46)-IF(MIN(F5:J5)>=22,支出計画!$C$49,0) -> 310 | R5: =IF(C5<住宅ローン償還表!$C$9,支出計画!$C$7,0)+IF(AND(C5>=支出計画!$E$8,C5<=支出計画!$F$8),支出計画!$C$8,0)+IF(AND(D5<>"",D5>=基本情報!$C$15),支出計画!$C$47,0) -> 20 | S5: =IFERROR(VLOOKUP(C5,住宅ローン償還表!$C$17:$H$51,6,FALSE()),0) -> 181.7052 | T5: =(IF(ライフイベント表!F4="",0,IF(AND(ライフイベント表!F4>=0,ライフイベント表!F4<=5),支出計画!$D$24,IF(AND(ライフイベント表!F4>=6,ライフイベント表!F4<=11),支出計画!$D$25,IF(AND(ライフイベント表!F4>=12,ライフイベント表!F4<=14),支出計画!$D$26,IF(AND(ライフイベント表!F4>=15,ライフイベント表!F4<=17),支出計画!$D$27,IF(ライフイベント表!F4=18,支出計画!$D$28,IF(AND(ライフイベント表!F4>=19,ライフイベント表!F4<=21),支出計画!$D$29,0)))))))+IF(ライフイベント表!G4="",0,IF(AND(ライフイベント表!G4>=0,ライフイベント表!G4<=5),支出計画!$D$24,IF(AND(ライフイベント表!G4>=6,ライフイベント表!G4<=11),支出計画!$D$25,IF(AND(ライフイベント表!G4>=12,ライフイベント表!G4<=14),支出計画!$D$26,IF(AND(ライフイベント表!G4>=15,ライフイベント表!G4<=17),支出計画!$D$27,IF(ライフイベント表!G4=18,支出計画!$D$28,IF(AND(ライフイベント表!G4>=19,ライフイベント表!G4<=21),支出計画!$D$29,0)))))))+IF(ライフイベント表!H4="",0,IF(AND(ライフイベント表!H4>=0,ライフイベント表!H4<=5),支出計画!$D$24,IF(AND(ライフイベント表!H4>=6,ライフイベント表!H4<=11),支出計画!$D$25,IF(AND(ライフイベント表!H4>=12,ライフイベント表!H4<=14),支出計画!$D$26,IF(AND(ライフイベント表!H4>=15,ライフイベント表!H4<=17),支出計画!$D$27,IF(ライフイベント表!H4=18,支出計画!$D$28,IF(AND(ライフイベント表!H4>=19,ライフイベント表!H4<=21),支出計画!$D$29,0)))))))+IF(ライフイベント表!I4="",0,IF(AND(ライフイベント表!I4>=0,ライフイベント表!I4<=5),支出計画!$D$24,IF(AND(ライフイベント表!I4>=6,ライフイベント表!I4<=11),支出計画!$D$25,IF(AND(ライフイベント表!I4>=12,ライフイベント表!I4<=14),支出計画!$D$26,IF(AND(ライフイベント表!I4>=15,ライフイベント表!I4<=17),支出計画!$D$27,IF(ライフイベント表!I4=18,支出計画!$D$28,IF(AND(ライフイベント表!I4>=19,ライフイベント表!I4<=21),支出計画!$D$29,0)))))))+IF(ライフイベント表!J4="",0,IF(AND(ライフイベント表!J4>=0,ライフイベント表!J4<=5),支出計画!$D$24,IF(AND(ライフイベント表!J4>=6,ライフイベント表!J4<=11),支出計画!$D$25,IF(AND(ライフイベント表!J4>=12,ライフイベント表!J4<=14),支出計画!$D$26,IF(AND(ライフイベント表!J4>=15,ライフイベント表!J4<=17),支出計画!$D$27,IF(ライフイベント表!J4=18,支出計画!$D$28,IF(AND(ライフイベント表!J4>=19,ライフイベント表!J4<=21),支出計画!$D$29,0))))))))*POWER(1.02,B5-1) -> 68 | U5: =SUMPRODUCT((保険!$G$5:$G$15<=C5)*(保険!$H$5:$H$15>=C5)*保険!$F$5:$F$15)+IF(AND(D5<>"",D5>=基本情報!$C$15),支出計画!$C$48,0) -> 53.08 | V5: =支出計画!$C$9 -> 36 | W5: =IF(AND(C5>=支出計画!$D$35,C5<=支出計画!$F$35,MOD(C5-支出計画!$D$35,支出計画!$E$35)=0),支出計画!$C$35,0)+IF(AND(C5>=支出計画!$D$36,C5<=支出計画!$F$36,MOD(C5-支出計画!$D$36,支出計画!$E$36)=0),支出計画!$C$36,0)+IF(C5=支出計画!$D$37,支出計画!$C$37,0)+IF(C5=支出計画!$D$38,支出計画!$C$38,0)+IF(C5=支出計画!$D$39,支出計画!$C$39,0)+IF(C5=支出計画!$D$40,支出計画!$C$40,0)+IF(C5=支出計画!$D$41,支出計画!$C$41,0)+IF(C5>=支出計画!$E$17,支出計画!$C$17,0)+IF(C5>=支出計画!$E$18,支出計画!$C$18,0) -> 32 | X5: =SUM(Q5:W5) -> 700.7852 | Y5: =P5-X5 -> 935.2148 | Z5: =IF(B5=1,金融資産!$C$18*(1+金融資産!$C$21)+Y5,Z4*(1+金融資産!$C$21)+Y5) -> 1578.4148
B6: 2 | C6: =基本情報!$C$3+B6-1 -> 2023 | D6: =IF(基本情報!$D$6="","",C6-YEAR(基本情報!$D$6)-IF(OR(MONTH(基本情報!$D$6)>1,DAY(基本情報!$D$6)>1),1,0)) -> 36 | E6: =IF(基本情報!$D$7="","",C6-YEAR(基本情報!$D$7)-IF(OR(MONTH(基本情報!$D$7)>1,DAY(基本情報!$D$7)>1),1,0)) -> 35 | F6: =IF(OR(基本情報!$D$8="",C6<=YEAR(基本情報!$D$8)),"",MAX(0,C6-YEAR(基本情報!$D$8)-IF(OR(MONTH(基本情報!$D$8)>1,DAY(基本情報!$D$8)>1),1,0))) -> 4 | G6: =IF(OR(基本情報!$D$9="",C6<=YEAR(基本情報!$D$9)),"",MAX(0,C6-YEAR(基本情報!$D$9)-IF(OR(MONTH(基本情報!$D$9)>1,DAY(基本情報!$D$9)>1),1,0))) -> 2 | H6: =IF(OR(基本情報!$D$10="",C6<=YEAR(基本情報!$D$10)),"",MAX(0,C6-YEAR(基本情報!$D$10)-IF(OR(MONTH(基本情報!$D$10)>1,DAY(基本情報!$D$10)>1),1,0))) ->  | I6: =IF(OR(基本情報!$D$11="",C6<=YEAR(基本情報!$D$11)),"",MAX(0,C6-YEAR(基本情報!$D$11)-IF(OR(MONTH(基本情報!$D$11)>1,DAY(基本情報!$D$11)>1),1,0))) ->  | J6: =IF(OR(基本情報!$D$12="",C6<=YEAR(基本情報!$D$12)),"",MAX(0,C6-YEAR(基本情報!$D$12)-IF(OR(MONTH(基本情報!$D$12)>1,DAY(基本情報!$D$12)>1),1,0))) ->  | K6: =IF(D6="","",IF(D6<基本情報!$C$15,MAX(0,収入計画!$D$5*(1+収入計画!$E$5)^(B6-1)),IF(AND(D6>=基本情報!$C$15,D6<基本情報!$C$20),MAX(0,基本情報!$C$19*(収入計画!$D$5/収入計画!$C$5)*(1+収入計画!$F$5)^(D6-基本情報!$C$15)),0))) -> 484.8 | L6: =IF(E6="","",IF(E6<基本情報!$D$15,MAX(0,収入計画!$D$6*(1+収入計画!$E$6)^(B6-1))*IF(IFERROR(IF(AND(E6>=収入計画!$C$10-2,E6<収入計画!$C$11),1,0),0)+IFERROR(IF(AND(E6>=収入計画!$C$13-2,E6<収入計画!$C$14),1,0),0)+IFERROR(IF(AND(E6>=収入計画!$C$16-2,E6<収入計画!$C$17),1,0),0)+IFERROR(IF(AND(E6>=収入計画!$C$19-2,E6<収入計画!$C$20),1,0),0)+IFERROR(IF(AND(E6>=収入計画!$C$22-2,E6<収入計画!$C$23),1,0),0)>0,0.5,1),IF(AND(E6>=基本情報!$D$15,E6<基本情報!$D$20),MAX(0,基本情報!$D$19*(収入計画!$D$6/収入計画!$C$6)*(1+収入計画!$F$6)^(E6-基本情報!$D$15)),0))) -> 121.2 | M6: =IF(OR(D6="",E6=""),"",IF(D6=基本情報!$C$15,基本情報!$C$16,0)+IF(E6=基本情報!$D$15,基本情報!$D$16,0)) -> 0 | N6: =IF(D6="","",IF(OR(D6>=基本情報!$C$17,E6>=基本情報!$D$17),MAX(0,IF(D6>=基本情報!$C$17,基本情報!$C$18*12,0)+IF(AND(E6<>"",E6>=基本情報!$D$17),基本情報!$D$18*12,0)),"")) ->  | O6: =SUMPRODUCT((収入計画!$D$27:$D$42<=C6)*(収入計画!$E$27:$E$42>=C6)*収入計画!$C$27:$C$42) -> 36 | P6: 642 | Q6: =IF(D6<基本情報!$C$15,支出計画!$C$5*(1+支出計画!$D$5)^(B6-1),支出計画!$C$46)-IF(MIN(F6:J6)>=22,支出計画!$C$49,0) -> 313.1 | R6: =IF(C6<住宅ローン償還表!$C$9,支出計画!$C$7,0)+IF(AND(C6>=支出計画!$E$8,C6<=支出計画!$F$8),支出計画!$C$8,0)+IF(AND(D6<>"",D6>=基本情報!$C$15),支出計画!$C$47,0) -> 20 | S6: =IFERROR(VLOOKUP(C6,住宅ローン償還表!$C$17:$H$51,6,FALSE()),0) -> 181.7052 | T6: =(IF(ライフイベント表!F5="",0,IF(AND(ライフイベント表!F5>=0,ライフイベント表!F5<=5),支出計画!$D$24,IF(AND(ライフイベント表!F5>=6,ライフイベント表!F5<=11),支出計画!$D$25,IF(AND(ライフイベント表!F5>=12,ライフイベント表!F5<=14),支出計画!$D$26,IF(AND(ライフイベント表!F5>=15,ライフイベント表!F5<=17),支出計画!$D$27,IF(ライフイベント表!F5=18,支出計画!$D$28,IF(AND(ライフイベント表!F5>=19,ライフイベント表!F5<=21),支出計画!$D$29,0)))))))+IF(ライフイベント表!G5="",0,IF(AND(ライフイベント表!G5>=0,ライフイベント表!G5<=5),支出計画!$D$24,IF(AND(ライフイベント表!G5>=6,ライフイベント表!G5<=11),支出計画!$D$25,IF(AND(ライフイベント表!G5>=12,ライフイベント表!G5<=14),支出計画!$D$26,IF(AND(ライフイベント表!G5>=15,ライフイベント表!G5<=17),支出計画!$D$27,IF(ライフイベント表!G5=18,支出計画!$D$28,IF(AND(ライフイベント表!G5>=19,ライフイベント表!G5<=21),支出計画!$D$29,0)))))))+IF(ライフイベント表!H5="",0,IF(AND(ライフイベント表!H5>=0,ライフイベント表!H5<=5),支出計画!$D$24,IF(AND(ライフイベント表!H5>=6,ライフイベント表!H5<=11),支出計画!$D$25,IF(AND(ライフイベント表!H5>=12,ライフイベント表!H5<=14),支出計画!$D$26,IF(AND(ライフイベント表!H5>=15,ライフイベント表!H5<=17),支出計画!$D$27,IF(ライフイベント表!H5=18,支出計画!$D$28,IF(AND(ライフイベント表!H5>=19,ライフイベント表!H5<=21),支出計画!$D$29,0)))))))+IF(ライフイベント表!I5="",0,IF(AND(ライフイベント表!I5>=0,ライフイベント表!I5<=5),支出計画!$D$24,IF(AND(ライフイベント表!I5>=6,ライフイベント表!I5<=11),支出計画!$D$25,IF(AND(ライフイベント表!I5>=12,ライフイベント表!I5<=14),支出計画!$D$26,IF(AND(ライフイベント表!I5>=15,ライフイベント表!I5<=17),支出計画!$D$27,IF(ライフイベント表!I5=18,支出計画!$D$28,IF(AND(ライフイベント表!I5>=19,ライフイベント表!I5<=21),支出計画!$D$29,0)))))))+IF(ライフイベント表!J5="",0,IF(AND(ライフイベント表!J5>=0,ライフイベント表!J5<=5),支出計画!$D$24,IF(AND(ライフイベント表!J5>=6,ライフイベント表!J5<=11),支出計画!$D$25,IF(AND(ライフイベント表!J5>=12,ライフイベント表!J5<=14),支出計画!$D$26,IF(AND(ライフイベント表!J5>=15,ライフイベント表!J5<=17),支出計画!$D$27,IF(ライフイベント表!J5=18,支出計画!$D$28,IF(AND(ライフイベント表!J5>=19,ライフイベント表!J5<=21),支出計画!$D$29,0))))))))*POWER(1.02,B6-1) -> 69.36 | U6: =SUMPRODUCT((保険!$G$5:$G$15<=C6)*(保険!$H$5:$H$15>=C6)*保険!$F$5:$F$15)+IF(AND(D6<>"",D6>=基本情報!$C$15),支出計画!$C$48,0) -> 53.08 | V6: =支出計画!$C$9 -> 36 | W6: =IF(AND(C6>=支出計画!$D$35,C6<=支出計画!$F$35,MOD(C6-支出計画!$D$35,支出計画!$E$35)=0),支出計画!$C$35,0)+IF(AND(C6>=支出計画!$D$36,C6<=支出計画!$F$36,MOD(C6-支出計画!$D$36,支出計画!$E$36)=0),支出計画!$C$36,0)+IF(C6=支出計画!$D$37,支出計画!$C$37,0)+IF(C6=支出計画!$D$38,支出計画!$C$38,0)+IF(C6=支出計画!$D$39,支出計画!$C$39,0)+IF(C6=支出計画!$D$40,支出計画!$C$40,0)+IF(C6=支出計画!$D$41,支出計画!$C$41,0)+IF(C6>=支出計画!$E$17,支出計画!$C$17,0)+IF(C6>=支出計画!$E$18,支出計画!$C$18,0) -> 32 | X6: 705.2452 | Y6: -63.2452 | Z6: =Z5*(1+金融資産!$C$21)+Y6 -> 1523.061674
B7: 3 | C7: =基本情報!$C$3+B7-1 -> 2024 | D7: =IF(基本情報!$D$6="","",C7-YEAR(基本情報!$D$6)-IF(OR(MONTH(基本情報!$D$6)>1,DAY(基本情報!$D$6)>1),1,0)) -> 37 | E7: =IF(基本情報!$D$7="","",C7-YEAR(基本情報!$D$7)-IF(OR(MONTH(基本情報!$D$7)>1,DAY(基本情報!$D$7)>1),1,0)) -> 36 | F7: =IF(OR(基本情報!$D$8="",C7<=YEAR(基本情報!$D$8)),"",MAX(0,C7-YEAR(基本情報!$D$8)-IF(OR(MONTH(基本情報!$D$8)>1,DAY(基本情報!$D$8)>1),1,0))) -> 5 | G7: =IF(OR(基本情報!$D$9="",C7<=YEAR(基本情報!$D$9)),"",MAX(0,C7-YEAR(基本情報!$D$9)-IF(OR(MONTH(基本情報!$D$9)>1,DAY(基本情報!$D$9)>1),1,0))) -> 3 | H7: =IF(OR(基本情報!$D$10="",C7<=YEAR(基本情報!$D$10)),"",MAX(0,C7-YEAR(基本情報!$D$10)-IF(OR(MONTH(基本情報!$D$10)>1,DAY(基本情報!$D$10)>1),1,0))) ->  | I7: =IF(OR(基本情報!$D$11="",C7<=YEAR(基本情報!$D$11)),"",MAX(0,C7-YEAR(基本情報!$D$11)-IF(OR(MONTH(基本情報!$D$11)>1,DAY(基本情報!$D$11)>1),1,0))) ->  | J7: =IF(OR(基本情報!$D$12="",C7<=YEAR(基本情報!$D$12)),"",MAX(0,C7-YEAR(基本情報!$D$12)-IF(OR(MONTH(基本情報!$D$12)>1,DAY(基本情報!$D$12)>1),1,0))) ->  | K7: =IF(D7="","",IF(D7<基本情報!$C$15,MAX(0,収入計画!$D$5*(1+収入計画!$E$5)^(B7-1)),IF(AND(D7>=基本情報!$C$15,D7<基本情報!$C$20),MAX(0,基本情報!$C$19*(収入計画!$D$5/収入計画!$C$5)*(1+収入計画!$F$5)^(D7-基本情報!$C$15)),0))) -> 489.648 | L7: =IF(E7="","",IF(E7<基本情報!$D$15,MAX(0,収入計画!$D$6*(1+収入計画!$E$6)^(B7-1))*IF(IFERROR(IF(AND(E7>=収入計画!$C$10-2,E7<収入計画!$C$11),1,0),0)+IFERROR(IF(AND(E7>=収入計画!$C$13-2,E7<収入計画!$C$14),1,0),0)+IFERROR(IF(AND(E7>=収入計画!$C$16-2,E7<収入計画!$C$17),1,0),0)+IFERROR(IF(AND(E7>=収入計画!$C$19-2,E7<収入計画!$C$20),1,0),0)+IFERROR(IF(AND(E7>=収入計画!$C$22-2,E7<収入計画!$C$23),1,0),0)>0,0.5,1),IF(AND(E7>=基本情報!$D$15,E7<基本情報!$D$20),MAX(0,基本情報!$D$19*(収入計画!$D$6/収入計画!$C$6)*(1+収入計画!$F$6)^(E7-基本情報!$D$15)),0))) -> 122.412 | M7: =IF(OR(D7="",E7=""),"",IF(D7=基本情報!$C$15,基本情報!$C$16,0)+IF(E7=基本情報!$D$15,基本情報!$D$16,0)) -> 0 | N7: =IF(D7="","",IF(OR(D7>=基本情報!$C$17,E7>=基本情報!$D$17),MAX(0,IF(D7>=基本情報!$C$17,基本情報!$C$18*12,0)+IF(AND(E7<>"",E7>=基本情報!$D$17),基本情報!$D$18*12,0)),"")) ->  | O7: =SUMPRODUCT((収入計画!$D$27:$D$42<=C7)*(収入計画!$E$27:$E$42>=C7)*収入計画!$C$27:$C$42) -> 36 | P7: 648.06 | Q7: =IF(D7<基本情報!$C$15,支出計画!$C$5*(1+支出計画!$D$5)^(B7-1),支出計画!$C$46)-IF(MIN(F7:J7)>=22,支出計画!$C$49,0) -> 316.231 | R7: =IF(C7<住宅ローン償還表!$C$9,支出計画!$C$7,0)+IF(AND(C7>=支出計画!$E$8,C7<=支出計画!$F$8),支出計画!$C$8,0)+IF(AND(D7<>"",D7>=基本情報!$C$15),支出計画!$C$47,0) -> 20 | S7: =IFERROR(VLOOKUP(C7,住宅ローン償還表!$C$17:$H$51,6,FALSE()),0) -> 181.7052 | T7: =(IF(ライフイベント表!F6="",0,IF(AND(ライフイベント表!F6>=0,ライフイベント表!F6<=5),支出計画!$D$24,IF(AND(ライフイベント表!F6>=6,ライフイベント表!F6<=11),支出計画!$D$25,IF(AND(ライフイベント表!F6>=12,ライフイベント表!F6<=14),支出計画!$D$26,IF(AND(ライフイベント表!F6>=15,ライフイベント表!F6<=17),支出計画!$D$27,IF(ライフイベント表!F6=18,支出計画!$D$28,IF(AND(ライフイベント表!F6>=19,ライフイベント表!F6<=21),支出計画!$D$29,0)))))))+IF(ライフイベント表!G6="",0,IF(AND(ライフイベント表!G6>=0,ライフイベント表!G6<=5),支出計画!$D$24,IF(AND(ライフイベント表!G6>=6,ライフイベント表!G6<=11),支出計画!$D$25,IF(AND(ライフイベント表!G6>=12,ライフイベント表!G6<=14),支出計画!$D$26,IF(AND(ライフイベント表!G6>=15,ライフイベント表!G6<=17),支出計画!$D$27,IF(ライフイベント表!G6=18,支出計画!$D$28,IF(AND(ライフイベント表!G6>=19,ライフイベント表!G6<=21),支出計画!$D$29,0)))))))+IF(ライフイベント表!H6="",0,IF(AND(ライフイベント表!H6>=0,ライフイベント表!H6<=5),支出計画!$D$24,IF(AND(ライフイベント表!H6>=6,ライフイベント表!H6<=11),支出計画!$D$25,IF(AND(ライフイベント表!H6>=12,ライフイベント表!H6<=14),支出計画!$D$26,IF(AND(ライフイベント表!H6>=15,ライフイベント表!H6<=17),支出計画!$D$27,IF(ライフイベント表!H6=18,支出計画!$D$28,IF(AND(ライフイベント表!H6>=19,ライフイベント表!H6<=21),支出計画!$D$29,0)))))))+IF(ライフイベント表!I6="",0,IF(AND(ライフイベント表!I6>=0,ライフイベント表!I6<=5),支出計画!$D$24,IF(AND(ライフイベント表!I6>=6,ライフイベント表!I6<=11),支出計画!$D$25,IF(AND(ライフイベント表!I6>=12,ライフイベント表!I6<=14),支出計画!$D$26,IF(AND(ライフイベント表!I6>=15,ライフイベント表!I6<=17),支出計画!$D$27,IF(ライフイベント表!I6=18,支出計画!$D$28,IF(AND(ライフイベント表!I6>=19,ライフイベント表!I6<=21),支出計画!$D$29,0)))))))+IF(ライフイベント表!J6="",0,IF(AND(ライフイベント表!J6>=0,ライフイベント表!J6<=5),支出計画!$D$24,IF(AND(ライフイベント表!J6>=6,ライフイベント表!J6<=11),支出計画!$D$25,IF(AND(ライフイベント表!J6>=12,ライフイベント表!J6<=14),支出計画!$D$26,IF(AND(ライフイベント表!J6>=15,ライフイベント表!J6<=17),支出計画!$D$27,IF(ライフイベント表!J6=18,支出計画!$D$28,IF(AND(ライフイベント表!J6>=19,ライフイベント表!J6<=21),支出計画!$D$29,0))))))))*POWER(1.02,B7-1) -> 70.7472 | U7: =SUMPRODUCT((保険!$G$5:$G$15<=C7)*(保険!$H$5:$H$15>=C7)*保険!$F$5:$F$15)+IF(AND(D7<>"",D7>=基本情報!$C$15),支出計画!$C$48,0) -> 53.08 | V7: =支出計画!$C$9 -> 36 | W7: =IF(AND(C7>=支出計画!$D$35,C7<=支出計画!$F$35,MOD(C7-支出計画!$D$35,支出計画!$E$35)=0),支出計画!$C$35,0)+IF(AND(C7>=支出計画!$D$36,C7<=支出計画!$F$36,MOD(C7-支出計画!$D$36,支出計画!$E$36)=0),支出計画!$C$36,0)+IF(C7=支出計画!$D$37,支出計画!$C$37,0)+IF(C7=支出計画!$D$38,支出計画!$C$38,0)+IF(C7=支出計画!$D$39,支出計画!$C$39,0)+IF(C7=支出計画!$D$40,支出計画!$C$40,0)+IF(C7=支出計画!$D$41,支出計画!$C$41,0)+IF(C7>=支出計画!$E$17,支出計画!$C$17,0)+IF(C7>=支出計画!$E$18,支出計画!$C$18,0) -> 242 | X7: 919.7634 | Y7: -271.7034 | Z7: =Z6*(1+金融資産!$C$21)+Y7 -> 1258.973582
B8: 4 | C8: =基本情報!$C$3+B8-1 -> 2025 | D8: =IF(基本情報!$D$6="","",C8-YEAR(基本情報!$D$6)-IF(OR(MONTH(基本情報!$D$6)>1,DAY(基本情報!$D$6)>1),1,0)) -> 38 | E8: =IF(基本情報!$D$7="","",C8-YEAR(基本情報!$D$7)-IF(OR(MONTH(基本情報!$D$7)>1,DAY(基本情報!$D$7)>1),1,0)) -> 37 | F8: =IF(OR(基本情報!$D$8="",C8<=YEAR(基本情報!$D$8)),"",MAX(0,C8-YEAR(基本情報!$D$8)-IF(OR(MONTH(基本情報!$D$8)>1,DAY(基本情報!$D$8)>1),1,0))) -> 6 | G8: =IF(OR(基本情報!$D$9="",C8<=YEAR(基本情報!$D$9)),"",MAX(0,C8-YEAR(基本情報!$D$9)-IF(OR(MONTH(基本情報!$D$9)>1,DAY(基本情報!$D$9)>1),1,0))) -> 4 | H8: =IF(OR(基本情報!$D$10="",C8<=YEAR(基本情報!$D$10)),"",MAX(0,C8-YEAR(基本情報!$D$10)-IF(OR(MONTH(基本情報!$D$10)>1,DAY(基本情報!$D$10)>1),1,0))) ->  | I8: =IF(OR(基本情報!$D$11="",C8<=YEAR(基本情報!$D$11)),"",MAX(0,C8-YEAR(基本情報!$D$11)-IF(OR(MONTH(基本情報!$D$11)>1,DAY(基本情報!$D$11)>1),1,0))) ->  | J8: =IF(OR(基本情報!$D$12="",C8<=YEAR(基本情報!$D$12)),"",MAX(0,C8-YEAR(基本情報!$D$12)-IF(OR(MONTH(基本情報!$D$12)>1,DAY(基本情報!$D$12)>1),1,0))) ->  | K8: =IF(D8="","",IF(D8<基本情報!$C$15,MAX(0,収入計画!$D$5*(1+収入計画!$E$5)^(B8-1)),IF(AND(D8>=基本情報!$C$15,D8<基本情報!$C$20),MAX(0,基本情報!$C$19*(収入計画!$D$5/収入計画!$C$5)*(1+収入計画!$F$5)^(D8-基本情報!$C$15)),0))) -> 494.54448 | L8: =IF(E8="","",IF(E8<基本情報!$D$15,MAX(0,収入計画!$D$6*(1+収入計画!$E$6)^(B8-1))*IF(IFERROR(IF(AND(E8>=収入計画!$C$10-2,E8<収入計画!$C$11),1,0),0)+IFERROR(IF(AND(E8>=収入計画!$C$13-2,E8<収入計画!$C$14),1,0),0)+IFERROR(IF(AND(E8>=収入計画!$C$16-2,E8<収入計画!$C$17),1,0),0)+IFERROR(IF(AND(E8>=収入計画!$C$19-2,E8<収入計画!$C$20),1,0),0)+IFERROR(IF(AND(E8>=収入計画!$C$22-2,E8<収入計画!$C$23),1,0),0)>0,0.5,1),IF(AND(E8>=基本情報!$D$15,E8<基本情報!$D$20),MAX(0,基本情報!$D$19*(収入計画!$D$6/収入計画!$C$6)*(1+収入計画!$F$6)^(E8-基本情報!$D$15)),0))) -> 247.27224 | M8: =IF(OR(D8="",E8=""),"",IF(D8=基本情報!$C$15,基本情報!$C$16,0)+IF(E8=基本情報!$D$15,基本情報!$D$16,0)) -> 0 | N8: =IF(D8="","",IF(OR(D8>=基本情報!$C$17,E8>=基本情報!$D$17),MAX(0,IF(D8>=基本情報!$C$17,基本情報!$C$18*12,0)+IF(AND(E8<>"",E8>=基本情報!$D$17),基本情報!$D$18*12,0)),"")) ->  | O8: =SUMPRODUCT((収入計画!$D$27:$D$42<=C8)*(収入計画!$E$27:$E$42>=C8)*収入計画!$C$27:$C$42) -> 36 | P8: 777.81672 | Q8: =IF(D8<基本情報!$C$15,支出計画!$C$5*(1+支出計画!$D$5)^(B8-1),支出計画!$C$46)-IF(MIN(F8:J8)>=22,支出計画!$C$49,0) -> 319.39331 | R8: =IF(C8<住宅ローン償還表!$C$9,支出計画!$C$7,0)+IF(AND(C8>=支出計画!$E$8,C8<=支出計画!$F$8),支出計画!$C$8,0)+IF(AND(D8<>"",D8>=基本情報!$C$15),支出計画!$C$47,0) -> 20 | S8: =IFERROR(VLOOKUP(C8,住宅ローン償還表!$C$17:$H$51,6,FALSE()),0) -> 181.7052 | T8: =(IF(ライフイベント表!F7="",0,IF(AND(ライフイベント表!F7>=0,ライフイベント表!F7<=5),支出計画!$D$24,IF(AND(ライフイベント表!F7>=6,ライフイベント表!F7<=11),支出計画!$D$25,IF(AND(ライフイベント表!F7>=12,ライフイベント表!F7<=14),支出計画!$D$26,IF(AND(ライフイベント表!F7>=15,ライフイベント表!F7<=17),支出計画!$D$27,IF(ライフイベント表!F7=18,支出計画!$D$28,IF(AND(ライフイベント表!F7>=19,ライフイベント表!F7<=21),支出計画!$D$29,0)))))))+IF(ライフイベント表!G7="",0,IF(AND(ライフイベント表!G7>=0,ライフイベント表!G7<=5),支出計画!$D$24,IF(AND(ライフイベント表!G7>=6,ライフイベント表!G7<=11),支出計画!$D$25,IF(AND(ライフイベント表!G7>=12,ライフイベント表!G7<=14),支出計画!$D$26,IF(AND(ライフイベント表!G7>=15,ライフイベント表!G7<=17),支出計画!$D$27,IF(ライフイベント表!G7=18,支出計画!$D$28,IF(AND(ライフイベント表!G7>=19,ライフイベント表!G7<=21),支出計画!$D$29,0)))))))+IF(ライフイベント表!H7="",0,IF(AND(ライフイベント表!H7>=0,ライフイベント表!H7<=5),支出計画!$D$24,IF(AND(ライフイベント表!H7>=6,ライフイベント表!H7<=11),支出計画!$D$25,IF(AND(ライフイベント表!H7>=12,ライフイベント表!H7<=14),支出計画!$D$26,IF(AND(ライフイベント表!H7>=15,ライフイベント表!H7<=17),支出計画!$D$27,IF(ライフイベント表!H7=18,支出計画!$D$28,IF(AND(ライフイベント表!H7>=19,ライフイベント表!H7<=21),支出計画!$D$29,0)))))))+IF(ライフイベント表!I7="",0,IF(AND(ライフイベント表!I7>=0,ライフイベント表!I7<=5),支出計画!$D$24,IF(AND(ライフイベント表!I7>=6,ライフイベント表!I7<=11),支出計画!$D$25,IF(AND(ライフイベント表!I7>=12,ライフイベント表!I7<=14),支出計画!$D$26,IF(AND(ライフイベント表!I7>=15,ライフイベント表!I7<=17),支出計画!$D$27,IF(ライフイベント表!I7=18,支出計画!$D$28,IF(AND(ライフイベント表!I7>=19,ライフイベント表!I7<=21),支出計画!$D$29,0)))))))+IF(ライフイベント表!J7="",0,IF(AND(ライフイベント表!J7>=0,ライフイベント表!J7<=5),支出計画!$D$24,IF(AND(ライフイベント表!J7>=6,ライフイベント表!J7<=11),支出計画!$D$25,IF(AND(ライフイベント表!J7>=12,ライフイベント表!J7<=14),支出計画!$D$26,IF(AND(ライフイベント表!J7>=15,ライフイベント表!J7<=17),支出計画!$D$27,IF(ライフイベント表!J7=18,支出計画!$D$28,IF(AND(ライフイベント表!J7>=19,ライフイベント表!J7<=21),支出計画!$D$29,0))))))))*POWER(1.02,B8-1) -> 70.039728 | U8: =SUMPRODUCT((保険!$G$5:$G$15<=C8)*(保険!$H$5:$H$15>=C8)*保険!$F$5:$F$15)+IF(AND(D8<>"",D8>=基本情報!$C$15),支出計画!$C$48,0) -> 53.08 | V8: =支出計画!$C$9 -> 36 | W8: =IF(AND(C8>=支出計画!$D$35,C8<=支出計画!$F$35,MOD(C8-支出計画!$D$35,支出計画!$E$35)=0),支出計画!$C$35,0)+IF(AND(C8>=支出計画!$D$36,C8<=支出計画!$F$36,MOD(C8-支出計画!$D$36,支出計画!$E$36)=0),支出計画!$C$36,0)+IF(C8=支出計画!$D$37,支出計画!$C$37,0)+IF(C8=支出計画!$D$38,支出計画!$C$38,0)+IF(C8=支出計画!$D$39,支出計画!$C$39,0)+IF(C8=支出計画!$D$40,支出計画!$C$40,0)+IF(C8=支出計画!$D$41,支出計画!$C$41,0)+IF(C8>=支出計画!$E$17,支出計画!$C$17,0)+IF(C8>=支出計画!$E$18,支出計画!$C$18,0) -> 32 | X8: 712.218238 | Y8: 65.598482 | Z8: =Z7*(1+金融資産!$C$21)+Y8 -> 1330.866932
B9: 5 | C9: =基本情報!$C$3+B9-1 -> 2026 | D9: =IF(基本情報!$D$6="","",C9-YEAR(基本情報!$D$6)-IF(OR(MONTH(基本情報!$D$6)>1,DAY(基本情報!$D$6)>1),1,0)) -> 39 | E9: =IF(基本情報!$D$7="","",C9-YEAR(基本情報!$D$7)-IF(OR(MONTH(基本情報!$D$7)>1,DAY(基本情報!$D$7)>1),1,0)) -> 38 | F9: =IF(OR(基本情報!$D$8="",C9<=YEAR(基本情報!$D$8)),"",MAX(0,C9-YEAR(基本情報!$D$8)-IF(OR(MONTH(基本情報!$D$8)>1,DAY(基本情報!$D$8)>1),1,0))) -> 7 | G9: =IF(OR(基本情報!$D$9="",C9<=YEAR(基本情報!$D$9)),"",MAX(0,C9-YEAR(基本情報!$D$9)-IF(OR(MONTH(基本情報!$D$9)>1,DAY(基本情報!$D$9)>1),1,0))) -> 5 | H9: =IF(OR(基本情報!$D$10="",C9<=YEAR(基本情報!$D$10)),"",MAX(0,C9-YEAR(基本情報!$D$10)-IF(OR(MONTH(基本情報!$D$10)>1,DAY(基本情報!$D$10)>1),1,0))) ->  | I9: =IF(OR(基本情報!$D$11="",C9<=YEAR(基本情報!$D$11)),"",MAX(0,C9-YEAR(基本情報!$D$11)-IF(OR(MONTH(基本情報!$D$11)>1,DAY(基本情報!$D$11)>1),1,0))) ->  | J9: =IF(OR(基本情報!$D$12="",C9<=YEAR(基本情報!$D$12)),"",MAX(0,C9-YEAR(基本情報!$D$12)-IF(OR(MONTH(基本情報!$D$12)>1,DAY(基本情報!$D$12)>1),1,0))) ->  | K9: =IF(D9="","",IF(D9<基本情報!$C$15,MAX(0,収入計画!$D$5*(1+収入計画!$E$5)^(B9-1)),IF(AND(D9>=基本情報!$C$15,D9<基本情報!$C$20),MAX(0,基本情報!$C$19*(収入計画!$D$5/収入計画!$C$5)*(1+収入計画!$F$5)^(D9-基本情報!$C$15)),0))) -> 499.4899248 | L9: =IF(E9="","",IF(E9<基本情報!$D$15,MAX(0,収入計画!$D$6*(1+収入計画!$E$6)^(B9-1))*IF(IFERROR(IF(AND(E9>=収入計画!$C$10-2,E9<収入計画!$C$11),1,0),0)+IFERROR(IF(AND(E9>=収入計画!$C$13-2,E9<収入計画!$C$14),1,0),0)+IFERROR(IF(AND(E9>=収入計画!$C$16-2,E9<収入計画!$C$17),1,0),0)+IFERROR(IF(AND(E9>=収入計画!$C$19-2,E9<収入計画!$C$20),1,0),0)+IFERROR(IF(AND(E9>=収入計画!$C$22-2,E9<収入計画!$C$23),1,0),0)>0,0.5,1),IF(AND(E9>=基本情報!$D$15,E9<基本情報!$D$20),MAX(0,基本情報!$D$19*(収入計画!$D$6/収入計画!$C$6)*(1+収入計画!$F$6)^(E9-基本情報!$D$15)),0))) -> 249.7449624 | M9: =IF(OR(D9="",E9=""),"",IF(D9=基本情報!$C$15,基本情報!$C$16,0)+IF(E9=基本情報!$D$15,基本情報!$D$16,0)) -> 0 | N9: =IF(D9="","",IF(OR(D9>=基本情報!$C$17,E9>=基本情報!$D$17),MAX(0,IF(D9>=基本情報!$C$17,基本情報!$C$18*12,0)+IF(AND(E9<>"",E9>=基本情報!$D$17),基本情報!$D$18*12,0)),"")) ->  | O9: =SUMPRODUCT((収入計画!$D$27:$D$42<=C9)*(収入計画!$E$27:$E$42>=C9)*収入計画!$C$27:$C$42) -> 36 | P9: 785.2348872 | Q9: =IF(D9<基本情報!$C$15,支出計画!$C$5*(1+支出計画!$D$5)^(B9-1),支出計画!$C$46)-IF(MIN(F9:J9)>=22,支出計画!$C$49,0) -> 322.5872431 | R9: =IF(C9<住宅ローン償還表!$C$9,支出計画!$C$7,0)+IF(AND(C9>=支出計画!$E$8,C9<=支出計画!$F$8),支出計画!$C$8,0)+IF(AND(D9<>"",D9>=基本情報!$C$15),支出計画!$C$47,0) -> 20 | S9: =IFERROR(VLOOKUP(C9,住宅ローン償還表!$C$17:$H$51,6,FALSE()),0) -> 181.7052 | T9: =(IF(ライフイベント表!F8="",0,IF(AND(ライフイベント表!F8>=0,ライフイベント表!F8<=5),支出計画!$D$24,IF(AND(ライフイベント表!F8>=6,ライフイベント表!F8<=11),支出計画!$D$25,IF(AND(ライフイベント表!F8>=12,ライフイベント表!F8<=14),支出計画!$D$26,IF(AND(ライフイベント表!F8>=15,ライフイベント表!F8<=17),支出計画!$D$27,IF(ライフイベント表!F8=18,支出計画!$D$28,IF(AND(ライフイベント表!F8>=19,ライフイベント表!F8<=21),支出計画!$D$29,0)))))))+IF(ライフイベント表!G8="",0,IF(AND(ライフイベント表!G8>=0,ライフイベント表!G8<=5),支出計画!$D$24,IF(AND(ライフイベント表!G8>=6,ライフイベント表!G8<=11),支出計画!$D$25,IF(AND(ライフイベント表!G8>=12,ライフイベント表!G8<=14),支出計画!$D$26,IF(AND(ライフイベント表!G8>=15,ライフイベント表!G8<=17),支出計画!$D$27,IF(ライフイベント表!G8=18,支出計画!$D$28,IF(AND(ライフイベント表!G8>=19,ライフイベント表!G8<=21),支出計画!$D$29,0)))))))+IF(ライフイベント表!H8="",0,IF(AND(ライフイベント表!H8>=0,ライフイベント表!H8<=5),支出計画!$D$24,IF(AND(ライフイベント表!H8>=6,ライフイベント表!H8<=11),支出計画!$D$25,IF(AND(ライフイベント表!H8>=12,ライフイベント表!H8<=14),支出計画!$D$26,IF(AND(ライフイベント表!H8>=15,ライフイベント表!H8<=17),支出計画!$D$27,IF(ライフイベント表!H8=18,支出計画!$D$28,IF(AND(ライフイベント表!H8>=19,ライフイベント表!H8<=21),支出計画!$D$29,0)))))))+IF(ライフイベント表!I8="",0,IF(AND(ライフイベント表!I8>=0,ライフイベント表!I8<=5),支出計画!$D$24,IF(AND(ライフイベント表!I8>=6,ライフイベント表!I8<=11),支出計画!$D$25,IF(AND(ライフイベント表!I8>=12,ライフイベント表!I8<=14),支出計画!$D$26,IF(AND(ライフイベント表!I8>=15,ライフイベント表!I8<=17),支出計画!$D$27,IF(ライフイベント表!I8=18,支出計画!$D$28,IF(AND(ライフイベント表!I8>=19,ライフイベント表!I8<=21),支出計画!$D$29,0)))))))+IF(ライフイベント表!J8="",0,IF(AND(ライフイベント表!J8>=0,ライフイベント表!J8<=5),支出計画!$D$24,IF(AND(ライフイベント表!J8>=6,ライフイベント表!J8<=11),支出計画!$D$25,IF(AND(ライフイベント表!J8>=12,ライフイベント表!J8<=14),支出計画!$D$26,IF(AND(ライフイベント表!J8>=15,ライフイベント表!J8<=17),支出計画!$D$27,IF(ライフイベント表!J8=18,支出計画!$D$28,IF(AND(ライフイベント表!J8>=19,ライフイベント表!J8<=21),支出計画!$D$29,0))))))))*POWER(1.02,B9-1) -> 71.44052256 | U9: =SUMPRODUCT((保険!$G$5:$G$15<=C9)*(保険!$H$5:$H$15>=C9)*保険!$F$5:$F$15)+IF(AND(D9<>"",D9>=基本情報!$C$15),支出計画!$C$48,0) -> 53.08 | V9: =支出計画!$C$9 -> 36 | W9: =IF(AND(C9>=支出計画!$D$35,C9<=支出計画!$F$35,MOD(C9-支出計画!$D$35,支出計画!$E$35)=0),支出計画!$C$35,0)+IF(AND(C9>=支出計画!$D$36,C9<=支出計画!$F$36,MOD(C9-支出計画!$D$36,支出計画!$E$36)=0),支出計画!$C$36,0)+IF(C9=支出計画!$D$37,支出計画!$C$37,0)+IF(C9=支出計画!$D$38,支出計画!$C$38,0)+IF(C9=支出計画!$D$39,支出計画!$C$39,0)+IF(C9=支出計画!$D$40,支出計画!$C$40,0)+IF(C9=支出計画!$D$41,支出計画!$C$41,0)+IF(C9>=支出計画!$E$17,支出計画!$C$17,0)+IF(C9>=支出計画!$E$18,支出計画!$C$18,0) -> 32 | X9: 716.8129657 | Y9: 68.42192154 | Z9: =Z8*(1+金融資産!$C$21)+Y9 -> 1405.943188
B10: 6 | C10: =基本情報!$C$3+B10-1 -> 2027 | D10: =IF(基本情報!$D$6="","",C10-YEAR(基本情報!$D$6)-IF(OR(MONTH(基本情報!$D$6)>1,DAY(基本情報!$D$6)>1),1,0)) -> 40 | E10: =IF(基本情報!$D$7="","",C10-YEAR(基本情報!$D$7)-IF(OR(MONTH(基本情報!$D$7)>1,DAY(基本情報!$D$7)>1),1,0)) -> 39 | F10: =IF(OR(基本情報!$D$8="",C10<=YEAR(基本情報!$D$8)),"",MAX(0,C10-YEAR(基本情報!$D$8)-IF(OR(MONTH(基本情報!$D$8)>1,DAY(基本情報!$D$8)>1),1,0))) -> 8 | G10: =IF(OR(基本情報!$D$9="",C10<=YEAR(基本情報!$D$9)),"",MAX(0,C10-YEAR(基本情報!$D$9)-IF(OR(MONTH(基本情報!$D$9)>1,DAY(基本情報!$D$9)>1),1,0))) -> 6 | H10: =IF(OR(基本情報!$D$10="",C10<=YEAR(基本情報!$D$10)),"",MAX(0,C10-YEAR(基本情報!$D$10)-IF(OR(MONTH(基本情報!$D$10)>1,DAY(基本情報!$D$10)>1),1,0))) ->  | I10: =IF(OR(基本情報!$D$11="",C10<=YEAR(基本情報!$D$11)),"",MAX(0,C10-YEAR(基本情報!$D$11)-IF(OR(MONTH(基本情報!$D$11)>1,DAY(基本情報!$D$11)>1),1,0))) ->  | J10: =IF(OR(基本情報!$D$12="",C10<=YEAR(基本情報!$D$12)),"",MAX(0,C10-YEAR(基本情報!$D$12)-IF(OR(MONTH(基本情報!$D$12)>1,DAY(基本情報!$D$12)>1),1,0))) ->  | K10: =IF(D10="","",IF(D10<基本情報!$C$15,MAX(0,収入計画!$D$5*(1+収入計画!$E$5)^(B10-1)),IF(AND(D10>=基本情報!$C$15,D10<基本情報!$C$20),MAX(0,基本情報!$C$19*(収入計画!$D$5/収入計画!$C$5)*(1+収入計画!$F$5)^(D10-基本情報!$C$15)),0))) -> 504.484824 | L10: =IF(E10="","",IF(E10<基本情報!$D$15,MAX(0,収入計画!$D$6*(1+収入計画!$E$6)^(B10-1))*IF(IFERROR(IF(AND(E10>=収入計画!$C$10-2,E10<収入計画!$C$11),1,0),0)+IFERROR(IF(AND(E10>=収入計画!$C$13-2,E10<収入計画!$C$14),1,0),0)+IFERROR(IF(AND(E10>=収入計画!$C$16-2,E10<収入計画!$C$17),1,0),0)+IFERROR(IF(AND(E10>=収入計画!$C$19-2,E10<収入計画!$C$20),1,0),0)+IFERROR(IF(AND(E10>=収入計画!$C$22-2,E10<収入計画!$C$23),1,0),0)>0,0.5,1),IF(AND(E10>=基本情報!$D$15,E10<基本情報!$D$20),MAX(0,基本情報!$D$19*(収入計画!$D$6/収入計画!$C$6)*(1+収入計画!$F$6)^(E10-基本情報!$D$15)),0))) -> 126.121206 | M10: =IF(OR(D10="",E10=""),"",IF(D10=基本情報!$C$15,基本情報!$C$16,0)+IF(E10=基本情報!$D$15,基本情報!$D$16,0)) -> 0 | N10: =IF(D10="","",IF(OR(D10>=基本情報!$C$17,E10>=基本情報!$D$17),MAX(0,IF(D10>=基本情報!$C$17,基本情報!$C$18*12,0)+IF(AND(E10<>"",E10>=基本情報!$D$17),基本情報!$D$18*12,0)),"")) ->  | O10: =SUMPRODUCT((収入計画!$D$27:$D$42<=C10)*(収入計画!$E$27:$E$42>=C10)*収入計画!$C$27:$C$42) -> 122 | P10: 752.6060301 | Q10: =IF(D10<基本情報!$C$15,支出計画!$C$5*(1+支出計画!$D$5)^(B10-1),支出計画!$C$46)-IF(MIN(F10:J10)>=22,支出計画!$C$49,0) -> 325.8131155 | R10: =IF(C10<住宅ローン償還表!$C$9,支出計画!$C$7,0)+IF(AND(C10>=支出計画!$E$8,C10<=支出計画!$F$8),支出計画!$C$8,0)+IF(AND(D10<>"",D10>=基本情報!$C$15),支出計画!$C$47,0) -> 20 | S10: =IFERROR(VLOOKUP(C10,住宅ローン償還表!$C$17:$H$51,6,FALSE()),0) -> 181.7052 | T10: =(IF(ライフイベント表!F9="",0,IF(AND(ライフイベント表!F9>=0,ライフイベント表!F9<=5),支出計画!$D$24,IF(AND(ライフイベント表!F9>=6,ライフイベント表!F9<=11),支出計画!$D$25,IF(AND(ライフイベント表!F9>=12,ライフイベント表!F9<=14),支出計画!$D$26,IF(AND(ライフイベント表!F9>=15,ライフイベント表!F9<=17),支出計画!$D$27,IF(ライフイベント表!F9=18,支出計画!$D$28,IF(AND(ライフイベント表!F9>=19,ライフイベント表!F9<=21),支出計画!$D$29,0)))))))+IF(ライフイベント表!G9="",0,IF(AND(ライフイベント表!G9>=0,ライフイベント表!G9<=5),支出計画!$D$24,IF(AND(ライフイベント表!G9>=6,ライフイベント表!G9<=11),支出計画!$D$25,IF(AND(ライフイベント表!G9>=12,ライフイベント表!G9<=14),支出計画!$D$26,IF(AND(ライフイベント表!G9>=15,ライフイベント表!G9<=17),支出計画!$D$27,IF(ライフイベント表!G9=18,支出計画!$D$28,IF(AND(ライフイベント表!G9>=19,ライフイベント表!G9<=21),支出計画!$D$29,0)))))))+IF(ライフイベント表!H9="",0,IF(AND(ライフイベント表!H9>=0,ライフイベント表!H9<=5),支出計画!$D$24,IF(AND(ライフイベント表!H9>=6,ライフイベント表!H9<=11),支出計画!$D$25,IF(AND(ライフイベント表!H9>=12,ライフイベント表!H9<=14),支出計画!$D$26,IF(AND(ライフイベント表!H9>=15,ライフイベント表!H9<=17),支出計画!$D$27,IF(ライフイベント表!H9=18,支出計画!$D$28,IF(AND(ライフイベント表!H9>=19,ライフイベント表!H9<=21),支出計画!$D$29,0)))))))+IF(ライフイベント表!I9="",0,IF(AND(ライフイベント表!I9>=0,ライフイベント表!I9<=5),支出計画!$D$24,IF(AND(ライフイベント表!I9>=6,ライフイベント表!I9<=11),支出計画!$D$25,IF(AND(ライフイベント表!I9>=12,ライフイベント表!I9<=14),支出計画!$D$26,IF(AND(ライフイベント表!I9>=15,ライフイベント表!I9<=17),支出計画!$D$27,IF(ライフイベント表!I9=18,支出計画!$D$28,IF(AND(ライフイベント表!I9>=19,ライフイベント表!I9<=21),支出計画!$D$29,0)))))))+IF(ライフイベント表!J9="",0,IF(AND(ライフイベント表!J9>=0,ライフイベント表!J9<=5),支出計画!$D$24,IF(AND(ライフイベント表!J9>=6,ライフイベント表!J9<=11),支出計画!$D$25,IF(AND(ライフイベント表!J9>=12,ライフイベント表!J9<=14),支出計画!$D$26,IF(AND(ライフイベント表!J9>=15,ライフイベント表!J9<=17),支出計画!$D$27,IF(ライフイベント表!J9=18,支出計画!$D$28,IF(AND(ライフイベント表!J9>=19,ライフイベント表!J9<=21),支出計画!$D$29,0))))))))*POWER(1.02,B10-1) -> 70.6611714 | U10: =SUMPRODUCT((保険!$G$5:$G$15<=C10)*(保険!$H$5:$H$15>=C10)*保険!$F$5:$F$15)+IF(AND(D10<>"",D10>=基本情報!$C$15),支出計画!$C$48,0) -> 53.08 | V10: =支出計画!$C$9 -> 36 | W10: =IF(AND(C10>=支出計画!$D$35,C10<=支出計画!$F$35,MOD(C10-支出計画!$D$35,支出計画!$E$35)=0),支出計画!$C$35,0)+IF(AND(C10>=支出計画!$D$36,C10<=支出計画!$F$36,MOD(C10-支出計画!$D$36,支出計画!$E$36)=0),支出計画!$C$36,0)+IF(C10=支出計画!$D$37,支出計画!$C$37,0)+IF(C10=支出計画!$D$38,支出計画!$C$38,0)+IF(C10=支出計画!$D$39,支出計画!$C$39,0)+IF(C10=支出計画!$D$40,支出計画!$C$40,0)+IF(C10=支出計画!$D$41,支出計画!$C$41,0)+IF(C10>=支出計画!$E$17,支出計画!$C$17,0)+IF(C10>=支出計画!$E$18,支出計画!$C$18,0) -> 32 | X10: 719.2594869 | Y10: 33.34654312 | Z10: =Z9*(1+金融資産!$C$21)+Y10 -> 1446.319448
B11: 7 | C11: =基本情報!$C$3+B11-1 -> 2028 | D11: =IF(基本情報!$D$6="","",C11-YEAR(基本情報!$D$6)-IF(OR(MONTH(基本情報!$D$6)>1,DAY(基本情報!$D$6)>1),1,0)) -> 41 | E11: =IF(基本情報!$D$7="","",C11-YEAR(基本情報!$D$7)-IF(OR(MONTH(基本情報!$D$7)>1,DAY(基本情報!$D$7)>1),1,0)) -> 40 | F11: =IF(OR(基本情報!$D$8="",C11<=YEAR(基本情報!$D$8)),"",MAX(0,C11-YEAR(基本情報!$D$8)-IF(OR(MONTH(基本情報!$D$8)>1,DAY(基本情報!$D$8)>1),1,0))) -> 9 | G11: =IF(OR(基本情報!$D$9="",C11<=YEAR(基本情報!$D$9)),"",MAX(0,C11-YEAR(基本情報!$D$9)-IF(OR(MONTH(基本情報!$D$9)>1,DAY(基本情報!$D$9)>1),1,0))) -> 7 | H11: =IF(OR(基本情報!$D$10="",C11<=YEAR(基本情報!$D$10)),"",MAX(0,C11-YEAR(基本情報!$D$10)-IF(OR(MONTH(基本情報!$D$10)>1,DAY(基本情報!$D$10)>1),1,0))) -> 0 | I11: =IF(OR(基本情報!$D$11="",C11<=YEAR(基本情報!$D$11)),"",MAX(0,C11-YEAR(基本情報!$D$11)-IF(OR(MONTH(基本情報!$D$11)>1,DAY(基本情報!$D$11)>1),1,0))) ->  | J11: =IF(OR(基本情報!$D$12="",C11<=YEAR(基本情報!$D$12)),"",MAX(0,C11-YEAR(基本情報!$D$12)-IF(OR(MONTH(基本情報!$D$12)>1,DAY(基本情報!$D$12)>1),1,0))) ->  | K11: =IF(D11="","",IF(D11<基本情報!$C$15,MAX(0,収入計画!$D$5*(1+収入計画!$E$5)^(B11-1)),IF(AND(D11>=基本情報!$C$15,D11<基本情報!$C$20),MAX(0,基本情報!$C$19*(収入計画!$D$5/収入計画!$C$5)*(1+収入計画!$F$5)^(D11-基本情報!$C$15)),0))) -> 509.5296723 | L11: =IF(E11="","",IF(E11<基本情報!$D$15,MAX(0,収入計画!$D$6*(1+収入計画!$E$6)^(B11-1))*IF(IFERROR(IF(AND(E11>=収入計画!$C$10-2,E11<収入計画!$C$11),1,0),0)+IFERROR(IF(AND(E11>=収入計画!$C$13-2,E11<収入計画!$C$14),1,0),0)+IFERROR(IF(AND(E11>=収入計画!$C$16-2,E11<収入計画!$C$17),1,0),0)+IFERROR(IF(AND(E11>=収入計画!$C$19-2,E11<収入計画!$C$20),1,0),0)+IFERROR(IF(AND(E11>=収入計画!$C$22-2,E11<収入計画!$C$23),1,0),0)>0,0.5,1),IF(AND(E11>=基本情報!$D$15,E11<基本情報!$D$20),MAX(0,基本情報!$D$19*(収入計画!$D$6/収入計画!$C$6)*(1+収入計画!$F$6)^(E11-基本情報!$D$15)),0))) -> 127.3824181 | M11: =IF(OR(D11="",E11=""),"",IF(D11=基本情報!$C$15,基本情報!$C$16,0)+IF(E11=基本情報!$D$15,基本情報!$D$16,0)) -> 0 | N11: =IF(D11="","",IF(OR(D11>=基本情報!$C$17,E11>=基本情報!$D$17),MAX(0,IF(D11>=基本情報!$C$17,基本情報!$C$18*12,0)+IF(AND(E11<>"",E11>=基本情報!$D$17),基本情報!$D$18*12,0)),"")) ->  | O11: =SUMPRODUCT((収入計画!$D$27:$D$42<=C11)*(収入計画!$E$27:$E$42>=C11)*収入計画!$C$27:$C$42) -> 72 | P11: 708.9120904 | Q11: =IF(D11<基本情報!$C$15,支出計画!$C$5*(1+支出計画!$D$5)^(B11-1),支出計画!$C$46)-IF(MIN(F11:J11)>=22,支出計画!$C$49,0) -> 329.0712467 | R11: =IF(C11<住宅ローン償還表!$C$9,支出計画!$C$7,0)+IF(AND(C11>=支出計画!$E$8,C11<=支出計画!$F$8),支出計画!$C$8,0)+IF(AND(D11<>"",D11>=基本情報!$C$15),支出計画!$C$47,0) -> 20 | S11: =IFERROR(VLOOKUP(C11,住宅ローン償還表!$C$17:$H$51,6,FALSE()),0) -> 181.7052 | T11: =(IF(ライフイベント表!F10="",0,IF(AND(ライフイベント表!F10>=0,ライフイベント表!F10<=5),支出計画!$D$24,IF(AND(ライフイベント表!F10>=6,ライフイベント表!F10<=11),支出計画!$D$25,IF(AND(ライフイベント表!F10>=12,ライフイベント表!F10<=14),支出計画!$D$26,IF(AND(ライフイベント表!F10>=15,ライフイベント表!F10<=17),支出計画!$D$27,IF(ライフイベント表!F10=18,支出計画!$D$28,IF(AND(ライフイベント表!F10>=19,ライフイベント表!F10<=21),支出計画!$D$29,0)))))))+IF(ライフイベント表!G10="",0,IF(AND(ライフイベント表!G10>=0,ライフイベント表!G10<=5),支出計画!$D$24,IF(AND(ライフイベント表!G10>=6,ライフイベント表!G10<=11),支出計画!$D$25,IF(AND(ライフイベント表!G10>=12,ライフイベント表!G10<=14),支出計画!$D$26,IF(AND(ライフイベント表!G10>=15,ライフイベント表!G10<=17),支出計画!$D$27,IF(ライフイベント表!G10=18,支出計画!$D$28,IF(AND(ライフイベント表!G10>=19,ライフイベント表!G10<=21),支出計画!$D$29,0)))))))+IF(ライフイベント表!H10="",0,IF(AND(ライフイベント表!H10>=0,ライフイベント表!H10<=5),支出計画!$D$24,IF(AND(ライフイベント表!H10>=6,ライフイベント表!H10<=11),支出計画!$D$25,IF(AND(ライフイベント表!H10>=12,ライフイベント表!H10<=14),支出計画!$D$26,IF(AND(ライフイベント表!H10>=15,ライフイベント表!H10<=17),支出計画!$D$27,IF(ライフイベント表!H10=18,支出計画!$D$28,IF(AND(ライフイベント表!H10>=19,ライフイベント表!H10<=21),支出計画!$D$29,0)))))))+IF(ライフイベント表!I10="",0,IF(AND(ライフイベント表!I10>=0,ライフイベント表!I10<=5),支出計画!$D$24,IF(AND(ライフイベント表!I10>=6,ライフイベント表!I10<=11),支出計画!$D$25,IF(AND(ライフイベント表!I10>=12,ライフイベント表!I10<=14),支出計画!$D$26,IF(AND(ライフイベント表!I10>=15,ライフイベント表!I10<=17),支出計画!$D$27,IF(ライフイベント表!I10=18,支出計画!$D$28,IF(AND(ライフイベント表!I10>=19,ライフイベント表!I10<=21),支出計画!$D$29,0)))))))+IF(ライフイベント表!J10="",0,IF(AND(ライフイベント表!J10>=0,ライフイベント表!J10<=5),支出計画!$D$24,IF(AND(ライフイベント表!J10>=6,ライフイベント表!J10<=11),支出計画!$D$25,IF(AND(ライフイベント表!J10>=12,ライフイベント表!J10<=14),支出計画!$D$26,IF(AND(ライフイベント表!J10>=15,ライフイベント表!J10<=17),支出計画!$D$27,IF(ライフイベント表!J10=18,支出計画!$D$28,IF(AND(ライフイベント表!J10>=19,ライフイベント表!J10<=21),支出計画!$D$29,0))))))))*POWER(1.02,B11-1) -> 110.3639171 | U11: =SUMPRODUCT((保険!$G$5:$G$15<=C11)*(保険!$H$5:$H$15>=C11)*保険!$F$5:$F$15)+IF(AND(D11<>"",D11>=基本情報!$C$15),支出計画!$C$48,0) -> 53.08 | V11: =支出計画!$C$9 -> 36 | W11: =IF(AND(C11>=支出計画!$D$35,C11<=支出計画!$F$35,MOD(C11-支出計画!$D$35,支出計画!$E$35)=0),支出計画!$C$35,0)+IF(AND(C11>=支出計画!$D$36,C11<=支出計画!$F$36,MOD(C11-支出計画!$D$36,支出計画!$E$36)=0),支出計画!$C$36,0)+IF(C11=支出計画!$D$37,支出計画!$C$37,0)+IF(C11=支出計画!$D$38,支出計画!$C$38,0)+IF(C11=支出計画!$D$39,支出計画!$C$39,0)+IF(C11=支出計画!$D$40,支出計画!$C$40,0)+IF(C11=支出計画!$D$41,支出計画!$C$41,0)+IF(C11>=支出計画!$E$17,支出計画!$C$17,0)+IF(C11>=支出計画!$E$18,支出計画!$C$18,0) -> 32 | X11: 762.2203638 | Y11: -53.30827341 | Z11: =Z10*(1+金融資産!$C$21)+Y11 -> 1400.242771
B12: 8 | C12: =基本情報!$C$3+B12-1 -> 2029 | D12: =IF(基本情報!$D$6="","",C12-YEAR(基本情報!$D$6)-IF(OR(MONTH(基本情報!$D$6)>1,DAY(基本情報!$D$6)>1),1,0)) -> 42 | E12: =IF(基本情報!$D$7="","",C12-YEAR(基本情報!$D$7)-IF(OR(MONTH(基本情報!$D$7)>1,DAY(基本情報!$D$7)>1),1,0)) -> 41 | F12: =IF(OR(基本情報!$D$8="",C12<=YEAR(基本情報!$D$8)),"",MAX(0,C12-YEAR(基本情報!$D$8)-IF(OR(MONTH(基本情報!$D$8)>1,DAY(基本情報!$D$8)>1),1,0))) -> 10 | G12: =IF(OR(基本情報!$D$9="",C12<=YEAR(基本情報!$D$9)),"",MAX(0,C12-YEAR(基本情報!$D$9)-IF(OR(MONTH(基本情報!$D$9)>1,DAY(基本情報!$D$9)>1),1,0))) -> 8 | H12: =IF(OR(基本情報!$D$10="",C12<=YEAR(基本情報!$D$10)),"",MAX(0,C12-YEAR(基本情報!$D$10)-IF(OR(MONTH(基本情報!$D$10)>1,DAY(基本情報!$D$10)>1),1,0))) -> 1 | I12: =IF(OR(基本情報!$D$11="",C12<=YEAR(基本情報!$D$11)),"",MAX(0,C12-YEAR(基本情報!$D$11)-IF(OR(MONTH(基本情報!$D$11)>1,DAY(基本情報!$D$11)>1),1,0))) ->  | J12: =IF(OR(基本情報!$D$12="",C12<=YEAR(基本情報!$D$12)),"",MAX(0,C12-YEAR(基本情報!$D$12)-IF(OR(MONTH(基本情報!$D$12)>1,DAY(基本情報!$D$12)>1),1,0))) ->  | K12: =IF(D12="","",IF(D12<基本情報!$C$15,MAX(0,収入計画!$D$5*(1+収入計画!$E$5)^(B12-1)),IF(AND(D12>=基本情報!$C$15,D12<基本情報!$C$20),MAX(0,基本情報!$C$19*(収入計画!$D$5/収入計画!$C$5)*(1+収入計画!$F$5)^(D12-基本情報!$C$15)),0))) -> 514.624969 | L12: =IF(E12="","",IF(E12<基本情報!$D$15,MAX(0,収入計画!$D$6*(1+収入計画!$E$6)^(B12-1))*IF(IFERROR(IF(AND(E12>=収入計画!$C$10-2,E12<収入計画!$C$11),1,0),0)+IFERROR(IF(AND(E12>=収入計画!$C$13-2,E12<収入計画!$C$14),1,0),0)+IFERROR(IF(AND(E12>=収入計画!$C$16-2,E12<収入計画!$C$17),1,0),0)+IFERROR(IF(AND(E12>=収入計画!$C$19-2,E12<収入計画!$C$20),1,0),0)+IFERROR(IF(AND(E12>=収入計画!$C$22-2,E12<収入計画!$C$23),1,0),0)>0,0.5,1),IF(AND(E12>=基本情報!$D$15,E12<基本情報!$D$20),MAX(0,基本情報!$D$19*(収入計画!$D$6/収入計画!$C$6)*(1+収入計画!$F$6)^(E12-基本情報!$D$15)),0))) -> 128.6562423 | M12: =IF(OR(D12="",E12=""),"",IF(D12=基本情報!$C$15,基本情報!$C$16,0)+IF(E12=基本情報!$D$15,基本情報!$D$16,0)) -> 0 | N12: =IF(D12="","",IF(OR(D12>=基本情報!$C$17,E12>=基本情報!$D$17),MAX(0,IF(D12>=基本情報!$C$17,基本情報!$C$18*12,0)+IF(AND(E12<>"",E12>=基本情報!$D$17),基本情報!$D$18*12,0)),"")) ->  | O12: =SUMPRODUCT((収入計画!$D$27:$D$42<=C12)*(収入計画!$E$27:$E$42>=C12)*収入計画!$C$27:$C$42) -> 72 | P12: 715.2812113 | Q12: =IF(D12<基本情報!$C$15,支出計画!$C$5*(1+支出計画!$D$5)^(B12-1),支出計画!$C$46)-IF(MIN(F12:J12)>=22,支出計画!$C$49,0) -> 332.3619592 | R12: =IF(C12<住宅ローン償還表!$C$9,支出計画!$C$7,0)+IF(AND(C12>=支出計画!$E$8,C12<=支出計画!$F$8),支出計画!$C$8,0)+IF(AND(D12<>"",D12>=基本情報!$C$15),支出計画!$C$47,0) -> 20 | S12: =IFERROR(VLOOKUP(C12,住宅ローン償還表!$C$17:$H$51,6,FALSE()),0) -> 181.7052 | T12: =(IF(ライフイベント表!F11="",0,IF(AND(ライフイベント表!F11>=0,ライフイベント表!F11<=5),支出計画!$D$24,IF(AND(ライフイベント表!F11>=6,ライフイベント表!F11<=11),支出計画!$D$25,IF(AND(ライフイベント表!F11>=12,ライフイベント表!F11<=14),支出計画!$D$26,IF(AND(ライフイベント表!F11>=15,ライフイベント表!F11<=17),支出計画!$D$27,IF(ライフイベント表!F11=18,支出計画!$D$28,IF(AND(ライフイベント表!F11>=19,ライフイベント表!F11<=21),支出計画!$D$29,0)))))))+IF(ライフイベント表!G11="",0,IF(AND(ライフイベント表!G11>=0,ライフイベント表!G11<=5),支出計画!$D$24,IF(AND(ライフイベント表!G11>=6,ライフイベント表!G11<=11),支出計画!$D$25,IF(AND(ライフイベント表!G11>=12,ライフイベント表!G11<=14),支出計画!$D$26,IF(AND(ライフイベント表!G11>=15,ライフイベント表!G11<=17),支出計画!$D$27,IF(ライフイベント表!G11=18,支出計画!$D$28,IF(AND(ライフイベント表!G11>=19,ライフイベント表!G11<=21),支出計画!$D$29,0)))))))+IF(ライフイベント表!H11="",0,IF(AND(ライフイベント表!H11>=0,ライフイベント表!H11<=5),支出計画!$D$24,IF(AND(ライフイベント表!H11>=6,ライフイベント表!H11<=11),支出計画!$D$25,IF(AND(ライフイベント表!H11>=12,ライフイベント表!H11<=14),支出計画!$D$26,IF(AND(ライフイベント表!H11>=15,ライフイベント表!H11<=17),支出計画!$D$27,IF(ライフイベント表!H11=18,支出計画!$D$28,IF(AND(ライフイベント表!H11>=19,ライフイベント表!H11<=21),支出計画!$D$29,0)))))))+IF(ライフイベント表!I11="",0,IF(AND(ライフイベント表!I11>=0,ライフイベント表!I11<=5),支出計画!$D$24,IF(AND(ライフイベント表!I11>=6,ライフイベント表!I11<=11),支出計画!$D$25,IF(AND(ライフイベント表!I11>=12,ライフイベント表!I11<=14),支出計画!$D$26,IF(AND(ライフイベント表!I11>=15,ライフイベント表!I11<=17),支出計画!$D$27,IF(ライフイベント表!I11=18,支出計画!$D$28,IF(AND(ライフイベント表!I11>=19,ライフイベント表!I11<=21),支出計画!$D$29,0)))))))+IF(ライフイベント表!J11="",0,IF(AND(ライフイベント表!J11>=0,ライフイベント表!J11<=5),支出計画!$D$24,IF(AND(ライフイベント表!J11>=6,ライフイベント表!J11<=11),支出計画!$D$25,IF(AND(ライフイベント表!J11>=12,ライフイベント表!J11<=14),支出計画!$D$26,IF(AND(ライフイベント表!J11>=15,ライフイベント表!J11<=17),支出計画!$D$27,IF(ライフイベント表!J11=18,支出計画!$D$28,IF(AND(ライフイベント表!J11>=19,ライフイベント表!J11<=21),支出計画!$D$29,0))))))))*POWER(1.02,B12-1) -> 112.5711954 | U12: =SUMPRODUCT((保険!$G$5:$G$15<=C12)*(保険!$H$5:$H$15>=C12)*保険!$F$5:$F$15)+IF(AND(D12<>"",D12>=基本情報!$C$15),支出計画!$C$48,0) -> 53.08 | V12: =支出計画!$C$9 -> 36 | W12: =IF(AND(C12>=支出計画!$D$35,C12<=支出計画!$F$35,MOD(C12-支出計画!$D$35,支出計画!$E$35)=0),支出計画!$C$35,0)+IF(AND(C12>=支出計画!$D$36,C12<=支出計画!$F$36,MOD(C12-支出計画!$D$36,支出計画!$E$36)=0),支出計画!$C$36,0)+IF(C12=支出計画!$D$37,支出計画!$C$37,0)+IF(C12=支出計画!$D$38,支出計画!$C$38,0)+IF(C12=支出計画!$D$39,支出計画!$C$39,0)+IF(C12=支出計画!$D$40,支出計画!$C$40,0)+IF(C12=支出計画!$D$41,支出計画!$C$41,0)+IF(C12>=支出計画!$E$17,支出計画!$C$17,0)+IF(C12>=支出計画!$E$18,支出計画!$C$18,0) -> 32 | X12: 767.7183546 | Y12: -52.43714332 | Z12: =Z11*(1+金融資産!$C$21)+Y12 -> 1354.806842
B13: 9 | C13: =基本情報!$C$3+B13-1 -> 2030 | D13: =IF(基本情報!$D$6="","",C13-YEAR(基本情報!$D$6)-IF(OR(MONTH(基本情報!$D$6)>1,DAY(基本情報!$D$6)>1),1,0)) -> 43 | E13: =IF(基本情報!$D$7="","",C13-YEAR(基本情報!$D$7)-IF(OR(MONTH(基本情報!$D$7)>1,DAY(基本情報!$D$7)>1),1,0)) -> 42 | F13: =IF(OR(基本情報!$D$8="",C13<=YEAR(基本情報!$D$8)),"",MAX(0,C13-YEAR(基本情報!$D$8)-IF(OR(MONTH(基本情報!$D$8)>1,DAY(基本情報!$D$8)>1),1,0))) -> 11 | G13: =IF(OR(基本情報!$D$9="",C13<=YEAR(基本情報!$D$9)),"",MAX(0,C13-YEAR(基本情報!$D$9)-IF(OR(MONTH(基本情報!$D$9)>1,DAY(基本情報!$D$9)>1),1,0))) -> 9 | H13: =IF(OR(基本情報!$D$10="",C13<=YEAR(基本情報!$D$10)),"",MAX(0,C13-YEAR(基本情報!$D$10)-IF(OR(MONTH(基本情報!$D$10)>1,DAY(基本情報!$D$10)>1),1,0))) -> 2 | I13: =IF(OR(基本情報!$D$11="",C13<=YEAR(基本情報!$D$11)),"",MAX(0,C13-YEAR(基本情報!$D$11)-IF(OR(MONTH(基本情報!$D$11)>1,DAY(基本情報!$D$11)>1),1,0))) ->  | J13: =IF(OR(基本情報!$D$12="",C13<=YEAR(基本情報!$D$12)),"",MAX(0,C13-YEAR(基本情報!$D$12)-IF(OR(MONTH(基本情報!$D$12)>1,DAY(基本情報!$D$12)>1),1,0))) ->  | K13: =IF(D13="","",IF(D13<基本情報!$C$15,MAX(0,収入計画!$D$5*(1+収入計画!$E$5)^(B13-1)),IF(AND(D13>=基本情報!$C$15,D13<基本情報!$C$20),MAX(0,基本情報!$C$19*(収入計画!$D$5/収入計画!$C$5)*(1+収入計画!$F$5)^(D13-基本情報!$C$15)),0))) -> 519.7712187 | L13: =IF(E13="","",IF(E13<基本情報!$D$15,MAX(0,収入計画!$D$6*(1+収入計画!$E$6)^(B13-1))*IF(IFERROR(IF(AND(E13>=収入計画!$C$10-2,E13<収入計画!$C$11),1,0),0)+IFERROR(IF(AND(E13>=収入計画!$C$13-2,E13<収入計画!$C$14),1,0),0)+IFERROR(IF(AND(E13>=収入計画!$C$16-2,E13<収入計画!$C$17),1,0),0)+IFERROR(IF(AND(E13>=収入計画!$C$19-2,E13<収入計画!$C$20),1,0),0)+IFERROR(IF(AND(E13>=収入計画!$C$22-2,E13<収入計画!$C$23),1,0),0)>0,0.5,1),IF(AND(E13>=基本情報!$D$15,E13<基本情報!$D$20),MAX(0,基本情報!$D$19*(収入計画!$D$6/収入計画!$C$6)*(1+収入計画!$F$6)^(E13-基本情報!$D$15)),0))) -> 129.9428047 | M13: =IF(OR(D13="",E13=""),"",IF(D13=基本情報!$C$15,基本情報!$C$16,0)+IF(E13=基本情報!$D$15,基本情報!$D$16,0)) -> 0 | N13: =IF(D13="","",IF(OR(D13>=基本情報!$C$17,E13>=基本情報!$D$17),MAX(0,IF(D13>=基本情報!$C$17,基本情報!$C$18*12,0)+IF(AND(E13<>"",E13>=基本情報!$D$17),基本情報!$D$18*12,0)),"")) ->  | O13: =SUMPRODUCT((収入計画!$D$27:$D$42<=C13)*(収入計画!$E$27:$E$42>=C13)*収入計画!$C$27:$C$42) -> 72 | P13: 721.7140234 | Q13: =IF(D13<基本情報!$C$15,支出計画!$C$5*(1+支出計画!$D$5)^(B13-1),支出計画!$C$46)-IF(MIN(F13:J13)>=22,支出計画!$C$49,0) -> 335.6855787 | R13: =IF(C13<住宅ローン償還表!$C$9,支出計画!$C$7,0)+IF(AND(C13>=支出計画!$E$8,C13<=支出計画!$F$8),支出計画!$C$8,0)+IF(AND(D13<>"",D13>=基本情報!$C$15),支出計画!$C$47,0) -> 20 | S13: =IFERROR(VLOOKUP(C13,住宅ローン償還表!$C$17:$H$51,6,FALSE()),0) -> 181.7052 | T13: =(IF(ライフイベント表!F12="",0,IF(AND(ライフイベント表!F12>=0,ライフイベント表!F12<=5),支出計画!$D$24,IF(AND(ライフイベント表!F12>=6,ライフイベント表!F12<=11),支出計画!$D$25,IF(AND(ライフイベント表!F12>=12,ライフイベント表!F12<=14),支出計画!$D$26,IF(AND(ライフイベント表!F12>=15,ライフイベント表!F12<=17),支出計画!$D$27,IF(ライフイベント表!F12=18,支出計画!$D$28,IF(AND(ライフイベント表!F12>=19,ライフイベント表!F12<=21),支出計画!$D$29,0)))))))+IF(ライフイベント表!G12="",0,IF(AND(ライフイベント表!G12>=0,ライフイベント表!G12<=5),支出計画!$D$24,IF(AND(ライフイベント表!G12>=6,ライフイベント表!G12<=11),支出計画!$D$25,IF(AND(ライフイベント表!G12>=12,ライフイベント表!G12<=14),支出計画!$D$26,IF(AND(ライフイベント表!G12>=15,ライフイベント表!G12<=17),支出計画!$D$27,IF(ライフイベント表!G12=18,支出計画!$D$28,IF(AND(ライフイベント表!G12>=19,ライフイベント表!G12<=21),支出計画!$D$29,0)))))))+IF(ライフイベント表!H12="",0,IF(AND(ライフイベント表!H12>=0,ライフイベント表!H12<=5),支出計画!$D$24,IF(AND(ライフイベント表!H12>=6,ライフイベント表!H12<=11),支出計画!$D$25,IF(AND(ライフイベント表!H12>=12,ライフイベント表!H12<=14),支出計画!$D$26,IF(AND(ライフイベント表!H12>=15,ライフイベント表!H12<=17),支出計画!$D$27,IF(ライフイベント表!H12=18,支出計画!$D$28,IF(AND(ライフイベント表!H12>=19,ライフイベント表!H12<=21),支出計画!$D$29,0)))))))+IF(ライフイベント表!I12="",0,IF(AND(ライフイベント表!I12>=0,ライフイベント表!I12<=5),支出計画!$D$24,IF(AND(ライフイベント表!I12>=6,ライフイベント表!I12<=11),支出計画!$D$25,IF(AND(ライフイベント表!I12>=12,ライフイベント表!I12<=14),支出計画!$D$26,IF(AND(ライフイベント表!I12>=15,ライフイベント表!I12<=17),支出計画!$D$27,IF(ライフイベント表!I12=18,支出計画!$D$28,IF(AND(ライフイベント表!I12>=19,ライフイベント表!I12<=21),支出計画!$D$29,0)))))))+IF(ライフイベント表!J12="",0,IF(AND(ライフイベント表!J12>=0,ライフイベント表!J12<=5),支出計画!$D$24,IF(AND(ライフイベント表!J12>=6,ライフイベント表!J12<=11),支出計画!$D$25,IF(AND(ライフイベント表!J12>=12,ライフイベント表!J12<=14),支出計画!$D$26,IF(AND(ライフイベント表!J12>=15,ライフイベント表!J12<=17),支出計画!$D$27,IF(ライフイベント表!J12=18,支出計画!$D$28,IF(AND(ライフイベント表!J12>=19,ライフイベント表!J12<=21),支出計画!$D$29,0))))))))*POWER(1.02,B13-1) -> 114.8226193 | U13: =SUMPRODUCT((保険!$G$5:$G$15<=C13)*(保険!$H$5:$H$15>=C13)*保険!$F$5:$F$15)+IF(AND(D13<>"",D13>=基本情報!$C$15),支出計画!$C$48,0) -> 53.08 | V13: =支出計画!$C$9 -> 36 | W13: =IF(AND(C13>=支出計画!$D$35,C13<=支出計画!$F$35,MOD(C13-支出計画!$D$35,支出計画!$E$35)=0),支出計画!$C$35,0)+IF(AND(C13>=支出計画!$D$36,C13<=支出計画!$F$36,MOD(C13-支出計画!$D$36,支出計画!$E$36)=0),支出計画!$C$36,0)+IF(C13=支出計画!$D$37,支出計画!$C$37,0)+IF(C13=支出計画!$D$38,支出計画!$C$38,0)+IF(C13=支出計画!$D$39,支出計画!$C$39,0)+IF(C13=支出計画!$D$40,支出計画!$C$40,0)+IF(C13=支出計画!$D$41,支出計画!$C$41,0)+IF(C13>=支出計画!$E$17,支出計画!$C$17,0)+IF(C13>=支出計画!$E$18,支出計画!$C$18,0) -> 32 | X13: 773.2933981 | Y13: -51.57937471 | Z13: =Z12*(1+金融資産!$C$21)+Y13 -> 1310.001501
B14: 10 | C14: =基本情報!$C$3+B14-1 -> 2031 | D14: =IF(基本情報!$D$6="","",C14-YEAR(基本情報!$D$6)-IF(OR(MONTH(基本情報!$D$6)>1,DAY(基本情報!$D$6)>1),1,0)) -> 44 | E14: =IF(基本情報!$D$7="","",C14-YEAR(基本情報!$D$7)-IF(OR(MONTH(基本情報!$D$7)>1,DAY(基本情報!$D$7)>1),1,0)) -> 43 | F14: =IF(OR(基本情報!$D$8="",C14<=YEAR(基本情報!$D$8)),"",MAX(0,C14-YEAR(基本情報!$D$8)-IF(OR(MONTH(基本情報!$D$8)>1,DAY(基本情報!$D$8)>1),1,0))) -> 12 | G14: =IF(OR(基本情報!$D$9="",C14<=YEAR(基本情報!$D$9)),"",MAX(0,C14-YEAR(基本情報!$D$9)-IF(OR(MONTH(基本情報!$D$9)>1,DAY(基本情報!$D$9)>1),1,0))) -> 10 | H14: =IF(OR(基本情報!$D$10="",C14<=YEAR(基本情報!$D$10)),"",MAX(0,C14-YEAR(基本情報!$D$10)-IF(OR(MONTH(基本情報!$D$10)>1,DAY(基本情報!$D$10)>1),1,0))) -> 3 | I14: =IF(OR(基本情報!$D$11="",C14<=YEAR(基本情報!$D$11)),"",MAX(0,C14-YEAR(基本情報!$D$11)-IF(OR(MONTH(基本情報!$D$11)>1,DAY(基本情報!$D$11)>1),1,0))) ->  | J14: =IF(OR(基本情報!$D$12="",C14<=YEAR(基本情報!$D$12)),"",MAX(0,C14-YEAR(基本情報!$D$12)-IF(OR(MONTH(基本情報!$D$12)>1,DAY(基本情報!$D$12)>1),1,0))) ->  | K14: =IF(D14="","",IF(D14<基本情報!$C$15,MAX(0,収入計画!$D$5*(1+収入計画!$E$5)^(B14-1)),IF(AND(D14>=基本情報!$C$15,D14<基本情報!$C$20),MAX(0,基本情報!$C$19*(収入計画!$D$5/収入計画!$C$5)*(1+収入計画!$F$5)^(D14-基本情報!$C$15)),0))) -> 524.9689309 | L14: =IF(E14="","",IF(E14<基本情報!$D$15,MAX(0,収入計画!$D$6*(1+収入計画!$E$6)^(B14-1))*IF(IFERROR(IF(AND(E14>=収入計画!$C$10-2,E14<収入計画!$C$11),1,0),0)+IFERROR(IF(AND(E14>=収入計画!$C$13-2,E14<収入計画!$C$14),1,0),0)+IFERROR(IF(AND(E14>=収入計画!$C$16-2,E14<収入計画!$C$17),1,0),0)+IFERROR(IF(AND(E14>=収入計画!$C$19-2,E14<収入計画!$C$20),1,0),0)+IFERROR(IF(AND(E14>=収入計画!$C$22-2,E14<収入計画!$C$23),1,0),0)>0,0.5,1),IF(AND(E14>=基本情報!$D$15,E14<基本情報!$D$20),MAX(0,基本情報!$D$19*(収入計画!$D$6/収入計画!$C$6)*(1+収入計画!$F$6)^(E14-基本情報!$D$15)),0))) -> 131.2422327 | M14: =IF(OR(D14="",E14=""),"",IF(D14=基本情報!$C$15,基本情報!$C$16,0)+IF(E14=基本情報!$D$15,基本情報!$D$16,0)) -> 0 | N14: =IF(D14="","",IF(OR(D14>=基本情報!$C$17,E14>=基本情報!$D$17),MAX(0,IF(D14>=基本情報!$C$17,基本情報!$C$18*12,0)+IF(AND(E14<>"",E14>=基本情報!$D$17),基本情報!$D$18*12,0)),"")) ->  | O14: =SUMPRODUCT((収入計画!$D$27:$D$42<=C14)*(収入計画!$E$27:$E$42>=C14)*収入計画!$C$27:$C$42) -> 72 | P14: 728.2111636 | Q14: =IF(D14<基本情報!$C$15,支出計画!$C$5*(1+支出計画!$D$5)^(B14-1),支出計画!$C$46)-IF(MIN(F14:J14)>=22,支出計画!$C$49,0) -> 339.0424345 | R14: =IF(C14<住宅ローン償還表!$C$9,支出計画!$C$7,0)+IF(AND(C14>=支出計画!$E$8,C14<=支出計画!$F$8),支出計画!$C$8,0)+IF(AND(D14<>"",D14>=基本情報!$C$15),支出計画!$C$47,0) -> 20 | S14: =IFERROR(VLOOKUP(C14,住宅ローン償還表!$C$17:$H$51,6,FALSE()),0) -> 181.7052 | T14: =(IF(ライフイベント表!F13="",0,IF(AND(ライフイベント表!F13>=0,ライフイベント表!F13<=5),支出計画!$D$24,IF(AND(ライフイベント表!F13>=6,ライフイベント表!F13<=11),支出計画!$D$25,IF(AND(ライフイベント表!F13>=12,ライフイベント表!F13<=14),支出計画!$D$26,IF(AND(ライフイベント表!F13>=15,ライフイベント表!F13<=17),支出計画!$D$27,IF(ライフイベント表!F13=18,支出計画!$D$28,IF(AND(ライフイベント表!F13>=19,ライフイベント表!F13<=21),支出計画!$D$29,0)))))))+IF(ライフイベント表!G13="",0,IF(AND(ライフイベント表!G13>=0,ライフイベント表!G13<=5),支出計画!$D$24,IF(AND(ライフイベント表!G13>=6,ライフイベント表!G13<=11),支出計画!$D$25,IF(AND(ライフイベント表!G13>=12,ライフイベント表!G13<=14),支出計画!$D$26,IF(AND(ライフイベント表!G13>=15,ライフイベント表!G13<=17),支出計画!$D$27,IF(ライフイベント表!G13=18,支出計画!$D$28,IF(AND(ライフイベント表!G13>=19,ライフイベント表!G13<=21),支出計画!$D$29,0)))))))+IF(ライフイベント表!H13="",0,IF(AND(ライフイベント表!H13>=0,ライフイベント表!H13<=5),支出計画!$D$24,IF(AND(ライフイベント表!H13>=6,ライフイベント表!H13<=11),支出計画!$D$25,IF(AND(ライフイベント表!H13>=12,ライフイベント表!H13<=14),支出計画!$D$26,IF(AND(ライフイベント表!H13>=15,ライフイベント表!H13<=17),支出計画!$D$27,IF(ライフイベント表!H13=18,支出計画!$D$28,IF(AND(ライフイベント表!H13>=19,ライフイベント表!H13<=21),支出計画!$D$29,0)))))))+IF(ライフイベント表!I13="",0,IF(AND(ライフイベント表!I13>=0,ライフイベント表!I13<=5),支出計画!$D$24,IF(AND(ライフイベント表!I13>=6,ライフイベント表!I13<=11),支出計画!$D$25,IF(AND(ライフイベント表!I13>=12,ライフイベント表!I13<=14),支出計画!$D$26,IF(AND(ライフイベント表!I13>=15,ライフイベント表!I13<=17),支出計画!$D$27,IF(ライフイベント表!I13=18,支出計画!$D$28,IF(AND(ライフイベント表!I13>=19,ライフイベント表!I13<=21),支出計画!$D$29,0)))))))+IF(ライフイベント表!J13="",0,IF(AND(ライフイベント表!J13>=0,ライフイベント表!J13<=5),支出計画!$D$24,IF(AND(ライフイベント表!J13>=6,ライフイベント表!J13<=11),支出計画!$D$25,IF(AND(ライフイベント表!J13>=12,ライフイベント表!J13<=14),支出計画!$D$26,IF(AND(ライフイベント表!J13>=15,ライフイベント表!J13<=17),支出計画!$D$27,IF(ライフイベント表!J13=18,支出計画!$D$28,IF(AND(ライフイベント表!J13>=19,ライフイベント表!J13<=21),支出計画!$D$29,0))))))))*POWER(1.02,B14-1) -> 137.4356454 | U14: =SUMPRODUCT((保険!$G$5:$G$15<=C14)*(保険!$H$5:$H$15>=C14)*保険!$F$5:$F$15)+IF(AND(D14<>"",D14>=基本情報!$C$15),支出計画!$C$48,0) -> 53.08 | V14: =支出計画!$C$9 -> 36 | W14: =IF(AND(C14>=支出計画!$D$35,C14<=支出計画!$F$35,MOD(C14-支出計画!$D$35,支出計画!$E$35)=0),支出計画!$C$35,0)+IF(AND(C14>=支出計画!$D$36,C14<=支出計画!$F$36,MOD(C14-支出計画!$D$36,支出計画!$E$36)=0),支出計画!$C$36,0)+IF(C14=支出計画!$D$37,支出計画!$C$37,0)+IF(C14=支出計画!$D$38,支出計画!$C$38,0)+IF(C14=支出計画!$D$39,支出計画!$C$39,0)+IF(C14=支出計画!$D$40,支出計画!$C$40,0)+IF(C14=支出計画!$D$41,支出計画!$C$41,0)+IF(C14>=支出計画!$E$17,支出計画!$C$17,0)+IF(C14>=支出計画!$E$18,支出計画!$C$18,0) -> 242 | X14: 1009.26328 | Y14: -281.0521163 | Z14: =Z13*(1+金融資産!$C$21)+Y14 -> 1035.499393
B15: 11 | C15: =基本情報!$C$3+B15-1 -> 2032 | D15: =IF(基本情報!$D$6="","",C15-YEAR(基本情報!$D$6)-IF(OR(MONTH(基本情報!$D$6)>1,DAY(基本情報!$D$6)>1),1,0)) -> 45 | E15: =IF(基本情報!$D$7="","",C15-YEAR(基本情報!$D$7)-IF(OR(MONTH(基本情報!$D$7)>1,DAY(基本情報!$D$7)>1),1,0)) -> 44 | F15: =IF(OR(基本情報!$D$8="",C15<=YEAR(基本情報!$D$8)),"",MAX(0,C15-YEAR(基本情報!$D$8)-IF(OR(MONTH(基本情報!$D$8)>1,DAY(基本情報!$D$8)>1),1,0))) -> 13 | G15: =IF(OR(基本情報!$D$9="",C15<=YEAR(基本情報!$D$9)),"",MAX(0,C15-YEAR(基本情報!$D$9)-IF(OR(MONTH(基本情報!$D$9)>1,DAY(基本情報!$D$9)>1),1,0))) -> 11 | H15: =IF(OR(基本情報!$D$10="",C15<=YEAR(基本情報!$D$10)),"",MAX(0,C15-YEAR(基本情報!$D$10)-IF(OR(MONTH(基本情報!$D$10)>1,DAY(基本情報!$D$10)>1),1,0))) -> 4 | I15: =IF(OR(基本情報!$D$11="",C15<=YEAR(基本情報!$D$11)),"",MAX(0,C15-YEAR(基本情報!$D$11)-IF(OR(MONTH(基本情報!$D$11)>1,DAY(基本情報!$D$11)>1),1,0))) ->  | J15: =IF(OR(基本情報!$D$12="",C15<=YEAR(基本情報!$D$12)),"",MAX(0,C15-YEAR(基本情報!$D$12)-IF(OR(MONTH(基本情報!$D$12)>1,DAY(基本情報!$D$12)>1),1,0))) ->  | K15: =IF(D15="","",IF(D15<基本情報!$C$15,MAX(0,収入計画!$D$5*(1+収入計画!$E$5)^(B15-1)),IF(AND(D15>=基本情報!$C$15,D15<基本情報!$C$20),MAX(0,基本情報!$C$19*(収入計画!$D$5/収入計画!$C$5)*(1+収入計画!$F$5)^(D15-基本情報!$C$15)),0))) -> 530.2186202 | L15: =IF(E15="","",IF(E15<基本情報!$D$15,MAX(0,収入計画!$D$6*(1+収入計画!$E$6)^(B15-1))*IF(IFERROR(IF(AND(E15>=収入計画!$C$10-2,E15<収入計画!$C$11),1,0),0)+IFERROR(IF(AND(E15>=収入計画!$C$13-2,E15<収入計画!$C$14),1,0),0)+IFERROR(IF(AND(E15>=収入計画!$C$16-2,E15<収入計画!$C$17),1,0),0)+IFERROR(IF(AND(E15>=収入計画!$C$19-2,E15<収入計画!$C$20),1,0),0)+IFERROR(IF(AND(E15>=収入計画!$C$22-2,E15<収入計画!$C$23),1,0),0)>0,0.5,1),IF(AND(E15>=基本情報!$D$15,E15<基本情報!$D$20),MAX(0,基本情報!$D$19*(収入計画!$D$6/収入計画!$C$6)*(1+収入計画!$F$6)^(E15-基本情報!$D$15)),0))) -> 265.1093101 | M15: =IF(OR(D15="",E15=""),"",IF(D15=基本情報!$C$15,基本情報!$C$16,0)+IF(E15=基本情報!$D$15,基本情報!$D$16,0)) -> 0 | N15: =IF(D15="","",IF(OR(D15>=基本情報!$C$17,E15>=基本情報!$D$17),MAX(0,IF(D15>=基本情報!$C$17,基本情報!$C$18*12,0)+IF(AND(E15<>"",E15>=基本情報!$D$17),基本情報!$D$18*12,0)),"")) ->  | O15: =SUMPRODUCT((収入計画!$D$27:$D$42<=C15)*(収入計画!$E$27:$E$42>=C15)*収入計画!$C$27:$C$42) -> 72 | P15: 867.3279303 | Q15: =IF(D15<基本情報!$C$15,支出計画!$C$5*(1+支出計画!$D$5)^(B15-1),支出計画!$C$46)-IF(MIN(F15:J15)>=22,支出計画!$C$49,0) -> 342.4328589 | R15: =IF(C15<住宅ローン償還表!$C$9,支出計画!$C$7,0)+IF(AND(C15>=支出計画!$E$8,C15<=支出計画!$F$8),支出計画!$C$8,0)+IF(AND(D15<>"",D15>=基本情報!$C$15),支出計画!$C$47,0) -> 20 | S15: =IFERROR(VLOOKUP(C15,住宅ローン償還表!$C$17:$H$51,6,FALSE()),0) -> 181.7052 | T15: =(IF(ライフイベント表!F14="",0,IF(AND(ライフイベント表!F14>=0,ライフイベント表!F14<=5),支出計画!$D$24,IF(AND(ライフイベント表!F14>=6,ライフイベント表!F14<=11),支出計画!$D$25,IF(AND(ライフイベント表!F14>=12,ライフイベント表!F14<=14),支出計画!$D$26,IF(AND(ライフイベント表!F14>=15,ライフイベント表!F14<=17),支出計画!$D$27,IF(ライフイベント表!F14=18,支出計画!$D$28,IF(AND(ライフイベント表!F14>=19,ライフイベント表!F14<=21),支出計画!$D$29,0)))))))+IF(ライフイベント表!G14="",0,IF(AND(ライフイベント表!G14>=0,ライフイベント表!G14<=5),支出計画!$D$24,IF(AND(ライフイベント表!G14>=6,ライフイベント表!G14<=11),支出計画!$D$25,IF(AND(ライフイベント表!G14>=12,ライフイベント表!G14<=14),支出計画!$D$26,IF(AND(ライフイベント表!G14>=15,ライフイベント表!G14<=17),支出計画!$D$27,IF(ライフイベント表!G14=18,支出計画!$D$28,IF(AND(ライフイベント表!G14>=19,ライフイベント表!G14<=21),支出計画!$D$29,0)))))))+IF(ライフイベント表!H14="",0,IF(AND(ライフイベント表!H14>=0,ライフイベント表!H14<=5),支出計画!$D$24,IF(AND(ライフイベント表!H14>=6,ライフイベント表!H14<=11),支出計画!$D$25,IF(AND(ライフイベント表!H14>=12,ライフイベント表!H14<=14),支出計画!$D$26,IF(AND(ライフイベント表!H14>=15,ライフイベント表!H14<=17),支出計画!$D$27,IF(ライフイベント表!H14=18,支出計画!$D$28,IF(AND(ライフイベント表!H14>=19,ライフイベント表!H14<=21),支出計画!$D$29,0)))))))+IF(ライフイベント表!I14="",0,IF(AND(ライフイベント表!I14>=0,ライフイベント表!I14<=5),支出計画!$D$24,IF(AND(ライフイベント表!I14>=6,ライフイベント表!I14<=11),支出計画!$D$25,IF(AND(ライフイベント表!I14>=12,ライフイベント表!I14<=14),支出計画!$D$26,IF(AND(ライフイベント表!I14>=15,ライフイベント表!I14<=17),支出計画!$D$27,IF(ライフイベント表!I14=18,支出計画!$D$28,IF(AND(ライフイベント表!I14>=19,ライフイベント表!I14<=21),支出計画!$D$29,0)))))))+IF(ライフイベント表!J14="",0,IF(AND(ライフイベント表!J14>=0,ライフイベント表!J14<=5),支出計画!$D$24,IF(AND(ライフイベント表!J14>=6,ライフイベント表!J14<=11),支出計画!$D$25,IF(AND(ライフイベント表!J14>=12,ライフイベント表!J14<=14),支出計画!$D$26,IF(AND(ライフイベント表!J14>=15,ライフイベント表!J14<=17),支出計画!$D$27,IF(ライフイベント表!J14=18,支出計画!$D$28,IF(AND(ライフイベント表!J14>=19,ライフイベント表!J14<=21),支出計画!$D$29,0))))))))*POWER(1.02,B15-1) -> 140.1843583 | U15: =SUMPRODUCT((保険!$G$5:$G$15<=C15)*(保険!$H$5:$H$15>=C15)*保険!$F$5:$F$15)+IF(AND(D15<>"",D15>=基本情報!$C$15),支出計画!$C$48,0) -> 53.08 | V15: =支出計画!$C$9 -> 36 | W15: =IF(AND(C15>=支出計画!$D$35,C15<=支出計画!$F$35,MOD(C15-支出計画!$D$35,支出計画!$E$35)=0),支出計画!$C$35,0)+IF(AND(C15>=支出計画!$D$36,C15<=支出計画!$F$36,MOD(C15-支出計画!$D$36,支出計画!$E$36)=0),支出計画!$C$36,0)+IF(C15=支出計画!$D$37,支出計画!$C$37,0)+IF(C15=支出計画!$D$38,支出計画!$C$38,0)+IF(C15=支出計画!$D$39,支出計画!$C$39,0)+IF(C15=支出計画!$D$40,支出計画!$C$40,0)+IF(C15=支出計画!$D$41,支出計画!$C$41,0)+IF(C15>=支出計画!$E$17,支出計画!$C$17,0)+IF(C15>=支出計画!$E$18,支出計画!$C$18,0) -> 32 | X15: 805.4024172 | Y15: 61.92551312 | Z15: =Z14*(1+金融資産!$C$21)+Y15 -> 1102.602403
B16: 12 | C16: =基本情報!$C$3+B16-1 -> 2033 | D16: =IF(基本情報!$D$6="","",C16-YEAR(基本情報!$D$6)-IF(OR(MONTH(基本情報!$D$6)>1,DAY(基本情報!$D$6)>1),1,0)) -> 46 | E16: =IF(基本情報!$D$7="","",C16-YEAR(基本情報!$D$7)-IF(OR(MONTH(基本情報!$D$7)>1,DAY(基本情報!$D$7)>1),1,0)) -> 45 | F16: =IF(OR(基本情報!$D$8="",C16<=YEAR(基本情報!$D$8)),"",MAX(0,C16-YEAR(基本情報!$D$8)-IF(OR(MONTH(基本情報!$D$8)>1,DAY(基本情報!$D$8)>1),1,0))) -> 14 | G16: =IF(OR(基本情報!$D$9="",C16<=YEAR(基本情報!$D$9)),"",MAX(0,C16-YEAR(基本情報!$D$9)-IF(OR(MONTH(基本情報!$D$9)>1,DAY(基本情報!$D$9)>1),1,0))) -> 12 | H16: =IF(OR(基本情報!$D$10="",C16<=YEAR(基本情報!$D$10)),"",MAX(0,C16-YEAR(基本情報!$D$10)-IF(OR(MONTH(基本情報!$D$10)>1,DAY(基本情報!$D$10)>1),1,0))) -> 5 | I16: =IF(OR(基本情報!$D$11="",C16<=YEAR(基本情報!$D$11)),"",MAX(0,C16-YEAR(基本情報!$D$11)-IF(OR(MONTH(基本情報!$D$11)>1,DAY(基本情報!$D$11)>1),1,0))) ->  | J16: =IF(OR(基本情報!$D$12="",C16<=YEAR(基本情報!$D$12)),"",MAX(0,C16-YEAR(基本情報!$D$12)-IF(OR(MONTH(基本情報!$D$12)>1,DAY(基本情報!$D$12)>1),1,0))) ->  | K16: =IF(D16="","",IF(D16<基本情報!$C$15,MAX(0,収入計画!$D$5*(1+収入計画!$E$5)^(B16-1)),IF(AND(D16>=基本情報!$C$15,D16<基本情報!$C$20),MAX(0,基本情報!$C$19*(収入計画!$D$5/収入計画!$C$5)*(1+収入計画!$F$5)^(D16-基本情報!$C$15)),0))) -> 535.5208064 | L16: =IF(E16="","",IF(E16<基本情報!$D$15,MAX(0,収入計画!$D$6*(1+収入計画!$E$6)^(B16-1))*IF(IFERROR(IF(AND(E16>=収入計画!$C$10-2,E16<収入計画!$C$11),1,0),0)+IFERROR(IF(AND(E16>=収入計画!$C$13-2,E16<収入計画!$C$14),1,0),0)+IFERROR(IF(AND(E16>=収入計画!$C$16-2,E16<収入計画!$C$17),1,0),0)+IFERROR(IF(AND(E16>=収入計画!$C$19-2,E16<収入計画!$C$20),1,0),0)+IFERROR(IF(AND(E16>=収入計画!$C$22-2,E16<収入計画!$C$23),1,0),0)>0,0.5,1),IF(AND(E16>=基本情報!$D$15,E16<基本情報!$D$20),MAX(0,基本情報!$D$19*(収入計画!$D$6/収入計画!$C$6)*(1+収入計画!$F$6)^(E16-基本情報!$D$15)),0))) -> 267.7604032 | M16: =IF(OR(D16="",E16=""),"",IF(D16=基本情報!$C$15,基本情報!$C$16,0)+IF(E16=基本情報!$D$15,基本情報!$D$16,0)) -> 0 | N16: =IF(D16="","",IF(OR(D16>=基本情報!$C$17,E16>=基本情報!$D$17),MAX(0,IF(D16>=基本情報!$C$17,基本情報!$C$18*12,0)+IF(AND(E16<>"",E16>=基本情報!$D$17),基本情報!$D$18*12,0)),"")) ->  | O16: =SUMPRODUCT((収入計画!$D$27:$D$42<=C16)*(収入計画!$E$27:$E$42>=C16)*収入計画!$C$27:$C$42) -> 72 | P16: 875.2812096 | Q16: =IF(D16<基本情報!$C$15,支出計画!$C$5*(1+支出計画!$D$5)^(B16-1),支出計画!$C$46)-IF(MIN(F16:J16)>=22,支出計画!$C$49,0) -> 345.8571875 | R16: =IF(C16<住宅ローン償還表!$C$9,支出計画!$C$7,0)+IF(AND(C16>=支出計画!$E$8,C16<=支出計画!$F$8),支出計画!$C$8,0)+IF(AND(D16<>"",D16>=基本情報!$C$15),支出計画!$C$47,0) -> 20 | S16: =IFERROR(VLOOKUP(C16,住宅ローン償還表!$C$17:$H$51,6,FALSE()),0) -> 181.7052 | T16: =(IF(ライフイベント表!F15="",0,IF(AND(ライフイベント表!F15>=0,ライフイベント表!F15<=5),支出計画!$D$24,IF(AND(ライフイベント表!F15>=6,ライフイベント表!F15<=11),支出計画!$D$25,IF(AND(ライフイベント表!F15>=12,ライフイベント表!F15<=14),支出計画!$D$26,IF(AND(ライフイベント表!F15>=15,ライフイベント表!F15<=17),支出計画!$D$27,IF(ライフイベント表!F15=18,支出計画!$D$28,IF(AND(ライフイベント表!F15>=19,ライフイベント表!F15<=21),支出計画!$D$29,0)))))))+IF(ライフイベント表!G15="",0,IF(AND(ライフイベント表!G15>=0,ライフイベント表!G15<=5),支出計画!$D$24,IF(AND(ライフイベント表!G15>=6,ライフイベント表!G15<=11),支出計画!$D$25,IF(AND(ライフイベント表!G15>=12,ライフイベント表!G15<=14),支出計画!$D$26,IF(AND(ライフイベント表!G15>=15,ライフイベント表!G15<=17),支出計画!$D$27,IF(ライフイベント表!G15=18,支出計画!$D$28,IF(AND(ライフイベント表!G15>=19,ライフイベント表!G15<=21),支出計画!$D$29,0)))))))+IF(ライフイベント表!H15="",0,IF(AND(ライフイベント表!H15>=0,ライフイベント表!H15<=5),支出計画!$D$24,IF(AND(ライフイベント表!H15>=6,ライフイベント表!H15<=11),支出計画!$D$25,IF(AND(ライフイベント表!H15>=12,ライフイベント表!H15<=14),支出計画!$D$26,IF(AND(ライフイベント表!H15>=15,ライフイベント表!H15<=17),支出計画!$D$27,IF(ライフイベント表!H15=18,支出計画!$D$28,IF(AND(ライフイベント表!H15>=19,ライフイベント表!H15<=21),支出計画!$D$29,0)))))))+IF(ライフイベント表!I15="",0,IF(AND(ライフイベント表!I15>=0,ライフイベント表!I15<=5),支出計画!$D$24,IF(AND(ライフイベント表!I15>=6,ライフイベント表!I15<=11),支出計画!$D$25,IF(AND(ライフイベント表!I15>=12,ライフイベント表!I15<=14),支出計画!$D$26,IF(AND(ライフイベント表!I15>=15,ライフイベント表!I15<=17),支出計画!$D$27,IF(ライフイベント表!I15=18,支出計画!$D$28,IF(AND(ライフイベント表!I15>=19,ライフイベント表!I15<=21),支出計画!$D$29,0)))))))+IF(ライフイベント表!J15="",0,IF(AND(ライフイベント表!J15>=0,ライフイベント表!J15<=5),支出計画!$D$24,IF(AND(ライフイベント表!J15>=6,ライフイベント表!J15<=11),支出計画!$D$25,IF(AND(ライフイベント表!J15>=12,ライフイベント表!J15<=14),支出計画!$D$26,IF(AND(ライフイベント表!J15>=15,ライフイベント表!J15<=17),支出計画!$D$27,IF(ライフイベント表!J15=18,支出計画!$D$28,IF(AND(ライフイベント表!J15>=19,ライフイベント表!J15<=21),支出計画!$D$29,0))))))))*POWER(1.02,B16-1) -> 164.1254087 | U16: =SUMPRODUCT((保険!$G$5:$G$15<=C16)*(保険!$H$5:$H$15>=C16)*保険!$F$5:$F$15)+IF(AND(D16<>"",D16>=基本情報!$C$15),支出計画!$C$48,0) -> 53.08 | V16: =支出計画!$C$9 -> 36 | W16: =IF(AND(C16>=支出計画!$D$35,C16<=支出計画!$F$35,MOD(C16-支出計画!$D$35,支出計画!$E$35)=0),支出計画!$C$35,0)+IF(AND(C16>=支出計画!$D$36,C16<=支出計画!$F$36,MOD(C16-支出計画!$D$36,支出計画!$E$36)=0),支出計画!$C$36,0)+IF(C16=支出計画!$D$37,支出計画!$C$37,0)+IF(C16=支出計画!$D$38,支出計画!$C$38,0)+IF(C16=支出計画!$D$39,支出計画!$C$39,0)+IF(C16=支出計画!$D$40,支出計画!$C$40,0)+IF(C16=支出計画!$D$41,支出計画!$C$41,0)+IF(C16>=支出計画!$E$17,支出計画!$C$17,0)+IF(C16>=支出計画!$E$18,支出計画!$C$18,0) -> 32 | X16: 832.7677962 | Y16: 42.51341342 | Z16: =Z15*(1+金融資産!$C$21)+Y16 -> 1150.628828
B17: 13 | C17: =基本情報!$C$3+B17-1 -> 2034 | D17: =IF(基本情報!$D$6="","",C17-YEAR(基本情報!$D$6)-IF(OR(MONTH(基本情報!$D$6)>1,DAY(基本情報!$D$6)>1),1,0)) -> 47 | E17: =IF(基本情報!$D$7="","",C17-YEAR(基本情報!$D$7)-IF(OR(MONTH(基本情報!$D$7)>1,DAY(基本情報!$D$7)>1),1,0)) -> 46 | F17: =IF(OR(基本情報!$D$8="",C17<=YEAR(基本情報!$D$8)),"",MAX(0,C17-YEAR(基本情報!$D$8)-IF(OR(MONTH(基本情報!$D$8)>1,DAY(基本情報!$D$8)>1),1,0))) -> 15 | G17: =IF(OR(基本情報!$D$9="",C17<=YEAR(基本情報!$D$9)),"",MAX(0,C17-YEAR(基本情報!$D$9)-IF(OR(MONTH(基本情報!$D$9)>1,DAY(基本情報!$D$9)>1),1,0))) -> 13 | H17: =IF(OR(基本情報!$D$10="",C17<=YEAR(基本情報!$D$10)),"",MAX(0,C17-YEAR(基本情報!$D$10)-IF(OR(MONTH(基本情報!$D$10)>1,DAY(基本情報!$D$10)>1),1,0))) -> 6 | I17: =IF(OR(基本情報!$D$11="",C17<=YEAR(基本情報!$D$11)),"",MAX(0,C17-YEAR(基本情報!$D$11)-IF(OR(MONTH(基本情報!$D$11)>1,DAY(基本情報!$D$11)>1),1,0))) ->  | J17: =IF(OR(基本情報!$D$12="",C17<=YEAR(基本情報!$D$12)),"",MAX(0,C17-YEAR(基本情報!$D$12)-IF(OR(MONTH(基本情報!$D$12)>1,DAY(基本情報!$D$12)>1),1,0))) ->  | K17: =IF(D17="","",IF(D17<基本情報!$C$15,MAX(0,収入計画!$D$5*(1+収入計画!$E$5)^(B17-1)),IF(AND(D17>=基本情報!$C$15,D17<基本情報!$C$20),MAX(0,基本情報!$C$19*(収入計画!$D$5/収入計画!$C$5)*(1+収入計画!$F$5)^(D17-基本情報!$C$15)),0))) -> 540.8760145 | L17: =IF(E17="","",IF(E17<基本情報!$D$15,MAX(0,収入計画!$D$6*(1+収入計画!$E$6)^(B17-1))*IF(IFERROR(IF(AND(E17>=収入計画!$C$10-2,E17<収入計画!$C$11),1,0),0)+IFERROR(IF(AND(E17>=収入計画!$C$13-2,E17<収入計画!$C$14),1,0),0)+IFERROR(IF(AND(E17>=収入計画!$C$16-2,E17<収入計画!$C$17),1,0),0)+IFERROR(IF(AND(E17>=収入計画!$C$19-2,E17<収入計画!$C$20),1,0),0)+IFERROR(IF(AND(E17>=収入計画!$C$22-2,E17<収入計画!$C$23),1,0),0)>0,0.5,1),IF(AND(E17>=基本情報!$D$15,E17<基本情報!$D$20),MAX(0,基本情報!$D$19*(収入計画!$D$6/収入計画!$C$6)*(1+収入計画!$F$6)^(E17-基本情報!$D$15)),0))) -> 270.4380072 | M17: =IF(OR(D17="",E17=""),"",IF(D17=基本情報!$C$15,基本情報!$C$16,0)+IF(E17=基本情報!$D$15,基本情報!$D$16,0)) -> 0 | N17: =IF(D17="","",IF(OR(D17>=基本情報!$C$17,E17>=基本情報!$D$17),MAX(0,IF(D17>=基本情報!$C$17,基本情報!$C$18*12,0)+IF(AND(E17<>"",E17>=基本情報!$D$17),基本情報!$D$18*12,0)),"")) ->  | O17: =SUMPRODUCT((収入計画!$D$27:$D$42<=C17)*(収入計画!$E$27:$E$42>=C17)*収入計画!$C$27:$C$42) -> 54 | P17: 865.3140217 | Q17: =IF(D17<基本情報!$C$15,支出計画!$C$5*(1+支出計画!$D$5)^(B17-1),支出計画!$C$46)-IF(MIN(F17:J17)>=22,支出計画!$C$49,0) -> 349.3157593 | R17: =IF(C17<住宅ローン償還表!$C$9,支出計画!$C$7,0)+IF(AND(C17>=支出計画!$E$8,C17<=支出計画!$F$8),支出計画!$C$8,0)+IF(AND(D17<>"",D17>=基本情報!$C$15),支出計画!$C$47,0) -> 20 | S17: =IFERROR(VLOOKUP(C17,住宅ローン償還表!$C$17:$H$51,6,FALSE()),0) -> 181.7052 | T17: =(IF(ライフイベント表!F16="",0,IF(AND(ライフイベント表!F16>=0,ライフイベント表!F16<=5),支出計画!$D$24,IF(AND(ライフイベント表!F16>=6,ライフイベント表!F16<=11),支出計画!$D$25,IF(AND(ライフイベント表!F16>=12,ライフイベント表!F16<=14),支出計画!$D$26,IF(AND(ライフイベント表!F16>=15,ライフイベント表!F16<=17),支出計画!$D$27,IF(ライフイベント表!F16=18,支出計画!$D$28,IF(AND(ライフイベント表!F16>=19,ライフイベント表!F16<=21),支出計画!$D$29,0)))))))+IF(ライフイベント表!G16="",0,IF(AND(ライフイベント表!G16>=0,ライフイベント表!G16<=5),支出計画!$D$24,IF(AND(ライフイベント表!G16>=6,ライフイベント表!G16<=11),支出計画!$D$25,IF(AND(ライフイベント表!G16>=12,ライフイベント表!G16<=14),支出計画!$D$26,IF(AND(ライフイベント表!G16>=15,ライフイベント表!G16<=17),支出計画!$D$27,IF(ライフイベント表!G16=18,支出計画!$D$28,IF(AND(ライフイベント表!G16>=19,ライフイベント表!G16<=21),支出計画!$D$29,0)))))))+IF(ライフイベント表!H16="",0,IF(AND(ライフイベント表!H16>=0,ライフイベント表!H16<=5),支出計画!$D$24,IF(AND(ライフイベント表!H16>=6,ライフイベント表!H16<=11),支出計画!$D$25,IF(AND(ライフイベント表!H16>=12,ライフイベント表!H16<=14),支出計画!$D$26,IF(AND(ライフイベント表!H16>=15,ライフイベント表!H16<=17),支出計画!$D$27,IF(ライフイベント表!H16=18,支出計画!$D$28,IF(AND(ライフイベント表!H16>=19,ライフイベント表!H16<=21),支出計画!$D$29,0)))))))+IF(ライフイベント表!I16="",0,IF(AND(ライフイベント表!I16>=0,ライフイベント表!I16<=5),支出計画!$D$24,IF(AND(ライフイベント表!I16>=6,ライフイベント表!I16<=11),支出計画!$D$25,IF(AND(ライフイベント表!I16>=12,ライフイベント表!I16<=14),支出計画!$D$26,IF(AND(ライフイベント表!I16>=15,ライフイベント表!I16<=17),支出計画!$D$27,IF(ライフイベント表!I16=18,支出計画!$D$28,IF(AND(ライフイベント表!I16>=19,ライフイベント表!I16<=21),支出計画!$D$29,0)))))))+IF(ライフイベント表!J16="",0,IF(AND(ライフイベント表!J16>=0,ライフイベント表!J16<=5),支出計画!$D$24,IF(AND(ライフイベント表!J16>=6,ライフイベント表!J16<=11),支出計画!$D$25,IF(AND(ライフイベント表!J16>=12,ライフイベント表!J16<=14),支出計画!$D$26,IF(AND(ライフイベント表!J16>=15,ライフイベント表!J16<=17),支出計画!$D$27,IF(ライフイベント表!J16=18,支出計画!$D$28,IF(AND(ライフイベント表!J16>=19,ライフイベント表!J16<=21),支出計画!$D$29,0))))))))*POWER(1.02,B17-1) -> 225.7470394 | U17: =SUMPRODUCT((保険!$G$5:$G$15<=C17)*(保険!$H$5:$H$15>=C17)*保険!$F$5:$F$15)+IF(AND(D17<>"",D17>=基本情報!$C$15),支出計画!$C$48,0) -> 53.08 | V17: =支出計画!$C$9 -> 36 | W17: =IF(AND(C17>=支出計画!$D$35,C17<=支出計画!$F$35,MOD(C17-支出計画!$D$35,支出計画!$E$35)=0),支出計画!$C$35,0)+IF(AND(C17>=支出計画!$D$36,C17<=支出計画!$F$36,MOD(C17-支出計画!$D$36,支出計画!$E$36)=0),支出計画!$C$36,0)+IF(C17=支出計画!$D$37,支出計画!$C$37,0)+IF(C17=支出計画!$D$38,支出計画!$C$38,0)+IF(C17=支出計画!$D$39,支出計画!$C$39,0)+IF(C17=支出計画!$D$40,支出計画!$C$40,0)+IF(C17=支出計画!$D$41,支出計画!$C$41,0)+IF(C17>=支出計画!$E$17,支出計画!$C$17,0)+IF(C17>=支出計画!$E$18,支出計画!$C$18,0) -> 32 | X17: 897.8479988 | Y17: -32.53397708 | Z17: =Z16*(1+金融資産!$C$21)+Y17 -> 1123.847995
B18: 14 | C18: =基本情報!$C$3+B18-1 -> 2035 | D18: =IF(基本情報!$D$6="","",C18-YEAR(基本情報!$D$6)-IF(OR(MONTH(基本情報!$D$6)>1,DAY(基本情報!$D$6)>1),1,0)) -> 48 | E18: =IF(基本情報!$D$7="","",C18-YEAR(基本情報!$D$7)-IF(OR(MONTH(基本情報!$D$7)>1,DAY(基本情報!$D$7)>1),1,0)) -> 47 | F18: =IF(OR(基本情報!$D$8="",C18<=YEAR(基本情報!$D$8)),"",MAX(0,C18-YEAR(基本情報!$D$8)-IF(OR(MONTH(基本情報!$D$8)>1,DAY(基本情報!$D$8)>1),1,0))) -> 16 | G18: =IF(OR(基本情報!$D$9="",C18<=YEAR(基本情報!$D$9)),"",MAX(0,C18-YEAR(基本情報!$D$9)-IF(OR(MONTH(基本情報!$D$9)>1,DAY(基本情報!$D$9)>1),1,0))) -> 14 | H18: =IF(OR(基本情報!$D$10="",C18<=YEAR(基本情報!$D$10)),"",MAX(0,C18-YEAR(基本情報!$D$10)-IF(OR(MONTH(基本情報!$D$10)>1,DAY(基本情報!$D$10)>1),1,0))) -> 7 | I18: =IF(OR(基本情報!$D$11="",C18<=YEAR(基本情報!$D$11)),"",MAX(0,C18-YEAR(基本情報!$D$11)-IF(OR(MONTH(基本情報!$D$11)>1,DAY(基本情報!$D$11)>1),1,0))) ->  | J18: =IF(OR(基本情報!$D$12="",C18<=YEAR(基本情報!$D$12)),"",MAX(0,C18-YEAR(基本情報!$D$12)-IF(OR(MONTH(基本情報!$D$12)>1,DAY(基本情報!$D$12)>1),1,0))) ->  | K18: =IF(D18="","",IF(D18<基本情報!$C$15,MAX(0,収入計画!$D$5*(1+収入計画!$E$5)^(B18-1)),IF(AND(D18>=基本情報!$C$15,D18<基本情報!$C$20),MAX(0,基本情報!$C$19*(収入計画!$D$5/収入計画!$C$5)*(1+収入計画!$F$5)^(D18-基本情報!$C$15)),0))) -> 546.2847746 | L18: =IF(E18="","",IF(E18<基本情報!$D$15,MAX(0,収入計画!$D$6*(1+収入計画!$E$6)^(B18-1))*IF(IFERROR(IF(AND(E18>=収入計画!$C$10-2,E18<収入計画!$C$11),1,0),0)+IFERROR(IF(AND(E18>=収入計画!$C$13-2,E18<収入計画!$C$14),1,0),0)+IFERROR(IF(AND(E18>=収入計画!$C$16-2,E18<収入計画!$C$17),1,0),0)+IFERROR(IF(AND(E18>=収入計画!$C$19-2,E18<収入計画!$C$20),1,0),0)+IFERROR(IF(AND(E18>=収入計画!$C$22-2,E18<収入計画!$C$23),1,0),0)>0,0.5,1),IF(AND(E18>=基本情報!$D$15,E18<基本情報!$D$20),MAX(0,基本情報!$D$19*(収入計画!$D$6/収入計画!$C$6)*(1+収入計画!$F$6)^(E18-基本情報!$D$15)),0))) -> 273.1423873 | M18: =IF(OR(D18="",E18=""),"",IF(D18=基本情報!$C$15,基本情報!$C$16,0)+IF(E18=基本情報!$D$15,基本情報!$D$16,0)) -> 0 | N18: =IF(D18="","",IF(OR(D18>=基本情報!$C$17,E18>=基本情報!$D$17),MAX(0,IF(D18>=基本情報!$C$17,基本情報!$C$18*12,0)+IF(AND(E18<>"",E18>=基本情報!$D$17),基本情報!$D$18*12,0)),"")) ->  | O18: =SUMPRODUCT((収入計画!$D$27:$D$42<=C18)*(収入計画!$E$27:$E$42>=C18)*収入計画!$C$27:$C$42) -> 164 | P18: 983.4271619 | Q18: =IF(D18<基本情報!$C$15,支出計画!$C$5*(1+支出計画!$D$5)^(B18-1),支出計画!$C$46)-IF(MIN(F18:J18)>=22,支出計画!$C$49,0) -> 352.8089169 | R18: =IF(C18<住宅ローン償還表!$C$9,支出計画!$C$7,0)+IF(AND(C18>=支出計画!$E$8,C18<=支出計画!$F$8),支出計画!$C$8,0)+IF(AND(D18<>"",D18>=基本情報!$C$15),支出計画!$C$47,0) -> 20 | S18: =IFERROR(VLOOKUP(C18,住宅ローン償還表!$C$17:$H$51,6,FALSE()),0) -> 181.7052 | T18: =(IF(ライフイベント表!F17="",0,IF(AND(ライフイベント表!F17>=0,ライフイベント表!F17<=5),支出計画!$D$24,IF(AND(ライフイベント表!F17>=6,ライフイベント表!F17<=11),支出計画!$D$25,IF(AND(ライフイベント表!F17>=12,ライフイベント表!F17<=14),支出計画!$D$26,IF(AND(ライフイベント表!F17>=15,ライフイベント表!F17<=17),支出計画!$D$27,IF(ライフイベント表!F17=18,支出計画!$D$28,IF(AND(ライフイベント表!F17>=19,ライフイベント表!F17<=21),支出計画!$D$29,0)))))))+IF(ライフイベント表!G17="",0,IF(AND(ライフイベント表!G17>=0,ライフイベント表!G17<=5),支出計画!$D$24,IF(AND(ライフイベント表!G17>=6,ライフイベント表!G17<=11),支出計画!$D$25,IF(AND(ライフイベント表!G17>=12,ライフイベント表!G17<=14),支出計画!$D$26,IF(AND(ライフイベント表!G17>=15,ライフイベント表!G17<=17),支出計画!$D$27,IF(ライフイベント表!G17=18,支出計画!$D$28,IF(AND(ライフイベント表!G17>=19,ライフイベント表!G17<=21),支出計画!$D$29,0)))))))+IF(ライフイベント表!H17="",0,IF(AND(ライフイベント表!H17>=0,ライフイベント表!H17<=5),支出計画!$D$24,IF(AND(ライフイベント表!H17>=6,ライフイベント表!H17<=11),支出計画!$D$25,IF(AND(ライフイベント表!H17>=12,ライフイベント表!H17<=14),支出計画!$D$26,IF(AND(ライフイベント表!H17>=15,ライフイベント表!H17<=17),支出計画!$D$27,IF(ライフイベント表!H17=18,支出計画!$D$28,IF(AND(ライフイベント表!H17>=19,ライフイベント表!H17<=21),支出計画!$D$29,0)))))))+IF(ライフイベント表!I17="",0,IF(AND(ライフイベント表!I17>=0,ライフイベント表!I17<=5),支出計画!$D$24,IF(AND(ライフイベント表!I17>=6,ライフイベント表!I17<=11),支出計画!$D$25,IF(AND(ライフイベント表!I17>=12,ライフイベント表!I17<=14),支出計画!$D$26,IF(AND(ライフイベント表!I17>=15,ライフイベント表!I17<=17),支出計画!$D$27,IF(ライフイベント表!I17=18,支出計画!$D$28,IF(AND(ライフイベント表!I17>=19,ライフイベント表!I17<=21),支出計画!$D$29,0)))))))+IF(ライフイベント表!J17="",0,IF(AND(ライフイベント表!J17>=0,ライフイベント表!J17<=5),支出計画!$D$24,IF(AND(ライフイベント表!J17>=6,ライフイベント表!J17<=11),支出計画!$D$25,IF(AND(ライフイベント表!J17>=12,ライフイベント表!J17<=14),支出計画!$D$26,IF(AND(ライフイベント表!J17>=15,ライフイベント表!J17<=17),支出計画!$D$27,IF(ライフイベント表!J17=18,支出計画!$D$28,IF(AND(ライフイベント表!J17>=19,ライフイベント表!J17<=21),支出計画!$D$29,0))))))))*POWER(1.02,B18-1) -> 230.2619802 | U18: =SUMPRODUCT((保険!$G$5:$G$15<=C18)*(保険!$H$5:$H$15>=C18)*保険!$F$5:$F$15)+IF(AND(D18<>"",D18>=基本情報!$C$15),支出計画!$C$48,0) -> 53.08 | V18: =支出計画!$C$9 -> 36 | W18: =IF(AND(C18>=支出計画!$D$35,C18<=支出計画!$F$35,MOD(C18-支出計画!$D$35,支出計画!$E$35)=0),支出計画!$C$35,0)+IF(AND(C18>=支出計画!$D$36,C18<=支出計画!$F$36,MOD(C18-支出計画!$D$36,支出計画!$E$36)=0),支出計画!$C$36,0)+IF(C18=支出計画!$D$37,支出計画!$C$37,0)+IF(C18=支出計画!$D$38,支出計画!$C$38,0)+IF(C18=支出計画!$D$39,支出計画!$C$39,0)+IF(C18=支出計画!$D$40,支出計画!$C$40,0)+IF(C18=支出計画!$D$41,支出計画!$C$41,0)+IF(C18>=支出計画!$E$17,支出計画!$C$17,0)+IF(C18>=支出計画!$E$18,支出計画!$C$18,0) -> 32 | X18: 905.8560972 | Y18: 77.57106476 | Z18: =Z17*(1+金融資産!$C$21)+Y18 -> 1207.0383
B19: 15 | C19: =基本情報!$C$3+B19-1 -> 2036 | D19: =IF(基本情報!$D$6="","",C19-YEAR(基本情報!$D$6)-IF(OR(MONTH(基本情報!$D$6)>1,DAY(基本情報!$D$6)>1),1,0)) -> 49 | E19: =IF(基本情報!$D$7="","",C19-YEAR(基本情報!$D$7)-IF(OR(MONTH(基本情報!$D$7)>1,DAY(基本情報!$D$7)>1),1,0)) -> 48 | F19: =IF(OR(基本情報!$D$8="",C19<=YEAR(基本情報!$D$8)),"",MAX(0,C19-YEAR(基本情報!$D$8)-IF(OR(MONTH(基本情報!$D$8)>1,DAY(基本情報!$D$8)>1),1,0))) -> 17 | G19: =IF(OR(基本情報!$D$9="",C19<=YEAR(基本情報!$D$9)),"",MAX(0,C19-YEAR(基本情報!$D$9)-IF(OR(MONTH(基本情報!$D$9)>1,DAY(基本情報!$D$9)>1),1,0))) -> 15 | H19: =IF(OR(基本情報!$D$10="",C19<=YEAR(基本情報!$D$10)),"",MAX(0,C19-YEAR(基本情報!$D$10)-IF(OR(MONTH(基本情報!$D$10)>1,DAY(基本情報!$D$10)>1),1,0))) -> 8 | I19: =IF(OR(基本情報!$D$11="",C19<=YEAR(基本情報!$D$11)),"",MAX(0,C19-YEAR(基本情報!$D$11)-IF(OR(MONTH(基本情報!$D$11)>1,DAY(基本情報!$D$11)>1),1,0))) ->  | J19: =IF(OR(基本情報!$D$12="",C19<=YEAR(基本情報!$D$12)),"",MAX(0,C19-YEAR(基本情報!$D$12)-IF(OR(MONTH(基本情報!$D$12)>1,DAY(基本情報!$D$12)>1),1,0))) ->  | K19: =IF(D19="","",IF(D19<基本情報!$C$15,MAX(0,収入計画!$D$5*(1+収入計画!$E$5)^(B19-1)),IF(AND(D19>=基本情報!$C$15,D19<基本情報!$C$20),MAX(0,基本情報!$C$19*(収入計画!$D$5/収入計画!$C$5)*(1+収入計画!$F$5)^(D19-基本情報!$C$15)),0))) -> 551.7476224 | L19: =IF(E19="","",IF(E19<基本情報!$D$15,MAX(0,収入計画!$D$6*(1+収入計画!$E$6)^(B19-1))*IF(IFERROR(IF(AND(E19>=収入計画!$C$10-2,E19<収入計画!$C$11),1,0),0)+IFERROR(IF(AND(E19>=収入計画!$C$13-2,E19<収入計画!$C$14),1,0),0)+IFERROR(IF(AND(E19>=収入計画!$C$16-2,E19<収入計画!$C$17),1,0),0)+IFERROR(IF(AND(E19>=収入計画!$C$19-2,E19<収入計画!$C$20),1,0),0)+IFERROR(IF(AND(E19>=収入計画!$C$22-2,E19<収入計画!$C$23),1,0),0)>0,0.5,1),IF(AND(E19>=基本情報!$D$15,E19<基本情報!$D$20),MAX(0,基本情報!$D$19*(収入計画!$D$6/収入計画!$C$6)*(1+収入計画!$F$6)^(E19-基本情報!$D$15)),0))) -> 275.8738112 | M19: =IF(OR(D19="",E19=""),"",IF(D19=基本情報!$C$15,基本情報!$C$16,0)+IF(E19=基本情報!$D$15,基本情報!$D$16,0)) -> 0 | N19: =IF(D19="","",IF(OR(D19>=基本情報!$C$17,E19>=基本情報!$D$17),MAX(0,IF(D19>=基本情報!$C$17,基本情報!$C$18*12,0)+IF(AND(E19<>"",E19>=基本情報!$D$17),基本情報!$D$18*12,0)),"")) ->  | O19: =SUMPRODUCT((収入計画!$D$27:$D$42<=C19)*(収入計画!$E$27:$E$42>=C19)*収入計画!$C$27:$C$42) -> 36 | P19: 863.6214335 | Q19: =IF(D19<基本情報!$C$15,支出計画!$C$5*(1+支出計画!$D$5)^(B19-1),支出計画!$C$46)-IF(MIN(F19:J19)>=22,支出計画!$C$49,0) -> 356.3370061 | R19: =IF(C19<住宅ローン償還表!$C$9,支出計画!$C$7,0)+IF(AND(C19>=支出計画!$E$8,C19<=支出計画!$F$8),支出計画!$C$8,0)+IF(AND(D19<>"",D19>=基本情報!$C$15),支出計画!$C$47,0) -> 20 | S19: =IFERROR(VLOOKUP(C19,住宅ローン償還表!$C$17:$H$51,6,FALSE()),0) -> 181.7052 | T19: =(IF(ライフイベント表!F18="",0,IF(AND(ライフイベント表!F18>=0,ライフイベント表!F18<=5),支出計画!$D$24,IF(AND(ライフイベント表!F18>=6,ライフイベント表!F18<=11),支出計画!$D$25,IF(AND(ライフイベント表!F18>=12,ライフイベント表!F18<=14),支出計画!$D$26,IF(AND(ライフイベント表!F18>=15,ライフイベント表!F18<=17),支出計画!$D$27,IF(ライフイベント表!F18=18,支出計画!$D$28,IF(AND(ライフイベント表!F18>=19,ライフイベント表!F18<=21),支出計画!$D$29,0)))))))+IF(ライフイベント表!G18="",0,IF(AND(ライフイベント表!G18>=0,ライフイベント表!G18<=5),支出計画!$D$24,IF(AND(ライフイベント表!G18>=6,ライフイベント表!G18<=11),支出計画!$D$25,IF(AND(ライフイベント表!G18>=12,ライフイベント表!G18<=14),支出計画!$D$26,IF(AND(ライフイベント表!G18>=15,ライフイベント表!G18<=17),支出計画!$D$27,IF(ライフイベント表!G18=18,支出計画!$D$28,IF(AND(ライフイベント表!G18>=19,ライフイベント表!G18<=21),支出計画!$D$29,0)))))))+IF(ライフイベント表!H18="",0,IF(AND(ライフイベント表!H18>=0,ライフイベント表!H18<=5),支出計画!$D$24,IF(AND(ライフイベント表!H18>=6,ライフイベント表!H18<=11),支出計画!$D$25,IF(AND(ライフイベント表!H18>=12,ライフイベント表!H18<=14),支出計画!$D$26,IF(AND(ライフイベント表!H18>=15,ライフイベント表!H18<=17),支出計画!$D$27,IF(ライフイベント表!H18=18,支出計画!$D$28,IF(AND(ライフイベント表!H18>=19,ライフイベント表!H18<=21),支出計画!$D$29,0)))))))+IF(ライフイベント表!I18="",0,IF(AND(ライフイベント表!I18>=0,ライフイベント表!I18<=5),支出計画!$D$24,IF(AND(ライフイベント表!I18>=6,ライフイベント表!I18<=11),支出計画!$D$25,IF(AND(ライフイベント表!I18>=12,ライフイベント表!I18<=14),支出計画!$D$26,IF(AND(ライフイベント表!I18>=15,ライフイベント表!I18<=17),支出計画!$D$27,IF(ライフイベント表!I18=18,支出計画!$D$28,IF(AND(ライフイベント表!I18>=19,ライフイベント表!I18<=21),支出計画!$D$29,0)))))))+IF(ライフイベント表!J18="",0,IF(AND(ライフイベント表!J18>=0,ライフイベント表!J18<=5),支出計画!$D$24,IF(AND(ライフイベント表!J18>=6,ライフイベント表!J18<=11),支出計画!$D$25,IF(AND(ライフイベント表!J18>=12,ライフイベント表!J18<=14),支出計画!$D$26,IF(AND(ライフイベント表!J18>=15,ライフイベント表!J18<=17),支出計画!$D$27,IF(ライフイベント表!J18=18,支出計画!$D$28,IF(AND(ライフイベント表!J18>=19,ライフイベント表!J18<=21),支出計画!$D$29,0))))))))*POWER(1.02,B19-1) -> 298.2022005 | U19: =SUMPRODUCT((保険!$G$5:$G$15<=C19)*(保険!$H$5:$H$15>=C19)*保険!$F$5:$F$15)+IF(AND(D19<>"",D19>=基本情報!$C$15),支出計画!$C$48,0) -> 46.84 | V19: =支出計画!$C$9 -> 36 | W19: =IF(AND(C19>=支出計画!$D$35,C19<=支出計画!$F$35,MOD(C19-支出計画!$D$35,支出計画!$E$35)=0),支出計画!$C$35,0)+IF(AND(C19>=支出計画!$D$36,C19<=支出計画!$F$36,MOD(C19-支出計画!$D$36,支出計画!$E$36)=0),支出計画!$C$36,0)+IF(C19=支出計画!$D$37,支出計画!$C$37,0)+IF(C19=支出計画!$D$38,支出計画!$C$38,0)+IF(C19=支出計画!$D$39,支出計画!$C$39,0)+IF(C19=支出計画!$D$40,支出計画!$C$40,0)+IF(C19=支出計画!$D$41,支出計画!$C$41,0)+IF(C19>=支出計画!$E$17,支出計画!$C$17,0)+IF(C19>=支出計画!$E$18,支出計画!$C$18,0) -> 32 | X19: 971.0844066 | Y19: -107.462973 | Z19: =Z18*(1+金融資産!$C$21)+Y19 -> 1105.610518
B20: 16 | C20: =基本情報!$C$3+B20-1 -> 2037 | D20: =IF(基本情報!$D$6="","",C20-YEAR(基本情報!$D$6)-IF(OR(MONTH(基本情報!$D$6)>1,DAY(基本情報!$D$6)>1),1,0)) -> 50 | E20: =IF(基本情報!$D$7="","",C20-YEAR(基本情報!$D$7)-IF(OR(MONTH(基本情報!$D$7)>1,DAY(基本情報!$D$7)>1),1,0)) -> 49 | F20: =IF(OR(基本情報!$D$8="",C20<=YEAR(基本情報!$D$8)),"",MAX(0,C20-YEAR(基本情報!$D$8)-IF(OR(MONTH(基本情報!$D$8)>1,DAY(基本情報!$D$8)>1),1,0))) -> 18 | G20: =IF(OR(基本情報!$D$9="",C20<=YEAR(基本情報!$D$9)),"",MAX(0,C20-YEAR(基本情報!$D$9)-IF(OR(MONTH(基本情報!$D$9)>1,DAY(基本情報!$D$9)>1),1,0))) -> 16 | H20: =IF(OR(基本情報!$D$10="",C20<=YEAR(基本情報!$D$10)),"",MAX(0,C20-YEAR(基本情報!$D$10)-IF(OR(MONTH(基本情報!$D$10)>1,DAY(基本情報!$D$10)>1),1,0))) -> 9 | I20: =IF(OR(基本情報!$D$11="",C20<=YEAR(基本情報!$D$11)),"",MAX(0,C20-YEAR(基本情報!$D$11)-IF(OR(MONTH(基本情報!$D$11)>1,DAY(基本情報!$D$11)>1),1,0))) ->  | J20: =IF(OR(基本情報!$D$12="",C20<=YEAR(基本情報!$D$12)),"",MAX(0,C20-YEAR(基本情報!$D$12)-IF(OR(MONTH(基本情報!$D$12)>1,DAY(基本情報!$D$12)>1),1,0))) ->  | K20: =IF(D20="","",IF(D20<基本情報!$C$15,MAX(0,収入計画!$D$5*(1+収入計画!$E$5)^(B20-1)),IF(AND(D20>=基本情報!$C$15,D20<基本情報!$C$20),MAX(0,基本情報!$C$19*(収入計画!$D$5/収入計画!$C$5)*(1+収入計画!$F$5)^(D20-基本情報!$C$15)),0))) -> 557.2650986 | L20: =IF(E20="","",IF(E20<基本情報!$D$15,MAX(0,収入計画!$D$6*(1+収入計画!$E$6)^(B20-1))*IF(IFERROR(IF(AND(E20>=収入計画!$C$10-2,E20<収入計画!$C$11),1,0),0)+IFERROR(IF(AND(E20>=収入計画!$C$13-2,E20<収入計画!$C$14),1,0),0)+IFERROR(IF(AND(E20>=収入計画!$C$16-2,E20<収入計画!$C$17),1,0),0)+IFERROR(IF(AND(E20>=収入計画!$C$19-2,E20<収入計画!$C$20),1,0),0)+IFERROR(IF(AND(E20>=収入計画!$C$22-2,E20<収入計画!$C$23),1,0),0)>0,0.5,1),IF(AND(E20>=基本情報!$D$15,E20<基本情報!$D$20),MAX(0,基本情報!$D$19*(収入計画!$D$6/収入計画!$C$6)*(1+収入計画!$F$6)^(E20-基本情報!$D$15)),0))) -> 278.6325493 | M20: =IF(OR(D20="",E20=""),"",IF(D20=基本情報!$C$15,基本情報!$C$16,0)+IF(E20=基本情報!$D$15,基本情報!$D$16,0)) -> 0 | N20: =IF(D20="","",IF(OR(D20>=基本情報!$C$17,E20>=基本情報!$D$17),MAX(0,IF(D20>=基本情報!$C$17,基本情報!$C$18*12,0)+IF(AND(E20<>"",E20>=基本情報!$D$17),基本情報!$D$18*12,0)),"")) ->  | O20: =SUMPRODUCT((収入計画!$D$27:$D$42<=C20)*(収入計画!$E$27:$E$42>=C20)*収入計画!$C$27:$C$42) -> 146 | P20: 981.8976479 | Q20: =IF(D20<基本情報!$C$15,支出計画!$C$5*(1+支出計画!$D$5)^(B20-1),支出計画!$C$46)-IF(MIN(F20:J20)>=22,支出計画!$C$49,0) -> 359.9003762 | R20: =IF(C20<住宅ローン償還表!$C$9,支出計画!$C$7,0)+IF(AND(C20>=支出計画!$E$8,C20<=支出計画!$F$8),支出計画!$C$8,0)+IF(AND(D20<>"",D20>=基本情報!$C$15),支出計画!$C$47,0) -> 20 | S20: =IFERROR(VLOOKUP(C20,住宅ローン償還表!$C$17:$H$51,6,FALSE()),0) -> 181.7052 | T20: =(IF(ライフイベント表!F19="",0,IF(AND(ライフイベント表!F19>=0,ライフイベント表!F19<=5),支出計画!$D$24,IF(AND(ライフイベント表!F19>=6,ライフイベント表!F19<=11),支出計画!$D$25,IF(AND(ライフイベント表!F19>=12,ライフイベント表!F19<=14),支出計画!$D$26,IF(AND(ライフイベント表!F19>=15,ライフイベント表!F19<=17),支出計画!$D$27,IF(ライフイベント表!F19=18,支出計画!$D$28,IF(AND(ライフイベント表!F19>=19,ライフイベント表!F19<=21),支出計画!$D$29,0)))))))+IF(ライフイベント表!G19="",0,IF(AND(ライフイベント表!G19>=0,ライフイベント表!G19<=5),支出計画!$D$24,IF(AND(ライフイベント表!G19>=6,ライフイベント表!G19<=11),支出計画!$D$25,IF(AND(ライフイベント表!G19>=12,ライフイベント表!G19<=14),支出計画!$D$26,IF(AND(ライフイベント表!G19>=15,ライフイベント表!G19<=17),支出計画!$D$27,IF(ライフイベント表!G19=18,支出計画!$D$28,IF(AND(ライフイベント表!G19>=19,ライフイベント表!G19<=21),支出計画!$D$29,0)))))))+IF(ライフイベント表!H19="",0,IF(AND(ライフイベント表!H19>=0,ライフイベント表!H19<=5),支出計画!$D$24,IF(AND(ライフイベント表!H19>=6,ライフイベント表!H19<=11),支出計画!$D$25,IF(AND(ライフイベント表!H19>=12,ライフイベント表!H19<=14),支出計画!$D$26,IF(AND(ライフイベント表!H19>=15,ライフイベント表!H19<=17),支出計画!$D$27,IF(ライフイベント表!H19=18,支出計画!$D$28,IF(AND(ライフイベント表!H19>=19,ライフイベント表!H19<=21),支出計画!$D$29,0)))))))+IF(ライフイベント表!I19="",0,IF(AND(ライフイベント表!I19>=0,ライフイベント表!I19<=5),支出計画!$D$24,IF(AND(ライフイベント表!I19>=6,ライフイベント表!I19<=11),支出計画!$D$25,IF(AND(ライフイベント表!I19>=12,ライフイベント表!I19<=14),支出計画!$D$26,IF(AND(ライフイベント表!I19>=15,ライフイベント表!I19<=17),支出計画!$D$27,IF(ライフイベント表!I19=18,支出計画!$D$28,IF(AND(ライフイベント表!I19>=19,ライフイベント表!I19<=21),支出計画!$D$29,0)))))))+IF(ライフイベント表!J19="",0,IF(AND(ライフイベント表!J19>=0,ライフイベント表!J19<=5),支出計画!$D$24,IF(AND(ライフイベント表!J19>=6,ライフイベント表!J19<=11),支出計画!$D$25,IF(AND(ライフイベント表!J19>=12,ライフイベント表!J19<=14),支出計画!$D$26,IF(AND(ライフイベント表!J19>=15,ライフイベント表!J19<=17),支出計画!$D$27,IF(ライフイベント表!J19=18,支出計画!$D$28,IF(AND(ライフイベント表!J19>=19,ライフイベント表!J19<=21),支出計画!$D$29,0))))))))*POWER(1.02,B20-1) -> 353.963373 | U20: =SUMPRODUCT((保険!$G$5:$G$15<=C20)*(保険!$H$5:$H$15>=C20)*保険!$F$5:$F$15)+IF(AND(D20<>"",D20>=基本情報!$C$15),支出計画!$C$48,0) -> 46.84 | V20: =支出計画!$C$9 -> 36 | W20: =IF(AND(C20>=支出計画!$D$35,C20<=支出計画!$F$35,MOD(C20-支出計画!$D$35,支出計画!$E$35)=0),支出計画!$C$35,0)+IF(AND(C20>=支出計画!$D$36,C20<=支出計画!$F$36,MOD(C20-支出計画!$D$36,支出計画!$E$36)=0),支出計画!$C$36,0)+IF(C20=支出計画!$D$37,支出計画!$C$37,0)+IF(C20=支出計画!$D$38,支出計画!$C$38,0)+IF(C20=支出計画!$D$39,支出計画!$C$39,0)+IF(C20=支出計画!$D$40,支出計画!$C$40,0)+IF(C20=支出計画!$D$41,支出計画!$C$41,0)+IF(C20>=支出計画!$E$17,支出計画!$C$17,0)+IF(C20>=支出計画!$E$18,支出計画!$C$18,0) -> 32 | X20: 1030.408949 | Y20: -48.51130128 | Z20: =Z19*(1+金融資産!$C$21)+Y20 -> 1062.62727
B21: 17 | C21: =基本情報!$C$3+B21-1 -> 2038 | D21: =IF(基本情報!$D$6="","",C21-YEAR(基本情報!$D$6)-IF(OR(MONTH(基本情報!$D$6)>1,DAY(基本情報!$D$6)>1),1,0)) -> 51 | E21: =IF(基本情報!$D$7="","",C21-YEAR(基本情報!$D$7)-IF(OR(MONTH(基本情報!$D$7)>1,DAY(基本情報!$D$7)>1),1,0)) -> 50 | F21: =IF(OR(基本情報!$D$8="",C21<=YEAR(基本情報!$D$8)),"",MAX(0,C21-YEAR(基本情報!$D$8)-IF(OR(MONTH(基本情報!$D$8)>1,DAY(基本情報!$D$8)>1),1,0))) -> 19 | G21: =IF(OR(基本情報!$D$9="",C21<=YEAR(基本情報!$D$9)),"",MAX(0,C21-YEAR(基本情報!$D$9)-IF(OR(MONTH(基本情報!$D$9)>1,DAY(基本情報!$D$9)>1),1,0))) -> 17 | H21: =IF(OR(基本情報!$D$10="",C21<=YEAR(基本情報!$D$10)),"",MAX(0,C21-YEAR(基本情報!$D$10)-IF(OR(MONTH(基本情報!$D$10)>1,DAY(基本情報!$D$10)>1),1,0))) -> 10 | I21: =IF(OR(基本情報!$D$11="",C21<=YEAR(基本情報!$D$11)),"",MAX(0,C21-YEAR(基本情報!$D$11)-IF(OR(MONTH(基本情報!$D$11)>1,DAY(基本情報!$D$11)>1),1,0))) ->  | J21: =IF(OR(基本情報!$D$12="",C21<=YEAR(基本情報!$D$12)),"",MAX(0,C21-YEAR(基本情報!$D$12)-IF(OR(MONTH(基本情報!$D$12)>1,DAY(基本情報!$D$12)>1),1,0))) ->  | K21: =IF(D21="","",IF(D21<基本情報!$C$15,MAX(0,収入計画!$D$5*(1+収入計画!$E$5)^(B21-1)),IF(AND(D21>=基本情報!$C$15,D21<基本情報!$C$20),MAX(0,基本情報!$C$19*(収入計画!$D$5/収入計画!$C$5)*(1+収入計画!$F$5)^(D21-基本情報!$C$15)),0))) -> 562.8377496 | L21: =IF(E21="","",IF(E21<基本情報!$D$15,MAX(0,収入計画!$D$6*(1+収入計画!$E$6)^(B21-1))*IF(IFERROR(IF(AND(E21>=収入計画!$C$10-2,E21<収入計画!$C$11),1,0),0)+IFERROR(IF(AND(E21>=収入計画!$C$13-2,E21<収入計画!$C$14),1,0),0)+IFERROR(IF(AND(E21>=収入計画!$C$16-2,E21<収入計画!$C$17),1,0),0)+IFERROR(IF(AND(E21>=収入計画!$C$19-2,E21<収入計画!$C$20),1,0),0)+IFERROR(IF(AND(E21>=収入計画!$C$22-2,E21<収入計画!$C$23),1,0),0)>0,0.5,1),IF(AND(E21>=基本情報!$D$15,E21<基本情報!$D$20),MAX(0,基本情報!$D$19*(収入計画!$D$6/収入計画!$C$6)*(1+収入計画!$F$6)^(E21-基本情報!$D$15)),0))) -> 281.4188748 | M21: =IF(OR(D21="",E21=""),"",IF(D21=基本情報!$C$15,基本情報!$C$16,0)+IF(E21=基本情報!$D$15,基本情報!$D$16,0)) -> 0 | N21: =IF(D21="","",IF(OR(D21>=基本情報!$C$17,E21>=基本情報!$D$17),MAX(0,IF(D21>=基本情報!$C$17,基本情報!$C$18*12,0)+IF(AND(E21<>"",E21>=基本情報!$D$17),基本情報!$D$18*12,0)),"")) ->  | O21: =SUMPRODUCT((収入計画!$D$27:$D$42<=C21)*(収入計画!$E$27:$E$42>=C21)*収入計画!$C$27:$C$42) -> 36 | P21: 880.2566243 | Q21: =IF(D21<基本情報!$C$15,支出計画!$C$5*(1+支出計画!$D$5)^(B21-1),支出計画!$C$46)-IF(MIN(F21:J21)>=22,支出計画!$C$49,0) -> 363.4993799 | R21: =IF(C21<住宅ローン償還表!$C$9,支出計画!$C$7,0)+IF(AND(C21>=支出計画!$E$8,C21<=支出計画!$F$8),支出計画!$C$8,0)+IF(AND(D21<>"",D21>=基本情報!$C$15),支出計画!$C$47,0) -> 20 | S21: =IFERROR(VLOOKUP(C21,住宅ローン償還表!$C$17:$H$51,6,FALSE()),0) -> 181.7052 | T21: =(IF(ライフイベント表!F20="",0,IF(AND(ライフイベント表!F20>=0,ライフイベント表!F20<=5),支出計画!$D$24,IF(AND(ライフイベント表!F20>=6,ライフイベント表!F20<=11),支出計画!$D$25,IF(AND(ライフイベント表!F20>=12,ライフイベント表!F20<=14),支出計画!$D$26,IF(AND(ライフイベント表!F20>=15,ライフイベント表!F20<=17),支出計画!$D$27,IF(ライフイベント表!F20=18,支出計画!$D$28,IF(AND(ライフイベント表!F20>=19,ライフイベント表!F20<=21),支出計画!$D$29,0)))))))+IF(ライフイベント表!G20="",0,IF(AND(ライフイベント表!G20>=0,ライフイベント表!G20<=5),支出計画!$D$24,IF(AND(ライフイベント表!G20>=6,ライフイベント表!G20<=11),支出計画!$D$25,IF(AND(ライフイベント表!G20>=12,ライフイベント表!G20<=14),支出計画!$D$26,IF(AND(ライフイベント表!G20>=15,ライフイベント表!G20<=17),支出計画!$D$27,IF(ライフイベント表!G20=18,支出計画!$D$28,IF(AND(ライフイベント表!G20>=19,ライフイベント表!G20<=21),支出計画!$D$29,0)))))))+IF(ライフイベント表!H20="",0,IF(AND(ライフイベント表!H20>=0,ライフイベント表!H20<=5),支出計画!$D$24,IF(AND(ライフイベント表!H20>=6,ライフイベント表!H20<=11),支出計画!$D$25,IF(AND(ライフイベント表!H20>=12,ライフイベント表!H20<=14),支出計画!$D$26,IF(AND(ライフイベント表!H20>=15,ライフイベント表!H20<=17),支出計画!$D$27,IF(ライフイベント表!H20=18,支出計画!$D$28,IF(AND(ライフイベント表!H20>=19,ライフイベント表!H20<=21),支出計画!$D$29,0)))))))+IF(ライフイベント表!I20="",0,IF(AND(ライフイベント表!I20>=0,ライフイベント表!I20<=5),支出計画!$D$24,IF(AND(ライフイベント表!I20>=6,ライフイベント表!I20<=11),支出計画!$D$25,IF(AND(ライフイベント表!I20>=12,ライフイベント表!I20<=14),支出計画!$D$26,IF(AND(ライフイベント表!I20>=15,ライフイベント表!I20<=17),支出計画!$D$27,IF(ライフイベント表!I20=18,支出計画!$D$28,IF(AND(ライフイベント表!I20>=19,ライフイベント表!I20<=21),支出計画!$D$29,0)))))))+IF(ライフイベント表!J20="",0,IF(AND(ライフイベント表!J20>=0,ライフイベント表!J20<=5),支出計画!$D$24,IF(AND(ライフイベント表!J20>=6,ライフイベント表!J20<=11),支出計画!$D$25,IF(AND(ライフイベント表!J20>=12,ライフイベント表!J20<=14),支出計画!$D$26,IF(AND(ライフイベント表!J20>=15,ライフイベント表!J20<=17),支出計画!$D$27,IF(ライフイベント表!J20=18,支出計画!$D$28,IF(AND(ライフイベント表!J20>=19,ライフイベント表!J20<=21),支出計画!$D$29,0))))))))*POWER(1.02,B21-1) -> 326.7229978 | U21: =SUMPRODUCT((保険!$G$5:$G$15<=C21)*(保険!$H$5:$H$15>=C21)*保険!$F$5:$F$15)+IF(AND(D21<>"",D21>=基本情報!$C$15),支出計画!$C$48,0) -> 40.6 | V21: =支出計画!$C$9 -> 36 | W21: =IF(AND(C21>=支出計画!$D$35,C21<=支出計画!$F$35,MOD(C21-支出計画!$D$35,支出計画!$E$35)=0),支出計画!$C$35,0)+IF(AND(C21>=支出計画!$D$36,C21<=支出計画!$F$36,MOD(C21-支出計画!$D$36,支出計画!$E$36)=0),支出計画!$C$36,0)+IF(C21=支出計画!$D$37,支出計画!$C$37,0)+IF(C21=支出計画!$D$38,支出計画!$C$38,0)+IF(C21=支出計画!$D$39,支出計画!$C$39,0)+IF(C21=支出計画!$D$40,支出計画!$C$40,0)+IF(C21=支出計画!$D$41,支出計画!$C$41,0)+IF(C21>=支出計画!$E$17,支出計画!$C$17,0)+IF(C21>=支出計画!$E$18,支出計画!$C$18,0) -> 242 | X21: 1210.527578 | Y21: -330.2709534 | Z21: =Z20*(1+金融資産!$C$21)+Y21 -> 737.6694527
B22: 18 | C22: =基本情報!$C$3+B22-1 -> 2039 | D22: =IF(基本情報!$D$6="","",C22-YEAR(基本情報!$D$6)-IF(OR(MONTH(基本情報!$D$6)>1,DAY(基本情報!$D$6)>1),1,0)) -> 52 | E22: =IF(基本情報!$D$7="","",C22-YEAR(基本情報!$D$7)-IF(OR(MONTH(基本情報!$D$7)>1,DAY(基本情報!$D$7)>1),1,0)) -> 51 | F22: =IF(OR(基本情報!$D$8="",C22<=YEAR(基本情報!$D$8)),"",MAX(0,C22-YEAR(基本情報!$D$8)-IF(OR(MONTH(基本情報!$D$8)>1,DAY(基本情報!$D$8)>1),1,0))) -> 20 | G22: =IF(OR(基本情報!$D$9="",C22<=YEAR(基本情報!$D$9)),"",MAX(0,C22-YEAR(基本情報!$D$9)-IF(OR(MONTH(基本情報!$D$9)>1,DAY(基本情報!$D$9)>1),1,0))) -> 18 | H22: =IF(OR(基本情報!$D$10="",C22<=YEAR(基本情報!$D$10)),"",MAX(0,C22-YEAR(基本情報!$D$10)-IF(OR(MONTH(基本情報!$D$10)>1,DAY(基本情報!$D$10)>1),1,0))) -> 11 | I22: =IF(OR(基本情報!$D$11="",C22<=YEAR(基本情報!$D$11)),"",MAX(0,C22-YEAR(基本情報!$D$11)-IF(OR(MONTH(基本情報!$D$11)>1,DAY(基本情報!$D$11)>1),1,0))) ->  | J22: =IF(OR(基本情報!$D$12="",C22<=YEAR(基本情報!$D$12)),"",MAX(0,C22-YEAR(基本情報!$D$12)-IF(OR(MONTH(基本情報!$D$12)>1,DAY(基本情報!$D$12)>1),1,0))) ->  | K22: =IF(D22="","",IF(D22<基本情報!$C$15,MAX(0,収入計画!$D$5*(1+収入計画!$E$5)^(B22-1)),IF(AND(D22>=基本情報!$C$15,D22<基本情報!$C$20),MAX(0,基本情報!$C$19*(収入計画!$D$5/収入計画!$C$5)*(1+収入計画!$F$5)^(D22-基本情報!$C$15)),0))) -> 568.4661271 | L22: =IF(E22="","",IF(E22<基本情報!$D$15,MAX(0,収入計画!$D$6*(1+収入計画!$E$6)^(B22-1))*IF(IFERROR(IF(AND(E22>=収入計画!$C$10-2,E22<収入計画!$C$11),1,0),0)+IFERROR(IF(AND(E22>=収入計画!$C$13-2,E22<収入計画!$C$14),1,0),0)+IFERROR(IF(AND(E22>=収入計画!$C$16-2,E22<収入計画!$C$17),1,0),0)+IFERROR(IF(AND(E22>=収入計画!$C$19-2,E22<収入計画!$C$20),1,0),0)+IFERROR(IF(AND(E22>=収入計画!$C$22-2,E22<収入計画!$C$23),1,0),0)>0,0.5,1),IF(AND(E22>=基本情報!$D$15,E22<基本情報!$D$20),MAX(0,基本情報!$D$19*(収入計画!$D$6/収入計画!$C$6)*(1+収入計画!$F$6)^(E22-基本情報!$D$15)),0))) -> 284.2330635 | M22: =IF(OR(D22="",E22=""),"",IF(D22=基本情報!$C$15,基本情報!$C$16,0)+IF(E22=基本情報!$D$15,基本情報!$D$16,0)) -> 0 | N22: =IF(D22="","",IF(OR(D22>=基本情報!$C$17,E22>=基本情報!$D$17),MAX(0,IF(D22>=基本情報!$C$17,基本情報!$C$18*12,0)+IF(AND(E22<>"",E22>=基本情報!$D$17),基本情報!$D$18*12,0)),"")) ->  | O22: =SUMPRODUCT((収入計画!$D$27:$D$42<=C22)*(収入計画!$E$27:$E$42>=C22)*収入計画!$C$27:$C$42) -> 36 | P22: 888.6991906 | Q22: =IF(D22<基本情報!$C$15,支出計画!$C$5*(1+支出計画!$D$5)^(B22-1),支出計画!$C$46)-IF(MIN(F22:J22)>=22,支出計画!$C$49,0) -> 367.1343737 | R22: =IF(C22<住宅ローン償還表!$C$9,支出計画!$C$7,0)+IF(AND(C22>=支出計画!$E$8,C22<=支出計画!$F$8),支出計画!$C$8,0)+IF(AND(D22<>"",D22>=基本情報!$C$15),支出計画!$C$47,0) -> 20 | S22: =IFERROR(VLOOKUP(C22,住宅ローン償還表!$C$17:$H$51,6,FALSE()),0) -> 181.7052 | T22: =(IF(ライフイベント表!F21="",0,IF(AND(ライフイベント表!F21>=0,ライフイベント表!F21<=5),支出計画!$D$24,IF(AND(ライフイベント表!F21>=6,ライフイベント表!F21<=11),支出計画!$D$25,IF(AND(ライフイベント表!F21>=12,ライフイベント表!F21<=14),支出計画!$D$26,IF(AND(ライフイベント表!F21>=15,ライフイベント表!F21<=17),支出計画!$D$27,IF(ライフイベント表!F21=18,支出計画!$D$28,IF(AND(ライフイベント表!F21>=19,ライフイベント表!F21<=21),支出計画!$D$29,0)))))))+IF(ライフイベント表!G21="",0,IF(AND(ライフイベント表!G21>=0,ライフイベント表!G21<=5),支出計画!$D$24,IF(AND(ライフイベント表!G21>=6,ライフイベント表!G21<=11),支出計画!$D$25,IF(AND(ライフイベント表!G21>=12,ライフイベント表!G21<=14),支出計画!$D$26,IF(AND(ライフイベント表!G21>=15,ライフイベント表!G21<=17),支出計画!$D$27,IF(ライフイベント表!G21=18,支出計画!$D$28,IF(AND(ライフイベント表!G21>=19,ライフイベント表!G21<=21),支出計画!$D$29,0)))))))+IF(ライフイベント表!H21="",0,IF(AND(ライフイベント表!H21>=0,ライフイベント表!H21<=5),支出計画!$D$24,IF(AND(ライフイベント表!H21>=6,ライフイベント表!H21<=11),支出計画!$D$25,IF(AND(ライフイベント表!H21>=12,ライフイベント表!H21<=14),支出計画!$D$26,IF(AND(ライフイベント表!H21>=15,ライフイベント表!H21<=17),支出計画!$D$27,IF(ライフイベント表!H21=18,支出計画!$D$28,IF(AND(ライフイベント表!H21>=19,ライフイベント表!H21<=21),支出計画!$D$29,0)))))))+IF(ライフイベント表!I21="",0,IF(AND(ライフイベント表!I21>=0,ライフイベント表!I21<=5),支出計画!$D$24,IF(AND(ライフイベント表!I21>=6,ライフイベント表!I21<=11),支出計画!$D$25,IF(AND(ライフイベント表!I21>=12,ライフイベント表!I21<=14),支出計画!$D$26,IF(AND(ライフイベント表!I21>=15,ライフイベント表!I21<=17),支出計画!$D$27,IF(ライフイベント表!I21=18,支出計画!$D$28,IF(AND(ライフイベント表!I21>=19,ライフイベント表!I21<=21),支出計画!$D$29,0)))))))+IF(ライフイベント表!J21="",0,IF(AND(ライフイベント表!J21>=0,ライフイベント表!J21<=5),支出計画!$D$24,IF(AND(ライフイベント表!J21>=6,ライフイベント表!J21<=11),支出計画!$D$25,IF(AND(ライフイベント表!J21>=12,ライフイベント表!J21<=14),支出計画!$D$26,IF(AND(ライフイベント表!J21>=15,ライフイベント表!J21<=17),支出計画!$D$27,IF(ライフイベント表!J21=18,支出計画!$D$28,IF(AND(ライフイベント表!J21>=19,ライフイベント表!J21<=21),支出計画!$D$29,0))))))))*POWER(1.02,B22-1) -> 385.0663903 | U22: =SUMPRODUCT((保険!$G$5:$G$15<=C22)*(保険!$H$5:$H$15>=C22)*保険!$F$5:$F$15)+IF(AND(D22<>"",D22>=基本情報!$C$15),支出計画!$C$48,0) -> 40.6 | V22: =支出計画!$C$9 -> 36 | W22: =IF(AND(C22>=支出計画!$D$35,C22<=支出計画!$F$35,MOD(C22-支出計画!$D$35,支出計画!$E$35)=0),支出計画!$C$35,0)+IF(AND(C22>=支出計画!$D$36,C22<=支出計画!$F$36,MOD(C22-支出計画!$D$36,支出計画!$E$36)=0),支出計画!$C$36,0)+IF(C22=支出計画!$D$37,支出計画!$C$37,0)+IF(C22=支出計画!$D$38,支出計画!$C$38,0)+IF(C22=支出計画!$D$39,支出計画!$C$39,0)+IF(C22=支出計画!$D$40,支出計画!$C$40,0)+IF(C22=支出計画!$D$41,支出計画!$C$41,0)+IF(C22>=支出計画!$E$17,支出計画!$C$17,0)+IF(C22>=支出計画!$E$18,支出計画!$C$18,0) -> 32 | X22: 1062.505964 | Y22: -173.8067734 | Z22: =Z21*(1+金融資産!$C$21)+Y22 -> 567.5510265
B23: 19 | C23: =基本情報!$C$3+B23-1 -> 2040 | D23: =IF(基本情報!$D$6="","",C23-YEAR(基本情報!$D$6)-IF(OR(MONTH(基本情報!$D$6)>1,DAY(基本情報!$D$6)>1),1,0)) -> 53 | E23: =IF(基本情報!$D$7="","",C23-YEAR(基本情報!$D$7)-IF(OR(MONTH(基本情報!$D$7)>1,DAY(基本情報!$D$7)>1),1,0)) -> 52 | F23: =IF(OR(基本情報!$D$8="",C23<=YEAR(基本情報!$D$8)),"",MAX(0,C23-YEAR(基本情報!$D$8)-IF(OR(MONTH(基本情報!$D$8)>1,DAY(基本情報!$D$8)>1),1,0))) -> 21 | G23: =IF(OR(基本情報!$D$9="",C23<=YEAR(基本情報!$D$9)),"",MAX(0,C23-YEAR(基本情報!$D$9)-IF(OR(MONTH(基本情報!$D$9)>1,DAY(基本情報!$D$9)>1),1,0))) -> 19 | H23: =IF(OR(基本情報!$D$10="",C23<=YEAR(基本情報!$D$10)),"",MAX(0,C23-YEAR(基本情報!$D$10)-IF(OR(MONTH(基本情報!$D$10)>1,DAY(基本情報!$D$10)>1),1,0))) -> 12 | I23: =IF(OR(基本情報!$D$11="",C23<=YEAR(基本情報!$D$11)),"",MAX(0,C23-YEAR(基本情報!$D$11)-IF(OR(MONTH(基本情報!$D$11)>1,DAY(基本情報!$D$11)>1),1,0))) ->  | J23: =IF(OR(基本情報!$D$12="",C23<=YEAR(基本情報!$D$12)),"",MAX(0,C23-YEAR(基本情報!$D$12)-IF(OR(MONTH(基本情報!$D$12)>1,DAY(基本情報!$D$12)>1),1,0))) ->  | K23: =IF(D23="","",IF(D23<基本情報!$C$15,MAX(0,収入計画!$D$5*(1+収入計画!$E$5)^(B23-1)),IF(AND(D23>=基本情報!$C$15,D23<基本情報!$C$20),MAX(0,基本情報!$C$19*(収入計画!$D$5/収入計画!$C$5)*(1+収入計画!$F$5)^(D23-基本情報!$C$15)),0))) -> 574.1507883 | L23: =IF(E23="","",IF(E23<基本情報!$D$15,MAX(0,収入計画!$D$6*(1+収入計画!$E$6)^(B23-1))*IF(IFERROR(IF(AND(E23>=収入計画!$C$10-2,E23<収入計画!$C$11),1,0),0)+IFERROR(IF(AND(E23>=収入計画!$C$13-2,E23<収入計画!$C$14),1,0),0)+IFERROR(IF(AND(E23>=収入計画!$C$16-2,E23<収入計画!$C$17),1,0),0)+IFERROR(IF(AND(E23>=収入計画!$C$19-2,E23<収入計画!$C$20),1,0),0)+IFERROR(IF(AND(E23>=収入計画!$C$22-2,E23<収入計画!$C$23),1,0),0)>0,0.5,1),IF(AND(E23>=基本情報!$D$15,E23<基本情報!$D$20),MAX(0,基本情報!$D$19*(収入計画!$D$6/収入計画!$C$6)*(1+収入計画!$F$6)^(E23-基本情報!$D$15)),0))) -> 287.0753942 | M23: =IF(OR(D23="",E23=""),"",IF(D23=基本情報!$C$15,基本情報!$C$16,0)+IF(E23=基本情報!$D$15,基本情報!$D$16,0)) -> 0 | N23: =IF(D23="","",IF(OR(D23>=基本情報!$C$17,E23>=基本情報!$D$17),MAX(0,IF(D23>=基本情報!$C$17,基本情報!$C$18*12,0)+IF(AND(E23<>"",E23>=基本情報!$D$17),基本情報!$D$18*12,0)),"")) ->  | O23: =SUMPRODUCT((収入計画!$D$27:$D$42<=C23)*(収入計画!$E$27:$E$42>=C23)*収入計画!$C$27:$C$42) -> 36 | P23: 897.2261825 | Q23: =IF(D23<基本情報!$C$15,支出計画!$C$5*(1+支出計画!$D$5)^(B23-1),支出計画!$C$46)-IF(MIN(F23:J23)>=22,支出計画!$C$49,0) -> 370.8057175 | R23: =IF(C23<住宅ローン償還表!$C$9,支出計画!$C$7,0)+IF(AND(C23>=支出計画!$E$8,C23<=支出計画!$F$8),支出計画!$C$8,0)+IF(AND(D23<>"",D23>=基本情報!$C$15),支出計画!$C$47,0) -> 20 | S23: =IFERROR(VLOOKUP(C23,住宅ローン償還表!$C$17:$H$51,6,FALSE()),0) -> 181.7052 | T23: =(IF(ライフイベント表!F22="",0,IF(AND(ライフイベント表!F22>=0,ライフイベント表!F22<=5),支出計画!$D$24,IF(AND(ライフイベント表!F22>=6,ライフイベント表!F22<=11),支出計画!$D$25,IF(AND(ライフイベント表!F22>=12,ライフイベント表!F22<=14),支出計画!$D$26,IF(AND(ライフイベント表!F22>=15,ライフイベント表!F22<=17),支出計画!$D$27,IF(ライフイベント表!F22=18,支出計画!$D$28,IF(AND(ライフイベント表!F22>=19,ライフイベント表!F22<=21),支出計画!$D$29,0)))))))+IF(ライフイベント表!G22="",0,IF(AND(ライフイベント表!G22>=0,ライフイベント表!G22<=5),支出計画!$D$24,IF(AND(ライフイベント表!G22>=6,ライフイベント表!G22<=11),支出計画!$D$25,IF(AND(ライフイベント表!G22>=12,ライフイベント表!G22<=14),支出計画!$D$26,IF(AND(ライフイベント表!G22>=15,ライフイベント表!G22<=17),支出計画!$D$27,IF(ライフイベント表!G22=18,支出計画!$D$28,IF(AND(ライフイベント表!G22>=19,ライフイベント表!G22<=21),支出計画!$D$29,0)))))))+IF(ライフイベント表!H22="",0,IF(AND(ライフイベント表!H22>=0,ライフイベント表!H22<=5),支出計画!$D$24,IF(AND(ライフイベント表!H22>=6,ライフイベント表!H22<=11),支出計画!$D$25,IF(AND(ライフイベント表!H22>=12,ライフイベント表!H22<=14),支出計画!$D$26,IF(AND(ライフイベント表!H22>=15,ライフイベント表!H22<=17),支出計画!$D$27,IF(ライフイベント表!H22=18,支出計画!$D$28,IF(AND(ライフイベント表!H22>=19,ライフイベント表!H22<=21),支出計画!$D$29,0)))))))+IF(ライフイベント表!I22="",0,IF(AND(ライフイベント表!I22>=0,ライフイベント表!I22<=5),支出計画!$D$24,IF(AND(ライフイベント表!I22>=6,ライフイベント表!I22<=11),支出計画!$D$25,IF(AND(ライフイベント表!I22>=12,ライフイベント表!I22<=14),支出計画!$D$26,IF(AND(ライフイベント表!I22>=15,ライフイベント表!I22<=17),支出計画!$D$27,IF(ライフイベント表!I22=18,支出計画!$D$28,IF(AND(ライフイベント表!I22>=19,ライフイベント表!I22<=21),支出計画!$D$29,0)))))))+IF(ライフイベント表!J22="",0,IF(AND(ライフイベント表!J22>=0,ライフイベント表!J22<=5),支出計画!$D$24,IF(AND(ライフイベント表!J22>=6,ライフイベント表!J22<=11),支出計画!$D$25,IF(AND(ライフイベント表!J22>=12,ライフイベント表!J22<=14),支出計画!$D$26,IF(AND(ライフイベント表!J22>=15,ライフイベント表!J22<=17),支出計画!$D$27,IF(ライフイベント表!J22=18,支出計画!$D$28,IF(AND(ライフイベント表!J22>=19,ライフイベント表!J22<=21),支出計画!$D$29,0))))))))*POWER(1.02,B23-1) -> 381.3417481 | U23: =SUMPRODUCT((保険!$G$5:$G$15<=C23)*(保険!$H$5:$H$15>=C23)*保険!$F$5:$F$15)+IF(AND(D23<>"",D23>=基本情報!$C$15),支出計画!$C$48,0) -> 40.6 | V23: =支出計画!$C$9 -> 36 | W23: =IF(AND(C23>=支出計画!$D$35,C23<=支出計画!$F$35,MOD(C23-支出計画!$D$35,支出計画!$E$35)=0),支出計画!$C$35,0)+IF(AND(C23>=支出計画!$D$36,C23<=支出計画!$F$36,MOD(C23-支出計画!$D$36,支出計画!$E$36)=0),支出計画!$C$36,0)+IF(C23=支出計画!$D$37,支出計画!$C$37,0)+IF(C23=支出計画!$D$38,支出計画!$C$38,0)+IF(C23=支出計画!$D$39,支出計画!$C$39,0)+IF(C23=支出計画!$D$40,支出計画!$C$40,0)+IF(C23=支出計画!$D$41,支出計画!$C$41,0)+IF(C23>=支出計画!$E$17,支出計画!$C$17,0)+IF(C23>=支出計画!$E$18,支出計画!$C$18,0) -> 32 | X23: 1062.452666 | Y23: -165.2264831 | Z23: =Z22*(1+金融資産!$C$21)+Y23 -> 405.1622986
B24: 20 | C24: =基本情報!$C$3+B24-1 -> 2041 | D24: =IF(基本情報!$D$6="","",C24-YEAR(基本情報!$D$6)-IF(OR(MONTH(基本情報!$D$6)>1,DAY(基本情報!$D$6)>1),1,0)) -> 54 | E24: =IF(基本情報!$D$7="","",C24-YEAR(基本情報!$D$7)-IF(OR(MONTH(基本情報!$D$7)>1,DAY(基本情報!$D$7)>1),1,0)) -> 53 | F24: =IF(OR(基本情報!$D$8="",C24<=YEAR(基本情報!$D$8)),"",MAX(0,C24-YEAR(基本情報!$D$8)-IF(OR(MONTH(基本情報!$D$8)>1,DAY(基本情報!$D$8)>1),1,0))) -> 22 | G24: =IF(OR(基本情報!$D$9="",C24<=YEAR(基本情報!$D$9)),"",MAX(0,C24-YEAR(基本情報!$D$9)-IF(OR(MONTH(基本情報!$D$9)>1,DAY(基本情報!$D$9)>1),1,0))) -> 20 | H24: =IF(OR(基本情報!$D$10="",C24<=YEAR(基本情報!$D$10)),"",MAX(0,C24-YEAR(基本情報!$D$10)-IF(OR(MONTH(基本情報!$D$10)>1,DAY(基本情報!$D$10)>1),1,0))) -> 13 | I24: =IF(OR(基本情報!$D$11="",C24<=YEAR(基本情報!$D$11)),"",MAX(0,C24-YEAR(基本情報!$D$11)-IF(OR(MONTH(基本情報!$D$11)>1,DAY(基本情報!$D$11)>1),1,0))) ->  | J24: =IF(OR(基本情報!$D$12="",C24<=YEAR(基本情報!$D$12)),"",MAX(0,C24-YEAR(基本情報!$D$12)-IF(OR(MONTH(基本情報!$D$12)>1,DAY(基本情報!$D$12)>1),1,0))) ->  | K24: =IF(D24="","",IF(D24<基本情報!$C$15,MAX(0,収入計画!$D$5*(1+収入計画!$E$5)^(B24-1)),IF(AND(D24>=基本情報!$C$15,D24<基本情報!$C$20),MAX(0,基本情報!$C$19*(収入計画!$D$5/収入計画!$C$5)*(1+収入計画!$F$5)^(D24-基本情報!$C$15)),0))) -> 579.8922962 | L24: =IF(E24="","",IF(E24<基本情報!$D$15,MAX(0,収入計画!$D$6*(1+収入計画!$E$6)^(B24-1))*IF(IFERROR(IF(AND(E24>=収入計画!$C$10-2,E24<収入計画!$C$11),1,0),0)+IFERROR(IF(AND(E24>=収入計画!$C$13-2,E24<収入計画!$C$14),1,0),0)+IFERROR(IF(AND(E24>=収入計画!$C$16-2,E24<収入計画!$C$17),1,0),0)+IFERROR(IF(AND(E24>=収入計画!$C$19-2,E24<収入計画!$C$20),1,0),0)+IFERROR(IF(AND(E24>=収入計画!$C$22-2,E24<収入計画!$C$23),1,0),0)>0,0.5,1),IF(AND(E24>=基本情報!$D$15,E24<基本情報!$D$20),MAX(0,基本情報!$D$19*(収入計画!$D$6/収入計画!$C$6)*(1+収入計画!$F$6)^(E24-基本情報!$D$15)),0))) -> 289.9461481 | M24: =IF(OR(D24="",E24=""),"",IF(D24=基本情報!$C$15,基本情報!$C$16,0)+IF(E24=基本情報!$D$15,基本情報!$D$16,0)) -> 0 | N24: =IF(D24="","",IF(OR(D24>=基本情報!$C$17,E24>=基本情報!$D$17),MAX(0,IF(D24>=基本情報!$C$17,基本情報!$C$18*12,0)+IF(AND(E24<>"",E24>=基本情報!$D$17),基本情報!$D$18*12,0)),"")) ->  | O24: =SUMPRODUCT((収入計画!$D$27:$D$42<=C24)*(収入計画!$E$27:$E$42>=C24)*収入計画!$C$27:$C$42) -> 36 | P24: 905.8384443 | Q24: =IF(D24<基本情報!$C$15,支出計画!$C$5*(1+支出計画!$D$5)^(B24-1),支出計画!$C$46)-IF(MIN(F24:J24)>=22,支出計画!$C$49,0) -> 374.5137746 | R24: =IF(C24<住宅ローン償還表!$C$9,支出計画!$C$7,0)+IF(AND(C24>=支出計画!$E$8,C24<=支出計画!$F$8),支出計画!$C$8,0)+IF(AND(D24<>"",D24>=基本情報!$C$15),支出計画!$C$47,0) -> 20 | S24: =IFERROR(VLOOKUP(C24,住宅ローン償還表!$C$17:$H$51,6,FALSE()),0) -> 181.7052 | T24: =(IF(ライフイベント表!F23="",0,IF(AND(ライフイベント表!F23>=0,ライフイベント表!F23<=5),支出計画!$D$24,IF(AND(ライフイベント表!F23>=6,ライフイベント表!F23<=11),支出計画!$D$25,IF(AND(ライフイベント表!F23>=12,ライフイベント表!F23<=14),支出計画!$D$26,IF(AND(ライフイベント表!F23>=15,ライフイベント表!F23<=17),支出計画!$D$27,IF(ライフイベント表!F23=18,支出計画!$D$28,IF(AND(ライフイベント表!F23>=19,ライフイベント表!F23<=21),支出計画!$D$29,0)))))))+IF(ライフイベント表!G23="",0,IF(AND(ライフイベント表!G23>=0,ライフイベント表!G23<=5),支出計画!$D$24,IF(AND(ライフイベント表!G23>=6,ライフイベント表!G23<=11),支出計画!$D$25,IF(AND(ライフイベント表!G23>=12,ライフイベント表!G23<=14),支出計画!$D$26,IF(AND(ライフイベント表!G23>=15,ライフイベント表!G23<=17),支出計画!$D$27,IF(ライフイベント表!G23=18,支出計画!$D$28,IF(AND(ライフイベント表!G23>=19,ライフイベント表!G23<=21),支出計画!$D$29,0)))))))+IF(ライフイベント表!H23="",0,IF(AND(ライフイベント表!H23>=0,ライフイベント表!H23<=5),支出計画!$D$24,IF(AND(ライフイベント表!H23>=6,ライフイベント表!H23<=11),支出計画!$D$25,IF(AND(ライフイベント表!H23>=12,ライフイベント表!H23<=14),支出計画!$D$26,IF(AND(ライフイベント表!H23>=15,ライフイベント表!H23<=17),支出計画!$D$27,IF(ライフイベント表!H23=18,支出計画!$D$28,IF(AND(ライフイベント表!H23>=19,ライフイベント表!H23<=21),支出計画!$D$29,0)))))))+IF(ライフイベント表!I23="",0,IF(AND(ライフイベント表!I23>=0,ライフイベント表!I23<=5),支出計画!$D$24,IF(AND(ライフイベント表!I23>=6,ライフイベント表!I23<=11),支出計画!$D$25,IF(AND(ライフイベント表!I23>=12,ライフイベント表!I23<=14),支出計画!$D$26,IF(AND(ライフイベント表!I23>=15,ライフイベント表!I23<=17),支出計画!$D$27,IF(ライフイベント表!I23=18,支出計画!$D$28,IF(AND(ライフイベント表!I23>=19,ライフイベント表!I23<=21),支出計画!$D$29,0)))))))+IF(ライフイベント表!J23="",0,IF(AND(ライフイベント表!J23>=0,ライフイベント表!J23<=5),支出計画!$D$24,IF(AND(ライフイベント表!J23>=6,ライフイベント表!J23<=11),支出計画!$D$25,IF(AND(ライフイベント表!J23>=12,ライフイベント表!J23<=14),支出計画!$D$26,IF(AND(ライフイベント表!J23>=15,ライフイベント表!J23<=17),支出計画!$D$27,IF(ライフイベント表!J23=18,支出計画!$D$28,IF(AND(ライフイベント表!J23>=19,ライフイベント表!J23<=21),支出計画!$D$29,0))))))))*POWER(1.02,B24-1) -> 230.1761653 | U24: =SUMPRODUCT((保険!$G$5:$G$15<=C24)*(保険!$H$5:$H$15>=C24)*保険!$F$5:$F$15)+IF(AND(D24<>"",D24>=基本情報!$C$15),支出計画!$C$48,0) -> 40.6 | V24: =支出計画!$C$9 -> 36 | W24: =IF(AND(C24>=支出計画!$D$35,C24<=支出計画!$F$35,MOD(C24-支出計画!$D$35,支出計画!$E$35)=0),支出計画!$C$35,0)+IF(AND(C24>=支出計画!$D$36,C24<=支出計画!$F$36,MOD(C24-支出計画!$D$36,支出計画!$E$36)=0),支出計画!$C$36,0)+IF(C24=支出計画!$D$37,支出計画!$C$37,0)+IF(C24=支出計画!$D$38,支出計画!$C$38,0)+IF(C24=支出計画!$D$39,支出計画!$C$39,0)+IF(C24=支出計画!$D$40,支出計画!$C$40,0)+IF(C24=支出計画!$D$41,支出計画!$C$41,0)+IF(C24>=支出計画!$E$17,支出計画!$C$17,0)+IF(C24>=支出計画!$E$18,支出計画!$C$18,0) -> 32 | X24: 914.9951399 | Y24: -9.156695578 | Z24: =Z23*(1+金融資産!$C$21)+Y24 -> 398.0314145
B25: 21 | C25: =基本情報!$C$3+B25-1 -> 2042 | D25: =IF(基本情報!$D$6="","",C25-YEAR(基本情報!$D$6)-IF(OR(MONTH(基本情報!$D$6)>1,DAY(基本情報!$D$6)>1),1,0)) -> 55 | E25: =IF(基本情報!$D$7="","",C25-YEAR(基本情報!$D$7)-IF(OR(MONTH(基本情報!$D$7)>1,DAY(基本情報!$D$7)>1),1,0)) -> 54 | F25: =IF(OR(基本情報!$D$8="",C25<=YEAR(基本情報!$D$8)),"",MAX(0,C25-YEAR(基本情報!$D$8)-IF(OR(MONTH(基本情報!$D$8)>1,DAY(基本情報!$D$8)>1),1,0))) -> 23 | G25: =IF(OR(基本情報!$D$9="",C25<=YEAR(基本情報!$D$9)),"",MAX(0,C25-YEAR(基本情報!$D$9)-IF(OR(MONTH(基本情報!$D$9)>1,DAY(基本情報!$D$9)>1),1,0))) -> 21 | H25: =IF(OR(基本情報!$D$10="",C25<=YEAR(基本情報!$D$10)),"",MAX(0,C25-YEAR(基本情報!$D$10)-IF(OR(MONTH(基本情報!$D$10)>1,DAY(基本情報!$D$10)>1),1,0))) -> 14 | I25: =IF(OR(基本情報!$D$11="",C25<=YEAR(基本情報!$D$11)),"",MAX(0,C25-YEAR(基本情報!$D$11)-IF(OR(MONTH(基本情報!$D$11)>1,DAY(基本情報!$D$11)>1),1,0))) ->  | J25: =IF(OR(基本情報!$D$12="",C25<=YEAR(基本情報!$D$12)),"",MAX(0,C25-YEAR(基本情報!$D$12)-IF(OR(MONTH(基本情報!$D$12)>1,DAY(基本情報!$D$12)>1),1,0))) ->  | K25: =IF(D25="","",IF(D25<基本情報!$C$15,MAX(0,収入計画!$D$5*(1+収入計画!$E$5)^(B25-1)),IF(AND(D25>=基本情報!$C$15,D25<基本情報!$C$20),MAX(0,基本情報!$C$19*(収入計画!$D$5/収入計画!$C$5)*(1+収入計画!$F$5)^(D25-基本情報!$C$15)),0))) -> 585.6912192 | L25: =IF(E25="","",IF(E25<基本情報!$D$15,MAX(0,収入計画!$D$6*(1+収入計画!$E$6)^(B25-1))*IF(IFERROR(IF(AND(E25>=収入計画!$C$10-2,E25<収入計画!$C$11),1,0),0)+IFERROR(IF(AND(E25>=収入計画!$C$13-2,E25<収入計画!$C$14),1,0),0)+IFERROR(IF(AND(E25>=収入計画!$C$16-2,E25<収入計画!$C$17),1,0),0)+IFERROR(IF(AND(E25>=収入計画!$C$19-2,E25<収入計画!$C$20),1,0),0)+IFERROR(IF(AND(E25>=収入計画!$C$22-2,E25<収入計画!$C$23),1,0),0)>0,0.5,1),IF(AND(E25>=基本情報!$D$15,E25<基本情報!$D$20),MAX(0,基本情報!$D$19*(収入計画!$D$6/収入計画!$C$6)*(1+収入計画!$F$6)^(E25-基本情報!$D$15)),0))) -> 292.8456096 | M25: =IF(OR(D25="",E25=""),"",IF(D25=基本情報!$C$15,基本情報!$C$16,0)+IF(E25=基本情報!$D$15,基本情報!$D$16,0)) -> 0 | N25: =IF(D25="","",IF(OR(D25>=基本情報!$C$17,E25>=基本情報!$D$17),MAX(0,IF(D25>=基本情報!$C$17,基本情報!$C$18*12,0)+IF(AND(E25<>"",E25>=基本情報!$D$17),基本情報!$D$18*12,0)),"")) ->  | O25: =SUMPRODUCT((収入計画!$D$27:$D$42<=C25)*(収入計画!$E$27:$E$42>=C25)*収入計画!$C$27:$C$42) -> 36 | P25: 914.5368288 | Q25: =IF(D25<基本情報!$C$15,支出計画!$C$5*(1+支出計画!$D$5)^(B25-1),支出計画!$C$46)-IF(MIN(F25:J25)>=22,支出計画!$C$49,0) -> 378.2589124 | R25: =IF(C25<住宅ローン償還表!$C$9,支出計画!$C$7,0)+IF(AND(C25>=支出計画!$E$8,C25<=支出計画!$F$8),支出計画!$C$8,0)+IF(AND(D25<>"",D25>=基本情報!$C$15),支出計画!$C$47,0) -> 20 | S25: =IFERROR(VLOOKUP(C25,住宅ローン償還表!$C$17:$H$51,6,FALSE()),0) -> 181.7052 | T25: =(IF(ライフイベント表!F24="",0,IF(AND(ライフイベント表!F24>=0,ライフイベント表!F24<=5),支出計画!$D$24,IF(AND(ライフイベント表!F24>=6,ライフイベント表!F24<=11),支出計画!$D$25,IF(AND(ライフイベント表!F24>=12,ライフイベント表!F24<=14),支出計画!$D$26,IF(AND(ライフイベント表!F24>=15,ライフイベント表!F24<=17),支出計画!$D$27,IF(ライフイベント表!F24=18,支出計画!$D$28,IF(AND(ライフイベント表!F24>=19,ライフイベント表!F24<=21),支出計画!$D$29,0)))))))+IF(ライフイベント表!G24="",0,IF(AND(ライフイベント表!G24>=0,ライフイベント表!G24<=5),支出計画!$D$24,IF(AND(ライフイベント表!G24>=6,ライフイベント表!G24<=11),支出計画!$D$25,IF(AND(ライフイベント表!G24>=12,ライフイベント表!G24<=14),支出計画!$D$26,IF(AND(ライフイベント表!G24>=15,ライフイベント表!G24<=17),支出計画!$D$27,IF(ライフイベント表!G24=18,支出計画!$D$28,IF(AND(ライフイベント表!G24>=19,ライフイベント表!G24<=21),支出計画!$D$29,0)))))))+IF(ライフイベント表!H24="",0,IF(AND(ライフイベント表!H24>=0,ライフイベント表!H24<=5),支出計画!$D$24,IF(AND(ライフイベント表!H24>=6,ライフイベント表!H24<=11),支出計画!$D$25,IF(AND(ライフイベント表!H24>=12,ライフイベント表!H24<=14),支出計画!$D$26,IF(AND(ライフイベント表!H24>=15,ライフイベント表!H24<=17),支出計画!$D$27,IF(ライフイベント表!H24=18,支出計画!$D$28,IF(AND(ライフイベント表!H24>=19,ライフイベント表!H24<=21),支出計画!$D$29,0)))))))+IF(ライフイベント表!I24="",0,IF(AND(ライフイベント表!I24>=0,ライフイベント表!I24<=5),支出計画!$D$24,IF(AND(ライフイベント表!I24>=6,ライフイベント表!I24<=11),支出計画!$D$25,IF(AND(ライフイベント表!I24>=12,ライフイベント表!I24<=14),支出計画!$D$26,IF(AND(ライフイベント表!I24>=15,ライフイベント表!I24<=17),支出計画!$D$27,IF(ライフイベント表!I24=18,支出計画!$D$28,IF(AND(ライフイベント表!I24>=19,ライフイベント表!I24<=21),支出計画!$D$29,0)))))))+IF(ライフイベント表!J24="",0,IF(AND(ライフイベント表!J24>=0,ライフイベント表!J24<=5),支出計画!$D$24,IF(AND(ライフイベント表!J24>=6,ライフイベント表!J24<=11),支出計画!$D$25,IF(AND(ライフイベント表!J24>=12,ライフイベント表!J24<=14),支出計画!$D$26,IF(AND(ライフイベント表!J24>=15,ライフイベント表!J24<=17),支出計画!$D$27,IF(ライフイベント表!J24=18,支出計画!$D$28,IF(AND(ライフイベント表!J24>=19,ライフイベント表!J24<=21),支出計画!$D$29,0))))))))*POWER(1.02,B25-1) -> 234.7796886 | U25: =SUMPRODUCT((保険!$G$5:$G$15<=C25)*(保険!$H$5:$H$15>=C25)*保険!$F$5:$F$15)+IF(AND(D25<>"",D25>=基本情報!$C$15),支出計画!$C$48,0) -> 40.6 | V25: =支出計画!$C$9 -> 36 | W25: =IF(AND(C25>=支出計画!$D$35,C25<=支出計画!$F$35,MOD(C25-支出計画!$D$35,支出計画!$E$35)=0),支出計画!$C$35,0)+IF(AND(C25>=支出計画!$D$36,C25<=支出計画!$F$36,MOD(C25-支出計画!$D$36,支出計画!$E$36)=0),支出計画!$C$36,0)+IF(C25=支出計画!$D$37,支出計画!$C$37,0)+IF(C25=支出計画!$D$38,支出計画!$C$38,0)+IF(C25=支出計画!$D$39,支出計画!$C$39,0)+IF(C25=支出計画!$D$40,支出計画!$C$40,0)+IF(C25=支出計画!$D$41,支出計画!$C$41,0)+IF(C25>=支出計画!$E$17,支出計画!$C$17,0)+IF(C25>=支出計画!$E$18,支出計画!$C$18,0) -> 32 | X25: 923.3438009 | Y25: -8.806972186 | Z25: =Z24*(1+金融資産!$C$21)+Y25 -> 391.2145994
B26: 22 | C26: =基本情報!$C$3+B26-1 -> 2043 | D26: =IF(基本情報!$D$6="","",C26-YEAR(基本情報!$D$6)-IF(OR(MONTH(基本情報!$D$6)>1,DAY(基本情報!$D$6)>1),1,0)) -> 56 | E26: =IF(基本情報!$D$7="","",C26-YEAR(基本情報!$D$7)-IF(OR(MONTH(基本情報!$D$7)>1,DAY(基本情報!$D$7)>1),1,0)) -> 55 | F26: =IF(OR(基本情報!$D$8="",C26<=YEAR(基本情報!$D$8)),"",MAX(0,C26-YEAR(基本情報!$D$8)-IF(OR(MONTH(基本情報!$D$8)>1,DAY(基本情報!$D$8)>1),1,0))) -> 24 | G26: =IF(OR(基本情報!$D$9="",C26<=YEAR(基本情報!$D$9)),"",MAX(0,C26-YEAR(基本情報!$D$9)-IF(OR(MONTH(基本情報!$D$9)>1,DAY(基本情報!$D$9)>1),1,0))) -> 22 | H26: =IF(OR(基本情報!$D$10="",C26<=YEAR(基本情報!$D$10)),"",MAX(0,C26-YEAR(基本情報!$D$10)-IF(OR(MONTH(基本情報!$D$10)>1,DAY(基本情報!$D$10)>1),1,0))) -> 15 | I26: =IF(OR(基本情報!$D$11="",C26<=YEAR(基本情報!$D$11)),"",MAX(0,C26-YEAR(基本情報!$D$11)-IF(OR(MONTH(基本情報!$D$11)>1,DAY(基本情報!$D$11)>1),1,0))) ->  | J26: =IF(OR(基本情報!$D$12="",C26<=YEAR(基本情報!$D$12)),"",MAX(0,C26-YEAR(基本情報!$D$12)-IF(OR(MONTH(基本情報!$D$12)>1,DAY(基本情報!$D$12)>1),1,0))) ->  | K26: =IF(D26="","",IF(D26<基本情報!$C$15,MAX(0,収入計画!$D$5*(1+収入計画!$E$5)^(B26-1)),IF(AND(D26>=基本情報!$C$15,D26<基本情報!$C$20),MAX(0,基本情報!$C$19*(収入計画!$D$5/収入計画!$C$5)*(1+収入計画!$F$5)^(D26-基本情報!$C$15)),0))) -> 591.5481314 | L26: =IF(E26="","",IF(E26<基本情報!$D$15,MAX(0,収入計画!$D$6*(1+収入計画!$E$6)^(B26-1))*IF(IFERROR(IF(AND(E26>=収入計画!$C$10-2,E26<収入計画!$C$11),1,0),0)+IFERROR(IF(AND(E26>=収入計画!$C$13-2,E26<収入計画!$C$14),1,0),0)+IFERROR(IF(AND(E26>=収入計画!$C$16-2,E26<収入計画!$C$17),1,0),0)+IFERROR(IF(AND(E26>=収入計画!$C$19-2,E26<収入計画!$C$20),1,0),0)+IFERROR(IF(AND(E26>=収入計画!$C$22-2,E26<収入計画!$C$23),1,0),0)>0,0.5,1),IF(AND(E26>=基本情報!$D$15,E26<基本情報!$D$20),MAX(0,基本情報!$D$19*(収入計画!$D$6/収入計画!$C$6)*(1+収入計画!$F$6)^(E26-基本情報!$D$15)),0))) -> 295.7740657 | M26: =IF(OR(D26="",E26=""),"",IF(D26=基本情報!$C$15,基本情報!$C$16,0)+IF(E26=基本情報!$D$15,基本情報!$D$16,0)) -> 0 | N26: =IF(D26="","",IF(OR(D26>=基本情報!$C$17,E26>=基本情報!$D$17),MAX(0,IF(D26>=基本情報!$C$17,基本情報!$C$18*12,0)+IF(AND(E26<>"",E26>=基本情報!$D$17),基本情報!$D$18*12,0)),"")) ->  | O26: =SUMPRODUCT((収入計画!$D$27:$D$42<=C26)*(収入計画!$E$27:$E$42>=C26)*収入計画!$C$27:$C$42) -> 0 | P26: 887.3221971 | Q26: =IF(D26<基本情報!$C$15,支出計画!$C$5*(1+支出計画!$D$5)^(B26-1),支出計画!$C$46)-IF(MIN(F26:J26)>=22,支出計画!$C$49,0) -> 382.0415015 | R26: =IF(C26<住宅ローン償還表!$C$9,支出計画!$C$7,0)+IF(AND(C26>=支出計画!$E$8,C26<=支出計画!$F$8),支出計画!$C$8,0)+IF(AND(D26<>"",D26>=基本情報!$C$15),支出計画!$C$47,0) -> 20 | S26: =IFERROR(VLOOKUP(C26,住宅ローン償還表!$C$17:$H$51,6,FALSE()),0) -> 181.7052 | T26: =(IF(ライフイベント表!F25="",0,IF(AND(ライフイベント表!F25>=0,ライフイベント表!F25<=5),支出計画!$D$24,IF(AND(ライフイベント表!F25>=6,ライフイベント表!F25<=11),支出計画!$D$25,IF(AND(ライフイベント表!F25>=12,ライフイベント表!F25<=14),支出計画!$D$26,IF(AND(ライフイベント表!F25>=15,ライフイベント表!F25<=17),支出計画!$D$27,IF(ライフイベント表!F25=18,支出計画!$D$28,IF(AND(ライフイベント表!F25>=19,ライフイベント表!F25<=21),支出計画!$D$29,0)))))))+IF(ライフイベント表!G25="",0,IF(AND(ライフイベント表!G25>=0,ライフイベント表!G25<=5),支出計画!$D$24,IF(AND(ライフイベント表!G25>=6,ライフイベント表!G25<=11),支出計画!$D$25,IF(AND(ライフイベント表!G25>=12,ライフイベント表!G25<=14),支出計画!$D$26,IF(AND(ライフイベント表!G25>=15,ライフイベント表!G25<=17),支出計画!$D$27,IF(ライフイベント表!G25=18,支出計画!$D$28,IF(AND(ライフイベント表!G25>=19,ライフイベント表!G25<=21),支出計画!$D$29,0)))))))+IF(ライフイベント表!H25="",0,IF(AND(ライフイベント表!H25>=0,ライフイベント表!H25<=5),支出計画!$D$24,IF(AND(ライフイベント表!H25>=6,ライフイベント表!H25<=11),支出計画!$D$25,IF(AND(ライフイベント表!H25>=12,ライフイベント表!H25<=14),支出計画!$D$26,IF(AND(ライフイベント表!H25>=15,ライフイベント表!H25<=17),支出計画!$D$27,IF(ライフイベント表!H25=18,支出計画!$D$28,IF(AND(ライフイベント表!H25>=19,ライフイベント表!H25<=21),支出計画!$D$29,0)))))))+IF(ライフイベント表!I25="",0,IF(AND(ライフイベント表!I25>=0,ライフイベント表!I25<=5),支出計画!$D$24,IF(AND(ライフイベント表!I25>=6,ライフイベント表!I25<=11),支出計画!$D$25,IF(AND(ライフイベント表!I25>=12,ライフイベント表!I25<=14),支出計画!$D$26,IF(AND(ライフイベント表!I25>=15,ライフイベント表!I25<=17),支出計画!$D$27,IF(ライフイベント表!I25=18,支出計画!$D$28,IF(AND(ライフイベント表!I25>=19,ライフイベント表!I25<=21),支出計画!$D$29,0)))))))+IF(ライフイベント表!J25="",0,IF(AND(ライフイベント表!J25>=0,ライフイベント表!J25<=5),支出計画!$D$24,IF(AND(ライフイベント表!J25>=6,ライフイベント表!J25<=11),支出計画!$D$25,IF(AND(ライフイベント表!J25>=12,ライフイベント表!J25<=14),支出計画!$D$26,IF(AND(ライフイベント表!J25>=15,ライフイベント表!J25<=17),支出計画!$D$27,IF(ライフイベント表!J25=18,支出計画!$D$28,IF(AND(ライフイベント表!J25>=19,ライフイベント表!J25<=21),支出計画!$D$29,0))))))))*POWER(1.02,B26-1) -> 147.0196354 | U26: =SUMPRODUCT((保険!$G$5:$G$15<=C26)*(保険!$H$5:$H$15>=C26)*保険!$F$5:$F$15)+IF(AND(D26<>"",D26>=基本情報!$C$15),支出計画!$C$48,0) -> 40.6 | V26: =支出計画!$C$9 -> 36 | W26: =IF(AND(C26>=支出計画!$D$35,C26<=支出計画!$F$35,MOD(C26-支出計画!$D$35,支出計画!$E$35)=0),支出計画!$C$35,0)+IF(AND(C26>=支出計画!$D$36,C26<=支出計画!$F$36,MOD(C26-支出計画!$D$36,支出計画!$E$36)=0),支出計画!$C$36,0)+IF(C26=支出計画!$D$37,支出計画!$C$37,0)+IF(C26=支出計画!$D$38,支出計画!$C$38,0)+IF(C26=支出計画!$D$39,支出計画!$C$39,0)+IF(C26=支出計画!$D$40,支出計画!$C$40,0)+IF(C26=支出計画!$D$41,支出計画!$C$41,0)+IF(C26>=支出計画!$E$17,支出計画!$C$17,0)+IF(C26>=支出計画!$E$18,支出計画!$C$18,0) -> 32 | X26: 839.3663369 | Y26: 47.95586018 | Z26: =Z25*(1+金融資産!$C$21)+Y26 -> 441.1265326
B27: 23 | C27: =基本情報!$C$3+B27-1 -> 2044 | D27: =IF(基本情報!$D$6="","",C27-YEAR(基本情報!$D$6)-IF(OR(MONTH(基本情報!$D$6)>1,DAY(基本情報!$D$6)>1),1,0)) -> 57 | E27: =IF(基本情報!$D$7="","",C27-YEAR(基本情報!$D$7)-IF(OR(MONTH(基本情報!$D$7)>1,DAY(基本情報!$D$7)>1),1,0)) -> 56 | F27: =IF(OR(基本情報!$D$8="",C27<=YEAR(基本情報!$D$8)),"",MAX(0,C27-YEAR(基本情報!$D$8)-IF(OR(MONTH(基本情報!$D$8)>1,DAY(基本情報!$D$8)>1),1,0))) -> 25 | G27: =IF(OR(基本情報!$D$9="",C27<=YEAR(基本情報!$D$9)),"",MAX(0,C27-YEAR(基本情報!$D$9)-IF(OR(MONTH(基本情報!$D$9)>1,DAY(基本情報!$D$9)>1),1,0))) -> 23 | H27: =IF(OR(基本情報!$D$10="",C27<=YEAR(基本情報!$D$10)),"",MAX(0,C27-YEAR(基本情報!$D$10)-IF(OR(MONTH(基本情報!$D$10)>1,DAY(基本情報!$D$10)>1),1,0))) -> 16 | I27: =IF(OR(基本情報!$D$11="",C27<=YEAR(基本情報!$D$11)),"",MAX(0,C27-YEAR(基本情報!$D$11)-IF(OR(MONTH(基本情報!$D$11)>1,DAY(基本情報!$D$11)>1),1,0))) ->  | J27: =IF(OR(基本情報!$D$12="",C27<=YEAR(基本情報!$D$12)),"",MAX(0,C27-YEAR(基本情報!$D$12)-IF(OR(MONTH(基本情報!$D$12)>1,DAY(基本情報!$D$12)>1),1,0))) ->  | K27: =IF(D27="","",IF(D27<基本情報!$C$15,MAX(0,収入計画!$D$5*(1+収入計画!$E$5)^(B27-1)),IF(AND(D27>=基本情報!$C$15,D27<基本情報!$C$20),MAX(0,基本情報!$C$19*(収入計画!$D$5/収入計画!$C$5)*(1+収入計画!$F$5)^(D27-基本情報!$C$15)),0))) -> 597.4636127 | L27: =IF(E27="","",IF(E27<基本情報!$D$15,MAX(0,収入計画!$D$6*(1+収入計画!$E$6)^(B27-1))*IF(IFERROR(IF(AND(E27>=収入計画!$C$10-2,E27<収入計画!$C$11),1,0),0)+IFERROR(IF(AND(E27>=収入計画!$C$13-2,E27<収入計画!$C$14),1,0),0)+IFERROR(IF(AND(E27>=収入計画!$C$16-2,E27<収入計画!$C$17),1,0),0)+IFERROR(IF(AND(E27>=収入計画!$C$19-2,E27<収入計画!$C$20),1,0),0)+IFERROR(IF(AND(E27>=収入計画!$C$22-2,E27<収入計画!$C$23),1,0),0)>0,0.5,1),IF(AND(E27>=基本情報!$D$15,E27<基本情報!$D$20),MAX(0,基本情報!$D$19*(収入計画!$D$6/収入計画!$C$6)*(1+収入計画!$F$6)^(E27-基本情報!$D$15)),0))) -> 298.7318063 | M27: =IF(OR(D27="",E27=""),"",IF(D27=基本情報!$C$15,基本情報!$C$16,0)+IF(E27=基本情報!$D$15,基本情報!$D$16,0)) -> 0 | N27: =IF(D27="","",IF(OR(D27>=基本情報!$C$17,E27>=基本情報!$D$17),MAX(0,IF(D27>=基本情報!$C$17,基本情報!$C$18*12,0)+IF(AND(E27<>"",E27>=基本情報!$D$17),基本情報!$D$18*12,0)),"")) ->  | O27: =SUMPRODUCT((収入計画!$D$27:$D$42<=C27)*(収入計画!$E$27:$E$42>=C27)*収入計画!$C$27:$C$42) -> 110 | P27: 1006.195419 | Q27: =IF(D27<基本情報!$C$15,支出計画!$C$5*(1+支出計画!$D$5)^(B27-1),支出計画!$C$46)-IF(MIN(F27:J27)>=22,支出計画!$C$49,0) -> 385.8619165 | R27: =IF(C27<住宅ローン償還表!$C$9,支出計画!$C$7,0)+IF(AND(C27>=支出計画!$E$8,C27<=支出計画!$F$8),支出計画!$C$8,0)+IF(AND(D27<>"",D27>=基本情報!$C$15),支出計画!$C$47,0) -> 20 | S27: =IFERROR(VLOOKUP(C27,住宅ローン償還表!$C$17:$H$51,6,FALSE()),0) -> 181.7052 | T27: =(IF(ライフイベント表!F26="",0,IF(AND(ライフイベント表!F26>=0,ライフイベント表!F26<=5),支出計画!$D$24,IF(AND(ライフイベント表!F26>=6,ライフイベント表!F26<=11),支出計画!$D$25,IF(AND(ライフイベント表!F26>=12,ライフイベント表!F26<=14),支出計画!$D$26,IF(AND(ライフイベント表!F26>=15,ライフイベント表!F26<=17),支出計画!$D$27,IF(ライフイベント表!F26=18,支出計画!$D$28,IF(AND(ライフイベント表!F26>=19,ライフイベント表!F26<=21),支出計画!$D$29,0)))))))+IF(ライフイベント表!G26="",0,IF(AND(ライフイベント表!G26>=0,ライフイベント表!G26<=5),支出計画!$D$24,IF(AND(ライフイベント表!G26>=6,ライフイベント表!G26<=11),支出計画!$D$25,IF(AND(ライフイベント表!G26>=12,ライフイベント表!G26<=14),支出計画!$D$26,IF(AND(ライフイベント表!G26>=15,ライフイベント表!G26<=17),支出計画!$D$27,IF(ライフイベント表!G26=18,支出計画!$D$28,IF(AND(ライフイベント表!G26>=19,ライフイベント表!G26<=21),支出計画!$D$29,0)))))))+IF(ライフイベント表!H26="",0,IF(AND(ライフイベント表!H26>=0,ライフイベント表!H26<=5),支出計画!$D$24,IF(AND(ライフイベント表!H26>=6,ライフイベント表!H26<=11),支出計画!$D$25,IF(AND(ライフイベント表!H26>=12,ライフイベント表!H26<=14),支出計画!$D$26,IF(AND(ライフイベント表!H26>=15,ライフイベント表!H26<=17),支出計画!$D$27,IF(ライフイベント表!H26=18,支出計画!$D$28,IF(AND(ライフイベント表!H26>=19,ライフイベント表!H26<=21),支出計画!$D$29,0)))))))+IF(ライフイベント表!I26="",0,IF(AND(ライフイベント表!I26>=0,ライフイベント表!I26<=5),支出計画!$D$24,IF(AND(ライフイベント表!I26>=6,ライフイベント表!I26<=11),支出計画!$D$25,IF(AND(ライフイベント表!I26>=12,ライフイベント表!I26<=14),支出計画!$D$26,IF(AND(ライフイベント表!I26>=15,ライフイベント表!I26<=17),支出計画!$D$27,IF(ライフイベント表!I26=18,支出計画!$D$28,IF(AND(ライフイベント表!I26>=19,ライフイベント表!I26<=21),支出計画!$D$29,0)))))))+IF(ライフイベント表!J26="",0,IF(AND(ライフイベント表!J26>=0,ライフイベント表!J26<=5),支出計画!$D$24,IF(AND(ライフイベント表!J26>=6,ライフイベント表!J26<=11),支出計画!$D$25,IF(AND(ライフイベント表!J26>=12,ライフイベント表!J26<=14),支出計画!$D$26,IF(AND(ライフイベント表!J26>=15,ライフイベント表!J26<=17),支出計画!$D$27,IF(ライフイベント表!J26=18,支出計画!$D$28,IF(AND(ライフイベント表!J26>=19,ライフイベント表!J26<=21),支出計画!$D$29,0))))))))*POWER(1.02,B27-1) -> 149.9600281 | U27: =SUMPRODUCT((保険!$G$5:$G$15<=C27)*(保険!$H$5:$H$15>=C27)*保険!$F$5:$F$15)+IF(AND(D27<>"",D27>=基本情報!$C$15),支出計画!$C$48,0) -> 16.6 | V27: =支出計画!$C$9 -> 36 | W27: =IF(AND(C27>=支出計画!$D$35,C27<=支出計画!$F$35,MOD(C27-支出計画!$D$35,支出計画!$E$35)=0),支出計画!$C$35,0)+IF(AND(C27>=支出計画!$D$36,C27<=支出計画!$F$36,MOD(C27-支出計画!$D$36,支出計画!$E$36)=0),支出計画!$C$36,0)+IF(C27=支出計画!$D$37,支出計画!$C$37,0)+IF(C27=支出計画!$D$38,支出計画!$C$38,0)+IF(C27=支出計画!$D$39,支出計画!$C$39,0)+IF(C27=支出計画!$D$40,支出計画!$C$40,0)+IF(C27=支出計画!$D$41,支出計画!$C$41,0)+IF(C27>=支出計画!$E$17,支出計画!$C$17,0)+IF(C27>=支出計画!$E$18,支出計画!$C$18,0) -> 32 | X27: 822.1271446 | Y27: 184.0682744 | Z27: =Z26*(1+金融資産!$C$21)+Y27 -> 627.4004397
B28: 24 | C28: =基本情報!$C$3+B28-1 -> 2045 | D28: =IF(基本情報!$D$6="","",C28-YEAR(基本情報!$D$6)-IF(OR(MONTH(基本情報!$D$6)>1,DAY(基本情報!$D$6)>1),1,0)) -> 58 | E28: =IF(基本情報!$D$7="","",C28-YEAR(基本情報!$D$7)-IF(OR(MONTH(基本情報!$D$7)>1,DAY(基本情報!$D$7)>1),1,0)) -> 57 | F28: =IF(OR(基本情報!$D$8="",C28<=YEAR(基本情報!$D$8)),"",MAX(0,C28-YEAR(基本情報!$D$8)-IF(OR(MONTH(基本情報!$D$8)>1,DAY(基本情報!$D$8)>1),1,0))) -> 26 | G28: =IF(OR(基本情報!$D$9="",C28<=YEAR(基本情報!$D$9)),"",MAX(0,C28-YEAR(基本情報!$D$9)-IF(OR(MONTH(基本情報!$D$9)>1,DAY(基本情報!$D$9)>1),1,0))) -> 24 | H28: =IF(OR(基本情報!$D$10="",C28<=YEAR(基本情報!$D$10)),"",MAX(0,C28-YEAR(基本情報!$D$10)-IF(OR(MONTH(基本情報!$D$10)>1,DAY(基本情報!$D$10)>1),1,0))) -> 17 | I28: =IF(OR(基本情報!$D$11="",C28<=YEAR(基本情報!$D$11)),"",MAX(0,C28-YEAR(基本情報!$D$11)-IF(OR(MONTH(基本情報!$D$11)>1,DAY(基本情報!$D$11)>1),1,0))) ->  | J28: =IF(OR(基本情報!$D$12="",C28<=YEAR(基本情報!$D$12)),"",MAX(0,C28-YEAR(基本情報!$D$12)-IF(OR(MONTH(基本情報!$D$12)>1,DAY(基本情報!$D$12)>1),1,0))) ->  | K28: =IF(D28="","",IF(D28<基本情報!$C$15,MAX(0,収入計画!$D$5*(1+収入計画!$E$5)^(B28-1)),IF(AND(D28>=基本情報!$C$15,D28<基本情報!$C$20),MAX(0,基本情報!$C$19*(収入計画!$D$5/収入計画!$C$5)*(1+収入計画!$F$5)^(D28-基本情報!$C$15)),0))) -> 603.4382488 | L28: =IF(E28="","",IF(E28<基本情報!$D$15,MAX(0,収入計画!$D$6*(1+収入計画!$E$6)^(B28-1))*IF(IFERROR(IF(AND(E28>=収入計画!$C$10-2,E28<収入計画!$C$11),1,0),0)+IFERROR(IF(AND(E28>=収入計画!$C$13-2,E28<収入計画!$C$14),1,0),0)+IFERROR(IF(AND(E28>=収入計画!$C$16-2,E28<収入計画!$C$17),1,0),0)+IFERROR(IF(AND(E28>=収入計画!$C$19-2,E28<収入計画!$C$20),1,0),0)+IFERROR(IF(AND(E28>=収入計画!$C$22-2,E28<収入計画!$C$23),1,0),0)>0,0.5,1),IF(AND(E28>=基本情報!$D$15,E28<基本情報!$D$20),MAX(0,基本情報!$D$19*(収入計画!$D$6/収入計画!$C$6)*(1+収入計画!$F$6)^(E28-基本情報!$D$15)),0))) -> 301.7191244 | M28: =IF(OR(D28="",E28=""),"",IF(D28=基本情報!$C$15,基本情報!$C$16,0)+IF(E28=基本情報!$D$15,基本情報!$D$16,0)) -> 0 | N28: =IF(D28="","",IF(OR(D28>=基本情報!$C$17,E28>=基本情報!$D$17),MAX(0,IF(D28>=基本情報!$C$17,基本情報!$C$18*12,0)+IF(AND(E28<>"",E28>=基本情報!$D$17),基本情報!$D$18*12,0)),"")) ->  | O28: =SUMPRODUCT((収入計画!$D$27:$D$42<=C28)*(収入計画!$E$27:$E$42>=C28)*収入計画!$C$27:$C$42) -> 0 | P28: 905.1573732 | Q28: =IF(D28<基本情報!$C$15,支出計画!$C$5*(1+支出計画!$D$5)^(B28-1),支出計画!$C$46)-IF(MIN(F28:J28)>=22,支出計画!$C$49,0) -> 389.7205357 | R28: =IF(C28<住宅ローン償還表!$C$9,支出計画!$C$7,0)+IF(AND(C28>=支出計画!$E$8,C28<=支出計画!$F$8),支出計画!$C$8,0)+IF(AND(D28<>"",D28>=基本情報!$C$15),支出計画!$C$47,0) -> 20 | S28: =IFERROR(VLOOKUP(C28,住宅ローン償還表!$C$17:$H$51,6,FALSE()),0) -> 181.7052 | T28: =(IF(ライフイベント表!F27="",0,IF(AND(ライフイベント表!F27>=0,ライフイベント表!F27<=5),支出計画!$D$24,IF(AND(ライフイベント表!F27>=6,ライフイベント表!F27<=11),支出計画!$D$25,IF(AND(ライフイベント表!F27>=12,ライフイベント表!F27<=14),支出計画!$D$26,IF(AND(ライフイベント表!F27>=15,ライフイベント表!F27<=17),支出計画!$D$27,IF(ライフイベント表!F27=18,支出計画!$D$28,IF(AND(ライフイベント表!F27>=19,ライフイベント表!F27<=21),支出計画!$D$29,0)))))))+IF(ライフイベント表!G27="",0,IF(AND(ライフイベント表!G27>=0,ライフイベント表!G27<=5),支出計画!$D$24,IF(AND(ライフイベント表!G27>=6,ライフイベント表!G27<=11),支出計画!$D$25,IF(AND(ライフイベント表!G27>=12,ライフイベント表!G27<=14),支出計画!$D$26,IF(AND(ライフイベント表!G27>=15,ライフイベント表!G27<=17),支出計画!$D$27,IF(ライフイベント表!G27=18,支出計画!$D$28,IF(AND(ライフイベント表!G27>=19,ライフイベント表!G27<=21),支出計画!$D$29,0)))))))+IF(ライフイベント表!H27="",0,IF(AND(ライフイベント表!H27>=0,ライフイベント表!H27<=5),支出計画!$D$24,IF(AND(ライフイベント表!H27>=6,ライフイベント表!H27<=11),支出計画!$D$25,IF(AND(ライフイベント表!H27>=12,ライフイベント表!H27<=14),支出計画!$D$26,IF(AND(ライフイベント表!H27>=15,ライフイベント表!H27<=17),支出計画!$D$27,IF(ライフイベント表!H27=18,支出計画!$D$28,IF(AND(ライフイベント表!H27>=19,ライフイベント表!H27<=21),支出計画!$D$29,0)))))))+IF(ライフイベント表!I27="",0,IF(AND(ライフイベント表!I27>=0,ライフイベント表!I27<=5),支出計画!$D$24,IF(AND(ライフイベント表!I27>=6,ライフイベント表!I27<=11),支出計画!$D$25,IF(AND(ライフイベント表!I27>=12,ライフイベント表!I27<=14),支出計画!$D$26,IF(AND(ライフイベント表!I27>=15,ライフイベント表!I27<=17),支出計画!$D$27,IF(ライフイベント表!I27=18,支出計画!$D$28,IF(AND(ライフイベント表!I27>=19,ライフイベント表!I27<=21),支出計画!$D$29,0)))))))+IF(ライフイベント表!J27="",0,IF(AND(ライフイベント表!J27>=0,ライフイベント表!J27<=5),支出計画!$D$24,IF(AND(ライフイベント表!J27>=6,ライフイベント表!J27<=11),支出計画!$D$25,IF(AND(ライフイベント表!J27>=12,ライフイベント表!J27<=14),支出計画!$D$26,IF(AND(ライフイベント表!J27>=15,ライフイベント表!J27<=17),支出計画!$D$27,IF(ライフイベント表!J27=18,支出計画!$D$28,IF(AND(ライフイベント表!J27>=19,ライフイベント表!J27<=21),支出計画!$D$29,0))))))))*POWER(1.02,B28-1) -> 152.9592286 | U28: =SUMPRODUCT((保険!$G$5:$G$15<=C28)*(保険!$H$5:$H$15>=C28)*保険!$F$5:$F$15)+IF(AND(D28<>"",D28>=基本情報!$C$15),支出計画!$C$48,0) -> 16.6 | V28: =支出計画!$C$9 -> 36 | W28: =IF(AND(C28>=支出計画!$D$35,C28<=支出計画!$F$35,MOD(C28-支出計画!$D$35,支出計画!$E$35)=0),支出計画!$C$35,0)+IF(AND(C28>=支出計画!$D$36,C28<=支出計画!$F$36,MOD(C28-支出計画!$D$36,支出計画!$E$36)=0),支出計画!$C$36,0)+IF(C28=支出計画!$D$37,支出計画!$C$37,0)+IF(C28=支出計画!$D$38,支出計画!$C$38,0)+IF(C28=支出計画!$D$39,支出計画!$C$39,0)+IF(C28=支出計画!$D$40,支出計画!$C$40,0)+IF(C28=支出計画!$D$41,支出計画!$C$41,0)+IF(C28>=支出計画!$E$17,支出計画!$C$17,0)+IF(C28>=支出計画!$E$18,支出計画!$C$18,0) -> 242 | X28: 1038.984964 | Y28: -133.8275911 | Z28: =Z27*(1+金融資産!$C$21)+Y28 -> 496.7098508
B29: 25 | C29: =基本情報!$C$3+B29-1 -> 2046 | D29: =IF(基本情報!$D$6="","",C29-YEAR(基本情報!$D$6)-IF(OR(MONTH(基本情報!$D$6)>1,DAY(基本情報!$D$6)>1),1,0)) -> 59 | E29: =IF(基本情報!$D$7="","",C29-YEAR(基本情報!$D$7)-IF(OR(MONTH(基本情報!$D$7)>1,DAY(基本情報!$D$7)>1),1,0)) -> 58 | F29: =IF(OR(基本情報!$D$8="",C29<=YEAR(基本情報!$D$8)),"",MAX(0,C29-YEAR(基本情報!$D$8)-IF(OR(MONTH(基本情報!$D$8)>1,DAY(基本情報!$D$8)>1),1,0))) -> 27 | G29: =IF(OR(基本情報!$D$9="",C29<=YEAR(基本情報!$D$9)),"",MAX(0,C29-YEAR(基本情報!$D$9)-IF(OR(MONTH(基本情報!$D$9)>1,DAY(基本情報!$D$9)>1),1,0))) -> 25 | H29: =IF(OR(基本情報!$D$10="",C29<=YEAR(基本情報!$D$10)),"",MAX(0,C29-YEAR(基本情報!$D$10)-IF(OR(MONTH(基本情報!$D$10)>1,DAY(基本情報!$D$10)>1),1,0))) -> 18 | I29: =IF(OR(基本情報!$D$11="",C29<=YEAR(基本情報!$D$11)),"",MAX(0,C29-YEAR(基本情報!$D$11)-IF(OR(MONTH(基本情報!$D$11)>1,DAY(基本情報!$D$11)>1),1,0))) ->  | J29: =IF(OR(基本情報!$D$12="",C29<=YEAR(基本情報!$D$12)),"",MAX(0,C29-YEAR(基本情報!$D$12)-IF(OR(MONTH(基本情報!$D$12)>1,DAY(基本情報!$D$12)>1),1,0))) ->  | K29: =IF(D29="","",IF(D29<基本情報!$C$15,MAX(0,収入計画!$D$5*(1+収入計画!$E$5)^(B29-1)),IF(AND(D29>=基本情報!$C$15,D29<基本情報!$C$20),MAX(0,基本情報!$C$19*(収入計画!$D$5/収入計画!$C$5)*(1+収入計画!$F$5)^(D29-基本情報!$C$15)),0))) -> 609.4726313 | L29: =IF(E29="","",IF(E29<基本情報!$D$15,MAX(0,収入計画!$D$6*(1+収入計画!$E$6)^(B29-1))*IF(IFERROR(IF(AND(E29>=収入計画!$C$10-2,E29<収入計画!$C$11),1,0),0)+IFERROR(IF(AND(E29>=収入計画!$C$13-2,E29<収入計画!$C$14),1,0),0)+IFERROR(IF(AND(E29>=収入計画!$C$16-2,E29<収入計画!$C$17),1,0),0)+IFERROR(IF(AND(E29>=収入計画!$C$19-2,E29<収入計画!$C$20),1,0),0)+IFERROR(IF(AND(E29>=収入計画!$C$22-2,E29<収入計画!$C$23),1,0),0)>0,0.5,1),IF(AND(E29>=基本情報!$D$15,E29<基本情報!$D$20),MAX(0,基本情報!$D$19*(収入計画!$D$6/収入計画!$C$6)*(1+収入計画!$F$6)^(E29-基本情報!$D$15)),0))) -> 304.7363156 | M29: =IF(OR(D29="",E29=""),"",IF(D29=基本情報!$C$15,基本情報!$C$16,0)+IF(E29=基本情報!$D$15,基本情報!$D$16,0)) -> 0 | N29: =IF(D29="","",IF(OR(D29>=基本情報!$C$17,E29>=基本情報!$D$17),MAX(0,IF(D29>=基本情報!$C$17,基本情報!$C$18*12,0)+IF(AND(E29<>"",E29>=基本情報!$D$17),基本情報!$D$18*12,0)),"")) ->  | O29: =SUMPRODUCT((収入計画!$D$27:$D$42<=C29)*(収入計画!$E$27:$E$42>=C29)*収入計画!$C$27:$C$42) -> 0 | P29: 914.2089469 | Q29: =IF(D29<基本情報!$C$15,支出計画!$C$5*(1+支出計画!$D$5)^(B29-1),支出計画!$C$46)-IF(MIN(F29:J29)>=22,支出計画!$C$49,0) -> 393.617741 | R29: =IF(C29<住宅ローン償還表!$C$9,支出計画!$C$7,0)+IF(AND(C29>=支出計画!$E$8,C29<=支出計画!$F$8),支出計画!$C$8,0)+IF(AND(D29<>"",D29>=基本情報!$C$15),支出計画!$C$47,0) -> 20 | S29: =IFERROR(VLOOKUP(C29,住宅ローン償還表!$C$17:$H$51,6,FALSE()),0) -> 181.7052 | T29: =(IF(ライフイベント表!F28="",0,IF(AND(ライフイベント表!F28>=0,ライフイベント表!F28<=5),支出計画!$D$24,IF(AND(ライフイベント表!F28>=6,ライフイベント表!F28<=11),支出計画!$D$25,IF(AND(ライフイベント表!F28>=12,ライフイベント表!F28<=14),支出計画!$D$26,IF(AND(ライフイベント表!F28>=15,ライフイベント表!F28<=17),支出計画!$D$27,IF(ライフイベント表!F28=18,支出計画!$D$28,IF(AND(ライフイベント表!F28>=19,ライフイベント表!F28<=21),支出計画!$D$29,0)))))))+IF(ライフイベント表!G28="",0,IF(AND(ライフイベント表!G28>=0,ライフイベント表!G28<=5),支出計画!$D$24,IF(AND(ライフイベント表!G28>=6,ライフイベント表!G28<=11),支出計画!$D$25,IF(AND(ライフイベント表!G28>=12,ライフイベント表!G28<=14),支出計画!$D$26,IF(AND(ライフイベント表!G28>=15,ライフイベント表!G28<=17),支出計画!$D$27,IF(ライフイベント表!G28=18,支出計画!$D$28,IF(AND(ライフイベント表!G28>=19,ライフイベント表!G28<=21),支出計画!$D$29,0)))))))+IF(ライフイベント表!H28="",0,IF(AND(ライフイベント表!H28>=0,ライフイベント表!H28<=5),支出計画!$D$24,IF(AND(ライフイベント表!H28>=6,ライフイベント表!H28<=11),支出計画!$D$25,IF(AND(ライフイベント表!H28>=12,ライフイベント表!H28<=14),支出計画!$D$26,IF(AND(ライフイベント表!H28>=15,ライフイベント表!H28<=17),支出計画!$D$27,IF(ライフイベント表!H28=18,支出計画!$D$28,IF(AND(ライフイベント表!H28>=19,ライフイベント表!H28<=21),支出計画!$D$29,0)))))))+IF(ライフイベント表!I28="",0,IF(AND(ライフイベント表!I28>=0,ライフイベント表!I28<=5),支出計画!$D$24,IF(AND(ライフイベント表!I28>=6,ライフイベント表!I28<=11),支出計画!$D$25,IF(AND(ライフイベント表!I28>=12,ライフイベント表!I28<=14),支出計画!$D$26,IF(AND(ライフイベント表!I28>=15,ライフイベント表!I28<=17),支出計画!$D$27,IF(ライフイベント表!I28=18,支出計画!$D$28,IF(AND(ライフイベント表!I28>=19,ライフイベント表!I28<=21),支出計画!$D$29,0)))))))+IF(ライフイベント表!J28="",0,IF(AND(ライフイベント表!J28>=0,ライフイベント表!J28<=5),支出計画!$D$24,IF(AND(ライフイベント表!J28>=6,ライフイベント表!J28<=11),支出計画!$D$25,IF(AND(ライフイベント表!J28>=12,ライフイベント表!J28<=14),支出計画!$D$26,IF(AND(ライフイベント表!J28>=15,ライフイベント表!J28<=17),支出計画!$D$27,IF(ライフイベント表!J28=18,支出計画!$D$28,IF(AND(ライフイベント表!J28>=19,ライフイベント表!J28<=21),支出計画!$D$29,0))))))))*POWER(1.02,B29-1) -> 215.5305914 | U29: =SUMPRODUCT((保険!$G$5:$G$15<=C29)*(保険!$H$5:$H$15>=C29)*保険!$F$5:$F$15)+IF(AND(D29<>"",D29>=基本情報!$C$15),支出計画!$C$48,0) -> 16.6 | V29: =支出計画!$C$9 -> 36 | W29: =IF(AND(C29>=支出計画!$D$35,C29<=支出計画!$F$35,MOD(C29-支出計画!$D$35,支出計画!$E$35)=0),支出計画!$C$35,0)+IF(AND(C29>=支出計画!$D$36,C29<=支出計画!$F$36,MOD(C29-支出計画!$D$36,支出計画!$E$36)=0),支出計画!$C$36,0)+IF(C29=支出計画!$D$37,支出計画!$C$37,0)+IF(C29=支出計画!$D$38,支出計画!$C$38,0)+IF(C29=支出計画!$D$39,支出計画!$C$39,0)+IF(C29=支出計画!$D$40,支出計画!$C$40,0)+IF(C29=支出計画!$D$41,支出計画!$C$41,0)+IF(C29>=支出計画!$E$17,支出計画!$C$17,0)+IF(C29>=支出計画!$E$18,支出計画!$C$18,0) -> 232 | X29: 1095.453532 | Y29: -181.2445855 | Z29: =Z28*(1+金融資産!$C$21)+Y29 -> 317.9488145
B30: 26 | C30: =基本情報!$C$3+B30-1 -> 2047 | D30: =IF(基本情報!$D$6="","",C30-YEAR(基本情報!$D$6)-IF(OR(MONTH(基本情報!$D$6)>1,DAY(基本情報!$D$6)>1),1,0)) -> 60 | E30: =IF(基本情報!$D$7="","",C30-YEAR(基本情報!$D$7)-IF(OR(MONTH(基本情報!$D$7)>1,DAY(基本情報!$D$7)>1),1,0)) -> 59 | F30: =IF(OR(基本情報!$D$8="",C30<=YEAR(基本情報!$D$8)),"",MAX(0,C30-YEAR(基本情報!$D$8)-IF(OR(MONTH(基本情報!$D$8)>1,DAY(基本情報!$D$8)>1),1,0))) -> 28 | G30: =IF(OR(基本情報!$D$9="",C30<=YEAR(基本情報!$D$9)),"",MAX(0,C30-YEAR(基本情報!$D$9)-IF(OR(MONTH(基本情報!$D$9)>1,DAY(基本情報!$D$9)>1),1,0))) -> 26 | H30: =IF(OR(基本情報!$D$10="",C30<=YEAR(基本情報!$D$10)),"",MAX(0,C30-YEAR(基本情報!$D$10)-IF(OR(MONTH(基本情報!$D$10)>1,DAY(基本情報!$D$10)>1),1,0))) -> 19 | I30: =IF(OR(基本情報!$D$11="",C30<=YEAR(基本情報!$D$11)),"",MAX(0,C30-YEAR(基本情報!$D$11)-IF(OR(MONTH(基本情報!$D$11)>1,DAY(基本情報!$D$11)>1),1,0))) ->  | J30: =IF(OR(基本情報!$D$12="",C30<=YEAR(基本情報!$D$12)),"",MAX(0,C30-YEAR(基本情報!$D$12)-IF(OR(MONTH(基本情報!$D$12)>1,DAY(基本情報!$D$12)>1),1,0))) ->  | K30: =IF(D30="","",IF(D30<基本情報!$C$15,MAX(0,収入計画!$D$5*(1+収入計画!$E$5)^(B30-1)),IF(AND(D30>=基本情報!$C$15,D30<基本情報!$C$20),MAX(0,基本情報!$C$19*(収入計画!$D$5/収入計画!$C$5)*(1+収入計画!$F$5)^(D30-基本情報!$C$15)),0))) -> 615.5673576 | L30: =IF(E30="","",IF(E30<基本情報!$D$15,MAX(0,収入計画!$D$6*(1+収入計画!$E$6)^(B30-1))*IF(IFERROR(IF(AND(E30>=収入計画!$C$10-2,E30<収入計画!$C$11),1,0),0)+IFERROR(IF(AND(E30>=収入計画!$C$13-2,E30<収入計画!$C$14),1,0),0)+IFERROR(IF(AND(E30>=収入計画!$C$16-2,E30<収入計画!$C$17),1,0),0)+IFERROR(IF(AND(E30>=収入計画!$C$19-2,E30<収入計画!$C$20),1,0),0)+IFERROR(IF(AND(E30>=収入計画!$C$22-2,E30<収入計画!$C$23),1,0),0)>0,0.5,1),IF(AND(E30>=基本情報!$D$15,E30<基本情報!$D$20),MAX(0,基本情報!$D$19*(収入計画!$D$6/収入計画!$C$6)*(1+収入計画!$F$6)^(E30-基本情報!$D$15)),0))) -> 307.7836788 | M30: =IF(OR(D30="",E30=""),"",IF(D30=基本情報!$C$15,基本情報!$C$16,0)+IF(E30=基本情報!$D$15,基本情報!$D$16,0)) -> 0 | N30: =IF(D30="","",IF(OR(D30>=基本情報!$C$17,E30>=基本情報!$D$17),MAX(0,IF(D30>=基本情報!$C$17,基本情報!$C$18*12,0)+IF(AND(E30<>"",E30>=基本情報!$D$17),基本情報!$D$18*12,0)),"")) ->  | O30: =SUMPRODUCT((収入計画!$D$27:$D$42<=C30)*(収入計画!$E$27:$E$42>=C30)*収入計画!$C$27:$C$42) -> 0 | P30: 923.3510364 | Q30: =IF(D30<基本情報!$C$15,支出計画!$C$5*(1+支出計画!$D$5)^(B30-1),支出計画!$C$46)-IF(MIN(F30:J30)>=22,支出計画!$C$49,0) -> 397.5539185 | R30: =IF(C30<住宅ローン償還表!$C$9,支出計画!$C$7,0)+IF(AND(C30>=支出計画!$E$8,C30<=支出計画!$F$8),支出計画!$C$8,0)+IF(AND(D30<>"",D30>=基本情報!$C$15),支出計画!$C$47,0) -> 20 | S30: =IFERROR(VLOOKUP(C30,住宅ローン償還表!$C$17:$H$51,6,FALSE()),0) -> 0 | T30: =(IF(ライフイベント表!F29="",0,IF(AND(ライフイベント表!F29>=0,ライフイベント表!F29<=5),支出計画!$D$24,IF(AND(ライフイベント表!F29>=6,ライフイベント表!F29<=11),支出計画!$D$25,IF(AND(ライフイベント表!F29>=12,ライフイベント表!F29<=14),支出計画!$D$26,IF(AND(ライフイベント表!F29>=15,ライフイベント表!F29<=17),支出計画!$D$27,IF(ライフイベント表!F29=18,支出計画!$D$28,IF(AND(ライフイベント表!F29>=19,ライフイベント表!F29<=21),支出計画!$D$29,0)))))))+IF(ライフイベント表!G29="",0,IF(AND(ライフイベント表!G29>=0,ライフイベント表!G29<=5),支出計画!$D$24,IF(AND(ライフイベント表!G29>=6,ライフイベント表!G29<=11),支出計画!$D$25,IF(AND(ライフイベント表!G29>=12,ライフイベント表!G29<=14),支出計画!$D$26,IF(AND(ライフイベント表!G29>=15,ライフイベント表!G29<=17),支出計画!$D$27,IF(ライフイベント表!G29=18,支出計画!$D$28,IF(AND(ライフイベント表!G29>=19,ライフイベント表!G29<=21),支出計画!$D$29,0)))))))+IF(ライフイベント表!H29="",0,IF(AND(ライフイベント表!H29>=0,ライフイベント表!H29<=5),支出計画!$D$24,IF(AND(ライフイベント表!H29>=6,ライフイベント表!H29<=11),支出計画!$D$25,IF(AND(ライフイベント表!H29>=12,ライフイベント表!H29<=14),支出計画!$D$26,IF(AND(ライフイベント表!H29>=15,ライフイベント表!H29<=17),支出計画!$D$27,IF(ライフイベント表!H29=18,支出計画!$D$28,IF(AND(ライフイベント表!H29>=19,ライフイベント表!H29<=21),支出計画!$D$29,0)))))))+IF(ライフイベント表!I29="",0,IF(AND(ライフイベント表!I29>=0,ライフイベント表!I29<=5),支出計画!$D$24,IF(AND(ライフイベント表!I29>=6,ライフイベント表!I29<=11),支出計画!$D$25,IF(AND(ライフイベント表!I29>=12,ライフイベント表!I29<=14),支出計画!$D$26,IF(AND(ライフイベント表!I29>=15,ライフイベント表!I29<=17),支出計画!$D$27,IF(ライフイベント表!I29=18,支出計画!$D$28,IF(AND(ライフイベント表!I29>=19,ライフイベント表!I29<=21),支出計画!$D$29,0)))))))+IF(ライフイベント表!J29="",0,IF(AND(ライフイベント表!J29>=0,ライフイベント表!J29<=5),支出計画!$D$24,IF(AND(ライフイベント表!J29>=6,ライフイベント表!J29<=11),支出計画!$D$25,IF(AND(ライフイベント表!J29>=12,ライフイベント表!J29<=14),支出計画!$D$26,IF(AND(ライフイベント表!J29>=15,ライフイベント表!J29<=17),支出計画!$D$27,IF(ライフイベント表!J29=18,支出計画!$D$28,IF(AND(ライフイベント表!J29>=19,ライフイベント表!J29<=21),支出計画!$D$29,0))))))))*POWER(1.02,B30-1) -> 178.8260534 | U30: =SUMPRODUCT((保険!$G$5:$G$15<=C30)*(保険!$H$5:$H$15>=C30)*保険!$F$5:$F$15)+IF(AND(D30<>"",D30>=基本情報!$C$15),支出計画!$C$48,0) -> 16.6 | V30: =支出計画!$C$9 -> 36 | W30: =IF(AND(C30>=支出計画!$D$35,C30<=支出計画!$F$35,MOD(C30-支出計画!$D$35,支出計画!$E$35)=0),支出計画!$C$35,0)+IF(AND(C30>=支出計画!$D$36,C30<=支出計画!$F$36,MOD(C30-支出計画!$D$36,支出計画!$E$36)=0),支出計画!$C$36,0)+IF(C30=支出計画!$D$37,支出計画!$C$37,0)+IF(C30=支出計画!$D$38,支出計画!$C$38,0)+IF(C30=支出計画!$D$39,支出計画!$C$39,0)+IF(C30=支出計画!$D$40,支出計画!$C$40,0)+IF(C30=支出計画!$D$41,支出計画!$C$41,0)+IF(C30>=支出計画!$E$17,支出計画!$C$17,0)+IF(C30>=支出計画!$E$18,支出計画!$C$18,0) -> 32 | X30: 680.9799719 | Y30: 242.3710646 | Z30: =Z29*(1+金融資産!$C$21)+Y30 -> 561.9096231
B31: 27 | C31: =基本情報!$C$3+B31-1 -> 2048 | D31: =IF(基本情報!$D$6="","",C31-YEAR(基本情報!$D$6)-IF(OR(MONTH(基本情報!$D$6)>1,DAY(基本情報!$D$6)>1),1,0)) -> 61 | E31: =IF(基本情報!$D$7="","",C31-YEAR(基本情報!$D$7)-IF(OR(MONTH(基本情報!$D$7)>1,DAY(基本情報!$D$7)>1),1,0)) -> 60 | F31: =IF(OR(基本情報!$D$8="",C31<=YEAR(基本情報!$D$8)),"",MAX(0,C31-YEAR(基本情報!$D$8)-IF(OR(MONTH(基本情報!$D$8)>1,DAY(基本情報!$D$8)>1),1,0))) -> 29 | G31: =IF(OR(基本情報!$D$9="",C31<=YEAR(基本情報!$D$9)),"",MAX(0,C31-YEAR(基本情報!$D$9)-IF(OR(MONTH(基本情報!$D$9)>1,DAY(基本情報!$D$9)>1),1,0))) -> 27 | H31: =IF(OR(基本情報!$D$10="",C31<=YEAR(基本情報!$D$10)),"",MAX(0,C31-YEAR(基本情報!$D$10)-IF(OR(MONTH(基本情報!$D$10)>1,DAY(基本情報!$D$10)>1),1,0))) -> 20 | I31: =IF(OR(基本情報!$D$11="",C31<=YEAR(基本情報!$D$11)),"",MAX(0,C31-YEAR(基本情報!$D$11)-IF(OR(MONTH(基本情報!$D$11)>1,DAY(基本情報!$D$11)>1),1,0))) ->  | J31: =IF(OR(基本情報!$D$12="",C31<=YEAR(基本情報!$D$12)),"",MAX(0,C31-YEAR(基本情報!$D$12)-IF(OR(MONTH(基本情報!$D$12)>1,DAY(基本情報!$D$12)>1),1,0))) ->  | K31: =IF(D31="","",IF(D31<基本情報!$C$15,MAX(0,収入計画!$D$5*(1+収入計画!$E$5)^(B31-1)),IF(AND(D31>=基本情報!$C$15,D31<基本情報!$C$20),MAX(0,基本情報!$C$19*(収入計画!$D$5/収入計画!$C$5)*(1+収入計画!$F$5)^(D31-基本情報!$C$15)),0))) -> 621.7230312 | L31: =IF(E31="","",IF(E31<基本情報!$D$15,MAX(0,収入計画!$D$6*(1+収入計画!$E$6)^(B31-1))*IF(IFERROR(IF(AND(E31>=収入計画!$C$10-2,E31<収入計画!$C$11),1,0),0)+IFERROR(IF(AND(E31>=収入計画!$C$13-2,E31<収入計画!$C$14),1,0),0)+IFERROR(IF(AND(E31>=収入計画!$C$16-2,E31<収入計画!$C$17),1,0),0)+IFERROR(IF(AND(E31>=収入計画!$C$19-2,E31<収入計画!$C$20),1,0),0)+IFERROR(IF(AND(E31>=収入計画!$C$22-2,E31<収入計画!$C$23),1,0),0)>0,0.5,1),IF(AND(E31>=基本情報!$D$15,E31<基本情報!$D$20),MAX(0,基本情報!$D$19*(収入計画!$D$6/収入計画!$C$6)*(1+収入計画!$F$6)^(E31-基本情報!$D$15)),0))) -> 310.8615156 | M31: =IF(OR(D31="",E31=""),"",IF(D31=基本情報!$C$15,基本情報!$C$16,0)+IF(E31=基本情報!$D$15,基本情報!$D$16,0)) -> 0 | N31: =IF(D31="","",IF(OR(D31>=基本情報!$C$17,E31>=基本情報!$D$17),MAX(0,IF(D31>=基本情報!$C$17,基本情報!$C$18*12,0)+IF(AND(E31<>"",E31>=基本情報!$D$17),基本情報!$D$18*12,0)),"")) ->  | O31: =SUMPRODUCT((収入計画!$D$27:$D$42<=C31)*(収入計画!$E$27:$E$42>=C31)*収入計画!$C$27:$C$42) -> 0 | P31: 932.5845468 | Q31: =IF(D31<基本情報!$C$15,支出計画!$C$5*(1+支出計画!$D$5)^(B31-1),支出計画!$C$46)-IF(MIN(F31:J31)>=22,支出計画!$C$49,0) -> 401.5294576 | R31: =IF(C31<住宅ローン償還表!$C$9,支出計画!$C$7,0)+IF(AND(C31>=支出計画!$E$8,C31<=支出計画!$F$8),支出計画!$C$8,0)+IF(AND(D31<>"",D31>=基本情報!$C$15),支出計画!$C$47,0) -> 20 | S31: =IFERROR(VLOOKUP(C31,住宅ローン償還表!$C$17:$H$51,6,FALSE()),0) -> 0 | T31: =(IF(ライフイベント表!F30="",0,IF(AND(ライフイベント表!F30>=0,ライフイベント表!F30<=5),支出計画!$D$24,IF(AND(ライフイベント表!F30>=6,ライフイベント表!F30<=11),支出計画!$D$25,IF(AND(ライフイベント表!F30>=12,ライフイベント表!F30<=14),支出計画!$D$26,IF(AND(ライフイベント表!F30>=15,ライフイベント表!F30<=17),支出計画!$D$27,IF(ライフイベント表!F30=18,支出計画!$D$28,IF(AND(ライフイベント表!F30>=19,ライフイベント表!F30<=21),支出計画!$D$29,0)))))))+IF(ライフイベント表!G30="",0,IF(AND(ライフイベント表!G30>=0,ライフイベント表!G30<=5),支出計画!$D$24,IF(AND(ライフイベント表!G30>=6,ライフイベント表!G30<=11),支出計画!$D$25,IF(AND(ライフイベント表!G30>=12,ライフイベント表!G30<=14),支出計画!$D$26,IF(AND(ライフイベント表!G30>=15,ライフイベント表!G30<=17),支出計画!$D$27,IF(ライフイベント表!G30=18,支出計画!$D$28,IF(AND(ライフイベント表!G30>=19,ライフイベント表!G30<=21),支出計画!$D$29,0)))))))+IF(ライフイベント表!H30="",0,IF(AND(ライフイベント表!H30>=0,ライフイベント表!H30<=5),支出計画!$D$24,IF(AND(ライフイベント表!H30>=6,ライフイベント表!H30<=11),支出計画!$D$25,IF(AND(ライフイベント表!H30>=12,ライフイベント表!H30<=14),支出計画!$D$26,IF(AND(ライフイベント表!H30>=15,ライフイベント表!H30<=17),支出計画!$D$27,IF(ライフイベント表!H30=18,支出計画!$D$28,IF(AND(ライフイベント表!H30>=19,ライフイベント表!H30<=21),支出計画!$D$29,0)))))))+IF(ライフイベント表!I30="",0,IF(AND(ライフイベント表!I30>=0,ライフイベント表!I30<=5),支出計画!$D$24,IF(AND(ライフイベント表!I30>=6,ライフイベント表!I30<=11),支出計画!$D$25,IF(AND(ライフイベント表!I30>=12,ライフイベント表!I30<=14),支出計画!$D$26,IF(AND(ライフイベント表!I30>=15,ライフイベント表!I30<=17),支出計画!$D$27,IF(ライフイベント表!I30=18,支出計画!$D$28,IF(AND(ライフイベント表!I30>=19,ライフイベント表!I30<=21),支出計画!$D$29,0)))))))+IF(ライフイベント表!J30="",0,IF(AND(ライフイベント表!J30>=0,ライフイベント表!J30<=5),支出計画!$D$24,IF(AND(ライフイベント表!J30>=6,ライフイベント表!J30<=11),支出計画!$D$25,IF(AND(ライフイベント表!J30>=12,ライフイベント表!J30<=14),支出計画!$D$26,IF(AND(ライフイベント表!J30>=15,ライフイベント表!J30<=17),支出計画!$D$27,IF(ライフイベント表!J30=18,支出計画!$D$28,IF(AND(ライフイベント表!J30>=19,ライフイベント表!J30<=21),支出計画!$D$29,0))))))))*POWER(1.02,B31-1) -> 182.4025745 | U31: =SUMPRODUCT((保険!$G$5:$G$15<=C31)*(保険!$H$5:$H$15>=C31)*保険!$F$5:$F$15)+IF(AND(D31<>"",D31>=基本情報!$C$15),支出計画!$C$48,0) -> 16.6 | V31: =支出計画!$C$9 -> 36 | W31: =IF(AND(C31>=支出計画!$D$35,C31<=支出計画!$F$35,MOD(C31-支出計画!$D$35,支出計画!$E$35)=0),支出計画!$C$35,0)+IF(AND(C31>=支出計画!$D$36,C31<=支出計画!$F$36,MOD(C31-支出計画!$D$36,支出計画!$E$36)=0),支出計画!$C$36,0)+IF(C31=支出計画!$D$37,支出計画!$C$37,0)+IF(C31=支出計画!$D$38,支出計画!$C$38,0)+IF(C31=支出計画!$D$39,支出計画!$C$39,0)+IF(C31=支出計画!$D$40,支出計画!$C$40,0)+IF(C31=支出計画!$D$41,支出計画!$C$41,0)+IF(C31>=支出計画!$E$17,支出計画!$C$17,0)+IF(C31>=支出計画!$E$18,支出計画!$C$18,0) -> 232 | X31: 888.5320321 | Y31: 44.05251467 | Z31: =Z30*(1+金融資産!$C$21)+Y31 -> 608.7716859
B32: 28 | C32: =基本情報!$C$3+B32-1 -> 2049 | D32: =IF(基本情報!$D$6="","",C32-YEAR(基本情報!$D$6)-IF(OR(MONTH(基本情報!$D$6)>1,DAY(基本情報!$D$6)>1),1,0)) -> 62 | E32: =IF(基本情報!$D$7="","",C32-YEAR(基本情報!$D$7)-IF(OR(MONTH(基本情報!$D$7)>1,DAY(基本情報!$D$7)>1),1,0)) -> 61 | F32: =IF(OR(基本情報!$D$8="",C32<=YEAR(基本情報!$D$8)),"",MAX(0,C32-YEAR(基本情報!$D$8)-IF(OR(MONTH(基本情報!$D$8)>1,DAY(基本情報!$D$8)>1),1,0))) -> 30 | G32: =IF(OR(基本情報!$D$9="",C32<=YEAR(基本情報!$D$9)),"",MAX(0,C32-YEAR(基本情報!$D$9)-IF(OR(MONTH(基本情報!$D$9)>1,DAY(基本情報!$D$9)>1),1,0))) -> 28 | H32: =IF(OR(基本情報!$D$10="",C32<=YEAR(基本情報!$D$10)),"",MAX(0,C32-YEAR(基本情報!$D$10)-IF(OR(MONTH(基本情報!$D$10)>1,DAY(基本情報!$D$10)>1),1,0))) -> 21 | I32: =IF(OR(基本情報!$D$11="",C32<=YEAR(基本情報!$D$11)),"",MAX(0,C32-YEAR(基本情報!$D$11)-IF(OR(MONTH(基本情報!$D$11)>1,DAY(基本情報!$D$11)>1),1,0))) ->  | J32: =IF(OR(基本情報!$D$12="",C32<=YEAR(基本情報!$D$12)),"",MAX(0,C32-YEAR(基本情報!$D$12)-IF(OR(MONTH(基本情報!$D$12)>1,DAY(基本情報!$D$12)>1),1,0))) ->  | K32: =IF(D32="","",IF(D32<基本情報!$C$15,MAX(0,収入計画!$D$5*(1+収入計画!$E$5)^(B32-1)),IF(AND(D32>=基本情報!$C$15,D32<基本情報!$C$20),MAX(0,基本情報!$C$19*(収入計画!$D$5/収入計画!$C$5)*(1+収入計画!$F$5)^(D32-基本情報!$C$15)),0))) -> 627.9402615 | L32: =IF(E32="","",IF(E32<基本情報!$D$15,MAX(0,収入計画!$D$6*(1+収入計画!$E$6)^(B32-1))*IF(IFERROR(IF(AND(E32>=収入計画!$C$10-2,E32<収入計画!$C$11),1,0),0)+IFERROR(IF(AND(E32>=収入計画!$C$13-2,E32<収入計画!$C$14),1,0),0)+IFERROR(IF(AND(E32>=収入計画!$C$16-2,E32<収入計画!$C$17),1,0),0)+IFERROR(IF(AND(E32>=収入計画!$C$19-2,E32<収入計画!$C$20),1,0),0)+IFERROR(IF(AND(E32>=収入計画!$C$22-2,E32<収入計画!$C$23),1,0),0)>0,0.5,1),IF(AND(E32>=基本情報!$D$15,E32<基本情報!$D$20),MAX(0,基本情報!$D$19*(収入計画!$D$6/収入計画!$C$6)*(1+収入計画!$F$6)^(E32-基本情報!$D$15)),0))) -> 313.9701307 | M32: =IF(OR(D32="",E32=""),"",IF(D32=基本情報!$C$15,基本情報!$C$16,0)+IF(E32=基本情報!$D$15,基本情報!$D$16,0)) -> 0 | N32: =IF(D32="","",IF(OR(D32>=基本情報!$C$17,E32>=基本情報!$D$17),MAX(0,IF(D32>=基本情報!$C$17,基本情報!$C$18*12,0)+IF(AND(E32<>"",E32>=基本情報!$D$17),基本情報!$D$18*12,0)),"")) ->  | O32: =SUMPRODUCT((収入計画!$D$27:$D$42<=C32)*(収入計画!$E$27:$E$42>=C32)*収入計画!$C$27:$C$42) -> 0 | P32: 941.9103922 | Q32: =IF(D32<基本情報!$C$15,支出計画!$C$5*(1+支出計画!$D$5)^(B32-1),支出計画!$C$46)-IF(MIN(F32:J32)>=22,支出計画!$C$49,0) -> 405.5447522 | R32: =IF(C32<住宅ローン償還表!$C$9,支出計画!$C$7,0)+IF(AND(C32>=支出計画!$E$8,C32<=支出計画!$F$8),支出計画!$C$8,0)+IF(AND(D32<>"",D32>=基本情報!$C$15),支出計画!$C$47,0) -> 20 | S32: =IFERROR(VLOOKUP(C32,住宅ローン償還表!$C$17:$H$51,6,FALSE()),0) -> 0 | T32: =(IF(ライフイベント表!F31="",0,IF(AND(ライフイベント表!F31>=0,ライフイベント表!F31<=5),支出計画!$D$24,IF(AND(ライフイベント表!F31>=6,ライフイベント表!F31<=11),支出計画!$D$25,IF(AND(ライフイベント表!F31>=12,ライフイベント表!F31<=14),支出計画!$D$26,IF(AND(ライフイベント表!F31>=15,ライフイベント表!F31<=17),支出計画!$D$27,IF(ライフイベント表!F31=18,支出計画!$D$28,IF(AND(ライフイベント表!F31>=19,ライフイベント表!F31<=21),支出計画!$D$29,0)))))))+IF(ライフイベント表!G31="",0,IF(AND(ライフイベント表!G31>=0,ライフイベント表!G31<=5),支出計画!$D$24,IF(AND(ライフイベント表!G31>=6,ライフイベント表!G31<=11),支出計画!$D$25,IF(AND(ライフイベント表!G31>=12,ライフイベント表!G31<=14),支出計画!$D$26,IF(AND(ライフイベント表!G31>=15,ライフイベント表!G31<=17),支出計画!$D$27,IF(ライフイベント表!G31=18,支出計画!$D$28,IF(AND(ライフイベント表!G31>=19,ライフイベント表!G31<=21),支出計画!$D$29,0)))))))+IF(ライフイベント表!H31="",0,IF(AND(ライフイベント表!H31>=0,ライフイベント表!H31<=5),支出計画!$D$24,IF(AND(ライフイベント表!H31>=6,ライフイベント表!H31<=11),支出計画!$D$25,IF(AND(ライフイベント表!H31>=12,ライフイベント表!H31<=14),支出計画!$D$26,IF(AND(ライフイベント表!H31>=15,ライフイベント表!H31<=17),支出計画!$D$27,IF(ライフイベント表!H31=18,支出計画!$D$28,IF(AND(ライフイベント表!H31>=19,ライフイベント表!H31<=21),支出計画!$D$29,0)))))))+IF(ライフイベント表!I31="",0,IF(AND(ライフイベント表!I31>=0,ライフイベント表!I31<=5),支出計画!$D$24,IF(AND(ライフイベント表!I31>=6,ライフイベント表!I31<=11),支出計画!$D$25,IF(AND(ライフイベント表!I31>=12,ライフイベント表!I31<=14),支出計画!$D$26,IF(AND(ライフイベント表!I31>=15,ライフイベント表!I31<=17),支出計画!$D$27,IF(ライフイベント表!I31=18,支出計画!$D$28,IF(AND(ライフイベント表!I31>=19,ライフイベント表!I31<=21),支出計画!$D$29,0)))))))+IF(ライフイベント表!J31="",0,IF(AND(ライフイベント表!J31>=0,ライフイベント表!J31<=5),支出計画!$D$24,IF(AND(ライフイベント表!J31>=6,ライフイベント表!J31<=11),支出計画!$D$25,IF(AND(ライフイベント表!J31>=12,ライフイベント表!J31<=14),支出計画!$D$26,IF(AND(ライフイベント表!J31>=15,ライフイベント表!J31<=17),支出計画!$D$27,IF(ライフイベント表!J31=18,支出計画!$D$28,IF(AND(ライフイベント表!J31>=19,ライフイベント表!J31<=21),支出計画!$D$29,0))))))))*POWER(1.02,B32-1) -> 186.050626 | U32: =SUMPRODUCT((保険!$G$5:$G$15<=C32)*(保険!$H$5:$H$15>=C32)*保険!$F$5:$F$15)+IF(AND(D32<>"",D32>=基本情報!$C$15),支出計画!$C$48,0) -> 7 | V32: =支出計画!$C$9 -> 36 | W32: =IF(AND(C32>=支出計画!$D$35,C32<=支出計画!$F$35,MOD(C32-支出計画!$D$35,支出計画!$E$35)=0),支出計画!$C$35,0)+IF(AND(C32>=支出計画!$D$36,C32<=支出計画!$F$36,MOD(C32-支出計画!$D$36,支出計画!$E$36)=0),支出計画!$C$36,0)+IF(C32=支出計画!$D$37,支出計画!$C$37,0)+IF(C32=支出計画!$D$38,支出計画!$C$38,0)+IF(C32=支出計画!$D$39,支出計画!$C$39,0)+IF(C32=支出計画!$D$40,支出計画!$C$40,0)+IF(C32=支出計画!$D$41,支出計画!$C$41,0)+IF(C32>=支出計画!$E$17,支出計画!$C$17,0)+IF(C32>=支出計画!$E$18,支出計画!$C$18,0) -> 32 | X32: 686.5953782 | Y32: 255.3150141 | Z32: =Z31*(1+金融資産!$C$21)+Y32 -> 867.1305584
B33: 29 | C33: =基本情報!$C$3+B33-1 -> 2050 | D33: =IF(基本情報!$D$6="","",C33-YEAR(基本情報!$D$6)-IF(OR(MONTH(基本情報!$D$6)>1,DAY(基本情報!$D$6)>1),1,0)) -> 63 | E33: =IF(基本情報!$D$7="","",C33-YEAR(基本情報!$D$7)-IF(OR(MONTH(基本情報!$D$7)>1,DAY(基本情報!$D$7)>1),1,0)) -> 62 | F33: =IF(OR(基本情報!$D$8="",C33<=YEAR(基本情報!$D$8)),"",MAX(0,C33-YEAR(基本情報!$D$8)-IF(OR(MONTH(基本情報!$D$8)>1,DAY(基本情報!$D$8)>1),1,0))) -> 31 | G33: =IF(OR(基本情報!$D$9="",C33<=YEAR(基本情報!$D$9)),"",MAX(0,C33-YEAR(基本情報!$D$9)-IF(OR(MONTH(基本情報!$D$9)>1,DAY(基本情報!$D$9)>1),1,0))) -> 29 | H33: =IF(OR(基本情報!$D$10="",C33<=YEAR(基本情報!$D$10)),"",MAX(0,C33-YEAR(基本情報!$D$10)-IF(OR(MONTH(基本情報!$D$10)>1,DAY(基本情報!$D$10)>1),1,0))) -> 22 | I33: =IF(OR(基本情報!$D$11="",C33<=YEAR(基本情報!$D$11)),"",MAX(0,C33-YEAR(基本情報!$D$11)-IF(OR(MONTH(基本情報!$D$11)>1,DAY(基本情報!$D$11)>1),1,0))) ->  | J33: =IF(OR(基本情報!$D$12="",C33<=YEAR(基本情報!$D$12)),"",MAX(0,C33-YEAR(基本情報!$D$12)-IF(OR(MONTH(基本情報!$D$12)>1,DAY(基本情報!$D$12)>1),1,0))) ->  | K33: =IF(D33="","",IF(D33<基本情報!$C$15,MAX(0,収入計画!$D$5*(1+収入計画!$E$5)^(B33-1)),IF(AND(D33>=基本情報!$C$15,D33<基本情報!$C$20),MAX(0,基本情報!$C$19*(収入計画!$D$5/収入計画!$C$5)*(1+収入計画!$F$5)^(D33-基本情報!$C$15)),0))) -> 634.2196641 | L33: =IF(E33="","",IF(E33<基本情報!$D$15,MAX(0,収入計画!$D$6*(1+収入計画!$E$6)^(B33-1))*IF(IFERROR(IF(AND(E33>=収入計画!$C$10-2,E33<収入計画!$C$11),1,0),0)+IFERROR(IF(AND(E33>=収入計画!$C$13-2,E33<収入計画!$C$14),1,0),0)+IFERROR(IF(AND(E33>=収入計画!$C$16-2,E33<収入計画!$C$17),1,0),0)+IFERROR(IF(AND(E33>=収入計画!$C$19-2,E33<収入計画!$C$20),1,0),0)+IFERROR(IF(AND(E33>=収入計画!$C$22-2,E33<収入計画!$C$23),1,0),0)>0,0.5,1),IF(AND(E33>=基本情報!$D$15,E33<基本情報!$D$20),MAX(0,基本情報!$D$19*(収入計画!$D$6/収入計画!$C$6)*(1+収入計画!$F$6)^(E33-基本情報!$D$15)),0))) -> 317.1098321 | M33: =IF(OR(D33="",E33=""),"",IF(D33=基本情報!$C$15,基本情報!$C$16,0)+IF(E33=基本情報!$D$15,基本情報!$D$16,0)) -> 0 | N33: =IF(D33="","",IF(OR(D33>=基本情報!$C$17,E33>=基本情報!$D$17),MAX(0,IF(D33>=基本情報!$C$17,基本情報!$C$18*12,0)+IF(AND(E33<>"",E33>=基本情報!$D$17),基本情報!$D$18*12,0)),"")) ->  | O33: =SUMPRODUCT((収入計画!$D$27:$D$42<=C33)*(収入計画!$E$27:$E$42>=C33)*収入計画!$C$27:$C$42) -> 0 | P33: 951.3294962 | Q33: =IF(D33<基本情報!$C$15,支出計画!$C$5*(1+支出計画!$D$5)^(B33-1),支出計画!$C$46)-IF(MIN(F33:J33)>=22,支出計画!$C$49,0) -> 373.6001997 | R33: =IF(C33<住宅ローン償還表!$C$9,支出計画!$C$7,0)+IF(AND(C33>=支出計画!$E$8,C33<=支出計画!$F$8),支出計画!$C$8,0)+IF(AND(D33<>"",D33>=基本情報!$C$15),支出計画!$C$47,0) -> 20 | S33: =IFERROR(VLOOKUP(C33,住宅ローン償還表!$C$17:$H$51,6,FALSE()),0) -> 0 | T33: =(IF(ライフイベント表!F32="",0,IF(AND(ライフイベント表!F32>=0,ライフイベント表!F32<=5),支出計画!$D$24,IF(AND(ライフイベント表!F32>=6,ライフイベント表!F32<=11),支出計画!$D$25,IF(AND(ライフイベント表!F32>=12,ライフイベント表!F32<=14),支出計画!$D$26,IF(AND(ライフイベント表!F32>=15,ライフイベント表!F32<=17),支出計画!$D$27,IF(ライフイベント表!F32=18,支出計画!$D$28,IF(AND(ライフイベント表!F32>=19,ライフイベント表!F32<=21),支出計画!$D$29,0)))))))+IF(ライフイベント表!G32="",0,IF(AND(ライフイベント表!G32>=0,ライフイベント表!G32<=5),支出計画!$D$24,IF(AND(ライフイベント表!G32>=6,ライフイベント表!G32<=11),支出計画!$D$25,IF(AND(ライフイベント表!G32>=12,ライフイベント表!G32<=14),支出計画!$D$26,IF(AND(ライフイベント表!G32>=15,ライフイベント表!G32<=17),支出計画!$D$27,IF(ライフイベント表!G32=18,支出計画!$D$28,IF(AND(ライフイベント表!G32>=19,ライフイベント表!G32<=21),支出計画!$D$29,0)))))))+IF(ライフイベント表!H32="",0,IF(AND(ライフイベント表!H32>=0,ライフイベント表!H32<=5),支出計画!$D$24,IF(AND(ライフイベント表!H32>=6,ライフイベント表!H32<=11),支出計画!$D$25,IF(AND(ライフイベント表!H32>=12,ライフイベント表!H32<=14),支出計画!$D$26,IF(AND(ライフイベント表!H32>=15,ライフイベント表!H32<=17),支出計画!$D$27,IF(ライフイベント表!H32=18,支出計画!$D$28,IF(AND(ライフイベント表!H32>=19,ライフイベント表!H32<=21),支出計画!$D$29,0)))))))+IF(ライフイベント表!I32="",0,IF(AND(ライフイベント表!I32>=0,ライフイベント表!I32<=5),支出計画!$D$24,IF(AND(ライフイベント表!I32>=6,ライフイベント表!I32<=11),支出計画!$D$25,IF(AND(ライフイベント表!I32>=12,ライフイベント表!I32<=14),支出計画!$D$26,IF(AND(ライフイベント表!I32>=15,ライフイベント表!I32<=17),支出計画!$D$27,IF(ライフイベント表!I32=18,支出計画!$D$28,IF(AND(ライフイベント表!I32>=19,ライフイベント表!I32<=21),支出計画!$D$29,0)))))))+IF(ライフイベント表!J32="",0,IF(AND(ライフイベント表!J32>=0,ライフイベント表!J32<=5),支出計画!$D$24,IF(AND(ライフイベント表!J32>=6,ライフイベント表!J32<=11),支出計画!$D$25,IF(AND(ライフイベント表!J32>=12,ライフイベント表!J32<=14),支出計画!$D$26,IF(AND(ライフイベント表!J32>=15,ライフイベント表!J32<=17),支出計画!$D$27,IF(ライフイベント表!J32=18,支出計画!$D$28,IF(AND(ライフイベント表!J32>=19,ライフイベント表!J32<=21),支出計画!$D$29,0))))))))*POWER(1.02,B33-1) -> 0 | U33: =SUMPRODUCT((保険!$G$5:$G$15<=C33)*(保険!$H$5:$H$15>=C33)*保険!$F$5:$F$15)+IF(AND(D33<>"",D33>=基本情報!$C$15),支出計画!$C$48,0) -> 7 | V33: =支出計画!$C$9 -> 36 | W33: =IF(AND(C33>=支出計画!$D$35,C33<=支出計画!$F$35,MOD(C33-支出計画!$D$35,支出計画!$E$35)=0),支出計画!$C$35,0)+IF(AND(C33>=支出計画!$D$36,C33<=支出計画!$F$36,MOD(C33-支出計画!$D$36,支出計画!$E$36)=0),支出計画!$C$36,0)+IF(C33=支出計画!$D$37,支出計画!$C$37,0)+IF(C33=支出計画!$D$38,支出計画!$C$38,0)+IF(C33=支出計画!$D$39,支出計画!$C$39,0)+IF(C33=支出計画!$D$40,支出計画!$C$40,0)+IF(C33=支出計画!$D$41,支出計画!$C$41,0)+IF(C33>=支出計画!$E$17,支出計画!$C$17,0)+IF(C33>=支出計画!$E$18,支出計画!$C$18,0) -> 32 | X33: 468.6001997 | Y33: 482.7292964 | Z33: =Z32*(1+金融資産!$C$21)+Y33 -> 1354.195508
B34: 30 | C34: =基本情報!$C$3+B34-1 -> 2051 | D34: =IF(基本情報!$D$6="","",C34-YEAR(基本情報!$D$6)-IF(OR(MONTH(基本情報!$D$6)>1,DAY(基本情報!$D$6)>1),1,0)) -> 64 | E34: =IF(基本情報!$D$7="","",C34-YEAR(基本情報!$D$7)-IF(OR(MONTH(基本情報!$D$7)>1,DAY(基本情報!$D$7)>1),1,0)) -> 63 | F34: =IF(OR(基本情報!$D$8="",C34<=YEAR(基本情報!$D$8)),"",MAX(0,C34-YEAR(基本情報!$D$8)-IF(OR(MONTH(基本情報!$D$8)>1,DAY(基本情報!$D$8)>1),1,0))) -> 32 | G34: =IF(OR(基本情報!$D$9="",C34<=YEAR(基本情報!$D$9)),"",MAX(0,C34-YEAR(基本情報!$D$9)-IF(OR(MONTH(基本情報!$D$9)>1,DAY(基本情報!$D$9)>1),1,0))) -> 30 | H34: =IF(OR(基本情報!$D$10="",C34<=YEAR(基本情報!$D$10)),"",MAX(0,C34-YEAR(基本情報!$D$10)-IF(OR(MONTH(基本情報!$D$10)>1,DAY(基本情報!$D$10)>1),1,0))) -> 23 | I34: =IF(OR(基本情報!$D$11="",C34<=YEAR(基本情報!$D$11)),"",MAX(0,C34-YEAR(基本情報!$D$11)-IF(OR(MONTH(基本情報!$D$11)>1,DAY(基本情報!$D$11)>1),1,0))) ->  | J34: =IF(OR(基本情報!$D$12="",C34<=YEAR(基本情報!$D$12)),"",MAX(0,C34-YEAR(基本情報!$D$12)-IF(OR(MONTH(基本情報!$D$12)>1,DAY(基本情報!$D$12)>1),1,0))) ->  | K34: =IF(D34="","",IF(D34<基本情報!$C$15,MAX(0,収入計画!$D$5*(1+収入計画!$E$5)^(B34-1)),IF(AND(D34>=基本情報!$C$15,D34<基本情報!$C$20),MAX(0,基本情報!$C$19*(収入計画!$D$5/収入計画!$C$5)*(1+収入計画!$F$5)^(D34-基本情報!$C$15)),0))) -> 640.5618608 | L34: =IF(E34="","",IF(E34<基本情報!$D$15,MAX(0,収入計画!$D$6*(1+収入計画!$E$6)^(B34-1))*IF(IFERROR(IF(AND(E34>=収入計画!$C$10-2,E34<収入計画!$C$11),1,0),0)+IFERROR(IF(AND(E34>=収入計画!$C$13-2,E34<収入計画!$C$14),1,0),0)+IFERROR(IF(AND(E34>=収入計画!$C$16-2,E34<収入計画!$C$17),1,0),0)+IFERROR(IF(AND(E34>=収入計画!$C$19-2,E34<収入計画!$C$20),1,0),0)+IFERROR(IF(AND(E34>=収入計画!$C$22-2,E34<収入計画!$C$23),1,0),0)>0,0.5,1),IF(AND(E34>=基本情報!$D$15,E34<基本情報!$D$20),MAX(0,基本情報!$D$19*(収入計画!$D$6/収入計画!$C$6)*(1+収入計画!$F$6)^(E34-基本情報!$D$15)),0))) -> 320.2809304 | M34: =IF(OR(D34="",E34=""),"",IF(D34=基本情報!$C$15,基本情報!$C$16,0)+IF(E34=基本情報!$D$15,基本情報!$D$16,0)) -> 0 | N34: =IF(D34="","",IF(OR(D34>=基本情報!$C$17,E34>=基本情報!$D$17),MAX(0,IF(D34>=基本情報!$C$17,基本情報!$C$18*12,0)+IF(AND(E34<>"",E34>=基本情報!$D$17),基本情報!$D$18*12,0)),"")) ->  | O34: =SUMPRODUCT((収入計画!$D$27:$D$42<=C34)*(収入計画!$E$27:$E$42>=C34)*収入計画!$C$27:$C$42) -> 0 | P34: 960.8427911 | Q34: =IF(D34<基本情報!$C$15,支出計画!$C$5*(1+支出計画!$D$5)^(B34-1),支出計画!$C$46)-IF(MIN(F34:J34)>=22,支出計画!$C$49,0) -> 377.6962017 | R34: =IF(C34<住宅ローン償還表!$C$9,支出計画!$C$7,0)+IF(AND(C34>=支出計画!$E$8,C34<=支出計画!$F$8),支出計画!$C$8,0)+IF(AND(D34<>"",D34>=基本情報!$C$15),支出計画!$C$47,0) -> 20 | S34: =IFERROR(VLOOKUP(C34,住宅ローン償還表!$C$17:$H$51,6,FALSE()),0) -> 0 | T34: =(IF(ライフイベント表!F33="",0,IF(AND(ライフイベント表!F33>=0,ライフイベント表!F33<=5),支出計画!$D$24,IF(AND(ライフイベント表!F33>=6,ライフイベント表!F33<=11),支出計画!$D$25,IF(AND(ライフイベント表!F33>=12,ライフイベント表!F33<=14),支出計画!$D$26,IF(AND(ライフイベント表!F33>=15,ライフイベント表!F33<=17),支出計画!$D$27,IF(ライフイベント表!F33=18,支出計画!$D$28,IF(AND(ライフイベント表!F33>=19,ライフイベント表!F33<=21),支出計画!$D$29,0)))))))+IF(ライフイベント表!G33="",0,IF(AND(ライフイベント表!G33>=0,ライフイベント表!G33<=5),支出計画!$D$24,IF(AND(ライフイベント表!G33>=6,ライフイベント表!G33<=11),支出計画!$D$25,IF(AND(ライフイベント表!G33>=12,ライフイベント表!G33<=14),支出計画!$D$26,IF(AND(ライフイベント表!G33>=15,ライフイベント表!G33<=17),支出計画!$D$27,IF(ライフイベント表!G33=18,支出計画!$D$28,IF(AND(ライフイベント表!G33>=19,ライフイベント表!G33<=21),支出計画!$D$29,0)))))))+IF(ライフイベント表!H33="",0,IF(AND(ライフイベント表!H33>=0,ライフイベント表!H33<=5),支出計画!$D$24,IF(AND(ライフイベント表!H33>=6,ライフイベント表!H33<=11),支出計画!$D$25,IF(AND(ライフイベント表!H33>=12,ライフイベント表!H33<=14),支出計画!$D$26,IF(AND(ライフイベント表!H33>=15,ライフイベント表!H33<=17),支出計画!$D$27,IF(ライフイベント表!H33=18,支出計画!$D$28,IF(AND(ライフイベント表!H33>=19,ライフイベント表!H33<=21),支出計画!$D$29,0)))))))+IF(ライフイベント表!I33="",0,IF(AND(ライフイベント表!I33>=0,ライフイベント表!I33<=5),支出計画!$D$24,IF(AND(ライフイベント表!I33>=6,ライフイベント表!I33<=11),支出計画!$D$25,IF(AND(ライフイベント表!I33>=12,ライフイベント表!I33<=14),支出計画!$D$26,IF(AND(ライフイベント表!I33>=15,ライフイベント表!I33<=17),支出計画!$D$27,IF(ライフイベント表!I33=18,支出計画!$D$28,IF(AND(ライフイベント表!I33>=19,ライフイベント表!I33<=21),支出計画!$D$29,0)))))))+IF(ライフイベント表!J33="",0,IF(AND(ライフイベント表!J33>=0,ライフイベント表!J33<=5),支出計画!$D$24,IF(AND(ライフイベント表!J33>=6,ライフイベント表!J33<=11),支出計画!$D$25,IF(AND(ライフイベント表!J33>=12,ライフイベント表!J33<=14),支出計画!$D$26,IF(AND(ライフイベント表!J33>=15,ライフイベント表!J33<=17),支出計画!$D$27,IF(ライフイベント表!J33=18,支出計画!$D$28,IF(AND(ライフイベント表!J33>=19,ライフイベント表!J33<=21),支出計画!$D$29,0))))))))*POWER(1.02,B34-1) -> 0 | U34: =SUMPRODUCT((保険!$G$5:$G$15<=C34)*(保険!$H$5:$H$15>=C34)*保険!$F$5:$F$15)+IF(AND(D34<>"",D34>=基本情報!$C$15),支出計画!$C$48,0) -> 7 | V34: =支出計画!$C$9 -> 36 | W34: =IF(AND(C34>=支出計画!$D$35,C34<=支出計画!$F$35,MOD(C34-支出計画!$D$35,支出計画!$E$35)=0),支出計画!$C$35,0)+IF(AND(C34>=支出計画!$D$36,C34<=支出計画!$F$36,MOD(C34-支出計画!$D$36,支出計画!$E$36)=0),支出計画!$C$36,0)+IF(C34=支出計画!$D$37,支出計画!$C$37,0)+IF(C34=支出計画!$D$38,支出計画!$C$38,0)+IF(C34=支出計画!$D$39,支出計画!$C$39,0)+IF(C34=支出計画!$D$40,支出計画!$C$40,0)+IF(C34=支出計画!$D$41,支出計画!$C$41,0)+IF(C34>=支出計画!$E$17,支出計画!$C$17,0)+IF(C34>=支出計画!$E$18,支出計画!$C$18,0) -> 32 | X34: 472.6962017 | Y34: 488.1465894 | Z34: =Z33*(1+金融資産!$C$21)+Y34 -> 1849.113075
B35: 31 | C35: =基本情報!$C$3+B35-1 -> 2052 | D35: =IF(基本情報!$D$6="","",C35-YEAR(基本情報!$D$6)-IF(OR(MONTH(基本情報!$D$6)>1,DAY(基本情報!$D$6)>1),1,0)) -> 65 | E35: =IF(基本情報!$D$7="","",C35-YEAR(基本情報!$D$7)-IF(OR(MONTH(基本情報!$D$7)>1,DAY(基本情報!$D$7)>1),1,0)) -> 64 | F35: =IF(OR(基本情報!$D$8="",C35<=YEAR(基本情報!$D$8)),"",MAX(0,C35-YEAR(基本情報!$D$8)-IF(OR(MONTH(基本情報!$D$8)>1,DAY(基本情報!$D$8)>1),1,0))) -> 33 | G35: =IF(OR(基本情報!$D$9="",C35<=YEAR(基本情報!$D$9)),"",MAX(0,C35-YEAR(基本情報!$D$9)-IF(OR(MONTH(基本情報!$D$9)>1,DAY(基本情報!$D$9)>1),1,0))) -> 31 | H35: =IF(OR(基本情報!$D$10="",C35<=YEAR(基本情報!$D$10)),"",MAX(0,C35-YEAR(基本情報!$D$10)-IF(OR(MONTH(基本情報!$D$10)>1,DAY(基本情報!$D$10)>1),1,0))) -> 24 | I35: =IF(OR(基本情報!$D$11="",C35<=YEAR(基本情報!$D$11)),"",MAX(0,C35-YEAR(基本情報!$D$11)-IF(OR(MONTH(基本情報!$D$11)>1,DAY(基本情報!$D$11)>1),1,0))) ->  | J35: =IF(OR(基本情報!$D$12="",C35<=YEAR(基本情報!$D$12)),"",MAX(0,C35-YEAR(基本情報!$D$12)-IF(OR(MONTH(基本情報!$D$12)>1,DAY(基本情報!$D$12)>1),1,0))) ->  | K35: =IF(D35="","",IF(D35<基本情報!$C$15,MAX(0,収入計画!$D$5*(1+収入計画!$E$5)^(B35-1)),IF(AND(D35>=基本情報!$C$15,D35<基本情報!$C$20),MAX(0,基本情報!$C$19*(収入計画!$D$5/収入計画!$C$5)*(1+収入計画!$F$5)^(D35-基本情報!$C$15)),0))) -> 240 | L35: =IF(E35="","",IF(E35<基本情報!$D$15,MAX(0,収入計画!$D$6*(1+収入計画!$E$6)^(B35-1))*IF(IFERROR(IF(AND(E35>=収入計画!$C$10-2,E35<収入計画!$C$11),1,0),0)+IFERROR(IF(AND(E35>=収入計画!$C$13-2,E35<収入計画!$C$14),1,0),0)+IFERROR(IF(AND(E35>=収入計画!$C$16-2,E35<収入計画!$C$17),1,0),0)+IFERROR(IF(AND(E35>=収入計画!$C$19-2,E35<収入計画!$C$20),1,0),0)+IFERROR(IF(AND(E35>=収入計画!$C$22-2,E35<収入計画!$C$23),1,0),0)>0,0.5,1),IF(AND(E35>=基本情報!$D$15,E35<基本情報!$D$20),MAX(0,基本情報!$D$19*(収入計画!$D$6/収入計画!$C$6)*(1+収入計画!$F$6)^(E35-基本情報!$D$15)),0))) -> 323.4837397 | M35: =IF(OR(D35="",E35=""),"",IF(D35=基本情報!$C$15,基本情報!$C$16,0)+IF(E35=基本情報!$D$15,基本情報!$D$16,0)) -> 2000 | N35: =IF(D35="","",IF(OR(D35>=基本情報!$C$17,E35>=基本情報!$D$17),MAX(0,IF(D35>=基本情報!$C$17,基本情報!$C$18*12,0)+IF(AND(E35<>"",E35>=基本情報!$D$17),基本情報!$D$18*12,0)),"")) -> 186 | O35: =SUMPRODUCT((収入計画!$D$27:$D$42<=C35)*(収入計画!$E$27:$E$42>=C35)*収入計画!$C$27:$C$42) -> 0 | P35: 2749.48374 | Q35: =IF(D35<基本情報!$C$15,支出計画!$C$5*(1+支出計画!$D$5)^(B35-1),支出計画!$C$46)-IF(MIN(F35:J35)>=22,支出計画!$C$49,0) -> 228 | R35: =IF(C35<住宅ローン償還表!$C$9,支出計画!$C$7,0)+IF(AND(C35>=支出計画!$E$8,C35<=支出計画!$F$8),支出計画!$C$8,0)+IF(AND(D35<>"",D35>=基本情報!$C$15),支出計画!$C$47,0) -> 20 | S35: =IFERROR(VLOOKUP(C35,住宅ローン償還表!$C$17:$H$51,6,FALSE()),0) -> 0 | T35: =(IF(ライフイベント表!F34="",0,IF(AND(ライフイベント表!F34>=0,ライフイベント表!F34<=5),支出計画!$D$24,IF(AND(ライフイベント表!F34>=6,ライフイベント表!F34<=11),支出計画!$D$25,IF(AND(ライフイベント表!F34>=12,ライフイベント表!F34<=14),支出計画!$D$26,IF(AND(ライフイベント表!F34>=15,ライフイベント表!F34<=17),支出計画!$D$27,IF(ライフイベント表!F34=18,支出計画!$D$28,IF(AND(ライフイベント表!F34>=19,ライフイベント表!F34<=21),支出計画!$D$29,0)))))))+IF(ライフイベント表!G34="",0,IF(AND(ライフイベント表!G34>=0,ライフイベント表!G34<=5),支出計画!$D$24,IF(AND(ライフイベント表!G34>=6,ライフイベント表!G34<=11),支出計画!$D$25,IF(AND(ライフイベント表!G34>=12,ライフイベント表!G34<=14),支出計画!$D$26,IF(AND(ライフイベント表!G34>=15,ライフイベント表!G34<=17),支出計画!$D$27,IF(ライフイベント表!G34=18,支出計画!$D$28,IF(AND(ライフイベント表!G34>=19,ライフイベント表!G34<=21),支出計画!$D$29,0)))))))+IF(ライフイベント表!H34="",0,IF(AND(ライフイベント表!H34>=0,ライフイベント表!H34<=5),支出計画!$D$24,IF(AND(ライフイベント表!H34>=6,ライフイベント表!H34<=11),支出計画!$D$25,IF(AND(ライフイベント表!H34>=12,ライフイベント表!H34<=14),支出計画!$D$26,IF(AND(ライフイベント表!H34>=15,ライフイベント表!H34<=17),支出計画!$D$27,IF(ライフイベント表!H34=18,支出計画!$D$28,IF(AND(ライフイベント表!H34>=19,ライフイベント表!H34<=21),支出計画!$D$29,0)))))))+IF(ライフイベント表!I34="",0,IF(AND(ライフイベント表!I34>=0,ライフイベント表!I34<=5),支出計画!$D$24,IF(AND(ライフイベント表!I34>=6,ライフイベント表!I34<=11),支出計画!$D$25,IF(AND(ライフイベント表!I34>=12,ライフイベント表!I34<=14),支出計画!$D$26,IF(AND(ライフイベント表!I34>=15,ライフイベント表!I34<=17),支出計画!$D$27,IF(ライフイベント表!I34=18,支出計画!$D$28,IF(AND(ライフイベント表!I34>=19,ライフイベント表!I34<=21),支出計画!$D$29,0)))))))+IF(ライフイベント表!J34="",0,IF(AND(ライフイベント表!J34>=0,ライフイベント表!J34<=5),支出計画!$D$24,IF(AND(ライフイベント表!J34>=6,ライフイベント表!J34<=11),支出計画!$D$25,IF(AND(ライフイベント表!J34>=12,ライフイベント表!J34<=14),支出計画!$D$26,IF(AND(ライフイベント表!J34>=15,ライフイベント表!J34<=17),支出計画!$D$27,IF(ライフイベント表!J34=18,支出計画!$D$28,IF(AND(ライフイベント表!J34>=19,ライフイベント表!J34<=21),支出計画!$D$29,0))))))))*POWER(1.02,B35-1) -> 0 | U35: =SUMPRODUCT((保険!$G$5:$G$15<=C35)*(保険!$H$5:$H$15>=C35)*保険!$F$5:$F$15)+IF(AND(D35<>"",D35>=基本情報!$C$15),支出計画!$C$48,0) -> 12 | V35: =支出計画!$C$9 -> 36 | W35: =IF(AND(C35>=支出計画!$D$35,C35<=支出計画!$F$35,MOD(C35-支出計画!$D$35,支出計画!$E$35)=0),支出計画!$C$35,0)+IF(AND(C35>=支出計画!$D$36,C35<=支出計画!$F$36,MOD(C35-支出計画!$D$36,支出計画!$E$36)=0),支出計画!$C$36,0)+IF(C35=支出計画!$D$37,支出計画!$C$37,0)+IF(C35=支出計画!$D$38,支出計画!$C$38,0)+IF(C35=支出計画!$D$39,支出計画!$C$39,0)+IF(C35=支出計画!$D$40,支出計画!$C$40,0)+IF(C35=支出計画!$D$41,支出計画!$C$41,0)+IF(C35>=支出計画!$E$17,支出計画!$C$17,0)+IF(C35>=支出計画!$E$18,支出計画!$C$18,0) -> 312 | X35: 608 | Y35: 2141.48374 | Z35: =Z34*(1+金融資産!$C$21)+Y35 -> 3999.84238
B36: 32 | C36: =基本情報!$C$3+B36-1 -> 2053 | D36: =IF(基本情報!$D$6="","",C36-YEAR(基本情報!$D$6)-IF(OR(MONTH(基本情報!$D$6)>1,DAY(基本情報!$D$6)>1),1,0)) -> 66 | E36: =IF(基本情報!$D$7="","",C36-YEAR(基本情報!$D$7)-IF(OR(MONTH(基本情報!$D$7)>1,DAY(基本情報!$D$7)>1),1,0)) -> 65 | F36: =IF(OR(基本情報!$D$8="",C36<=YEAR(基本情報!$D$8)),"",MAX(0,C36-YEAR(基本情報!$D$8)-IF(OR(MONTH(基本情報!$D$8)>1,DAY(基本情報!$D$8)>1),1,0))) -> 34 | G36: =IF(OR(基本情報!$D$9="",C36<=YEAR(基本情報!$D$9)),"",MAX(0,C36-YEAR(基本情報!$D$9)-IF(OR(MONTH(基本情報!$D$9)>1,DAY(基本情報!$D$9)>1),1,0))) -> 32 | H36: =IF(OR(基本情報!$D$10="",C36<=YEAR(基本情報!$D$10)),"",MAX(0,C36-YEAR(基本情報!$D$10)-IF(OR(MONTH(基本情報!$D$10)>1,DAY(基本情報!$D$10)>1),1,0))) -> 25 | I36: =IF(OR(基本情報!$D$11="",C36<=YEAR(基本情報!$D$11)),"",MAX(0,C36-YEAR(基本情報!$D$11)-IF(OR(MONTH(基本情報!$D$11)>1,DAY(基本情報!$D$11)>1),1,0))) ->  | J36: =IF(OR(基本情報!$D$12="",C36<=YEAR(基本情報!$D$12)),"",MAX(0,C36-YEAR(基本情報!$D$12)-IF(OR(MONTH(基本情報!$D$12)>1,DAY(基本情報!$D$12)>1),1,0))) ->  | K36: =IF(D36="","",IF(D36<基本情報!$C$15,MAX(0,収入計画!$D$5*(1+収入計画!$E$5)^(B36-1)),IF(AND(D36>=基本情報!$C$15,D36<基本情報!$C$20),MAX(0,基本情報!$C$19*(収入計画!$D$5/収入計画!$C$5)*(1+収入計画!$F$5)^(D36-基本情報!$C$15)),0))) -> 240.12 | L36: =IF(E36="","",IF(E36<基本情報!$D$15,MAX(0,収入計画!$D$6*(1+収入計画!$E$6)^(B36-1))*IF(IFERROR(IF(AND(E36>=収入計画!$C$10-2,E36<収入計画!$C$11),1,0),0)+IFERROR(IF(AND(E36>=収入計画!$C$13-2,E36<収入計画!$C$14),1,0),0)+IFERROR(IF(AND(E36>=収入計画!$C$16-2,E36<収入計画!$C$17),1,0),0)+IFERROR(IF(AND(E36>=収入計画!$C$19-2,E36<収入計画!$C$20),1,0),0)+IFERROR(IF(AND(E36>=収入計画!$C$22-2,E36<収入計画!$C$23),1,0),0)>0,0.5,1),IF(AND(E36>=基本情報!$D$15,E36<基本情報!$D$20),MAX(0,基本情報!$D$19*(収入計画!$D$6/収入計画!$C$6)*(1+収入計画!$F$6)^(E36-基本情報!$D$15)),0))) -> 80 | M36: =IF(OR(D36="",E36=""),"",IF(D36=基本情報!$C$15,基本情報!$C$16,0)+IF(E36=基本情報!$D$15,基本情報!$D$16,0)) -> 0 | N36: =IF(D36="","",IF(OR(D36>=基本情報!$C$17,E36>=基本情報!$D$17),MAX(0,IF(D36>=基本情報!$C$17,基本情報!$C$18*12,0)+IF(AND(E36<>"",E36>=基本情報!$D$17),基本情報!$D$18*12,0)),"")) -> 288 | O36: =SUMPRODUCT((収入計画!$D$27:$D$42<=C36)*(収入計画!$E$27:$E$42>=C36)*収入計画!$C$27:$C$42) -> 0 | P36: 608.12 | Q36: =IF(D36<基本情報!$C$15,支出計画!$C$5*(1+支出計画!$D$5)^(B36-1),支出計画!$C$46)-IF(MIN(F36:J36)>=22,支出計画!$C$49,0) -> 228 | R36: =IF(C36<住宅ローン償還表!$C$9,支出計画!$C$7,0)+IF(AND(C36>=支出計画!$E$8,C36<=支出計画!$F$8),支出計画!$C$8,0)+IF(AND(D36<>"",D36>=基本情報!$C$15),支出計画!$C$47,0) -> 20 | S36: =IFERROR(VLOOKUP(C36,住宅ローン償還表!$C$17:$H$51,6,FALSE()),0) -> 0 | T36: =(IF(ライフイベント表!F35="",0,IF(AND(ライフイベント表!F35>=0,ライフイベント表!F35<=5),支出計画!$D$24,IF(AND(ライフイベント表!F35>=6,ライフイベント表!F35<=11),支出計画!$D$25,IF(AND(ライフイベント表!F35>=12,ライフイベント表!F35<=14),支出計画!$D$26,IF(AND(ライフイベント表!F35>=15,ライフイベント表!F35<=17),支出計画!$D$27,IF(ライフイベント表!F35=18,支出計画!$D$28,IF(AND(ライフイベント表!F35>=19,ライフイベント表!F35<=21),支出計画!$D$29,0)))))))+IF(ライフイベント表!G35="",0,IF(AND(ライフイベント表!G35>=0,ライフイベント表!G35<=5),支出計画!$D$24,IF(AND(ライフイベント表!G35>=6,ライフイベント表!G35<=11),支出計画!$D$25,IF(AND(ライフイベント表!G35>=12,ライフイベント表!G35<=14),支出計画!$D$26,IF(AND(ライフイベント表!G35>=15,ライフイベント表!G35<=17),支出計画!$D$27,IF(ライフイベント表!G35=18,支出計画!$D$28,IF(AND(ライフイベント表!G35>=19,ライフイベント表!G35<=21),支出計画!$D$29,0)))))))+IF(ライフイベント表!H35="",0,IF(AND(ライフイベント表!H35>=0,ライフイベント表!H35<=5),支出計画!$D$24,IF(AND(ライフイベント表!H35>=6,ライフイベント表!H35<=11),支出計画!$D$25,IF(AND(ライフイベント表!H35>=12,ライフイベント表!H35<=14),支出計画!$D$26,IF(AND(ライフイベント表!H35>=15,ライフイベント表!H35<=17),支出計画!$D$27,IF(ライフイベント表!H35=18,支出計画!$D$28,IF(AND(ライフイベント表!H35>=19,ライフイベント表!H35<=21),支出計画!$D$29,0)))))))+IF(ライフイベント表!I35="",0,IF(AND(ライフイベント表!I35>=0,ライフイベント表!I35<=5),支出計画!$D$24,IF(AND(ライフイベント表!I35>=6,ライフイベント表!I35<=11),支出計画!$D$25,IF(AND(ライフイベント表!I35>=12,ライフイベント表!I35<=14),支出計画!$D$26,IF(AND(ライフイベント表!I35>=15,ライフイベント表!I35<=17),支出計画!$D$27,IF(ライフイベント表!I35=18,支出計画!$D$28,IF(AND(ライフイベント表!I35>=19,ライフイベント表!I35<=21),支出計画!$D$29,0)))))))+IF(ライフイベント表!J35="",0,IF(AND(ライフイベント表!J35>=0,ライフイベント表!J35<=5),支出計画!$D$24,IF(AND(ライフイベント表!J35>=6,ライフイベント表!J35<=11),支出計画!$D$25,IF(AND(ライフイベント表!J35>=12,ライフイベント表!J35<=14),支出計画!$D$26,IF(AND(ライフイベント表!J35>=15,ライフイベント表!J35<=17),支出計画!$D$27,IF(ライフイベント表!J35=18,支出計画!$D$28,IF(AND(ライフイベント表!J35>=19,ライフイベント表!J35<=21),支出計画!$D$29,0))))))))*POWER(1.02,B36-1) -> 0 | U36: =SUMPRODUCT((保険!$G$5:$G$15<=C36)*(保険!$H$5:$H$15>=C36)*保険!$F$5:$F$15)+IF(AND(D36<>"",D36>=基本情報!$C$15),支出計画!$C$48,0) -> 12 | V36: =支出計画!$C$9 -> 36 | W36: =IF(AND(C36>=支出計画!$D$35,C36<=支出計画!$F$35,MOD(C36-支出計画!$D$35,支出計画!$E$35)=0),支出計画!$C$35,0)+IF(AND(C36>=支出計画!$D$36,C36<=支出計画!$F$36,MOD(C36-支出計画!$D$36,支出計画!$E$36)=0),支出計画!$C$36,0)+IF(C36=支出計画!$D$37,支出計画!$C$37,0)+IF(C36=支出計画!$D$38,支出計画!$C$38,0)+IF(C36=支出計画!$D$39,支出計画!$C$39,0)+IF(C36=支出計画!$D$40,支出計画!$C$40,0)+IF(C36=支出計画!$D$41,支出計画!$C$41,0)+IF(C36>=支出計画!$E$17,支出計画!$C$17,0)+IF(C36>=支出計画!$E$18,支出計画!$C$18,0) -> 32 | X36: 328 | Y36: 280.12 | Z36: =Z35*(1+金融資産!$C$21)+Y36 -> 4299.961592
B37: 33 | C37: =基本情報!$C$3+B37-1 -> 2054 | D37: =IF(基本情報!$D$6="","",C37-YEAR(基本情報!$D$6)-IF(OR(MONTH(基本情報!$D$6)>1,DAY(基本情報!$D$6)>1),1,0)) -> 67 | E37: =IF(基本情報!$D$7="","",C37-YEAR(基本情報!$D$7)-IF(OR(MONTH(基本情報!$D$7)>1,DAY(基本情報!$D$7)>1),1,0)) -> 66 | F37: =IF(OR(基本情報!$D$8="",C37<=YEAR(基本情報!$D$8)),"",MAX(0,C37-YEAR(基本情報!$D$8)-IF(OR(MONTH(基本情報!$D$8)>1,DAY(基本情報!$D$8)>1),1,0))) -> 35 | G37: =IF(OR(基本情報!$D$9="",C37<=YEAR(基本情報!$D$9)),"",MAX(0,C37-YEAR(基本情報!$D$9)-IF(OR(MONTH(基本情報!$D$9)>1,DAY(基本情報!$D$9)>1),1,0))) -> 33 | H37: =IF(OR(基本情報!$D$10="",C37<=YEAR(基本情報!$D$10)),"",MAX(0,C37-YEAR(基本情報!$D$10)-IF(OR(MONTH(基本情報!$D$10)>1,DAY(基本情報!$D$10)>1),1,0))) -> 26 | I37: =IF(OR(基本情報!$D$11="",C37<=YEAR(基本情報!$D$11)),"",MAX(0,C37-YEAR(基本情報!$D$11)-IF(OR(MONTH(基本情報!$D$11)>1,DAY(基本情報!$D$11)>1),1,0))) ->  | J37: =IF(OR(基本情報!$D$12="",C37<=YEAR(基本情報!$D$12)),"",MAX(0,C37-YEAR(基本情報!$D$12)-IF(OR(MONTH(基本情報!$D$12)>1,DAY(基本情報!$D$12)>1),1,0))) ->  | K37: =IF(D37="","",IF(D37<基本情報!$C$15,MAX(0,収入計画!$D$5*(1+収入計画!$E$5)^(B37-1)),IF(AND(D37>=基本情報!$C$15,D37<基本情報!$C$20),MAX(0,基本情報!$C$19*(収入計画!$D$5/収入計画!$C$5)*(1+収入計画!$F$5)^(D37-基本情報!$C$15)),0))) -> 240.24006 | L37: =IF(E37="","",IF(E37<基本情報!$D$15,MAX(0,収入計画!$D$6*(1+収入計画!$E$6)^(B37-1))*IF(IFERROR(IF(AND(E37>=収入計画!$C$10-2,E37<収入計画!$C$11),1,0),0)+IFERROR(IF(AND(E37>=収入計画!$C$13-2,E37<収入計画!$C$14),1,0),0)+IFERROR(IF(AND(E37>=収入計画!$C$16-2,E37<収入計画!$C$17),1,0),0)+IFERROR(IF(AND(E37>=収入計画!$C$19-2,E37<収入計画!$C$20),1,0),0)+IFERROR(IF(AND(E37>=収入計画!$C$22-2,E37<収入計画!$C$23),1,0),0)>0,0.5,1),IF(AND(E37>=基本情報!$D$15,E37<基本情報!$D$20),MAX(0,基本情報!$D$19*(収入計画!$D$6/収入計画!$C$6)*(1+収入計画!$F$6)^(E37-基本情報!$D$15)),0))) -> 80.04 | M37: =IF(OR(D37="",E37=""),"",IF(D37=基本情報!$C$15,基本情報!$C$16,0)+IF(E37=基本情報!$D$15,基本情報!$D$16,0)) -> 0 | N37: =IF(D37="","",IF(OR(D37>=基本情報!$C$17,E37>=基本情報!$D$17),MAX(0,IF(D37>=基本情報!$C$17,基本情報!$C$18*12,0)+IF(AND(E37<>"",E37>=基本情報!$D$17),基本情報!$D$18*12,0)),"")) -> 288 | O37: =SUMPRODUCT((収入計画!$D$27:$D$42<=C37)*(収入計画!$E$27:$E$42>=C37)*収入計画!$C$27:$C$42) -> 0 | P37: 608.28006 | Q37: =IF(D37<基本情報!$C$15,支出計画!$C$5*(1+支出計画!$D$5)^(B37-1),支出計画!$C$46)-IF(MIN(F37:J37)>=22,支出計画!$C$49,0) -> 228 | R37: =IF(C37<住宅ローン償還表!$C$9,支出計画!$C$7,0)+IF(AND(C37>=支出計画!$E$8,C37<=支出計画!$F$8),支出計画!$C$8,0)+IF(AND(D37<>"",D37>=基本情報!$C$15),支出計画!$C$47,0) -> 20 | S37: =IFERROR(VLOOKUP(C37,住宅ローン償還表!$C$17:$H$51,6,FALSE()),0) -> 0 | T37: =(IF(ライフイベント表!F36="",0,IF(AND(ライフイベント表!F36>=0,ライフイベント表!F36<=5),支出計画!$D$24,IF(AND(ライフイベント表!F36>=6,ライフイベント表!F36<=11),支出計画!$D$25,IF(AND(ライフイベント表!F36>=12,ライフイベント表!F36<=14),支出計画!$D$26,IF(AND(ライフイベント表!F36>=15,ライフイベント表!F36<=17),支出計画!$D$27,IF(ライフイベント表!F36=18,支出計画!$D$28,IF(AND(ライフイベント表!F36>=19,ライフイベント表!F36<=21),支出計画!$D$29,0)))))))+IF(ライフイベント表!G36="",0,IF(AND(ライフイベント表!G36>=0,ライフイベント表!G36<=5),支出計画!$D$24,IF(AND(ライフイベント表!G36>=6,ライフイベント表!G36<=11),支出計画!$D$25,IF(AND(ライフイベント表!G36>=12,ライフイベント表!G36<=14),支出計画!$D$26,IF(AND(ライフイベント表!G36>=15,ライフイベント表!G36<=17),支出計画!$D$27,IF(ライフイベント表!G36=18,支出計画!$D$28,IF(AND(ライフイベント表!G36>=19,ライフイベント表!G36<=21),支出計画!$D$29,0)))))))+IF(ライフイベント表!H36="",0,IF(AND(ライフイベント表!H36>=0,ライフイベント表!H36<=5),支出計画!$D$24,IF(AND(ライフイベント表!H36>=6,ライフイベント表!H36<=11),支出計画!$D$25,IF(AND(ライフイベント表!H36>=12,ライフイベント表!H36<=14),支出計画!$D$26,IF(AND(ライフイベント表!H36>=15,ライフイベント表!H36<=17),支出計画!$D$27,IF(ライフイベント表!H36=18,支出計画!$D$28,IF(AND(ライフイベント表!H36>=19,ライフイベント表!H36<=21),支出計画!$D$29,0)))))))+IF(ライフイベント表!I36="",0,IF(AND(ライフイベント表!I36>=0,ライフイベント表!I36<=5),支出計画!$D$24,IF(AND(ライフイベント表!I36>=6,ライフイベント表!I36<=11),支出計画!$D$25,IF(AND(ライフイベント表!I36>=12,ライフイベント表!I36<=14),支出計画!$D$26,IF(AND(ライフイベント表!I36>=15,ライフイベント表!I36<=17),支出計画!$D$27,IF(ライフイベント表!I36=18,支出計画!$D$28,IF(AND(ライフイベント表!I36>=19,ライフイベント表!I36<=21),支出計画!$D$29,0)))))))+IF(ライフイベント表!J36="",0,IF(AND(ライフイベント表!J36>=0,ライフイベント表!J36<=5),支出計画!$D$24,IF(AND(ライフイベント表!J36>=6,ライフイベント表!J36<=11),支出計画!$D$25,IF(AND(ライフイベント表!J36>=12,ライフイベント表!J36<=14),支出計画!$D$26,IF(AND(ライフイベント表!J36>=15,ライフイベント表!J36<=17),支出計画!$D$27,IF(ライフイベント表!J36=18,支出計画!$D$28,IF(AND(ライフイベント表!J36>=19,ライフイベント表!J36<=21),支出計画!$D$29,0))))))))*POWER(1.02,B37-1) -> 0 | U37: =SUMPRODUCT((保険!$G$5:$G$15<=C37)*(保険!$H$5:$H$15>=C37)*保険!$F$5:$F$15)+IF(AND(D37<>"",D37>=基本情報!$C$15),支出計画!$C$48,0) -> 12 | V37: =支出計画!$C$9 -> 36 | W37: =IF(AND(C37>=支出計画!$D$35,C37<=支出計画!$F$35,MOD(C37-支出計画!$D$35,支出計画!$E$35)=0),支出計画!$C$35,0)+IF(AND(C37>=支出計画!$D$36,C37<=支出計画!$F$36,MOD(C37-支出計画!$D$36,支出計画!$E$36)=0),支出計画!$C$36,0)+IF(C37=支出計画!$D$37,支出計画!$C$37,0)+IF(C37=支出計画!$D$38,支出計画!$C$38,0)+IF(C37=支出計画!$D$39,支出計画!$C$39,0)+IF(C37=支出計画!$D$40,支出計画!$C$40,0)+IF(C37=支出計画!$D$41,支出計画!$C$41,0)+IF(C37>=支出計画!$E$17,支出計画!$C$17,0)+IF(C37>=支出計画!$E$18,支出計画!$C$18,0) -> 32 | X37: 328 | Y37: 280.28006 | Z37: =Z36*(1+金融資産!$C$21)+Y37 -> 4601.741459
B38: 34 | C38: =基本情報!$C$3+B38-1 -> 2055 | D38: =IF(基本情報!$D$6="","",C38-YEAR(基本情報!$D$6)-IF(OR(MONTH(基本情報!$D$6)>1,DAY(基本情報!$D$6)>1),1,0)) -> 68 | E38: =IF(基本情報!$D$7="","",C38-YEAR(基本情報!$D$7)-IF(OR(MONTH(基本情報!$D$7)>1,DAY(基本情報!$D$7)>1),1,0)) -> 67 | F38: =IF(OR(基本情報!$D$8="",C38<=YEAR(基本情報!$D$8)),"",MAX(0,C38-YEAR(基本情報!$D$8)-IF(OR(MONTH(基本情報!$D$8)>1,DAY(基本情報!$D$8)>1),1,0))) -> 36 | G38: =IF(OR(基本情報!$D$9="",C38<=YEAR(基本情報!$D$9)),"",MAX(0,C38-YEAR(基本情報!$D$9)-IF(OR(MONTH(基本情報!$D$9)>1,DAY(基本情報!$D$9)>1),1,0))) -> 34 | H38: =IF(OR(基本情報!$D$10="",C38<=YEAR(基本情報!$D$10)),"",MAX(0,C38-YEAR(基本情報!$D$10)-IF(OR(MONTH(基本情報!$D$10)>1,DAY(基本情報!$D$10)>1),1,0))) -> 27 | I38: =IF(OR(基本情報!$D$11="",C38<=YEAR(基本情報!$D$11)),"",MAX(0,C38-YEAR(基本情報!$D$11)-IF(OR(MONTH(基本情報!$D$11)>1,DAY(基本情報!$D$11)>1),1,0))) ->  | J38: =IF(OR(基本情報!$D$12="",C38<=YEAR(基本情報!$D$12)),"",MAX(0,C38-YEAR(基本情報!$D$12)-IF(OR(MONTH(基本情報!$D$12)>1,DAY(基本情報!$D$12)>1),1,0))) ->  | K38: =IF(D38="","",IF(D38<基本情報!$C$15,MAX(0,収入計画!$D$5*(1+収入計画!$E$5)^(B38-1)),IF(AND(D38>=基本情報!$C$15,D38<基本情報!$C$20),MAX(0,基本情報!$C$19*(収入計画!$D$5/収入計画!$C$5)*(1+収入計画!$F$5)^(D38-基本情報!$C$15)),0))) -> 240.36018 | L38: =IF(E38="","",IF(E38<基本情報!$D$15,MAX(0,収入計画!$D$6*(1+収入計画!$E$6)^(B38-1))*IF(IFERROR(IF(AND(E38>=収入計画!$C$10-2,E38<収入計画!$C$11),1,0),0)+IFERROR(IF(AND(E38>=収入計画!$C$13-2,E38<収入計画!$C$14),1,0),0)+IFERROR(IF(AND(E38>=収入計画!$C$16-2,E38<収入計画!$C$17),1,0),0)+IFERROR(IF(AND(E38>=収入計画!$C$19-2,E38<収入計画!$C$20),1,0),0)+IFERROR(IF(AND(E38>=収入計画!$C$22-2,E38<収入計画!$C$23),1,0),0)>0,0.5,1),IF(AND(E38>=基本情報!$D$15,E38<基本情報!$D$20),MAX(0,基本情報!$D$19*(収入計画!$D$6/収入計画!$C$6)*(1+収入計画!$F$6)^(E38-基本情報!$D$15)),0))) -> 80.08002 | M38: =IF(OR(D38="",E38=""),"",IF(D38=基本情報!$C$15,基本情報!$C$16,0)+IF(E38=基本情報!$D$15,基本情報!$D$16,0)) -> 0 | N38: =IF(D38="","",IF(OR(D38>=基本情報!$C$17,E38>=基本情報!$D$17),MAX(0,IF(D38>=基本情報!$C$17,基本情報!$C$18*12,0)+IF(AND(E38<>"",E38>=基本情報!$D$17),基本情報!$D$18*12,0)),"")) -> 288 | O38: =SUMPRODUCT((収入計画!$D$27:$D$42<=C38)*(収入計画!$E$27:$E$42>=C38)*収入計画!$C$27:$C$42) -> 0 | P38: 608.4402 | Q38: =IF(D38<基本情報!$C$15,支出計画!$C$5*(1+支出計画!$D$5)^(B38-1),支出計画!$C$46)-IF(MIN(F38:J38)>=22,支出計画!$C$49,0) -> 228 | R38: =IF(C38<住宅ローン償還表!$C$9,支出計画!$C$7,0)+IF(AND(C38>=支出計画!$E$8,C38<=支出計画!$F$8),支出計画!$C$8,0)+IF(AND(D38<>"",D38>=基本情報!$C$15),支出計画!$C$47,0) -> 20 | S38: =IFERROR(VLOOKUP(C38,住宅ローン償還表!$C$17:$H$51,6,FALSE()),0) -> 0 | T38: =(IF(ライフイベント表!F37="",0,IF(AND(ライフイベント表!F37>=0,ライフイベント表!F37<=5),支出計画!$D$24,IF(AND(ライフイベント表!F37>=6,ライフイベント表!F37<=11),支出計画!$D$25,IF(AND(ライフイベント表!F37>=12,ライフイベント表!F37<=14),支出計画!$D$26,IF(AND(ライフイベント表!F37>=15,ライフイベント表!F37<=17),支出計画!$D$27,IF(ライフイベント表!F37=18,支出計画!$D$28,IF(AND(ライフイベント表!F37>=19,ライフイベント表!F37<=21),支出計画!$D$29,0)))))))+IF(ライフイベント表!G37="",0,IF(AND(ライフイベント表!G37>=0,ライフイベント表!G37<=5),支出計画!$D$24,IF(AND(ライフイベント表!G37>=6,ライフイベント表!G37<=11),支出計画!$D$25,IF(AND(ライフイベント表!G37>=12,ライフイベント表!G37<=14),支出計画!$D$26,IF(AND(ライフイベント表!G37>=15,ライフイベント表!G37<=17),支出計画!$D$27,IF(ライフイベント表!G37=18,支出計画!$D$28,IF(AND(ライフイベント表!G37>=19,ライフイベント表!G37<=21),支出計画!$D$29,0)))))))+IF(ライフイベント表!H37="",0,IF(AND(ライフイベント表!H37>=0,ライフイベント表!H37<=5),支出計画!$D$24,IF(AND(ライフイベント表!H37>=6,ライフイベント表!H37<=11),支出計画!$D$25,IF(AND(ライフイベント表!H37>=12,ライフイベント表!H37<=14),支出計画!$D$26,IF(AND(ライフイベント表!H37>=15,ライフイベント表!H37<=17),支出計画!$D$27,IF(ライフイベント表!H37=18,支出計画!$D$28,IF(AND(ライフイベント表!H37>=19,ライフイベント表!H37<=21),支出計画!$D$29,0)))))))+IF(ライフイベント表!I37="",0,IF(AND(ライフイベント表!I37>=0,ライフイベント表!I37<=5),支出計画!$D$24,IF(AND(ライフイベント表!I37>=6,ライフイベント表!I37<=11),支出計画!$D$25,IF(AND(ライフイベント表!I37>=12,ライフイベント表!I37<=14),支出計画!$D$26,IF(AND(ライフイベント表!I37>=15,ライフイベント表!I37<=17),支出計画!$D$27,IF(ライフイベント表!I37=18,支出計画!$D$28,IF(AND(ライフイベント表!I37>=19,ライフイベント表!I37<=21),支出計画!$D$29,0)))))))+IF(ライフイベント表!J37="",0,IF(AND(ライフイベント表!J37>=0,ライフイベント表!J37<=5),支出計画!$D$24,IF(AND(ライフイベント表!J37>=6,ライフイベント表!J37<=11),支出計画!$D$25,IF(AND(ライフイベント表!J37>=12,ライフイベント表!J37<=14),支出計画!$D$26,IF(AND(ライフイベント表!J37>=15,ライフイベント表!J37<=17),支出計画!$D$27,IF(ライフイベント表!J37=18,支出計画!$D$28,IF(AND(ライフイベント表!J37>=19,ライフイベント表!J37<=21),支出計画!$D$29,0))))))))*POWER(1.02,B38-1) -> 0 | U38: =SUMPRODUCT((保険!$G$5:$G$15<=C38)*(保険!$H$5:$H$15>=C38)*保険!$F$5:$F$15)+IF(AND(D38<>"",D38>=基本情報!$C$15),支出計画!$C$48,0) -> 12 | V38: =支出計画!$C$9 -> 36 | W38: =IF(AND(C38>=支出計画!$D$35,C38<=支出計画!$F$35,MOD(C38-支出計画!$D$35,支出計画!$E$35)=0),支出計画!$C$35,0)+IF(AND(C38>=支出計画!$D$36,C38<=支出計画!$F$36,MOD(C38-支出計画!$D$36,支出計画!$E$36)=0),支出計画!$C$36,0)+IF(C38=支出計画!$D$37,支出計画!$C$37,0)+IF(C38=支出計画!$D$38,支出計画!$C$38,0)+IF(C38=支出計画!$D$39,支出計画!$C$39,0)+IF(C38=支出計画!$D$40,支出計画!$C$40,0)+IF(C38=支出計画!$D$41,支出計画!$C$41,0)+IF(C38>=支出計画!$E$17,支出計画!$C$17,0)+IF(C38>=支出計画!$E$18,支出計画!$C$18,0) -> 232 | X38: 528 | Y38: 80.44020003 | Z38: =Z37*(1+金融資産!$C$21)+Y38 -> 4705.190367
B39: 35 | C39: =基本情報!$C$3+B39-1 -> 2056 | D39: =IF(基本情報!$D$6="","",C39-YEAR(基本情報!$D$6)-IF(OR(MONTH(基本情報!$D$6)>1,DAY(基本情報!$D$6)>1),1,0)) -> 69 | E39: =IF(基本情報!$D$7="","",C39-YEAR(基本情報!$D$7)-IF(OR(MONTH(基本情報!$D$7)>1,DAY(基本情報!$D$7)>1),1,0)) -> 68 | F39: =IF(OR(基本情報!$D$8="",C39<=YEAR(基本情報!$D$8)),"",MAX(0,C39-YEAR(基本情報!$D$8)-IF(OR(MONTH(基本情報!$D$8)>1,DAY(基本情報!$D$8)>1),1,0))) -> 37 | G39: =IF(OR(基本情報!$D$9="",C39<=YEAR(基本情報!$D$9)),"",MAX(0,C39-YEAR(基本情報!$D$9)-IF(OR(MONTH(基本情報!$D$9)>1,DAY(基本情報!$D$9)>1),1,0))) -> 35 | H39: =IF(OR(基本情報!$D$10="",C39<=YEAR(基本情報!$D$10)),"",MAX(0,C39-YEAR(基本情報!$D$10)-IF(OR(MONTH(基本情報!$D$10)>1,DAY(基本情報!$D$10)>1),1,0))) -> 28 | I39: =IF(OR(基本情報!$D$11="",C39<=YEAR(基本情報!$D$11)),"",MAX(0,C39-YEAR(基本情報!$D$11)-IF(OR(MONTH(基本情報!$D$11)>1,DAY(基本情報!$D$11)>1),1,0))) ->  | J39: =IF(OR(基本情報!$D$12="",C39<=YEAR(基本情報!$D$12)),"",MAX(0,C39-YEAR(基本情報!$D$12)-IF(OR(MONTH(基本情報!$D$12)>1,DAY(基本情報!$D$12)>1),1,0))) ->  | K39: =IF(D39="","",IF(D39<基本情報!$C$15,MAX(0,収入計画!$D$5*(1+収入計画!$E$5)^(B39-1)),IF(AND(D39>=基本情報!$C$15,D39<基本情報!$C$20),MAX(0,基本情報!$C$19*(収入計画!$D$5/収入計画!$C$5)*(1+収入計画!$F$5)^(D39-基本情報!$C$15)),0))) -> 240.4803601 | L39: =IF(E39="","",IF(E39<基本情報!$D$15,MAX(0,収入計画!$D$6*(1+収入計画!$E$6)^(B39-1))*IF(IFERROR(IF(AND(E39>=収入計画!$C$10-2,E39<収入計画!$C$11),1,0),0)+IFERROR(IF(AND(E39>=収入計画!$C$13-2,E39<収入計画!$C$14),1,0),0)+IFERROR(IF(AND(E39>=収入計画!$C$16-2,E39<収入計画!$C$17),1,0),0)+IFERROR(IF(AND(E39>=収入計画!$C$19-2,E39<収入計画!$C$20),1,0),0)+IFERROR(IF(AND(E39>=収入計画!$C$22-2,E39<収入計画!$C$23),1,0),0)>0,0.5,1),IF(AND(E39>=基本情報!$D$15,E39<基本情報!$D$20),MAX(0,基本情報!$D$19*(収入計画!$D$6/収入計画!$C$6)*(1+収入計画!$F$6)^(E39-基本情報!$D$15)),0))) -> 80.12006001 | M39: =IF(OR(D39="",E39=""),"",IF(D39=基本情報!$C$15,基本情報!$C$16,0)+IF(E39=基本情報!$D$15,基本情報!$D$16,0)) -> 0 | N39: =IF(D39="","",IF(OR(D39>=基本情報!$C$17,E39>=基本情報!$D$17),MAX(0,IF(D39>=基本情報!$C$17,基本情報!$C$18*12,0)+IF(AND(E39<>"",E39>=基本情報!$D$17),基本情報!$D$18*12,0)),"")) -> 288 | O39: =SUMPRODUCT((収入計画!$D$27:$D$42<=C39)*(収入計画!$E$27:$E$42>=C39)*収入計画!$C$27:$C$42) -> 0 | P39: 608.6004201 | Q39: =IF(D39<基本情報!$C$15,支出計画!$C$5*(1+支出計画!$D$5)^(B39-1),支出計画!$C$46)-IF(MIN(F39:J39)>=22,支出計画!$C$49,0) -> 228 | R39: =IF(C39<住宅ローン償還表!$C$9,支出計画!$C$7,0)+IF(AND(C39>=支出計画!$E$8,C39<=支出計画!$F$8),支出計画!$C$8,0)+IF(AND(D39<>"",D39>=基本情報!$C$15),支出計画!$C$47,0) -> 20 | S39: =IFERROR(VLOOKUP(C39,住宅ローン償還表!$C$17:$H$51,6,FALSE()),0) -> 0 | T39: =(IF(ライフイベント表!F38="",0,IF(AND(ライフイベント表!F38>=0,ライフイベント表!F38<=5),支出計画!$D$24,IF(AND(ライフイベント表!F38>=6,ライフイベント表!F38<=11),支出計画!$D$25,IF(AND(ライフイベント表!F38>=12,ライフイベント表!F38<=14),支出計画!$D$26,IF(AND(ライフイベント表!F38>=15,ライフイベント表!F38<=17),支出計画!$D$27,IF(ライフイベント表!F38=18,支出計画!$D$28,IF(AND(ライフイベント表!F38>=19,ライフイベント表!F38<=21),支出計画!$D$29,0)))))))+IF(ライフイベント表!G38="",0,IF(AND(ライフイベント表!G38>=0,ライフイベント表!G38<=5),支出計画!$D$24,IF(AND(ライフイベント表!G38>=6,ライフイベント表!G38<=11),支出計画!$D$25,IF(AND(ライフイベント表!G38>=12,ライフイベント表!G38<=14),支出計画!$D$26,IF(AND(ライフイベント表!G38>=15,ライフイベント表!G38<=17),支出計画!$D$27,IF(ライフイベント表!G38=18,支出計画!$D$28,IF(AND(ライフイベント表!G38>=19,ライフイベント表!G38<=21),支出計画!$D$29,0)))))))+IF(ライフイベント表!H38="",0,IF(AND(ライフイベント表!H38>=0,ライフイベント表!H38<=5),支出計画!$D$24,IF(AND(ライフイベント表!H38>=6,ライフイベント表!H38<=11),支出計画!$D$25,IF(AND(ライフイベント表!H38>=12,ライフイベント表!H38<=14),支出計画!$D$26,IF(AND(ライフイベント表!H38>=15,ライフイベント表!H38<=17),支出計画!$D$27,IF(ライフイベント表!H38=18,支出計画!$D$28,IF(AND(ライフイベント表!H38>=19,ライフイベント表!H38<=21),支出計画!$D$29,0)))))))+IF(ライフイベント表!I38="",0,IF(AND(ライフイベント表!I38>=0,ライフイベント表!I38<=5),支出計画!$D$24,IF(AND(ライフイベント表!I38>=6,ライフイベント表!I38<=11),支出計画!$D$25,IF(AND(ライフイベント表!I38>=12,ライフイベント表!I38<=14),支出計画!$D$26,IF(AND(ライフイベント表!I38>=15,ライフイベント表!I38<=17),支出計画!$D$27,IF(ライフイベント表!I38=18,支出計画!$D$28,IF(AND(ライフイベント表!I38>=19,ライフイベント表!I38<=21),支出計画!$D$29,0)))))))+IF(ライフイベント表!J38="",0,IF(AND(ライフイベント表!J38>=0,ライフイベント表!J38<=5),支出計画!$D$24,IF(AND(ライフイベント表!J38>=6,ライフイベント表!J38<=11),支出計画!$D$25,IF(AND(ライフイベント表!J38>=12,ライフイベント表!J38<=14),支出計画!$D$26,IF(AND(ライフイベント表!J38>=15,ライフイベント表!J38<=17),支出計画!$D$27,IF(ライフイベント表!J38=18,支出計画!$D$28,IF(AND(ライフイベント表!J38>=19,ライフイベント表!J38<=21),支出計画!$D$29,0))))))))*POWER(1.02,B39-1) -> 0 | U39: =SUMPRODUCT((保険!$G$5:$G$15<=C39)*(保険!$H$5:$H$15>=C39)*保険!$F$5:$F$15)+IF(AND(D39<>"",D39>=基本情報!$C$15),支出計画!$C$48,0) -> 12 | V39: =支出計画!$C$9 -> 36 | W39: =IF(AND(C39>=支出計画!$D$35,C39<=支出計画!$F$35,MOD(C39-支出計画!$D$35,支出計画!$E$35)=0),支出計画!$C$35,0)+IF(AND(C39>=支出計画!$D$36,C39<=支出計画!$F$36,MOD(C39-支出計画!$D$36,支出計画!$E$36)=0),支出計画!$C$36,0)+IF(C39=支出計画!$D$37,支出計画!$C$37,0)+IF(C39=支出計画!$D$38,支出計画!$C$38,0)+IF(C39=支出計画!$D$39,支出計画!$C$39,0)+IF(C39=支出計画!$D$40,支出計画!$C$40,0)+IF(C39=支出計画!$D$41,支出計画!$C$41,0)+IF(C39>=支出計画!$E$17,支出計画!$C$17,0)+IF(C39>=支出計画!$E$18,支出計画!$C$18,0) -> 32 | X39: 328 | Y39: 280.6004201 | Z39: =Z38*(1+金融資産!$C$21)+Y39 -> 5009.316739
B40: 36 | C40: =基本情報!$C$3+B40-1 -> 2057 | D40: =IF(基本情報!$D$6="","",C40-YEAR(基本情報!$D$6)-IF(OR(MONTH(基本情報!$D$6)>1,DAY(基本情報!$D$6)>1),1,0)) -> 70 | E40: =IF(基本情報!$D$7="","",C40-YEAR(基本情報!$D$7)-IF(OR(MONTH(基本情報!$D$7)>1,DAY(基本情報!$D$7)>1),1,0)) -> 69 | F40: =IF(OR(基本情報!$D$8="",C40<=YEAR(基本情報!$D$8)),"",MAX(0,C40-YEAR(基本情報!$D$8)-IF(OR(MONTH(基本情報!$D$8)>1,DAY(基本情報!$D$8)>1),1,0))) -> 38 | G40: =IF(OR(基本情報!$D$9="",C40<=YEAR(基本情報!$D$9)),"",MAX(0,C40-YEAR(基本情報!$D$9)-IF(OR(MONTH(基本情報!$D$9)>1,DAY(基本情報!$D$9)>1),1,0))) -> 36 | H40: =IF(OR(基本情報!$D$10="",C40<=YEAR(基本情報!$D$10)),"",MAX(0,C40-YEAR(基本情報!$D$10)-IF(OR(MONTH(基本情報!$D$10)>1,DAY(基本情報!$D$10)>1),1,0))) -> 29 | I40: =IF(OR(基本情報!$D$11="",C40<=YEAR(基本情報!$D$11)),"",MAX(0,C40-YEAR(基本情報!$D$11)-IF(OR(MONTH(基本情報!$D$11)>1,DAY(基本情報!$D$11)>1),1,0))) ->  | J40: =IF(OR(基本情報!$D$12="",C40<=YEAR(基本情報!$D$12)),"",MAX(0,C40-YEAR(基本情報!$D$12)-IF(OR(MONTH(基本情報!$D$12)>1,DAY(基本情報!$D$12)>1),1,0))) ->  | K40: =IF(D40="","",IF(D40<基本情報!$C$15,MAX(0,収入計画!$D$5*(1+収入計画!$E$5)^(B40-1)),IF(AND(D40>=基本情報!$C$15,D40<基本情報!$C$20),MAX(0,基本情報!$C$19*(収入計画!$D$5/収入計画!$C$5)*(1+収入計画!$F$5)^(D40-基本情報!$C$15)),0))) -> 0 | L40: =IF(E40="","",IF(E40<基本情報!$D$15,MAX(0,収入計画!$D$6*(1+収入計画!$E$6)^(B40-1))*IF(IFERROR(IF(AND(E40>=収入計画!$C$10-2,E40<収入計画!$C$11),1,0),0)+IFERROR(IF(AND(E40>=収入計画!$C$13-2,E40<収入計画!$C$14),1,0),0)+IFERROR(IF(AND(E40>=収入計画!$C$16-2,E40<収入計画!$C$17),1,0),0)+IFERROR(IF(AND(E40>=収入計画!$C$19-2,E40<収入計画!$C$20),1,0),0)+IFERROR(IF(AND(E40>=収入計画!$C$22-2,E40<収入計画!$C$23),1,0),0)>0,0.5,1),IF(AND(E40>=基本情報!$D$15,E40<基本情報!$D$20),MAX(0,基本情報!$D$19*(収入計画!$D$6/収入計画!$C$6)*(1+収入計画!$F$6)^(E40-基本情報!$D$15)),0))) -> 0 | M40: =IF(OR(D40="",E40=""),"",IF(D40=基本情報!$C$15,基本情報!$C$16,0)+IF(E40=基本情報!$D$15,基本情報!$D$16,0)) -> 0 | N40: =IF(D40="","",IF(OR(D40>=基本情報!$C$17,E40>=基本情報!$D$17),MAX(0,IF(D40>=基本情報!$C$17,基本情報!$C$18*12,0)+IF(AND(E40<>"",E40>=基本情報!$D$17),基本情報!$D$18*12,0)),"")) -> 288 | O40: =SUMPRODUCT((収入計画!$D$27:$D$42<=C40)*(収入計画!$E$27:$E$42>=C40)*収入計画!$C$27:$C$42) -> 0 | P40: 288 | Q40: =IF(D40<基本情報!$C$15,支出計画!$C$5*(1+支出計画!$D$5)^(B40-1),支出計画!$C$46)-IF(MIN(F40:J40)>=22,支出計画!$C$49,0) -> 228 | R40: =IF(C40<住宅ローン償還表!$C$9,支出計画!$C$7,0)+IF(AND(C40>=支出計画!$E$8,C40<=支出計画!$F$8),支出計画!$C$8,0)+IF(AND(D40<>"",D40>=基本情報!$C$15),支出計画!$C$47,0) -> 20 | S40: =IFERROR(VLOOKUP(C40,住宅ローン償還表!$C$17:$H$51,6,FALSE()),0) -> 0 | T40: =(IF(ライフイベント表!F39="",0,IF(AND(ライフイベント表!F39>=0,ライフイベント表!F39<=5),支出計画!$D$24,IF(AND(ライフイベント表!F39>=6,ライフイベント表!F39<=11),支出計画!$D$25,IF(AND(ライフイベント表!F39>=12,ライフイベント表!F39<=14),支出計画!$D$26,IF(AND(ライフイベント表!F39>=15,ライフイベント表!F39<=17),支出計画!$D$27,IF(ライフイベント表!F39=18,支出計画!$D$28,IF(AND(ライフイベント表!F39>=19,ライフイベント表!F39<=21),支出計画!$D$29,0)))))))+IF(ライフイベント表!G39="",0,IF(AND(ライフイベント表!G39>=0,ライフイベント表!G39<=5),支出計画!$D$24,IF(AND(ライフイベント表!G39>=6,ライフイベント表!G39<=11),支出計画!$D$25,IF(AND(ライフイベント表!G39>=12,ライフイベント表!G39<=14),支出計画!$D$26,IF(AND(ライフイベント表!G39>=15,ライフイベント表!G39<=17),支出計画!$D$27,IF(ライフイベント表!G39=18,支出計画!$D$28,IF(AND(ライフイベント表!G39>=19,ライフイベント表!G39<=21),支出計画!$D$29,0)))))))+IF(ライフイベント表!H39="",0,IF(AND(ライフイベント表!H39>=0,ライフイベント表!H39<=5),支出計画!$D$24,IF(AND(ライフイベント表!H39>=6,ライフイベント表!H39<=11),支出計画!$D$25,IF(AND(ライフイベント表!H39>=12,ライフイベント表!H39<=14),支出計画!$D$26,IF(AND(ライフイベント表!H39>=15,ライフイベント表!H39<=17),支出計画!$D$27,IF(ライフイベント表!H39=18,支出計画!$D$28,IF(AND(ライフイベント表!H39>=19,ライフイベント表!H39<=21),支出計画!$D$29,0)))))))+IF(ライフイベント表!I39="",0,IF(AND(ライフイベント表!I39>=0,ライフイベント表!I39<=5),支出計画!$D$24,IF(AND(ライフイベント表!I39>=6,ライフイベント表!I39<=11),支出計画!$D$25,IF(AND(ライフイベント表!I39>=12,ライフイベント表!I39<=14),支出計画!$D$26,IF(AND(ライフイベント表!I39>=15,ライフイベント表!I39<=17),支出計画!$D$27,IF(ライフイベント表!I39=18,支出計画!$D$28,IF(AND(ライフイベント表!I39>=19,ライフイベント表!I39<=21),支出計画!$D$29,0)))))))+IF(ライフイベント表!J39="",0,IF(AND(ライフイベント表!J39>=0,ライフイベント表!J39<=5),支出計画!$D$24,IF(AND(ライフイベント表!J39>=6,ライフイベント表!J39<=11),支出計画!$D$25,IF(AND(ライフイベント表!J39>=12,ライフイベント表!J39<=14),支出計画!$D$26,IF(AND(ライフイベント表!J39>=15,ライフイベント表!J39<=17),支出計画!$D$27,IF(ライフイベント表!J39=18,支出計画!$D$28,IF(AND(ライフイベント表!J39>=19,ライフイベント表!J39<=21),支出計画!$D$29,0))))))))*POWER(1.02,B40-1) -> 0 | U40: =SUMPRODUCT((保険!$G$5:$G$15<=C40)*(保険!$H$5:$H$15>=C40)*保険!$F$5:$F$15)+IF(AND(D40<>"",D40>=基本情報!$C$15),支出計画!$C$48,0) -> 12 | V40: =支出計画!$C$9 -> 36 | W40: =IF(AND(C40>=支出計画!$D$35,C40<=支出計画!$F$35,MOD(C40-支出計画!$D$35,支出計画!$E$35)=0),支出計画!$C$35,0)+IF(AND(C40>=支出計画!$D$36,C40<=支出計画!$F$36,MOD(C40-支出計画!$D$36,支出計画!$E$36)=0),支出計画!$C$36,0)+IF(C40=支出計画!$D$37,支出計画!$C$37,0)+IF(C40=支出計画!$D$38,支出計画!$C$38,0)+IF(C40=支出計画!$D$39,支出計画!$C$39,0)+IF(C40=支出計画!$D$40,支出計画!$C$40,0)+IF(C40=支出計画!$D$41,支出計画!$C$41,0)+IF(C40>=支出計画!$E$17,支出計画!$C$17,0)+IF(C40>=支出計画!$E$18,支出計画!$C$18,0) -> 102 | X40: 398 | Y40: -110 | Z40: =Z39*(1+金融資産!$C$21)+Y40 -> 4924.363322
B41: 37 | C41: =基本情報!$C$3+B41-1 -> 2058 | D41: =IF(基本情報!$D$6="","",C41-YEAR(基本情報!$D$6)-IF(OR(MONTH(基本情報!$D$6)>1,DAY(基本情報!$D$6)>1),1,0)) -> 71 | E41: =IF(基本情報!$D$7="","",C41-YEAR(基本情報!$D$7)-IF(OR(MONTH(基本情報!$D$7)>1,DAY(基本情報!$D$7)>1),1,0)) -> 70 | F41: =IF(OR(基本情報!$D$8="",C41<=YEAR(基本情報!$D$8)),"",MAX(0,C41-YEAR(基本情報!$D$8)-IF(OR(MONTH(基本情報!$D$8)>1,DAY(基本情報!$D$8)>1),1,0))) -> 39 | G41: =IF(OR(基本情報!$D$9="",C41<=YEAR(基本情報!$D$9)),"",MAX(0,C41-YEAR(基本情報!$D$9)-IF(OR(MONTH(基本情報!$D$9)>1,DAY(基本情報!$D$9)>1),1,0))) -> 37 | H41: =IF(OR(基本情報!$D$10="",C41<=YEAR(基本情報!$D$10)),"",MAX(0,C41-YEAR(基本情報!$D$10)-IF(OR(MONTH(基本情報!$D$10)>1,DAY(基本情報!$D$10)>1),1,0))) -> 30 | I41: =IF(OR(基本情報!$D$11="",C41<=YEAR(基本情報!$D$11)),"",MAX(0,C41-YEAR(基本情報!$D$11)-IF(OR(MONTH(基本情報!$D$11)>1,DAY(基本情報!$D$11)>1),1,0))) ->  | J41: =IF(OR(基本情報!$D$12="",C41<=YEAR(基本情報!$D$12)),"",MAX(0,C41-YEAR(基本情報!$D$12)-IF(OR(MONTH(基本情報!$D$12)>1,DAY(基本情報!$D$12)>1),1,0))) ->  | K41: =IF(D41="","",IF(D41<基本情報!$C$15,MAX(0,収入計画!$D$5*(1+収入計画!$E$5)^(B41-1)),IF(AND(D41>=基本情報!$C$15,D41<基本情報!$C$20),MAX(0,基本情報!$C$19*(収入計画!$D$5/収入計画!$C$5)*(1+収入計画!$F$5)^(D41-基本情報!$C$15)),0))) -> 0 | L41: =IF(E41="","",IF(E41<基本情報!$D$15,MAX(0,収入計画!$D$6*(1+収入計画!$E$6)^(B41-1))*IF(IFERROR(IF(AND(E41>=収入計画!$C$10-2,E41<収入計画!$C$11),1,0),0)+IFERROR(IF(AND(E41>=収入計画!$C$13-2,E41<収入計画!$C$14),1,0),0)+IFERROR(IF(AND(E41>=収入計画!$C$16-2,E41<収入計画!$C$17),1,0),0)+IFERROR(IF(AND(E41>=収入計画!$C$19-2,E41<収入計画!$C$20),1,0),0)+IFERROR(IF(AND(E41>=収入計画!$C$22-2,E41<収入計画!$C$23),1,0),0)>0,0.5,1),IF(AND(E41>=基本情報!$D$15,E41<基本情報!$D$20),MAX(0,基本情報!$D$19*(収入計画!$D$6/収入計画!$C$6)*(1+収入計画!$F$6)^(E41-基本情報!$D$15)),0))) -> 0 | M41: =IF(OR(D41="",E41=""),"",IF(D41=基本情報!$C$15,基本情報!$C$16,0)+IF(E41=基本情報!$D$15,基本情報!$D$16,0)) -> 0 | N41: =IF(D41="","",IF(OR(D41>=基本情報!$C$17,E41>=基本情報!$D$17),MAX(0,IF(D41>=基本情報!$C$17,基本情報!$C$18*12,0)+IF(AND(E41<>"",E41>=基本情報!$D$17),基本情報!$D$18*12,0)),"")) -> 288 | O41: =SUMPRODUCT((収入計画!$D$27:$D$42<=C41)*(収入計画!$E$27:$E$42>=C41)*収入計画!$C$27:$C$42) -> 0 | P41: 288 | Q41: =IF(D41<基本情報!$C$15,支出計画!$C$5*(1+支出計画!$D$5)^(B41-1),支出計画!$C$46)-IF(MIN(F41:J41)>=22,支出計画!$C$49,0) -> 228 | R41: =IF(C41<住宅ローン償還表!$C$9,支出計画!$C$7,0)+IF(AND(C41>=支出計画!$E$8,C41<=支出計画!$F$8),支出計画!$C$8,0)+IF(AND(D41<>"",D41>=基本情報!$C$15),支出計画!$C$47,0) -> 20 | S41: =IFERROR(VLOOKUP(C41,住宅ローン償還表!$C$17:$H$51,6,FALSE()),0) -> 0 | T41: =(IF(ライフイベント表!F40="",0,IF(AND(ライフイベント表!F40>=0,ライフイベント表!F40<=5),支出計画!$D$24,IF(AND(ライフイベント表!F40>=6,ライフイベント表!F40<=11),支出計画!$D$25,IF(AND(ライフイベント表!F40>=12,ライフイベント表!F40<=14),支出計画!$D$26,IF(AND(ライフイベント表!F40>=15,ライフイベント表!F40<=17),支出計画!$D$27,IF(ライフイベント表!F40=18,支出計画!$D$28,IF(AND(ライフイベント表!F40>=19,ライフイベント表!F40<=21),支出計画!$D$29,0)))))))+IF(ライフイベント表!G40="",0,IF(AND(ライフイベント表!G40>=0,ライフイベント表!G40<=5),支出計画!$D$24,IF(AND(ライフイベント表!G40>=6,ライフイベント表!G40<=11),支出計画!$D$25,IF(AND(ライフイベント表!G40>=12,ライフイベント表!G40<=14),支出計画!$D$26,IF(AND(ライフイベント表!G40>=15,ライフイベント表!G40<=17),支出計画!$D$27,IF(ライフイベント表!G40=18,支出計画!$D$28,IF(AND(ライフイベント表!G40>=19,ライフイベント表!G40<=21),支出計画!$D$29,0)))))))+IF(ライフイベント表!H40="",0,IF(AND(ライフイベント表!H40>=0,ライフイベント表!H40<=5),支出計画!$D$24,IF(AND(ライフイベント表!H40>=6,ライフイベント表!H40<=11),支出計画!$D$25,IF(AND(ライフイベント表!H40>=12,ライフイベント表!H40<=14),支出計画!$D$26,IF(AND(ライフイベント表!H40>=15,ライフイベント表!H40<=17),支出計画!$D$27,IF(ライフイベント表!H40=18,支出計画!$D$28,IF(AND(ライフイベント表!H40>=19,ライフイベント表!H40<=21),支出計画!$D$29,0)))))))+IF(ライフイベント表!I40="",0,IF(AND(ライフイベント表!I40>=0,ライフイベント表!I40<=5),支出計画!$D$24,IF(AND(ライフイベント表!I40>=6,ライフイベント表!I40<=11),支出計画!$D$25,IF(AND(ライフイベント表!I40>=12,ライフイベント表!I40<=14),支出計画!$D$26,IF(AND(ライフイベント表!I40>=15,ライフイベント表!I40<=17),支出計画!$D$27,IF(ライフイベント表!I40=18,支出計画!$D$28,IF(AND(ライフイベント表!I40>=19,ライフイベント表!I40<=21),支出計画!$D$29,0)))))))+IF(ライフイベント表!J40="",0,IF(AND(ライフイベント表!J40>=0,ライフイベント表!J40<=5),支出計画!$D$24,IF(AND(ライフイベント表!J40>=6,ライフイベント表!J40<=11),支出計画!$D$25,IF(AND(ライフイベント表!J40>=12,ライフイベント表!J40<=14),支出計画!$D$26,IF(AND(ライフイベント表!J40>=15,ライフイベント表!J40<=17),支出計画!$D$27,IF(ライフイベント表!J40=18,支出計画!$D$28,IF(AND(ライフイベント表!J40>=19,ライフイベント表!J40<=21),支出計画!$D$29,0))))))))*POWER(1.02,B41-1) -> 0 | U41: =SUMPRODUCT((保険!$G$5:$G$15<=C41)*(保険!$H$5:$H$15>=C41)*保険!$F$5:$F$15)+IF(AND(D41<>"",D41>=基本情報!$C$15),支出計画!$C$48,0) -> 12 | V41: =支出計画!$C$9 -> 36 | W41: =IF(AND(C41>=支出計画!$D$35,C41<=支出計画!$F$35,MOD(C41-支出計画!$D$35,支出計画!$E$35)=0),支出計画!$C$35,0)+IF(AND(C41>=支出計画!$D$36,C41<=支出計画!$F$36,MOD(C41-支出計画!$D$36,支出計画!$E$36)=0),支出計画!$C$36,0)+IF(C41=支出計画!$D$37,支出計画!$C$37,0)+IF(C41=支出計画!$D$38,支出計画!$C$38,0)+IF(C41=支出計画!$D$39,支出計画!$C$39,0)+IF(C41=支出計画!$D$40,支出計画!$C$40,0)+IF(C41=支出計画!$D$41,支出計画!$C$41,0)+IF(C41>=支出計画!$E$17,支出計画!$C$17,0)+IF(C41>=支出計画!$E$18,支出計画!$C$18,0) -> 32 | X41: 328 | Y41: -40 | Z41: =Z40*(1+金融資産!$C$21)+Y41 -> 4908.985139
B42: 38 | C42: =基本情報!$C$3+B42-1 -> 2059 | D42: =IF(基本情報!$D$6="","",C42-YEAR(基本情報!$D$6)-IF(OR(MONTH(基本情報!$D$6)>1,DAY(基本情報!$D$6)>1),1,0)) -> 72 | E42: =IF(基本情報!$D$7="","",C42-YEAR(基本情報!$D$7)-IF(OR(MONTH(基本情報!$D$7)>1,DAY(基本情報!$D$7)>1),1,0)) -> 71 | F42: =IF(OR(基本情報!$D$8="",C42<=YEAR(基本情報!$D$8)),"",MAX(0,C42-YEAR(基本情報!$D$8)-IF(OR(MONTH(基本情報!$D$8)>1,DAY(基本情報!$D$8)>1),1,0))) -> 40 | G42: =IF(OR(基本情報!$D$9="",C42<=YEAR(基本情報!$D$9)),"",MAX(0,C42-YEAR(基本情報!$D$9)-IF(OR(MONTH(基本情報!$D$9)>1,DAY(基本情報!$D$9)>1),1,0))) -> 38 | H42: =IF(OR(基本情報!$D$10="",C42<=YEAR(基本情報!$D$10)),"",MAX(0,C42-YEAR(基本情報!$D$10)-IF(OR(MONTH(基本情報!$D$10)>1,DAY(基本情報!$D$10)>1),1,0))) -> 31 | I42: =IF(OR(基本情報!$D$11="",C42<=YEAR(基本情報!$D$11)),"",MAX(0,C42-YEAR(基本情報!$D$11)-IF(OR(MONTH(基本情報!$D$11)>1,DAY(基本情報!$D$11)>1),1,0))) ->  | J42: =IF(OR(基本情報!$D$12="",C42<=YEAR(基本情報!$D$12)),"",MAX(0,C42-YEAR(基本情報!$D$12)-IF(OR(MONTH(基本情報!$D$12)>1,DAY(基本情報!$D$12)>1),1,0))) ->  | K42: =IF(D42="","",IF(D42<基本情報!$C$15,MAX(0,収入計画!$D$5*(1+収入計画!$E$5)^(B42-1)),IF(AND(D42>=基本情報!$C$15,D42<基本情報!$C$20),MAX(0,基本情報!$C$19*(収入計画!$D$5/収入計画!$C$5)*(1+収入計画!$F$5)^(D42-基本情報!$C$15)),0))) -> 0 | L42: =IF(E42="","",IF(E42<基本情報!$D$15,MAX(0,収入計画!$D$6*(1+収入計画!$E$6)^(B42-1))*IF(IFERROR(IF(AND(E42>=収入計画!$C$10-2,E42<収入計画!$C$11),1,0),0)+IFERROR(IF(AND(E42>=収入計画!$C$13-2,E42<収入計画!$C$14),1,0),0)+IFERROR(IF(AND(E42>=収入計画!$C$16-2,E42<収入計画!$C$17),1,0),0)+IFERROR(IF(AND(E42>=収入計画!$C$19-2,E42<収入計画!$C$20),1,0),0)+IFERROR(IF(AND(E42>=収入計画!$C$22-2,E42<収入計画!$C$23),1,0),0)>0,0.5,1),IF(AND(E42>=基本情報!$D$15,E42<基本情報!$D$20),MAX(0,基本情報!$D$19*(収入計画!$D$6/収入計画!$C$6)*(1+収入計画!$F$6)^(E42-基本情報!$D$15)),0))) -> 0 | M42: =IF(OR(D42="",E42=""),"",IF(D42=基本情報!$C$15,基本情報!$C$16,0)+IF(E42=基本情報!$D$15,基本情報!$D$16,0)) -> 0 | N42: =IF(D42="","",IF(OR(D42>=基本情報!$C$17,E42>=基本情報!$D$17),MAX(0,IF(D42>=基本情報!$C$17,基本情報!$C$18*12,0)+IF(AND(E42<>"",E42>=基本情報!$D$17),基本情報!$D$18*12,0)),"")) -> 288 | O42: =SUMPRODUCT((収入計画!$D$27:$D$42<=C42)*(収入計画!$E$27:$E$42>=C42)*収入計画!$C$27:$C$42) -> 0 | P42: 288 | Q42: =IF(D42<基本情報!$C$15,支出計画!$C$5*(1+支出計画!$D$5)^(B42-1),支出計画!$C$46)-IF(MIN(F42:J42)>=22,支出計画!$C$49,0) -> 228 | R42: =IF(C42<住宅ローン償還表!$C$9,支出計画!$C$7,0)+IF(AND(C42>=支出計画!$E$8,C42<=支出計画!$F$8),支出計画!$C$8,0)+IF(AND(D42<>"",D42>=基本情報!$C$15),支出計画!$C$47,0) -> 20 | S42: =IFERROR(VLOOKUP(C42,住宅ローン償還表!$C$17:$H$51,6,FALSE()),0) -> 0 | T42: =(IF(ライフイベント表!F41="",0,IF(AND(ライフイベント表!F41>=0,ライフイベント表!F41<=5),支出計画!$D$24,IF(AND(ライフイベント表!F41>=6,ライフイベント表!F41<=11),支出計画!$D$25,IF(AND(ライフイベント表!F41>=12,ライフイベント表!F41<=14),支出計画!$D$26,IF(AND(ライフイベント表!F41>=15,ライフイベント表!F41<=17),支出計画!$D$27,IF(ライフイベント表!F41=18,支出計画!$D$28,IF(AND(ライフイベント表!F41>=19,ライフイベント表!F41<=21),支出計画!$D$29,0)))))))+IF(ライフイベント表!G41="",0,IF(AND(ライフイベント表!G41>=0,ライフイベント表!G41<=5),支出計画!$D$24,IF(AND(ライフイベント表!G41>=6,ライフイベント表!G41<=11),支出計画!$D$25,IF(AND(ライフイベント表!G41>=12,ライフイベント表!G41<=14),支出計画!$D$26,IF(AND(ライフイベント表!G41>=15,ライフイベント表!G41<=17),支出計画!$D$27,IF(ライフイベント表!G41=18,支出計画!$D$28,IF(AND(ライフイベント表!G41>=19,ライフイベント表!G41<=21),支出計画!$D$29,0)))))))+IF(ライフイベント表!H41="",0,IF(AND(ライフイベント表!H41>=0,ライフイベント表!H41<=5),支出計画!$D$24,IF(AND(ライフイベント表!H41>=6,ライフイベント表!H41<=11),支出計画!$D$25,IF(AND(ライフイベント表!H41>=12,ライフイベント表!H41<=14),支出計画!$D$26,IF(AND(ライフイベント表!H41>=15,ライフイベント表!H41<=17),支出計画!$D$27,IF(ライフイベント表!H41=18,支出計画!$D$28,IF(AND(ライフイベント表!H41>=19,ライフイベント表!H41<=21),支出計画!$D$29,0)))))))+IF(ライフイベント表!I41="",0,IF(AND(ライフイベント表!I41>=0,ライフイベント表!I41<=5),支出計画!$D$24,IF(AND(ライフイベント表!I41>=6,ライフイベント表!I41<=11),支出計画!$D$25,IF(AND(ライフイベント表!I41>=12,ライフイベント表!I41<=14),支出計画!$D$26,IF(AND(ライフイベント表!I41>=15,ライフイベント表!I41<=17),支出計画!$D$27,IF(ライフイベント表!I41=18,支出計画!$D$28,IF(AND(ライフイベント表!I41>=19,ライフイベント表!I41<=21),支出計画!$D$29,0)))))))+IF(ライフイベント表!J41="",0,IF(AND(ライフイベント表!J41>=0,ライフイベント表!J41<=5),支出計画!$D$24,IF(AND(ライフイベント表!J41>=6,ライフイベント表!J41<=11),支出計画!$D$25,IF(AND(ライフイベント表!J41>=12,ライフイベント表!J41<=14),支出計画!$D$26,IF(AND(ライフイベント表!J41>=15,ライフイベント表!J41<=17),支出計画!$D$27,IF(ライフイベント表!J41=18,支出計画!$D$28,IF(AND(ライフイベント表!J41>=19,ライフイベント表!J41<=21),支出計画!$D$29,0))))))))*POWER(1.02,B42-1) -> 0 | U42: =SUMPRODUCT((保険!$G$5:$G$15<=C42)*(保険!$H$5:$H$15>=C42)*保険!$F$5:$F$15)+IF(AND(D42<>"",D42>=基本情報!$C$15),支出計画!$C$48,0) -> 12 | V42: =支出計画!$C$9 -> 36 | W42: =IF(AND(C42>=支出計画!$D$35,C42<=支出計画!$F$35,MOD(C42-支出計画!$D$35,支出計画!$E$35)=0),支出計画!$C$35,0)+IF(AND(C42>=支出計画!$D$36,C42<=支出計画!$F$36,MOD(C42-支出計画!$D$36,支出計画!$E$36)=0),支出計画!$C$36,0)+IF(C42=支出計画!$D$37,支出計画!$C$37,0)+IF(C42=支出計画!$D$38,支出計画!$C$38,0)+IF(C42=支出計画!$D$39,支出計画!$C$39,0)+IF(C42=支出計画!$D$40,支出計画!$C$40,0)+IF(C42=支出計画!$D$41,支出計画!$C$41,0)+IF(C42>=支出計画!$E$17,支出計画!$C$17,0)+IF(C42>=支出計画!$E$18,支出計画!$C$18,0) -> 242 | X42: 538 | Y42: -250 | Z42: =Z41*(1+金融資産!$C$21)+Y42 -> 4683.530065
B43: 39 | C43: =基本情報!$C$3+B43-1 -> 2060 | D43: =IF(基本情報!$D$6="","",C43-YEAR(基本情報!$D$6)-IF(OR(MONTH(基本情報!$D$6)>1,DAY(基本情報!$D$6)>1),1,0)) -> 73 | E43: =IF(基本情報!$D$7="","",C43-YEAR(基本情報!$D$7)-IF(OR(MONTH(基本情報!$D$7)>1,DAY(基本情報!$D$7)>1),1,0)) -> 72 | F43: =IF(OR(基本情報!$D$8="",C43<=YEAR(基本情報!$D$8)),"",MAX(0,C43-YEAR(基本情報!$D$8)-IF(OR(MONTH(基本情報!$D$8)>1,DAY(基本情報!$D$8)>1),1,0))) -> 41 | G43: =IF(OR(基本情報!$D$9="",C43<=YEAR(基本情報!$D$9)),"",MAX(0,C43-YEAR(基本情報!$D$9)-IF(OR(MONTH(基本情報!$D$9)>1,DAY(基本情報!$D$9)>1),1,0))) -> 39 | H43: =IF(OR(基本情報!$D$10="",C43<=YEAR(基本情報!$D$10)),"",MAX(0,C43-YEAR(基本情報!$D$10)-IF(OR(MONTH(基本情報!$D$10)>1,DAY(基本情報!$D$10)>1),1,0))) -> 32 | I43: =IF(OR(基本情報!$D$11="",C43<=YEAR(基本情報!$D$11)),"",MAX(0,C43-YEAR(基本情報!$D$11)-IF(OR(MONTH(基本情報!$D$11)>1,DAY(基本情報!$D$11)>1),1,0))) ->  | J43: =IF(OR(基本情報!$D$12="",C43<=YEAR(基本情報!$D$12)),"",MAX(0,C43-YEAR(基本情報!$D$12)-IF(OR(MONTH(基本情報!$D$12)>1,DAY(基本情報!$D$12)>1),1,0))) ->  | K43: =IF(D43="","",IF(D43<基本情報!$C$15,MAX(0,収入計画!$D$5*(1+収入計画!$E$5)^(B43-1)),IF(AND(D43>=基本情報!$C$15,D43<基本情報!$C$20),MAX(0,基本情報!$C$19*(収入計画!$D$5/収入計画!$C$5)*(1+収入計画!$F$5)^(D43-基本情報!$C$15)),0))) -> 0 | L43: =IF(E43="","",IF(E43<基本情報!$D$15,MAX(0,収入計画!$D$6*(1+収入計画!$E$6)^(B43-1))*IF(IFERROR(IF(AND(E43>=収入計画!$C$10-2,E43<収入計画!$C$11),1,0),0)+IFERROR(IF(AND(E43>=収入計画!$C$13-2,E43<収入計画!$C$14),1,0),0)+IFERROR(IF(AND(E43>=収入計画!$C$16-2,E43<収入計画!$C$17),1,0),0)+IFERROR(IF(AND(E43>=収入計画!$C$19-2,E43<収入計画!$C$20),1,0),0)+IFERROR(IF(AND(E43>=収入計画!$C$22-2,E43<収入計画!$C$23),1,0),0)>0,0.5,1),IF(AND(E43>=基本情報!$D$15,E43<基本情報!$D$20),MAX(0,基本情報!$D$19*(収入計画!$D$6/収入計画!$C$6)*(1+収入計画!$F$6)^(E43-基本情報!$D$15)),0))) -> 0 | M43: =IF(OR(D43="",E43=""),"",IF(D43=基本情報!$C$15,基本情報!$C$16,0)+IF(E43=基本情報!$D$15,基本情報!$D$16,0)) -> 0 | N43: =IF(D43="","",IF(OR(D43>=基本情報!$C$17,E43>=基本情報!$D$17),MAX(0,IF(D43>=基本情報!$C$17,基本情報!$C$18*12,0)+IF(AND(E43<>"",E43>=基本情報!$D$17),基本情報!$D$18*12,0)),"")) -> 288 | O43: =SUMPRODUCT((収入計画!$D$27:$D$42<=C43)*(収入計画!$E$27:$E$42>=C43)*収入計画!$C$27:$C$42) -> 0 | P43: 288 | Q43: =IF(D43<基本情報!$C$15,支出計画!$C$5*(1+支出計画!$D$5)^(B43-1),支出計画!$C$46)-IF(MIN(F43:J43)>=22,支出計画!$C$49,0) -> 228 | R43: =IF(C43<住宅ローン償還表!$C$9,支出計画!$C$7,0)+IF(AND(C43>=支出計画!$E$8,C43<=支出計画!$F$8),支出計画!$C$8,0)+IF(AND(D43<>"",D43>=基本情報!$C$15),支出計画!$C$47,0) -> 20 | S43: =IFERROR(VLOOKUP(C43,住宅ローン償還表!$C$17:$H$51,6,FALSE()),0) -> 0 | T43: =(IF(ライフイベント表!F42="",0,IF(AND(ライフイベント表!F42>=0,ライフイベント表!F42<=5),支出計画!$D$24,IF(AND(ライフイベント表!F42>=6,ライフイベント表!F42<=11),支出計画!$D$25,IF(AND(ライフイベント表!F42>=12,ライフイベント表!F42<=14),支出計画!$D$26,IF(AND(ライフイベント表!F42>=15,ライフイベント表!F42<=17),支出計画!$D$27,IF(ライフイベント表!F42=18,支出計画!$D$28,IF(AND(ライフイベント表!F42>=19,ライフイベント表!F42<=21),支出計画!$D$29,0)))))))+IF(ライフイベント表!G42="",0,IF(AND(ライフイベント表!G42>=0,ライフイベント表!G42<=5),支出計画!$D$24,IF(AND(ライフイベント表!G42>=6,ライフイベント表!G42<=11),支出計画!$D$25,IF(AND(ライフイベント表!G42>=12,ライフイベント表!G42<=14),支出計画!$D$26,IF(AND(ライフイベント表!G42>=15,ライフイベント表!G42<=17),支出計画!$D$27,IF(ライフイベント表!G42=18,支出計画!$D$28,IF(AND(ライフイベント表!G42>=19,ライフイベント表!G42<=21),支出計画!$D$29,0)))))))+IF(ライフイベント表!H42="",0,IF(AND(ライフイベント表!H42>=0,ライフイベント表!H42<=5),支出計画!$D$24,IF(AND(ライフイベント表!H42>=6,ライフイベント表!H42<=11),支出計画!$D$25,IF(AND(ライフイベント表!H42>=12,ライフイベント表!H42<=14),支出計画!$D$26,IF(AND(ライフイベント表!H42>=15,ライフイベント表!H42<=17),支出計画!$D$27,IF(ライフイベント表!H42=18,支出計画!$D$28,IF(AND(ライフイベント表!H42>=19,ライフイベント表!H42<=21),支出計画!$D$29,0)))))))+IF(ライフイベント表!I42="",0,IF(AND(ライフイベント表!I42>=0,ライフイベント表!I42<=5),支出計画!$D$24,IF(AND(ライフイベント表!I42>=6,ライフイベント表!I42<=11),支出計画!$D$25,IF(AND(ライフイベント表!I42>=12,ライフイベント表!I42<=14),支出計画!$D$26,IF(AND(ライフイベント表!I42>=15,ライフイベント表!I42<=17),支出計画!$D$27,IF(ライフイベント表!I42=18,支出計画!$D$28,IF(AND(ライフイベント表!I42>=19,ライフイベント表!I42<=21),支出計画!$D$29,0)))))))+IF(ライフイベント表!J42="",0,IF(AND(ライフイベント表!J42>=0,ライフイベント表!J42<=5),支出計画!$D$24,IF(AND(ライフイベント表!J42>=6,ライフイベント表!J42<=11),支出計画!$D$25,IF(AND(ライフイベント表!J42>=12,ライフイベント表!J42<=14),支出計画!$D$26,IF(AND(ライフイベント表!J42>=15,ライフイベント表!J42<=17),支出計画!$D$27,IF(ライフイベント表!J42=18,支出計画!$D$28,IF(AND(ライフイベント表!J42>=19,ライフイベント表!J42<=21),支出計画!$D$29,0))))))))*POWER(1.02,B43-1) -> 0 | U43: =SUMPRODUCT((保険!$G$5:$G$15<=C43)*(保険!$H$5:$H$15>=C43)*保険!$F$5:$F$15)+IF(AND(D43<>"",D43>=基本情報!$C$15),支出計画!$C$48,0) -> 12 | V43: =支出計画!$C$9 -> 36 | W43: =IF(AND(C43>=支出計画!$D$35,C43<=支出計画!$F$35,MOD(C43-支出計画!$D$35,支出計画!$E$35)=0),支出計画!$C$35,0)+IF(AND(C43>=支出計画!$D$36,C43<=支出計画!$F$36,MOD(C43-支出計画!$D$36,支出計画!$E$36)=0),支出計画!$C$36,0)+IF(C43=支出計画!$D$37,支出計画!$C$37,0)+IF(C43=支出計画!$D$38,支出計画!$C$38,0)+IF(C43=支出計画!$D$39,支出計画!$C$39,0)+IF(C43=支出計画!$D$40,支出計画!$C$40,0)+IF(C43=支出計画!$D$41,支出計画!$C$41,0)+IF(C43>=支出計画!$E$17,支出計画!$C$17,0)+IF(C43>=支出計画!$E$18,支出計画!$C$18,0) -> 32 | X43: 328 | Y43: -40 | Z43: =Z42*(1+金融資産!$C$21)+Y43 -> 4666.947715
B44: 40 | C44: =基本情報!$C$3+B44-1 -> 2061 | D44: =IF(基本情報!$D$6="","",C44-YEAR(基本情報!$D$6)-IF(OR(MONTH(基本情報!$D$6)>1,DAY(基本情報!$D$6)>1),1,0)) -> 74 | E44: =IF(基本情報!$D$7="","",C44-YEAR(基本情報!$D$7)-IF(OR(MONTH(基本情報!$D$7)>1,DAY(基本情報!$D$7)>1),1,0)) -> 73 | F44: =IF(OR(基本情報!$D$8="",C44<=YEAR(基本情報!$D$8)),"",MAX(0,C44-YEAR(基本情報!$D$8)-IF(OR(MONTH(基本情報!$D$8)>1,DAY(基本情報!$D$8)>1),1,0))) -> 42 | G44: =IF(OR(基本情報!$D$9="",C44<=YEAR(基本情報!$D$9)),"",MAX(0,C44-YEAR(基本情報!$D$9)-IF(OR(MONTH(基本情報!$D$9)>1,DAY(基本情報!$D$9)>1),1,0))) -> 40 | H44: =IF(OR(基本情報!$D$10="",C44<=YEAR(基本情報!$D$10)),"",MAX(0,C44-YEAR(基本情報!$D$10)-IF(OR(MONTH(基本情報!$D$10)>1,DAY(基本情報!$D$10)>1),1,0))) -> 33 | I44: =IF(OR(基本情報!$D$11="",C44<=YEAR(基本情報!$D$11)),"",MAX(0,C44-YEAR(基本情報!$D$11)-IF(OR(MONTH(基本情報!$D$11)>1,DAY(基本情報!$D$11)>1),1,0))) ->  | J44: =IF(OR(基本情報!$D$12="",C44<=YEAR(基本情報!$D$12)),"",MAX(0,C44-YEAR(基本情報!$D$12)-IF(OR(MONTH(基本情報!$D$12)>1,DAY(基本情報!$D$12)>1),1,0))) ->  | K44: =IF(D44="","",IF(D44<基本情報!$C$15,MAX(0,収入計画!$D$5*(1+収入計画!$E$5)^(B44-1)),IF(AND(D44>=基本情報!$C$15,D44<基本情報!$C$20),MAX(0,基本情報!$C$19*(収入計画!$D$5/収入計画!$C$5)*(1+収入計画!$F$5)^(D44-基本情報!$C$15)),0))) -> 0 | L44: =IF(E44="","",IF(E44<基本情報!$D$15,MAX(0,収入計画!$D$6*(1+収入計画!$E$6)^(B44-1))*IF(IFERROR(IF(AND(E44>=収入計画!$C$10-2,E44<収入計画!$C$11),1,0),0)+IFERROR(IF(AND(E44>=収入計画!$C$13-2,E44<収入計画!$C$14),1,0),0)+IFERROR(IF(AND(E44>=収入計画!$C$16-2,E44<収入計画!$C$17),1,0),0)+IFERROR(IF(AND(E44>=収入計画!$C$19-2,E44<収入計画!$C$20),1,0),0)+IFERROR(IF(AND(E44>=収入計画!$C$22-2,E44<収入計画!$C$23),1,0),0)>0,0.5,1),IF(AND(E44>=基本情報!$D$15,E44<基本情報!$D$20),MAX(0,基本情報!$D$19*(収入計画!$D$6/収入計画!$C$6)*(1+収入計画!$F$6)^(E44-基本情報!$D$15)),0))) -> 0 | M44: =IF(OR(D44="",E44=""),"",IF(D44=基本情報!$C$15,基本情報!$C$16,0)+IF(E44=基本情報!$D$15,基本情報!$D$16,0)) -> 0 | N44: =IF(D44="","",IF(OR(D44>=基本情報!$C$17,E44>=基本情報!$D$17),MAX(0,IF(D44>=基本情報!$C$17,基本情報!$C$18*12,0)+IF(AND(E44<>"",E44>=基本情報!$D$17),基本情報!$D$18*12,0)),"")) -> 288 | O44: =SUMPRODUCT((収入計画!$D$27:$D$42<=C44)*(収入計画!$E$27:$E$42>=C44)*収入計画!$C$27:$C$42) -> 0 | P44: 288 | Q44: =IF(D44<基本情報!$C$15,支出計画!$C$5*(1+支出計画!$D$5)^(B44-1),支出計画!$C$46)-IF(MIN(F44:J44)>=22,支出計画!$C$49,0) -> 228 | R44: =IF(C44<住宅ローン償還表!$C$9,支出計画!$C$7,0)+IF(AND(C44>=支出計画!$E$8,C44<=支出計画!$F$8),支出計画!$C$8,0)+IF(AND(D44<>"",D44>=基本情報!$C$15),支出計画!$C$47,0) -> 20 | S44: =IFERROR(VLOOKUP(C44,住宅ローン償還表!$C$17:$H$51,6,FALSE()),0) -> 0 | T44: =(IF(ライフイベント表!F43="",0,IF(AND(ライフイベント表!F43>=0,ライフイベント表!F43<=5),支出計画!$D$24,IF(AND(ライフイベント表!F43>=6,ライフイベント表!F43<=11),支出計画!$D$25,IF(AND(ライフイベント表!F43>=12,ライフイベント表!F43<=14),支出計画!$D$26,IF(AND(ライフイベント表!F43>=15,ライフイベント表!F43<=17),支出計画!$D$27,IF(ライフイベント表!F43=18,支出計画!$D$28,IF(AND(ライフイベント表!F43>=19,ライフイベント表!F43<=21),支出計画!$D$29,0)))))))+IF(ライフイベント表!G43="",0,IF(AND(ライフイベント表!G43>=0,ライフイベント表!G43<=5),支出計画!$D$24,IF(AND(ライフイベント表!G43>=6,ライフイベント表!G43<=11),支出計画!$D$25,IF(AND(ライフイベント表!G43>=12,ライフイベント表!G43<=14),支出計画!$D$26,IF(AND(ライフイベント表!G43>=15,ライフイベント表!G43<=17),支出計画!$D$27,IF(ライフイベント表!G43=18,支出計画!$D$28,IF(AND(ライフイベント表!G43>=19,ライフイベント表!G43<=21),支出計画!$D$29,0)))))))+IF(ライフイベント表!H43="",0,IF(AND(ライフイベント表!H43>=0,ライフイベント表!H43<=5),支出計画!$D$24,IF(AND(ライフイベント表!H43>=6,ライフイベント表!H43<=11),支出計画!$D$25,IF(AND(ライフイベント表!H43>=12,ライフイベント表!H43<=14),支出計画!$D$26,IF(AND(ライフイベント表!H43>=15,ライフイベント表!H43<=17),支出計画!$D$27,IF(ライフイベント表!H43=18,支出計画!$D$28,IF(AND(ライフイベント表!H43>=19,ライフイベント表!H43<=21),支出計画!$D$29,0)))))))+IF(ライフイベント表!I43="",0,IF(AND(ライフイベント表!I43>=0,ライフイベント表!I43<=5),支出計画!$D$24,IF(AND(ライフイベント表!I43>=6,ライフイベント表!I43<=11),支出計画!$D$25,IF(AND(ライフイベント表!I43>=12,ライフイベント表!I43<=14),支出計画!$D$26,IF(AND(ライフイベント表!I43>=15,ライフイベント表!I43<=17),支出計画!$D$27,IF(ライフイベント表!I43=18,支出計画!$D$28,IF(AND(ライフイベント表!I43>=19,ライフイベント表!I43<=21),支出計画!$D$29,0)))))))+IF(ライフイベント表!J43="",0,IF(AND(ライフイベント表!J43>=0,ライフイベント表!J43<=5),支出計画!$D$24,IF(AND(ライフイベント表!J43>=6,ライフイベント表!J43<=11),支出計画!$D$25,IF(AND(ライフイベント表!J43>=12,ライフイベント表!J43<=14),支出計画!$D$26,IF(AND(ライフイベント表!J43>=15,ライフイベント表!J43<=17),支出計画!$D$27,IF(ライフイベント表!J43=18,支出計画!$D$28,IF(AND(ライフイベント表!J43>=19,ライフイベント表!J43<=21),支出計画!$D$29,0))))))))*POWER(1.02,B44-1) -> 0 | U44: =SUMPRODUCT((保険!$G$5:$G$15<=C44)*(保険!$H$5:$H$15>=C44)*保険!$F$5:$F$15)+IF(AND(D44<>"",D44>=基本情報!$C$15),支出計画!$C$48,0) -> 12 | V44: =支出計画!$C$9 -> 36 | W44: =IF(AND(C44>=支出計画!$D$35,C44<=支出計画!$F$35,MOD(C44-支出計画!$D$35,支出計画!$E$35)=0),支出計画!$C$35,0)+IF(AND(C44>=支出計画!$D$36,C44<=支出計画!$F$36,MOD(C44-支出計画!$D$36,支出計画!$E$36)=0),支出計画!$C$36,0)+IF(C44=支出計画!$D$37,支出計画!$C$37,0)+IF(C44=支出計画!$D$38,支出計画!$C$38,0)+IF(C44=支出計画!$D$39,支出計画!$C$39,0)+IF(C44=支出計画!$D$40,支出計画!$C$40,0)+IF(C44=支出計画!$D$41,支出計画!$C$41,0)+IF(C44>=支出計画!$E$17,支出計画!$C$17,0)+IF(C44>=支出計画!$E$18,支出計画!$C$18,0) -> 32 | X44: 328 | Y44: -40 | Z44: =Z43*(1+金融資産!$C$21)+Y44 -> 4650.282454
B45: 41 | C45: =基本情報!$C$3+B45-1 -> 2062 | D45: =IF(基本情報!$D$6="","",C45-YEAR(基本情報!$D$6)-IF(OR(MONTH(基本情報!$D$6)>1,DAY(基本情報!$D$6)>1),1,0)) -> 75 | E45: =IF(基本情報!$D$7="","",C45-YEAR(基本情報!$D$7)-IF(OR(MONTH(基本情報!$D$7)>1,DAY(基本情報!$D$7)>1),1,0)) -> 74 | F45: =IF(OR(基本情報!$D$8="",C45<=YEAR(基本情報!$D$8)),"",MAX(0,C45-YEAR(基本情報!$D$8)-IF(OR(MONTH(基本情報!$D$8)>1,DAY(基本情報!$D$8)>1),1,0))) -> 43 | G45: =IF(OR(基本情報!$D$9="",C45<=YEAR(基本情報!$D$9)),"",MAX(0,C45-YEAR(基本情報!$D$9)-IF(OR(MONTH(基本情報!$D$9)>1,DAY(基本情報!$D$9)>1),1,0))) -> 41 | H45: =IF(OR(基本情報!$D$10="",C45<=YEAR(基本情報!$D$10)),"",MAX(0,C45-YEAR(基本情報!$D$10)-IF(OR(MONTH(基本情報!$D$10)>1,DAY(基本情報!$D$10)>1),1,0))) -> 34 | I45: =IF(OR(基本情報!$D$11="",C45<=YEAR(基本情報!$D$11)),"",MAX(0,C45-YEAR(基本情報!$D$11)-IF(OR(MONTH(基本情報!$D$11)>1,DAY(基本情報!$D$11)>1),1,0))) ->  | J45: =IF(OR(基本情報!$D$12="",C45<=YEAR(基本情報!$D$12)),"",MAX(0,C45-YEAR(基本情報!$D$12)-IF(OR(MONTH(基本情報!$D$12)>1,DAY(基本情報!$D$12)>1),1,0))) ->  | K45: =IF(D45="","",IF(D45<基本情報!$C$15,MAX(0,収入計画!$D$5*(1+収入計画!$E$5)^(B45-1)),IF(AND(D45>=基本情報!$C$15,D45<基本情報!$C$20),MAX(0,基本情報!$C$19*(収入計画!$D$5/収入計画!$C$5)*(1+収入計画!$F$5)^(D45-基本情報!$C$15)),0))) -> 0 | L45: =IF(E45="","",IF(E45<基本情報!$D$15,MAX(0,収入計画!$D$6*(1+収入計画!$E$6)^(B45-1))*IF(IFERROR(IF(AND(E45>=収入計画!$C$10-2,E45<収入計画!$C$11),1,0),0)+IFERROR(IF(AND(E45>=収入計画!$C$13-2,E45<収入計画!$C$14),1,0),0)+IFERROR(IF(AND(E45>=収入計画!$C$16-2,E45<収入計画!$C$17),1,0),0)+IFERROR(IF(AND(E45>=収入計画!$C$19-2,E45<収入計画!$C$20),1,0),0)+IFERROR(IF(AND(E45>=収入計画!$C$22-2,E45<収入計画!$C$23),1,0),0)>0,0.5,1),IF(AND(E45>=基本情報!$D$15,E45<基本情報!$D$20),MAX(0,基本情報!$D$19*(収入計画!$D$6/収入計画!$C$6)*(1+収入計画!$F$6)^(E45-基本情報!$D$15)),0))) -> 0 | M45: =IF(OR(D45="",E45=""),"",IF(D45=基本情報!$C$15,基本情報!$C$16,0)+IF(E45=基本情報!$D$15,基本情報!$D$16,0)) -> 0 | N45: =IF(D45="","",IF(OR(D45>=基本情報!$C$17,E45>=基本情報!$D$17),MAX(0,IF(D45>=基本情報!$C$17,基本情報!$C$18*12,0)+IF(AND(E45<>"",E45>=基本情報!$D$17),基本情報!$D$18*12,0)),"")) -> 288 | O45: =SUMPRODUCT((収入計画!$D$27:$D$42<=C45)*(収入計画!$E$27:$E$42>=C45)*収入計画!$C$27:$C$42) -> 0 | P45: 288 | Q45: =IF(D45<基本情報!$C$15,支出計画!$C$5*(1+支出計画!$D$5)^(B45-1),支出計画!$C$46)-IF(MIN(F45:J45)>=22,支出計画!$C$49,0) -> 228 | R45: =IF(C45<住宅ローン償還表!$C$9,支出計画!$C$7,0)+IF(AND(C45>=支出計画!$E$8,C45<=支出計画!$F$8),支出計画!$C$8,0)+IF(AND(D45<>"",D45>=基本情報!$C$15),支出計画!$C$47,0) -> 20 | S45: =IFERROR(VLOOKUP(C45,住宅ローン償還表!$C$17:$H$51,6,FALSE()),0) -> 0 | T45: =(IF(ライフイベント表!F44="",0,IF(AND(ライフイベント表!F44>=0,ライフイベント表!F44<=5),支出計画!$D$24,IF(AND(ライフイベント表!F44>=6,ライフイベント表!F44<=11),支出計画!$D$25,IF(AND(ライフイベント表!F44>=12,ライフイベント表!F44<=14),支出計画!$D$26,IF(AND(ライフイベント表!F44>=15,ライフイベント表!F44<=17),支出計画!$D$27,IF(ライフイベント表!F44=18,支出計画!$D$28,IF(AND(ライフイベント表!F44>=19,ライフイベント表!F44<=21),支出計画!$D$29,0)))))))+IF(ライフイベント表!G44="",0,IF(AND(ライフイベント表!G44>=0,ライフイベント表!G44<=5),支出計画!$D$24,IF(AND(ライフイベント表!G44>=6,ライフイベント表!G44<=11),支出計画!$D$25,IF(AND(ライフイベント表!G44>=12,ライフイベント表!G44<=14),支出計画!$D$26,IF(AND(ライフイベント表!G44>=15,ライフイベント表!G44<=17),支出計画!$D$27,IF(ライフイベント表!G44=18,支出計画!$D$28,IF(AND(ライフイベント表!G44>=19,ライフイベント表!G44<=21),支出計画!$D$29,0)))))))+IF(ライフイベント表!H44="",0,IF(AND(ライフイベント表!H44>=0,ライフイベント表!H44<=5),支出計画!$D$24,IF(AND(ライフイベント表!H44>=6,ライフイベント表!H44<=11),支出計画!$D$25,IF(AND(ライフイベント表!H44>=12,ライフイベント表!H44<=14),支出計画!$D$26,IF(AND(ライフイベント表!H44>=15,ライフイベント表!H44<=17),支出計画!$D$27,IF(ライフイベント表!H44=18,支出計画!$D$28,IF(AND(ライフイベント表!H44>=19,ライフイベント表!H44<=21),支出計画!$D$29,0)))))))+IF(ライフイベント表!I44="",0,IF(AND(ライフイベント表!I44>=0,ライフイベント表!I44<=5),支出計画!$D$24,IF(AND(ライフイベント表!I44>=6,ライフイベント表!I44<=11),支出計画!$D$25,IF(AND(ライフイベント表!I44>=12,ライフイベント表!I44<=14),支出計画!$D$26,IF(AND(ライフイベント表!I44>=15,ライフイベント表!I44<=17),支出計画!$D$27,IF(ライフイベント表!I44=18,支出計画!$D$28,IF(AND(ライフイベント表!I44>=19,ライフイベント表!I44<=21),支出計画!$D$29,0)))))))+IF(ライフイベント表!J44="",0,IF(AND(ライフイベント表!J44>=0,ライフイベント表!J44<=5),支出計画!$D$24,IF(AND(ライフイベント表!J44>=6,ライフイベント表!J44<=11),支出計画!$D$25,IF(AND(ライフイベント表!J44>=12,ライフイベント表!J44<=14),支出計画!$D$26,IF(AND(ライフイベント表!J44>=15,ライフイベント表!J44<=17),支出計画!$D$27,IF(ライフイベント表!J44=18,支出計画!$D$28,IF(AND(ライフイベント表!J44>=19,ライフイベント表!J44<=21),支出計画!$D$29,0))))))))*POWER(1.02,B45-1) -> 0 | U45: =SUMPRODUCT((保険!$G$5:$G$15<=C45)*(保険!$H$5:$H$15>=C45)*保険!$F$5:$F$15)+IF(AND(D45<>"",D45>=基本情報!$C$15),支出計画!$C$48,0) -> 12 | V45: =支出計画!$C$9 -> 36 | W45: =IF(AND(C45>=支出計画!$D$35,C45<=支出計画!$F$35,MOD(C45-支出計画!$D$35,支出計画!$E$35)=0),支出計画!$C$35,0)+IF(AND(C45>=支出計画!$D$36,C45<=支出計画!$F$36,MOD(C45-支出計画!$D$36,支出計画!$E$36)=0),支出計画!$C$36,0)+IF(C45=支出計画!$D$37,支出計画!$C$37,0)+IF(C45=支出計画!$D$38,支出計画!$C$38,0)+IF(C45=支出計画!$D$39,支出計画!$C$39,0)+IF(C45=支出計画!$D$40,支出計画!$C$40,0)+IF(C45=支出計画!$D$41,支出計画!$C$41,0)+IF(C45>=支出計画!$E$17,支出計画!$C$17,0)+IF(C45>=支出計画!$E$18,支出計画!$C$18,0) -> 102 | X45: 398 | Y45: -110 | Z45: =Z44*(1+金融資産!$C$21)+Y45 -> 4563.533866
B46: 42 | C46: =基本情報!$C$3+B46-1 -> 2063 | D46: =IF(基本情報!$D$6="","",C46-YEAR(基本情報!$D$6)-IF(OR(MONTH(基本情報!$D$6)>1,DAY(基本情報!$D$6)>1),1,0)) -> 76 | E46: =IF(基本情報!$D$7="","",C46-YEAR(基本情報!$D$7)-IF(OR(MONTH(基本情報!$D$7)>1,DAY(基本情報!$D$7)>1),1,0)) -> 75 | F46: =IF(OR(基本情報!$D$8="",C46<=YEAR(基本情報!$D$8)),"",MAX(0,C46-YEAR(基本情報!$D$8)-IF(OR(MONTH(基本情報!$D$8)>1,DAY(基本情報!$D$8)>1),1,0))) -> 44 | G46: =IF(OR(基本情報!$D$9="",C46<=YEAR(基本情報!$D$9)),"",MAX(0,C46-YEAR(基本情報!$D$9)-IF(OR(MONTH(基本情報!$D$9)>1,DAY(基本情報!$D$9)>1),1,0))) -> 42 | H46: =IF(OR(基本情報!$D$10="",C46<=YEAR(基本情報!$D$10)),"",MAX(0,C46-YEAR(基本情報!$D$10)-IF(OR(MONTH(基本情報!$D$10)>1,DAY(基本情報!$D$10)>1),1,0))) -> 35 | I46: =IF(OR(基本情報!$D$11="",C46<=YEAR(基本情報!$D$11)),"",MAX(0,C46-YEAR(基本情報!$D$11)-IF(OR(MONTH(基本情報!$D$11)>1,DAY(基本情報!$D$11)>1),1,0))) ->  | J46: =IF(OR(基本情報!$D$12="",C46<=YEAR(基本情報!$D$12)),"",MAX(0,C46-YEAR(基本情報!$D$12)-IF(OR(MONTH(基本情報!$D$12)>1,DAY(基本情報!$D$12)>1),1,0))) ->  | K46: =IF(D46="","",IF(D46<基本情報!$C$15,MAX(0,収入計画!$D$5*(1+収入計画!$E$5)^(B46-1)),IF(AND(D46>=基本情報!$C$15,D46<基本情報!$C$20),MAX(0,基本情報!$C$19*(収入計画!$D$5/収入計画!$C$5)*(1+収入計画!$F$5)^(D46-基本情報!$C$15)),0))) -> 0 | L46: =IF(E46="","",IF(E46<基本情報!$D$15,MAX(0,収入計画!$D$6*(1+収入計画!$E$6)^(B46-1))*IF(IFERROR(IF(AND(E46>=収入計画!$C$10-2,E46<収入計画!$C$11),1,0),0)+IFERROR(IF(AND(E46>=収入計画!$C$13-2,E46<収入計画!$C$14),1,0),0)+IFERROR(IF(AND(E46>=収入計画!$C$16-2,E46<収入計画!$C$17),1,0),0)+IFERROR(IF(AND(E46>=収入計画!$C$19-2,E46<収入計画!$C$20),1,0),0)+IFERROR(IF(AND(E46>=収入計画!$C$22-2,E46<収入計画!$C$23),1,0),0)>0,0.5,1),IF(AND(E46>=基本情報!$D$15,E46<基本情報!$D$20),MAX(0,基本情報!$D$19*(収入計画!$D$6/収入計画!$C$6)*(1+収入計画!$F$6)^(E46-基本情報!$D$15)),0))) -> 0 | M46: =IF(OR(D46="",E46=""),"",IF(D46=基本情報!$C$15,基本情報!$C$16,0)+IF(E46=基本情報!$D$15,基本情報!$D$16,0)) -> 0 | N46: =IF(D46="","",IF(OR(D46>=基本情報!$C$17,E46>=基本情報!$D$17),MAX(0,IF(D46>=基本情報!$C$17,基本情報!$C$18*12,0)+IF(AND(E46<>"",E46>=基本情報!$D$17),基本情報!$D$18*12,0)),"")) -> 288 | O46: =SUMPRODUCT((収入計画!$D$27:$D$42<=C46)*(収入計画!$E$27:$E$42>=C46)*収入計画!$C$27:$C$42) -> 0 | P46: 288 | Q46: =IF(D46<基本情報!$C$15,支出計画!$C$5*(1+支出計画!$D$5)^(B46-1),支出計画!$C$46)-IF(MIN(F46:J46)>=22,支出計画!$C$49,0) -> 228 | R46: =IF(C46<住宅ローン償還表!$C$9,支出計画!$C$7,0)+IF(AND(C46>=支出計画!$E$8,C46<=支出計画!$F$8),支出計画!$C$8,0)+IF(AND(D46<>"",D46>=基本情報!$C$15),支出計画!$C$47,0) -> 20 | S46: =IFERROR(VLOOKUP(C46,住宅ローン償還表!$C$17:$H$51,6,FALSE()),0) -> 0 | T46: =(IF(ライフイベント表!F45="",0,IF(AND(ライフイベント表!F45>=0,ライフイベント表!F45<=5),支出計画!$D$24,IF(AND(ライフイベント表!F45>=6,ライフイベント表!F45<=11),支出計画!$D$25,IF(AND(ライフイベント表!F45>=12,ライフイベント表!F45<=14),支出計画!$D$26,IF(AND(ライフイベント表!F45>=15,ライフイベント表!F45<=17),支出計画!$D$27,IF(ライフイベント表!F45=18,支出計画!$D$28,IF(AND(ライフイベント表!F45>=19,ライフイベント表!F45<=21),支出計画!$D$29,0)))))))+IF(ライフイベント表!G45="",0,IF(AND(ライフイベント表!G45>=0,ライフイベント表!G45<=5),支出計画!$D$24,IF(AND(ライフイベント表!G45>=6,ライフイベント表!G45<=11),支出計画!$D$25,IF(AND(ライフイベント表!G45>=12,ライフイベント表!G45<=14),支出計画!$D$26,IF(AND(ライフイベント表!G45>=15,ライフイベント表!G45<=17),支出計画!$D$27,IF(ライフイベント表!G45=18,支出計画!$D$28,IF(AND(ライフイベント表!G45>=19,ライフイベント表!G45<=21),支出計画!$D$29,0)))))))+IF(ライフイベント表!H45="",0,IF(AND(ライフイベント表!H45>=0,ライフイベント表!H45<=5),支出計画!$D$24,IF(AND(ライフイベント表!H45>=6,ライフイベント表!H45<=11),支出計画!$D$25,IF(AND(ライフイベント表!H45>=12,ライフイベント表!H45<=14),支出計画!$D$26,IF(AND(ライフイベント表!H45>=15,ライフイベント表!H45<=17),支出計画!$D$27,IF(ライフイベント表!H45=18,支出計画!$D$28,IF(AND(ライフイベント表!H45>=19,ライフイベント表!H45<=21),支出計画!$D$29,0)))))))+IF(ライフイベント表!I45="",0,IF(AND(ライフイベント表!I45>=0,ライフイベント表!I45<=5),支出計画!$D$24,IF(AND(ライフイベント表!I45>=6,ライフイベント表!I45<=11),支出計画!$D$25,IF(AND(ライフイベント表!I45>=12,ライフイベント表!I45<=14),支出計画!$D$26,IF(AND(ライフイベント表!I45>=15,ライフイベント表!I45<=17),支出計画!$D$27,IF(ライフイベント表!I45=18,支出計画!$D$28,IF(AND(ライフイベント表!I45>=19,ライフイベント表!I45<=21),支出計画!$D$29,0)))))))+IF(ライフイベント表!J45="",0,IF(AND(ライフイベント表!J45>=0,ライフイベント表!J45<=5),支出計画!$D$24,IF(AND(ライフイベント表!J45>=6,ライフイベント表!J45<=11),支出計画!$D$25,IF(AND(ライフイベント表!J45>=12,ライフイベント表!J45<=14),支出計画!$D$26,IF(AND(ライフイベント表!J45>=15,ライフイベント表!J45<=17),支出計画!$D$27,IF(ライフイベント表!J45=18,支出計画!$D$28,IF(AND(ライフイベント表!J45>=19,ライフイベント表!J45<=21),支出計画!$D$29,0))))))))*POWER(1.02,B46-1) -> 0 | U46: =SUMPRODUCT((保険!$G$5:$G$15<=C46)*(保険!$H$5:$H$15>=C46)*保険!$F$5:$F$15)+IF(AND(D46<>"",D46>=基本情報!$C$15),支出計画!$C$48,0) -> 5 | V46: 0 | W46: =IF(AND(C46>=支出計画!$D$35,C46<=支出計画!$F$35,MOD(C46-支出計画!$D$35,支出計画!$E$35)=0),支出計画!$C$35,0)+IF(AND(C46>=支出計画!$D$36,C46<=支出計画!$F$36,MOD(C46-支出計画!$D$36,支出計画!$E$36)=0),支出計画!$C$36,0)+IF(C46=支出計画!$D$37,支出計画!$C$37,0)+IF(C46=支出計画!$D$38,支出計画!$C$38,0)+IF(C46=支出計画!$D$39,支出計画!$C$39,0)+IF(C46=支出計画!$D$40,支出計画!$C$40,0)+IF(C46=支出計画!$D$41,支出計画!$C$41,0)+IF(C46>=支出計画!$E$17,支出計画!$C$17,0)+IF(C46>=支出計画!$E$18,支出計画!$C$18,0) -> 32 | X46: 285 | Y46: 3 | Z46: =Z45*(1+金融資産!$C$21)+Y46 -> 4589.351535
B47: 43 | C47: =基本情報!$C$3+B47-1 -> 2064 | D47: =IF(基本情報!$D$6="","",C47-YEAR(基本情報!$D$6)-IF(OR(MONTH(基本情報!$D$6)>1,DAY(基本情報!$D$6)>1),1,0)) -> 77 | E47: =IF(基本情報!$D$7="","",C47-YEAR(基本情報!$D$7)-IF(OR(MONTH(基本情報!$D$7)>1,DAY(基本情報!$D$7)>1),1,0)) -> 76 | F47: =IF(OR(基本情報!$D$8="",C47<=YEAR(基本情報!$D$8)),"",MAX(0,C47-YEAR(基本情報!$D$8)-IF(OR(MONTH(基本情報!$D$8)>1,DAY(基本情報!$D$8)>1),1,0))) -> 45 | G47: =IF(OR(基本情報!$D$9="",C47<=YEAR(基本情報!$D$9)),"",MAX(0,C47-YEAR(基本情報!$D$9)-IF(OR(MONTH(基本情報!$D$9)>1,DAY(基本情報!$D$9)>1),1,0))) -> 43 | H47: =IF(OR(基本情報!$D$10="",C47<=YEAR(基本情報!$D$10)),"",MAX(0,C47-YEAR(基本情報!$D$10)-IF(OR(MONTH(基本情報!$D$10)>1,DAY(基本情報!$D$10)>1),1,0))) -> 36 | I47: =IF(OR(基本情報!$D$11="",C47<=YEAR(基本情報!$D$11)),"",MAX(0,C47-YEAR(基本情報!$D$11)-IF(OR(MONTH(基本情報!$D$11)>1,DAY(基本情報!$D$11)>1),1,0))) ->  | J47: =IF(OR(基本情報!$D$12="",C47<=YEAR(基本情報!$D$12)),"",MAX(0,C47-YEAR(基本情報!$D$12)-IF(OR(MONTH(基本情報!$D$12)>1,DAY(基本情報!$D$12)>1),1,0))) ->  | K47: =IF(D47="","",IF(D47<基本情報!$C$15,MAX(0,収入計画!$D$5*(1+収入計画!$E$5)^(B47-1)),IF(AND(D47>=基本情報!$C$15,D47<基本情報!$C$20),MAX(0,基本情報!$C$19*(収入計画!$D$5/収入計画!$C$5)*(1+収入計画!$F$5)^(D47-基本情報!$C$15)),0))) -> 0 | L47: =IF(E47="","",IF(E47<基本情報!$D$15,MAX(0,収入計画!$D$6*(1+収入計画!$E$6)^(B47-1))*IF(IFERROR(IF(AND(E47>=収入計画!$C$10-2,E47<収入計画!$C$11),1,0),0)+IFERROR(IF(AND(E47>=収入計画!$C$13-2,E47<収入計画!$C$14),1,0),0)+IFERROR(IF(AND(E47>=収入計画!$C$16-2,E47<収入計画!$C$17),1,0),0)+IFERROR(IF(AND(E47>=収入計画!$C$19-2,E47<収入計画!$C$20),1,0),0)+IFERROR(IF(AND(E47>=収入計画!$C$22-2,E47<収入計画!$C$23),1,0),0)>0,0.5,1),IF(AND(E47>=基本情報!$D$15,E47<基本情報!$D$20),MAX(0,基本情報!$D$19*(収入計画!$D$6/収入計画!$C$6)*(1+収入計画!$F$6)^(E47-基本情報!$D$15)),0))) -> 0 | M47: =IF(OR(D47="",E47=""),"",IF(D47=基本情報!$C$15,基本情報!$C$16,0)+IF(E47=基本情報!$D$15,基本情報!$D$16,0)) -> 0 | N47: =IF(D47="","",IF(OR(D47>=基本情報!$C$17,E47>=基本情報!$D$17),MAX(0,IF(D47>=基本情報!$C$17,基本情報!$C$18*12,0)+IF(AND(E47<>"",E47>=基本情報!$D$17),基本情報!$D$18*12,0)),"")) -> 288 | O47: =SUMPRODUCT((収入計画!$D$27:$D$42<=C47)*(収入計画!$E$27:$E$42>=C47)*収入計画!$C$27:$C$42) -> 0 | P47: 288 | Q47: =IF(D47<基本情報!$C$15,支出計画!$C$5*(1+支出計画!$D$5)^(B47-1),支出計画!$C$46)-IF(MIN(F47:J47)>=22,支出計画!$C$49,0) -> 228 | R47: =IF(C47<住宅ローン償還表!$C$9,支出計画!$C$7,0)+IF(AND(C47>=支出計画!$E$8,C47<=支出計画!$F$8),支出計画!$C$8,0)+IF(AND(D47<>"",D47>=基本情報!$C$15),支出計画!$C$47,0) -> 20 | S47: =IFERROR(VLOOKUP(C47,住宅ローン償還表!$C$17:$H$51,6,FALSE()),0) -> 0 | T47: =(IF(ライフイベント表!F46="",0,IF(AND(ライフイベント表!F46>=0,ライフイベント表!F46<=5),支出計画!$D$24,IF(AND(ライフイベント表!F46>=6,ライフイベント表!F46<=11),支出計画!$D$25,IF(AND(ライフイベント表!F46>=12,ライフイベント表!F46<=14),支出計画!$D$26,IF(AND(ライフイベント表!F46>=15,ライフイベント表!F46<=17),支出計画!$D$27,IF(ライフイベント表!F46=18,支出計画!$D$28,IF(AND(ライフイベント表!F46>=19,ライフイベント表!F46<=21),支出計画!$D$29,0)))))))+IF(ライフイベント表!G46="",0,IF(AND(ライフイベント表!G46>=0,ライフイベント表!G46<=5),支出計画!$D$24,IF(AND(ライフイベント表!G46>=6,ライフイベント表!G46<=11),支出計画!$D$25,IF(AND(ライフイベント表!G46>=12,ライフイベント表!G46<=14),支出計画!$D$26,IF(AND(ライフイベント表!G46>=15,ライフイベント表!G46<=17),支出計画!$D$27,IF(ライフイベント表!G46=18,支出計画!$D$28,IF(AND(ライフイベント表!G46>=19,ライフイベント表!G46<=21),支出計画!$D$29,0)))))))+IF(ライフイベント表!H46="",0,IF(AND(ライフイベント表!H46>=0,ライフイベント表!H46<=5),支出計画!$D$24,IF(AND(ライフイベント表!H46>=6,ライフイベント表!H46<=11),支出計画!$D$25,IF(AND(ライフイベント表!H46>=12,ライフイベント表!H46<=14),支出計画!$D$26,IF(AND(ライフイベント表!H46>=15,ライフイベント表!H46<=17),支出計画!$D$27,IF(ライフイベント表!H46=18,支出計画!$D$28,IF(AND(ライフイベント表!H46>=19,ライフイベント表!H46<=21),支出計画!$D$29,0)))))))+IF(ライフイベント表!I46="",0,IF(AND(ライフイベント表!I46>=0,ライフイベント表!I46<=5),支出計画!$D$24,IF(AND(ライフイベント表!I46>=6,ライフイベント表!I46<=11),支出計画!$D$25,IF(AND(ライフイベント表!I46>=12,ライフイベント表!I46<=14),支出計画!$D$26,IF(AND(ライフイベント表!I46>=15,ライフイベント表!I46<=17),支出計画!$D$27,IF(ライフイベント表!I46=18,支出計画!$D$28,IF(AND(ライフイベント表!I46>=19,ライフイベント表!I46<=21),支出計画!$D$29,0)))))))+IF(ライフイベント表!J46="",0,IF(AND(ライフイベント表!J46>=0,ライフイベント表!J46<=5),支出計画!$D$24,IF(AND(ライフイベント表!J46>=6,ライフイベント表!J46<=11),支出計画!$D$25,IF(AND(ライフイベント表!J46>=12,ライフイベント表!J46<=14),支出計画!$D$26,IF(AND(ライフイベント表!J46>=15,ライフイベント表!J46<=17),支出計画!$D$27,IF(ライフイベント表!J46=18,支出計画!$D$28,IF(AND(ライフイベント表!J46>=19,ライフイベント表!J46<=21),支出計画!$D$29,0))))))))*POWER(1.02,B47-1) -> 0 | U47: =SUMPRODUCT((保険!$G$5:$G$15<=C47)*(保険!$H$5:$H$15>=C47)*保険!$F$5:$F$15)+IF(AND(D47<>"",D47>=基本情報!$C$15),支出計画!$C$48,0) -> 5 | V47: 0 | W47: =IF(AND(C47>=支出計画!$D$35,C47<=支出計画!$F$35,MOD(C47-支出計画!$D$35,支出計画!$E$35)=0),支出計画!$C$35,0)+IF(AND(C47>=支出計画!$D$36,C47<=支出計画!$F$36,MOD(C47-支出計画!$D$36,支出計画!$E$36)=0),支出計画!$C$36,0)+IF(C47=支出計画!$D$37,支出計画!$C$37,0)+IF(C47=支出計画!$D$38,支出計画!$C$38,0)+IF(C47=支出計画!$D$39,支出計画!$C$39,0)+IF(C47=支出計画!$D$40,支出計画!$C$40,0)+IF(C47=支出計画!$D$41,支出計画!$C$41,0)+IF(C47>=支出計画!$E$17,支出計画!$C$17,0)+IF(C47>=支出計画!$E$18,支出計画!$C$18,0) -> 32 | X47: 285 | Y47: 3 | Z47: =Z46*(1+金融資産!$C$21)+Y47 -> 4615.298293
B48: 44 | C48: =基本情報!$C$3+B48-1 -> 2065 | D48: =IF(基本情報!$D$6="","",C48-YEAR(基本情報!$D$6)-IF(OR(MONTH(基本情報!$D$6)>1,DAY(基本情報!$D$6)>1),1,0)) -> 78 | E48: =IF(基本情報!$D$7="","",C48-YEAR(基本情報!$D$7)-IF(OR(MONTH(基本情報!$D$7)>1,DAY(基本情報!$D$7)>1),1,0)) -> 77 | F48: =IF(OR(基本情報!$D$8="",C48<=YEAR(基本情報!$D$8)),"",MAX(0,C48-YEAR(基本情報!$D$8)-IF(OR(MONTH(基本情報!$D$8)>1,DAY(基本情報!$D$8)>1),1,0))) -> 46 | G48: =IF(OR(基本情報!$D$9="",C48<=YEAR(基本情報!$D$9)),"",MAX(0,C48-YEAR(基本情報!$D$9)-IF(OR(MONTH(基本情報!$D$9)>1,DAY(基本情報!$D$9)>1),1,0))) -> 44 | H48: =IF(OR(基本情報!$D$10="",C48<=YEAR(基本情報!$D$10)),"",MAX(0,C48-YEAR(基本情報!$D$10)-IF(OR(MONTH(基本情報!$D$10)>1,DAY(基本情報!$D$10)>1),1,0))) -> 37 | I48: =IF(OR(基本情報!$D$11="",C48<=YEAR(基本情報!$D$11)),"",MAX(0,C48-YEAR(基本情報!$D$11)-IF(OR(MONTH(基本情報!$D$11)>1,DAY(基本情報!$D$11)>1),1,0))) ->  | J48: =IF(OR(基本情報!$D$12="",C48<=YEAR(基本情報!$D$12)),"",MAX(0,C48-YEAR(基本情報!$D$12)-IF(OR(MONTH(基本情報!$D$12)>1,DAY(基本情報!$D$12)>1),1,0))) ->  | K48: =IF(D48="","",IF(D48<基本情報!$C$15,MAX(0,収入計画!$D$5*(1+収入計画!$E$5)^(B48-1)),IF(AND(D48>=基本情報!$C$15,D48<基本情報!$C$20),MAX(0,基本情報!$C$19*(収入計画!$D$5/収入計画!$C$5)*(1+収入計画!$F$5)^(D48-基本情報!$C$15)),0))) -> 0 | L48: =IF(E48="","",IF(E48<基本情報!$D$15,MAX(0,収入計画!$D$6*(1+収入計画!$E$6)^(B48-1))*IF(IFERROR(IF(AND(E48>=収入計画!$C$10-2,E48<収入計画!$C$11),1,0),0)+IFERROR(IF(AND(E48>=収入計画!$C$13-2,E48<収入計画!$C$14),1,0),0)+IFERROR(IF(AND(E48>=収入計画!$C$16-2,E48<収入計画!$C$17),1,0),0)+IFERROR(IF(AND(E48>=収入計画!$C$19-2,E48<収入計画!$C$20),1,0),0)+IFERROR(IF(AND(E48>=収入計画!$C$22-2,E48<収入計画!$C$23),1,0),0)>0,0.5,1),IF(AND(E48>=基本情報!$D$15,E48<基本情報!$D$20),MAX(0,基本情報!$D$19*(収入計画!$D$6/収入計画!$C$6)*(1+収入計画!$F$6)^(E48-基本情報!$D$15)),0))) -> 0 | M48: =IF(OR(D48="",E48=""),"",IF(D48=基本情報!$C$15,基本情報!$C$16,0)+IF(E48=基本情報!$D$15,基本情報!$D$16,0)) -> 0 | N48: =IF(D48="","",IF(OR(D48>=基本情報!$C$17,E48>=基本情報!$D$17),MAX(0,IF(D48>=基本情報!$C$17,基本情報!$C$18*12,0)+IF(AND(E48<>"",E48>=基本情報!$D$17),基本情報!$D$18*12,0)),"")) -> 288 | O48: =SUMPRODUCT((収入計画!$D$27:$D$42<=C48)*(収入計画!$E$27:$E$42>=C48)*収入計画!$C$27:$C$42) -> 0 | P48: 288 | Q48: =IF(D48<基本情報!$C$15,支出計画!$C$5*(1+支出計画!$D$5)^(B48-1),支出計画!$C$46)-IF(MIN(F48:J48)>=22,支出計画!$C$49,0) -> 228 | R48: =IF(C48<住宅ローン償還表!$C$9,支出計画!$C$7,0)+IF(AND(C48>=支出計画!$E$8,C48<=支出計画!$F$8),支出計画!$C$8,0)+IF(AND(D48<>"",D48>=基本情報!$C$15),支出計画!$C$47,0) -> 20 | S48: =IFERROR(VLOOKUP(C48,住宅ローン償還表!$C$17:$H$51,6,FALSE()),0) -> 0 | T48: =(IF(ライフイベント表!F47="",0,IF(AND(ライフイベント表!F47>=0,ライフイベント表!F47<=5),支出計画!$D$24,IF(AND(ライフイベント表!F47>=6,ライフイベント表!F47<=11),支出計画!$D$25,IF(AND(ライフイベント表!F47>=12,ライフイベント表!F47<=14),支出計画!$D$26,IF(AND(ライフイベント表!F47>=15,ライフイベント表!F47<=17),支出計画!$D$27,IF(ライフイベント表!F47=18,支出計画!$D$28,IF(AND(ライフイベント表!F47>=19,ライフイベント表!F47<=21),支出計画!$D$29,0)))))))+IF(ライフイベント表!G47="",0,IF(AND(ライフイベント表!G47>=0,ライフイベント表!G47<=5),支出計画!$D$24,IF(AND(ライフイベント表!G47>=6,ライフイベント表!G47<=11),支出計画!$D$25,IF(AND(ライフイベント表!G47>=12,ライフイベント表!G47<=14),支出計画!$D$26,IF(AND(ライフイベント表!G47>=15,ライフイベント表!G47<=17),支出計画!$D$27,IF(ライフイベント表!G47=18,支出計画!$D$28,IF(AND(ライフイベント表!G47>=19,ライフイベント表!G47<=21),支出計画!$D$29,0)))))))+IF(ライフイベント表!H47="",0,IF(AND(ライフイベント表!H47>=0,ライフイベント表!H47<=5),支出計画!$D$24,IF(AND(ライフイベント表!H47>=6,ライフイベント表!H47<=11),支出計画!$D$25,IF(AND(ライフイベント表!H47>=12,ライフイベント表!H47<=14),支出計画!$D$26,IF(AND(ライフイベント表!H47>=15,ライフイベント表!H47<=17),支出計画!$D$27,IF(ライフイベント表!H47=18,支出計画!$D$28,IF(AND(ライフイベント表!H47>=19,ライフイベント表!H47<=21),支出計画!$D$29,0)))))))+IF(ライフイベント表!I47="",0,IF(AND(ライフイベント表!I47>=0,ライフイベント表!I47<=5),支出計画!$D$24,IF(AND(ライフイベント表!I47>=6,ライフイベント表!I47<=11),支出計画!$D$25,IF(AND(ライフイベント表!I47>=12,ライフイベント表!I47<=14),支出計画!$D$26,IF(AND(ライフイベント表!I47>=15,ライフイベント表!I47<=17),支出計画!$D$27,IF(ライフイベント表!I47=18,支出計画!$D$28,IF(AND(ライフイベント表!I47>=19,ライフイベント表!I47<=21),支出計画!$D$29,0)))))))+IF(ライフイベント表!J47="",0,IF(AND(ライフイベント表!J47>=0,ライフイベント表!J47<=5),支出計画!$D$24,IF(AND(ライフイベント表!J47>=6,ライフイベント表!J47<=11),支出計画!$D$25,IF(AND(ライフイベント表!J47>=12,ライフイベント表!J47<=14),支出計画!$D$26,IF(AND(ライフイベント表!J47>=15,ライフイベント表!J47<=17),支出計画!$D$27,IF(ライフイベント表!J47=18,支出計画!$D$28,IF(AND(ライフイベント表!J47>=19,ライフイベント表!J47<=21),支出計画!$D$29,0))))))))*POWER(1.02,B48-1) -> 0 | U48: =SUMPRODUCT((保険!$G$5:$G$15<=C48)*(保険!$H$5:$H$15>=C48)*保険!$F$5:$F$15)+IF(AND(D48<>"",D48>=基本情報!$C$15),支出計画!$C$48,0) -> 5 | V48: 0 | W48: =IF(AND(C48>=支出計画!$D$35,C48<=支出計画!$F$35,MOD(C48-支出計画!$D$35,支出計画!$E$35)=0),支出計画!$C$35,0)+IF(AND(C48>=支出計画!$D$36,C48<=支出計画!$F$36,MOD(C48-支出計画!$D$36,支出計画!$E$36)=0),支出計画!$C$36,0)+IF(C48=支出計画!$D$37,支出計画!$C$37,0)+IF(C48=支出計画!$D$38,支出計画!$C$38,0)+IF(C48=支出計画!$D$39,支出計画!$C$39,0)+IF(C48=支出計画!$D$40,支出計画!$C$40,0)+IF(C48=支出計画!$D$41,支出計画!$C$41,0)+IF(C48>=支出計画!$E$17,支出計画!$C$17,0)+IF(C48>=支出計画!$E$18,支出計画!$C$18,0) -> 32 | X48: 285 | Y48: 3 | Z48: =Z47*(1+金融資産!$C$21)+Y48 -> 4641.374784
B49: 45 | C49: =基本情報!$C$3+B49-1 -> 2066 | D49: =IF(基本情報!$D$6="","",C49-YEAR(基本情報!$D$6)-IF(OR(MONTH(基本情報!$D$6)>1,DAY(基本情報!$D$6)>1),1,0)) -> 79 | E49: =IF(基本情報!$D$7="","",C49-YEAR(基本情報!$D$7)-IF(OR(MONTH(基本情報!$D$7)>1,DAY(基本情報!$D$7)>1),1,0)) -> 78 | F49: =IF(OR(基本情報!$D$8="",C49<=YEAR(基本情報!$D$8)),"",MAX(0,C49-YEAR(基本情報!$D$8)-IF(OR(MONTH(基本情報!$D$8)>1,DAY(基本情報!$D$8)>1),1,0))) -> 47 | G49: =IF(OR(基本情報!$D$9="",C49<=YEAR(基本情報!$D$9)),"",MAX(0,C49-YEAR(基本情報!$D$9)-IF(OR(MONTH(基本情報!$D$9)>1,DAY(基本情報!$D$9)>1),1,0))) -> 45 | H49: =IF(OR(基本情報!$D$10="",C49<=YEAR(基本情報!$D$10)),"",MAX(0,C49-YEAR(基本情報!$D$10)-IF(OR(MONTH(基本情報!$D$10)>1,DAY(基本情報!$D$10)>1),1,0))) -> 38 | I49: =IF(OR(基本情報!$D$11="",C49<=YEAR(基本情報!$D$11)),"",MAX(0,C49-YEAR(基本情報!$D$11)-IF(OR(MONTH(基本情報!$D$11)>1,DAY(基本情報!$D$11)>1),1,0))) ->  | J49: =IF(OR(基本情報!$D$12="",C49<=YEAR(基本情報!$D$12)),"",MAX(0,C49-YEAR(基本情報!$D$12)-IF(OR(MONTH(基本情報!$D$12)>1,DAY(基本情報!$D$12)>1),1,0))) ->  | K49: =IF(D49="","",IF(D49<基本情報!$C$15,MAX(0,収入計画!$D$5*(1+収入計画!$E$5)^(B49-1)),IF(AND(D49>=基本情報!$C$15,D49<基本情報!$C$20),MAX(0,基本情報!$C$19*(収入計画!$D$5/収入計画!$C$5)*(1+収入計画!$F$5)^(D49-基本情報!$C$15)),0))) -> 0 | L49: =IF(E49="","",IF(E49<基本情報!$D$15,MAX(0,収入計画!$D$6*(1+収入計画!$E$6)^(B49-1))*IF(IFERROR(IF(AND(E49>=収入計画!$C$10-2,E49<収入計画!$C$11),1,0),0)+IFERROR(IF(AND(E49>=収入計画!$C$13-2,E49<収入計画!$C$14),1,0),0)+IFERROR(IF(AND(E49>=収入計画!$C$16-2,E49<収入計画!$C$17),1,0),0)+IFERROR(IF(AND(E49>=収入計画!$C$19-2,E49<収入計画!$C$20),1,0),0)+IFERROR(IF(AND(E49>=収入計画!$C$22-2,E49<収入計画!$C$23),1,0),0)>0,0.5,1),IF(AND(E49>=基本情報!$D$15,E49<基本情報!$D$20),MAX(0,基本情報!$D$19*(収入計画!$D$6/収入計画!$C$6)*(1+収入計画!$F$6)^(E49-基本情報!$D$15)),0))) -> 0 | M49: =IF(OR(D49="",E49=""),"",IF(D49=基本情報!$C$15,基本情報!$C$16,0)+IF(E49=基本情報!$D$15,基本情報!$D$16,0)) -> 0 | N49: =IF(D49="","",IF(OR(D49>=基本情報!$C$17,E49>=基本情報!$D$17),MAX(0,IF(D49>=基本情報!$C$17,基本情報!$C$18*12,0)+IF(AND(E49<>"",E49>=基本情報!$D$17),基本情報!$D$18*12,0)),"")) -> 288 | O49: =SUMPRODUCT((収入計画!$D$27:$D$42<=C49)*(収入計画!$E$27:$E$42>=C49)*収入計画!$C$27:$C$42) -> 0 | P49: 288 | Q49: =IF(D49<基本情報!$C$15,支出計画!$C$5*(1+支出計画!$D$5)^(B49-1),支出計画!$C$46)-IF(MIN(F49:J49)>=22,支出計画!$C$49,0) -> 228 | R49: =IF(C49<住宅ローン償還表!$C$9,支出計画!$C$7,0)+IF(AND(C49>=支出計画!$E$8,C49<=支出計画!$F$8),支出計画!$C$8,0)+IF(AND(D49<>"",D49>=基本情報!$C$15),支出計画!$C$47,0) -> 20 | S49: =IFERROR(VLOOKUP(C49,住宅ローン償還表!$C$17:$H$51,6,FALSE()),0) -> 0 | T49: =(IF(ライフイベント表!F48="",0,IF(AND(ライフイベント表!F48>=0,ライフイベント表!F48<=5),支出計画!$D$24,IF(AND(ライフイベント表!F48>=6,ライフイベント表!F48<=11),支出計画!$D$25,IF(AND(ライフイベント表!F48>=12,ライフイベント表!F48<=14),支出計画!$D$26,IF(AND(ライフイベント表!F48>=15,ライフイベント表!F48<=17),支出計画!$D$27,IF(ライフイベント表!F48=18,支出計画!$D$28,IF(AND(ライフイベント表!F48>=19,ライフイベント表!F48<=21),支出計画!$D$29,0)))))))+IF(ライフイベント表!G48="",0,IF(AND(ライフイベント表!G48>=0,ライフイベント表!G48<=5),支出計画!$D$24,IF(AND(ライフイベント表!G48>=6,ライフイベント表!G48<=11),支出計画!$D$25,IF(AND(ライフイベント表!G48>=12,ライフイベント表!G48<=14),支出計画!$D$26,IF(AND(ライフイベント表!G48>=15,ライフイベント表!G48<=17),支出計画!$D$27,IF(ライフイベント表!G48=18,支出計画!$D$28,IF(AND(ライフイベント表!G48>=19,ライフイベント表!G48<=21),支出計画!$D$29,0)))))))+IF(ライフイベント表!H48="",0,IF(AND(ライフイベント表!H48>=0,ライフイベント表!H48<=5),支出計画!$D$24,IF(AND(ライフイベント表!H48>=6,ライフイベント表!H48<=11),支出計画!$D$25,IF(AND(ライフイベント表!H48>=12,ライフイベント表!H48<=14),支出計画!$D$26,IF(AND(ライフイベント表!H48>=15,ライフイベント表!H48<=17),支出計画!$D$27,IF(ライフイベント表!H48=18,支出計画!$D$28,IF(AND(ライフイベント表!H48>=19,ライフイベント表!H48<=21),支出計画!$D$29,0)))))))+IF(ライフイベント表!I48="",0,IF(AND(ライフイベント表!I48>=0,ライフイベント表!I48<=5),支出計画!$D$24,IF(AND(ライフイベント表!I48>=6,ライフイベント表!I48<=11),支出計画!$D$25,IF(AND(ライフイベント表!I48>=12,ライフイベント表!I48<=14),支出計画!$D$26,IF(AND(ライフイベント表!I48>=15,ライフイベント表!I48<=17),支出計画!$D$27,IF(ライフイベント表!I48=18,支出計画!$D$28,IF(AND(ライフイベント表!I48>=19,ライフイベント表!I48<=21),支出計画!$D$29,0)))))))+IF(ライフイベント表!J48="",0,IF(AND(ライフイベント表!J48>=0,ライフイベント表!J48<=5),支出計画!$D$24,IF(AND(ライフイベント表!J48>=6,ライフイベント表!J48<=11),支出計画!$D$25,IF(AND(ライフイベント表!J48>=12,ライフイベント表!J48<=14),支出計画!$D$26,IF(AND(ライフイベント表!J48>=15,ライフイベント表!J48<=17),支出計画!$D$27,IF(ライフイベント表!J48=18,支出計画!$D$28,IF(AND(ライフイベント表!J48>=19,ライフイベント表!J48<=21),支出計画!$D$29,0))))))))*POWER(1.02,B49-1) -> 0 | U49: =SUMPRODUCT((保険!$G$5:$G$15<=C49)*(保険!$H$5:$H$15>=C49)*保険!$F$5:$F$15)+IF(AND(D49<>"",D49>=基本情報!$C$15),支出計画!$C$48,0) -> 5 | V49: 0 | W49: =IF(AND(C49>=支出計画!$D$35,C49<=支出計画!$F$35,MOD(C49-支出計画!$D$35,支出計画!$E$35)=0),支出計画!$C$35,0)+IF(AND(C49>=支出計画!$D$36,C49<=支出計画!$F$36,MOD(C49-支出計画!$D$36,支出計画!$E$36)=0),支出計画!$C$36,0)+IF(C49=支出計画!$D$37,支出計画!$C$37,0)+IF(C49=支出計画!$D$38,支出計画!$C$38,0)+IF(C49=支出計画!$D$39,支出計画!$C$39,0)+IF(C49=支出計画!$D$40,支出計画!$C$40,0)+IF(C49=支出計画!$D$41,支出計画!$C$41,0)+IF(C49>=支出計画!$E$17,支出計画!$C$17,0)+IF(C49>=支出計画!$E$18,支出計画!$C$18,0) -> 32 | X49: 285 | Y49: 3 | Z49: =Z48*(1+金融資産!$C$21)+Y49 -> 4667.581658
B50: 46 | C50: =基本情報!$C$3+B50-1 -> 2067 | D50: =IF(基本情報!$D$6="","",C50-YEAR(基本情報!$D$6)-IF(OR(MONTH(基本情報!$D$6)>1,DAY(基本情報!$D$6)>1),1,0)) -> 80 | E50: =IF(基本情報!$D$7="","",C50-YEAR(基本情報!$D$7)-IF(OR(MONTH(基本情報!$D$7)>1,DAY(基本情報!$D$7)>1),1,0)) -> 79 | F50: =IF(OR(基本情報!$D$8="",C50<=YEAR(基本情報!$D$8)),"",MAX(0,C50-YEAR(基本情報!$D$8)-IF(OR(MONTH(基本情報!$D$8)>1,DAY(基本情報!$D$8)>1),1,0))) -> 48 | G50: =IF(OR(基本情報!$D$9="",C50<=YEAR(基本情報!$D$9)),"",MAX(0,C50-YEAR(基本情報!$D$9)-IF(OR(MONTH(基本情報!$D$9)>1,DAY(基本情報!$D$9)>1),1,0))) -> 46 | H50: =IF(OR(基本情報!$D$10="",C50<=YEAR(基本情報!$D$10)),"",MAX(0,C50-YEAR(基本情報!$D$10)-IF(OR(MONTH(基本情報!$D$10)>1,DAY(基本情報!$D$10)>1),1,0))) -> 39 | I50: =IF(OR(基本情報!$D$11="",C50<=YEAR(基本情報!$D$11)),"",MAX(0,C50-YEAR(基本情報!$D$11)-IF(OR(MONTH(基本情報!$D$11)>1,DAY(基本情報!$D$11)>1),1,0))) ->  | J50: =IF(OR(基本情報!$D$12="",C50<=YEAR(基本情報!$D$12)),"",MAX(0,C50-YEAR(基本情報!$D$12)-IF(OR(MONTH(基本情報!$D$12)>1,DAY(基本情報!$D$12)>1),1,0))) ->  | K50: =IF(D50="","",IF(D50<基本情報!$C$15,MAX(0,収入計画!$D$5*(1+収入計画!$E$5)^(B50-1)),IF(AND(D50>=基本情報!$C$15,D50<基本情報!$C$20),MAX(0,基本情報!$C$19*(収入計画!$D$5/収入計画!$C$5)*(1+収入計画!$F$5)^(D50-基本情報!$C$15)),0))) -> 0 | L50: =IF(E50="","",IF(E50<基本情報!$D$15,MAX(0,収入計画!$D$6*(1+収入計画!$E$6)^(B50-1))*IF(IFERROR(IF(AND(E50>=収入計画!$C$10-2,E50<収入計画!$C$11),1,0),0)+IFERROR(IF(AND(E50>=収入計画!$C$13-2,E50<収入計画!$C$14),1,0),0)+IFERROR(IF(AND(E50>=収入計画!$C$16-2,E50<収入計画!$C$17),1,0),0)+IFERROR(IF(AND(E50>=収入計画!$C$19-2,E50<収入計画!$C$20),1,0),0)+IFERROR(IF(AND(E50>=収入計画!$C$22-2,E50<収入計画!$C$23),1,0),0)>0,0.5,1),IF(AND(E50>=基本情報!$D$15,E50<基本情報!$D$20),MAX(0,基本情報!$D$19*(収入計画!$D$6/収入計画!$C$6)*(1+収入計画!$F$6)^(E50-基本情報!$D$15)),0))) -> 0 | M50: =IF(OR(D50="",E50=""),"",IF(D50=基本情報!$C$15,基本情報!$C$16,0)+IF(E50=基本情報!$D$15,基本情報!$D$16,0)) -> 0 | N50: =IF(D50="","",IF(OR(D50>=基本情報!$C$17,E50>=基本情報!$D$17),MAX(0,IF(D50>=基本情報!$C$17,基本情報!$C$18*12,0)+IF(AND(E50<>"",E50>=基本情報!$D$17),基本情報!$D$18*12,0)),"")) -> 288 | O50: =SUMPRODUCT((収入計画!$D$27:$D$42<=C50)*(収入計画!$E$27:$E$42>=C50)*収入計画!$C$27:$C$42) -> 0 | P50: 288 | Q50: =IF(D50<基本情報!$C$15,支出計画!$C$5*(1+支出計画!$D$5)^(B50-1),支出計画!$C$46)-IF(MIN(F50:J50)>=22,支出計画!$C$49,0) -> 228 | R50: =IF(C50<住宅ローン償還表!$C$9,支出計画!$C$7,0)+IF(AND(C50>=支出計画!$E$8,C50<=支出計画!$F$8),支出計画!$C$8,0)+IF(AND(D50<>"",D50>=基本情報!$C$15),支出計画!$C$47,0) -> 20 | S50: =IFERROR(VLOOKUP(C50,住宅ローン償還表!$C$17:$H$51,6,FALSE()),0) -> 0 | T50: =(IF(ライフイベント表!F49="",0,IF(AND(ライフイベント表!F49>=0,ライフイベント表!F49<=5),支出計画!$D$24,IF(AND(ライフイベント表!F49>=6,ライフイベント表!F49<=11),支出計画!$D$25,IF(AND(ライフイベント表!F49>=12,ライフイベント表!F49<=14),支出計画!$D$26,IF(AND(ライフイベント表!F49>=15,ライフイベント表!F49<=17),支出計画!$D$27,IF(ライフイベント表!F49=18,支出計画!$D$28,IF(AND(ライフイベント表!F49>=19,ライフイベント表!F49<=21),支出計画!$D$29,0)))))))+IF(ライフイベント表!G49="",0,IF(AND(ライフイベント表!G49>=0,ライフイベント表!G49<=5),支出計画!$D$24,IF(AND(ライフイベント表!G49>=6,ライフイベント表!G49<=11),支出計画!$D$25,IF(AND(ライフイベント表!G49>=12,ライフイベント表!G49<=14),支出計画!$D$26,IF(AND(ライフイベント表!G49>=15,ライフイベント表!G49<=17),支出計画!$D$27,IF(ライフイベント表!G49=18,支出計画!$D$28,IF(AND(ライフイベント表!G49>=19,ライフイベント表!G49<=21),支出計画!$D$29,0)))))))+IF(ライフイベント表!H49="",0,IF(AND(ライフイベント表!H49>=0,ライフイベント表!H49<=5),支出計画!$D$24,IF(AND(ライフイベント表!H49>=6,ライフイベント表!H49<=11),支出計画!$D$25,IF(AND(ライフイベント表!H49>=12,ライフイベント表!H49<=14),支出計画!$D$26,IF(AND(ライフイベント表!H49>=15,ライフイベント表!H49<=17),支出計画!$D$27,IF(ライフイベント表!H49=18,支出計画!$D$28,IF(AND(ライフイベント表!H49>=19,ライフイベント表!H49<=21),支出計画!$D$29,0)))))))+IF(ライフイベント表!I49="",0,IF(AND(ライフイベント表!I49>=0,ライフイベント表!I49<=5),支出計画!$D$24,IF(AND(ライフイベント表!I49>=6,ライフイベント表!I49<=11),支出計画!$D$25,IF(AND(ライフイベント表!I49>=12,ライフイベント表!I49<=14),支出計画!$D$26,IF(AND(ライフイベント表!I49>=15,ライフイベント表!I49<=17),支出計画!$D$27,IF(ライフイベント表!I49=18,支出計画!$D$28,IF(AND(ライフイベント表!I49>=19,ライフイベント表!I49<=21),支出計画!$D$29,0)))))))+IF(ライフイベント表!J49="",0,IF(AND(ライフイベント表!J49>=0,ライフイベント表!J49<=5),支出計画!$D$24,IF(AND(ライフイベント表!J49>=6,ライフイベント表!J49<=11),支出計画!$D$25,IF(AND(ライフイベント表!J49>=12,ライフイベント表!J49<=14),支出計画!$D$26,IF(AND(ライフイベント表!J49>=15,ライフイベント表!J49<=17),支出計画!$D$27,IF(ライフイベント表!J49=18,支出計画!$D$28,IF(AND(ライフイベント表!J49>=19,ライフイベント表!J49<=21),支出計画!$D$29,0))))))))*POWER(1.02,B50-1) -> 0 | U50: =SUMPRODUCT((保険!$G$5:$G$15<=C50)*(保険!$H$5:$H$15>=C50)*保険!$F$5:$F$15)+IF(AND(D50<>"",D50>=基本情報!$C$15),支出計画!$C$48,0) -> 5 | V50: 0 | W50: =IF(AND(C50>=支出計画!$D$35,C50<=支出計画!$F$35,MOD(C50-支出計画!$D$35,支出計画!$E$35)=0),支出計画!$C$35,0)+IF(AND(C50>=支出計画!$D$36,C50<=支出計画!$F$36,MOD(C50-支出計画!$D$36,支出計画!$E$36)=0),支出計画!$C$36,0)+IF(C50=支出計画!$D$37,支出計画!$C$37,0)+IF(C50=支出計画!$D$38,支出計画!$C$38,0)+IF(C50=支出計画!$D$39,支出計画!$C$39,0)+IF(C50=支出計画!$D$40,支出計画!$C$40,0)+IF(C50=支出計画!$D$41,支出計画!$C$41,0)+IF(C50>=支出計画!$E$17,支出計画!$C$17,0)+IF(C50>=支出計画!$E$18,支出計画!$C$18,0) -> 32 | X50: 285 | Y50: 3 | Z50: =Z49*(1+金融資産!$C$21)+Y50 -> 4693.919567
